Workbook

Sheet Net Monthly Surplus
B1: =TODAY() -> 2026-06-12 | G1: =NOW() -> 2026-06-12T13:01:29.510 | W1: FALSE | AN1: Care do not delete row or Column
AP2: =Parm!D31 -> 4 dependants
I3: Office Work
B6: Loan Origination Serviceability Calculator version 2026.06.16 | I6: Hide
B8: Loan Details
E9: Applied Loan Amount | F9: Applied Term In Months | G9: Applied Term In Years | H9: Non Home Loan Product Rate | K9: Applied Loan Amount | L9: Applied Term In Months | M9: Applied Term In Years | N9: Non Home Loan Product Rate
B10: Applied Product Name | C10: Home Loan | D10: Non Home Loan | G10: =IF(F10="","",F10/12) ->  | H10: =IF(User_Applied_Loan_Amount="","",VLOOKUP(User_Applied_Product_Name,Risk_UNSECCR_Products,2,1)/100) ->  | J10: Non Home Loan | M10: =IF(L10="","",L10/12) -> 
K11: NON Home Loan Product | M11: NON Home Loan Loan Type
E12: I want a
B13: Split Home Loan | C13: No | E13: Loan Type
B15: Repayment Type | C15: Home Loan 1 | D15: Amount | E15: Product Rate | F15: Term in Months | G15: IO Term in Months
E16: =IF(User_Select_HL_VarRate_Name="","",HLYWRateP!Q9) -> 
C17: Home Loan 2
E18: =IF(User_Select_HL_FixRate_Name="","",HLYWRateP!Q10) -> 
B20: Estimated Property Value
E21: LVR
E22: =IF(ISERROR(('Net Monthly Surplus'!D16+'Net Monthly Surplus'!D18)/User_Estimated_Property_Value),"",('Net Monthly Surplus'!D16+'Net Monthly Surplus'!D18)/User_Estimated_Property_Value) -> 
B24: Member Details
B26: Application Type | C26: 1
B29: 1 to 2 Applicants | G29: Applicant Name
B30: No. of Applicants (max. 2) | G30: Primary Applicant MemberID | U30: Annualised calculations | AB30: Annualised Gross NET amount Calculations | AO30: Gross for HEM and DTI | AU30: Various flags | BG30: =B34 -> Income Types | BI30: Gross Salary | BJ30: HairCut | BK30: Assessed Income | BL30: Taxable Income | BM30: After Tax Income | BP30: =BI30 -> Gross Salary | BQ30: =BJ30 -> HairCut | BR30: Assessed Income | BS30: Taxable Income | BT30: =BM30 -> After Tax Income
B31: Family Type | U31: Applicant 1 | V31: Applicant 2 | AB31: Applicant 1 | AE31: Applicant 2 | AK31: Total | AO31: =AB31 -> Applicant 1 | AP31: =AE31 -> Applicant 2 | AU31: Applicant 1 | BA31: Applicant 2 | BG31: =AB31 -> Applicant 1 | BO31: =AE31 -> Applicant 2
B32: Dependants | AA32: Haircut | AB32: Gross | AC32: Net | AD32: Haircut | AE32: Gross | AF32: Net | AG32: Gross | AH32: Net | AI32: Gross | AJ32: Net | AK32: Gross | AL32: Net
T33: =B36 -> Salary | U33: =IF(D36>0,D36*IFERROR(VLOOKUP(E36,AnnualMult,2,0),0),0) -> 0 | V33: =IF(G36>0,G36*IFERROR(VLOOKUP(H36,AnnualMult,2,0),0),0) -> 0 | W33: =IF(J36>0,J36*IFERROR(VLOOKUP(K36,AnnualMult,2,0),0),0) -> 0 | X33: =IF(M36>0,M36*IFERROR(VLOOKUP(N36,AnnualMult,2,0),0),0) -> 0 | AB33: =IF(C36="Gross",U33,AC35) -> 0 | AC33: =IF(C36="Net",U33,0) -> 0 | AE33: =IF(F36="Gross",V33,AF35) -> 0 | AF33: =IF(F36="Net",V33,0) -> 0 | AG33: =IF(I36="Gross",W33,AH35) -> 0 | AH33: =IF(I36="Net",W33,0) -> 0 | AI33: =IF(L36="Gross",X33,AJ35) -> 0 | AJ33: =IF(L36="Net",X33,0) -> 0 | AK33: =AB33+AE33+AG33+AI33 -> 0 | AL33: =AC33+AF33+AH33+AJ33 -> 0 | AO33: =AB33 -> 0 | AP33: =AE33 -> 0
B34: Income Types | C34: Applicant 1 | D34: Postcode | F34: Applicant 2 | G34: Postcode | O34: Total | T34: =B37 -> Second Job Salary | U34: =IF(D37>0,D37*IFERROR(VLOOKUP(E37,AnnualMult,2,0),0),0) -> 0 | V34: =IF(G37>0,G37*IFERROR(VLOOKUP(H37,AnnualMult,2,0),0),0) -> 0 | W34: =IF(J37>0,J37*IFERROR(VLOOKUP(K37,AnnualMult,2,0),0),0) -> 0 | X34: =IF(M37>0,M37*IFERROR(VLOOKUP(N37,AnnualMult,2,0),0),0) -> 0 | AB34: =IF(C37="Gross",U34,AC36) -> 0 | AC34: =IF(C37="Net",U34,0) -> 0 | AE34: =IF(F37="Gross",V34,AF36) -> 0 | AF34: =IF(F37="Net",V34,0) -> 0 | AG34: =IF(I37="Gross",W34,AH36) -> 0 | AH34: =IF(I37="Net",W34,0) -> 0 | AI34: =IF(L37="Gross",X34,AJ36) -> 0 | AJ34: =IF(L37="Net",X34,0) -> 0 | AK34: =AB34+AE34+AG34+AI34 -> 0 | AL34: =AC34+AF34+AH34+AJ34 -> 0 | AO34: =AB34 -> 0 | AP34: =AE34 -> 0
C35: Gross/Net | D35: Amount | E35: Frequency | F35: Gross/Net | G35: Amount | H35: Frequency | I35: Gross/Net | J35: Amount | K35: Frequency | L35: Gross/Net | M35: Amount | N35: Frequency | AC35: =GetGrossSalary(AC33) -> 0 | AF35: =GetGrossSalary(AF33) -> 0 | AH35: =IF(AH33<Parm!$O$25,AH33,IFERROR(VLOOKUP(AH33,TMBLCalculation!$T$4:$U$2505,2,1),0)) -> 0 | AJ35: =IF(AJ33<Parm!$O$25,AJ33,IFERROR(VLOOKUP(AJ33,TMBLCalculation!$T$4:$U$2505,2,1),0)) -> 0 | AU35: =IF(User_App1_Salary_GrossNet=Parm!I23,5,IF(User_App1_Salary_GrossNet=Parm!I24,7,0)) -> 0 | AV35: =IF(User_App1_Salary_Amount>0,1,0) -> 0 | AW35: =IF(User_App1_Salary_Freq="",0,1) -> 0 | AX35: =AU35*AV35*AW35 -> 0 | AZ35: =IF(User_App2_Salary_GrossNet=Parm!I23,5,IF(User_App2_Salary_GrossNet=Parm!I24,7,0)) -> 0 | BA35: =IF(User_App2_Salary_Amount>0,1,0) -> 0 | BB35: =IF(User_App2_Salary_Freq="",0,1) -> 0 | BC35: =AZ35*BA35*BB35 -> 0 | BG35: =B36 -> Salary | BI35: =AB33 -> 0 | BJ35: 0 | BK35: =BI35*(1-BJ35) -> 0 | BL35: =BK35 -> 0 | BP35: =AE33 -> 0 | BQ35: =BJ35 -> 0 | BR35: =BP35*(1-BQ35) -> 0 | BS35: =BR35 -> 0
B36: Salary | AC36: =GetGrossSalary(AC34) -> 0 | AF36: =GetGrossSalary(AF34) -> 0 | AH36: =IF(AH34<Parm!$O$25,AH34,IFERROR(VLOOKUP(AH34,TMBLCalculation!$T$4:$U$2505,2,1),0)) -> 0 | AJ36: =IF(AJ34<Parm!$O$25,AJ34,IFERROR(VLOOKUP(AJ34,TMBLCalculation!$T$4:$U$2505,2,1),0)) -> 0 | AU36: =IF(User_App1_Second_Job_Salary_GrossNet=Parm!I23,5,IF(User_App1_Second_Job_Salary_GrossNet=Parm!I24,7,0)) -> 0 | AV36: =IF(User_App1_Second_Job_Salary_Amount>0,1,0) -> 0 | AW36: =IF(User_App1_Second_Job_Salary_Freq="",0,1) -> 0 | AX36: =AU36*AV36*AW36 -> 0 | AZ36: =IF(User_App2_Second_Job_Salary_GrossNet=Parm!I23,5,IF(User_App2_Second_Job_Salary_GrossNet=Parm!I24,7,0)) -> 0 | BA36: =IF(User_App2_Second_Job_Salary_Amount>0,1,0) -> 0 | BB36: =IF(User_App2_Second_Job_Salary_Freq="",0,1) -> 0 | BC36: =AZ36*BA36*BB36 -> 0 | BG36: Second Job Salary | BI36: =AB34 -> 0 | BJ36: 0 | BK36: =BI36*(1-BJ36) -> 0 | BL36: =BK36 -> 0 | BP36: =AE34 -> 0 | BQ36: =BJ36 -> 0 | BR36: =BP36*(1-BQ36) -> 0 | BS36: =BR36 -> 0
B37: Second Job Salary | T37: =B38 -> Gross Regular Shift Allowance/Overtime | U37: =IF(D38>0,D38*IFERROR(VLOOKUP(E38,AnnualMult,2,0),0),0) -> 0 | V37: =IF(G38>0,G38*IFERROR(VLOOKUP(H38,AnnualMult,2,0),0),0) -> 0 | AA37: =IF(C38=Parm_NonEssentialServices,Parm_NonEssentialServicesHairCut,IF(C38=Parm_EssentialServices,Parm_EssentialServicesHairCut,0)) -> 0 | AB37: =U37 -> 0 | AC37: =(1-AA37)*AB37 -> 0 | AD37: =IF(F38=Parm_NonEssentialServices,Parm_NonEssentialServicesHairCut,IF(F38=Parm_EssentialServices,Parm_EssentialServicesHairCut,0)) -> 0 | AE37: =V37 -> 0 | AF37: =(1-AD37)*AE37 -> 0 | AO37: =AB37 -> 0 | AP37: =AE37 -> 0 | BG37: Gross Regular Shift Allowance/Overtime | BI37: =AB37 -> 0 | BJ37: =IF(C38=Parm_NonEssentialServices,Parm_NonEssentialServicesHairCut,IF(C38=Parm_EssentialServices,Parm_EssentialServicesHairCut,0)) -> 0 | BK37: 0 | BL37: 0 | BP37: =AE37 -> 0 | BQ37: =IF(F38=Parm!D90,Parm!E90,IF(F38=Parm!D91,Parm!E91,0)) -> 0 | BR37: 0 | BS37: 0
B38: Gross Regular Shift Allowance/Overtime | T38: Gross Bonuses | U38: =IF(D39>0,D39*IFERROR(VLOOKUP(E39,AnnualMult,2,0),0),0) -> 0 | V38: =IF(G39>0,G39*IFERROR(VLOOKUP(H39,AnnualMult,2,0),0),0) -> 0 | AA38: =Parm_BonusesHairCut -> 0.2 | AB38: 0 | AC38: =(1-AA38)*AB38 -> 0 | AD38: =AA38 -> 0.2 | AE38: 0 | AF38: =(1-AD38)*AE38 -> 0 | AO38: 0 | AP38: 0 | BG38: Gross Bonuses | BI38: =AB38 -> 0 | BJ38: =AA38 -> 0.2 | BK38: 0 | BL38: 0 | BP38: =AE38 -> 0 | BQ38: =BJ38 -> 0.2 | BR38: =BP38*(1-BQ38) -> 0 | BS38: =BR38 -> 0
B39: Gross Bonuses | T39: Gross Commissions | U39: =IF(D40>0,D40*IFERROR(VLOOKUP(E40,AnnualMult,2,0),0),0) -> 0 | V39: =IF(G40>0,G40*IFERROR(VLOOKUP(H40,AnnualMult,2,0),0),0) -> 0 | AA39: =Parm_CommissionsHairCut -> 0.2 | AB39: 0 | AC39: =(1-AA39)*AB39 -> 0 | AD39: =AA39 -> 0.2 | AE39: 0 | AF39: =(1-AD39)*AE39 -> 0 | AO39: 0 | AP39: 0 | BG39: Gross Commissions | BI39: =AB39 -> 0 | BJ39: =AA39 -> 0.2 | BK39: 0 | BL39: 0 | BP39: =AE39 -> 0 | BQ39: =BJ39 -> 0.2 | BR39: 0 | BS39: 0
B40: Gross Commissions | T40: Rental Income | AB40: =IF($D$41="",0,IF($C$30>0,$D$41/$C$30)) -> 0 | AC40: =AB40 -> 0 | AE40: =IF($D$41="",0,IF($C$30>0,$D$41/$C$30)) -> 0 | AF40: =AE40 -> 0 | AK40: =AB40+AE40+AG40+AI40 -> 0 | AN40: ='Rental Income - Applicants 1&2'!K27 -> 0 | AO40: =IF(AN40="",0,IF($C$30>0,AN40/$C$30,0)) -> 0 | AP40: =IF(AN40="",0,IF($C$30>0,AN40/$C$30,0)) -> 0 | AX40: =SUM(AX35:AX36) -> 0 | BC40: =SUM(BC35:BC36) -> 0 | BG40: Rental Income | BH40: ='Rental Income - Applicants 1&2'!K27 -> 0 | BI40: =IF($BH40="",0,IF($C$30>0,$BH40/$C$30,0)) -> 0 | BK40: =IF($D$41="",0,IF($C$30>0,$D$41/$C$30)) -> 0 | BL40: 0 | BP40: =IF($BH40="",0,IF($C$30>0,$BH40/$C$30,0)) -> 0 | BR40: =IF($D$41="",0,IF($C$30>0,$D$41/$C$30)) -> 0 | BS40: 0
B41: Rental Income | D41: =IF('Rental Income - Applicants 1&2'!O27=0,"",'Rental Income - Applicants 1&2'!O27) ->  | T41: Allowances | U41: =IF(D42>0,D42*IFERROR(VLOOKUP(E42,AnnualMult,2,0),0),0) -> 0 | V41: =IF(G42>0,G42*IFERROR(VLOOKUP(H42,AnnualMult,2,0),0),0) -> 0 | W41: =IF(J42>0,J42*IFERROR(VLOOKUP(K42,AnnualMult,2,0),0),0) -> 0 | X41: =IF(M42>0,M42*IFERROR(VLOOKUP(N42,AnnualMult,2,0),0),0) -> 0 | AA41: =Parm_AllowancesHairCut -> 0.2 | AB41: =U41 -> 0 | AC41: =(1-AA41)*AB41 -> 0 | AD41: =AA41 -> 0.2 | AE41: =V41 -> 0 | AF41: =(1-AD41)*AE41 -> 0 | AG41: =W41 -> 0 | AI41: =X41 -> 0 | AK41: =AB41+AE41+AG41+AI41 -> 0 | AO41: =AB41 -> 0 | AP41: =AE41 -> 0 | BG41: Allowances | BI41: =AB41 -> 0 | BJ41: =AA41 -> 0.2 | BK41: =BI41*(1-BJ41) -> 0 | BL41: =BK41 -> 0 | BP41: =AE41 -> 0 | BQ41: =BJ41 -> 0.2 | BR41: =BP41*(1-BQ41) -> 0 | BS41: =BR41 -> 0
B42: Allowances | T42: Interest | U42: 0 | V42: 0 | W42: 0 | X42: 0 | AA42: =Parm_InterestHairCut -> 0.2 | AB42: =U42 -> 0 | AC42: =(1-AA42)*AB42 -> 0 | AD42: =AA42 -> 0.2 | AE42: =V42 -> 0 | AF42: =(1-AD42)*AE42 -> 0 | AG42: =W42 -> 0 | AI42: =X42 -> 0 | AK42: =AB42+AE42+AG42+AI42 -> 0 | AO42: =AB42 -> 0 | AP42: =AE42 -> 0 | BG42: Interest | BI42: =AB42 -> 0 | BJ42: =AA42 -> 0.2 | BK42: =BI42*(1-BJ42) -> 0 | BL42: =BK42 -> 0 | BP42: =AE42 -> 0 | BQ42: =BJ42 -> 0.2 | BR42: =BP42*(1-BQ42) -> 0 | BS42: =BR42 -> 0
B43: Interest | T43: Annuities | U43: 0 | V43: 0 | W43: 0 | X43: 0 | AA43: =Parm_AnnuitiesHairCut -> 0 | AB43: =U43 -> 0 | AC43: =(1-AA43)*AB43 -> 0 | AD43: =AA43 -> 0 | AE43: =V43 -> 0 | AF43: =(1-AD43)*AE43 -> 0 | AG43: =W43 -> 0 | AI43: =X43 -> 0 | AK43: =AB43+AE43+AG43+AI43 -> 0 | AO43: =AB43 -> 0 | AP43: =AE43 -> 0 | BG43: Annuities | BI43: =AB43 -> 0 | BJ43: =AA43 -> 0 | BK43: 0 | BL43: =BK43 -> 0 | BP43: =AE43 -> 0 | BQ43: =BJ43 -> 0 | BR43: =BP43*(1-BQ43) -> 0 | BS43: =BR43 -> 0
B44: Annuities | T44: Dividends | U44: 0 | V44: 0 | W44: 0 | X44: 0 | AA44: =Parm_DividendsHairCut -> 0.2 | AB44: =U44 -> 0 | AC44: =(1-AA44)*AB44 -> 0 | AD44: =AA44 -> 0.2 | AE44: =V44 -> 0 | AF44: =(1-AD44)*AE44 -> 0 | AG44: =W44 -> 0 | AI44: =X44 -> 0 | AK44: =AB44+AE44+AG44+AI44 -> 0 | AO44: =AB44 -> 0 | AP44: =AE44 -> 0 | BG44: Dividends | BI44: =AB44 -> 0 | BJ44: 0.2 | BK44: 0 | BL44: =BK44 -> 0 | BP44: =AE44 -> 0 | BQ44: =BJ44 -> 0.2 | BR44: 0 | BS44: =BR44 -> 0
B45: Dividends | T45: Pension | U45: 0 | V45: 0 | W45: 0 | X45: 0 | AB45: 0 | AC45: =AB45 -> 0 | AE45: 0 | AF45: =AE45 -> 0 | AG45: 0 | AI45: 0 | AK45: 0 | AO45: 0 | AP45: 0 | BG45: Pension | BI45: =AB45 -> 0 | BJ45: 0 | BK45: 0 | BL45: 0 | BP45: 0 | BQ45: 0 | BR45: 0 | BS45: 0
B46: Pension | T46: Government Assistance | U46: 0 | V46: 0 | W46: 0 | X46: 0 | AB46: 0 | AC46: =AB46 -> 0 | AE46: 0 | AF46: =AE46 -> 0 | AG46: 0 | AI46: 0 | AK46: 0 | AO46: 0 | AP46: 0 | BG46: Government Assistance | BI46: 0 | BJ46: 0 | BK46: 0 | BL46: 0 | BP46: 0 | BQ46: 0 | BR46: 0 | BS46: 0
B47: Government Assistance | T47: Superannuation | U47: 0 | V47: 0 | W47: 0 | X47: 0 | AB47: 0 | AC47: =AB47 -> 0 | AE47: 0 | AF47: 0 | AG47: 0 | AI47: 0 | AK47: 0 | AO47: 0 | AP47: 0 | BG47: Superannuation | BI47: 0 | BJ47: 0 | BK47: 0 | BL47: =BK47 -> 0 | BP47: 0 | BQ47: 0 | BR47: 0 | BS47: =BR47 -> 0
B48: Superannuation | T48: Child Support/Family Allowance | U48: 0 | V48: 0 | W48: 0 | X48: 0 | AB48: 0 | AC48: 0 | AE48: 0 | AF48: 0 | AG48: 0 | AI48: 0 | AK48: 0 | AO48: 0 | AP48: 0 | BG48: Child Support/Family Allowance | BI48: 0 | BJ48: 0 | BK48: 0 | BL48: 0 | BP48: 0 | BQ48: 0 | BR48: 0 | BS48: 0
B49: Child Support/Family Allowance | T49: Other Non Taxable Income | U49: 0 | V49: 0 | W49: 0 | X49: 0 | AB49: 0 | AC49: 0 | AE49: 0 | AF49: 0 | AG49: 0 | AI49: 0 | AK49: 0 | AO49: 0 | AP49: 0 | BG49: Other Non Taxable Income | BI49: 0 | BJ49: 0 | BK49: 0 | BL49: 0 | BP49: 0 | BQ49: 0 | BR49: 0 | BS49: 0
B50: Other Non Taxable Income | AB50: =SUM(AB37:AB49) -> 0 | AC50: =SUM(AC33:AC34)+AC37+AC38+AC39 -> 0 | AE50: =SUM(AE37:AE49) -> 0 | AF50: =SUM(AF33:AF34)+AF37+AF38+AF39 -> 0 | AG50: =SUM(AG40:AG49) -> 0 | AH50: =SUM(AH33:AH34) -> 0 | AI50: =SUM(AI40:AI49) -> 0 | AJ50: =SUM(AJ33:AJ34) -> 0 | AK50: =SUM(AK40:AK49) -> 0 | BG50: Total | BI50: =SUM(BI35:BI49) -> 0 | BK50: =SUM(BK35:BK49) -> 0 | BL50: =SUM(BL35:BL49) -> 0 | BP50: =SUM(BP35:BP49) -> 0 | BR50: =SUM(BR35:BR49) -> 0 | BS50: =SUM(BS35:BS49) -> 0
AB51: =AB33+AB34+AB50 -> 0 | AC51: =TMBLCalculation!D17 -> 0 | AE51: 0 | AF51: =TMBLCalculation!E17 -> 0 | AG51: 0 | AH51: =TMBLCalculation!F17 -> 0 | AI51: 0 | AJ51: =TMBLCalculation!G17 -> 0 | AK51: =AK33+AK34+AK50 -> 0 | AL51: =AC51+AF51+AH51+AJ51 -> 0 | AM51: =IF($C$30>1,AL51,AC51) -> 0 | AO51: =AO33+AO34+SUM(AO37:AO49) -> 0 | AP51: =AP33+AP34+SUM(AP37:AP49) -> 0 | BK51: =BK40+SUM(BK45:BK46)+SUM(BK48:BK49) -> 0 | BM51: =TMBLCalculation!D51 -> 0 | BR51: =BR40+SUM(BR45:BR46)+SUM(BR48:BR49) -> 0 | BT51: =TMBLCalculation!E51 -> 0
AC52: =SUM(AC40:AC49)-AC41-AC42-AC43-AC44 -> 0 | AF52: =SUM(AF40:AF49)-AF41-AF42-AF43-AF44 -> 0 | BM52: =BK51+BM51 -> 0 | BT52: =BR51+BT51 -> 0
AC53: =SUM(AC51:AC52) -> 0 | AF53: =SUM(AF51:AF52) -> 0 | AK53: =IF(C30>1,AK51,AB51) -> 0 | AL53: =AC53+AF53 -> 0 | AM53: =IF($C$30>1,AL53,AC53) -> 0
BH54: Applicant 1 | BI54: Applicant 2 | BJ54: Combined | BK54: Number applicants
AA55: Preserving Net Income??? | AC55: =AC50 -> 0 | AF55: =AF50 -> 0 | BG55: Net Income for Assessment | BH55: =BM52 -> 0 | BI55: =BT52 -> 0 | BJ55: =BH55+BI55 -> 0 | BK55: =C30 -> 0 | BL55: =IF(BK55>1,BJ55,BH55) -> 0
AC56: =SUM(AB40:AB49) -> 0 | AF56: =SUM(AE40:AE49) -> 0 | BG56: Gross Income for HEM & DTI | BH56: =BI50 -> 0 | BI56: =BP50 -> 0 | BJ56: =BH56+BI56 -> 0 | BK56: =C30 -> 0 | BL56: =IF(BK56>1,BJ56,BH56) -> 0
AC57: =SUM(AC55:AC56) -> 0 | AF57: =SUM(AF55:AF56) -> 0 | AL57: =AC57+AF57 -> 0 | AM57: =IF($C$30>1,AL57,AC57) -> 0
AA59: Net or Gross at applicant level | AC59: =IF(OR(AX40=Parm!C82,AX40=Parm!C83),'Net Monthly Surplus'!AC57,'Net Monthly Surplus'!AC53) -> 0 | AF59: =IF(OR(BC40=Parm!C82,BC40=Parm!C83),'Net Monthly Surplus'!AF57,'Net Monthly Surplus'!AF53) -> 0 | AL59: =AC59+AF59 -> 0 | AM59: =IF($C$30>1,AL59,AC59) -> 0 | AO59: =AO51+AP51 -> 0 | AP59: =IF($C$30>1,AO59,AO51) -> 0
B62: 3 to 4 Applicants | G62: Other Applicant Name | U62: Annualised calculations | AB62: Annualised Gross NET amount Calculations | AO62: Gross for HEM and DTI | AU62: Various flags | BG62: =B67 -> Income Types | BI62: Gross Salary | BJ62: HairCut | BK62: Assessed Income | BL62: Taxable Income | BM62: After Tax Income | BP62: =BI62 -> Gross Salary | BQ62: =BJ62 -> HairCut | BR62: =BK62 -> Assessed Income | BS62: =BL62 -> Taxable Income | BT62: =BM62 -> After Tax Income
B63: No. of Applicants (max. 2) | G63: Other Applicant MemberID | U63: Applicant 3 | V63: Applicant 4 | AB63: =U63 -> Applicant 3 | AE63: =V63 -> Applicant 4 | AK63: Total | AO63: =AB63 -> Applicant 3 | AP63: =AE63 -> Applicant 4 | AU63: Applicant 3 | BA63: Applicant 4 | BG63: =AB63 -> Applicant 3 | BO63: =AE63 -> Applicant 4
B64: Family Type | AA64: Haircut | AB64: Gross | AC64: Net | AD64: Haircut | AE64: Gross | AF64: Net | AG64: Gross | AH64: Net | AI64: Gross | AJ64: Net | AK64: Gross | AL64: Net
B65: Dependants | T65: =B69 -> Salary | U65: =IF(D69>0,D69*IFERROR(VLOOKUP(E69,AnnualMult,2,0),0),0) -> 0 | V65: =IF(G69>0,G69*IFERROR(VLOOKUP(H69,AnnualMult,2,0),0),0) -> 0 | W65: =IF(J69>0,J69*IFERROR(VLOOKUP(K69,AnnualMult,2,0),0),0) -> 0 | X65: =IF(M69>0,M69*IFERROR(VLOOKUP(N69,AnnualMult,2,0),0),0) -> 0 | AB65: =IF(C69="Gross",U65,AC67) -> 0 | AC65: =IF(C69="Net",U65,0) -> 0 | AE65: =IF(F69="Gross",V65,AF67) -> 0 | AF65: =IF(F69="Net",V65,0) -> 0 | AG65: =IF(I69="Gross",W65,AH67) -> 0 | AH65: =IF(I69="Net",W65,0) -> 0 | AI65: =IF(L69="Gross",X65,AJ67) -> 0 | AJ65: =IF(L69="Net",X65,0) -> 0 | AK65: =AB65+AE65+AG65+AI65 -> 0 | AL65: =AC65+AF65+AH65+AJ65 -> 0 | AO65: =AB65 -> 0 | AP65: =AE65 -> 0
T66: =B70 -> Second Job Salary | U66: =IF(D70>0,D70*IFERROR(VLOOKUP(E70,AnnualMult,2,0),0),0) -> 0 | V66: =IF(G70>0,G70*IFERROR(VLOOKUP(H70,AnnualMult,2,0),0),0) -> 0 | W66: =IF(J70>0,J70*IFERROR(VLOOKUP(K70,AnnualMult,2,0),0),0) -> 0 | X66: =IF(M70>0,M70*IFERROR(VLOOKUP(N70,AnnualMult,2,0),0),0) -> 0 | AB66: =IF(C70="Gross",U66,AC68) -> 0 | AC66: =IF(C70="Net",U66,0) -> 0 | AE66: =IF(F70="Gross",V66,AF68) -> 0 | AF66: =IF(F70="Net",V66,0) -> 0 | AG66: =IF(I70="Gross",W66,AH68) -> 0 | AH66: =IF(I70="Net",W66,0) -> 0 | AI66: =IF(L70="Gross",X66,AJ68) -> 0 | AJ66: =IF(L70="Net",X66,0) -> 0 | AK66: =AB66+AE66+AG66+AI66 -> 0 | AL66: =AC66+AF66+AH66+AJ66 -> 0 | AO66: =AB66 -> 0 | AP66: =AE66 -> 0
B67: Income Types | C67: Applicant 3 | D67: Postcode | F67: Applicant 4 | G67: Postcode | O67: Total | AC67: =GetGrossSalary(AC65) -> 0 | AF67: =GetGrossSalary(AF65) -> 0 | AH67: =IF(AH65<Parm!$O$25,AH65,IFERROR(VLOOKUP(AH65,TMBLCalculation!$T$4:$U$2505,2,1),0)) -> 0 | AJ67: =IF(AJ65<Parm!$O$25,AJ65,IFERROR(VLOOKUP(AJ65,TMBLCalculation!$T$4:$U$2505,2,1),0)) -> 0 | AU67: =IF(User_App3_Salary_GrossNet=Parm!I65,5,IF(User_App3_Salary_GrossNet=Parm!I66,7,0)) -> 5 | AV67: =IF(User_App3_Salary_Amount>0,1,0) -> 0 | AW67: =IF(User_App3_Salary_Freq="",0,1) -> 0 | AX67: =AU67*AV67*AW67 -> 0 | AZ67: =IF(User_App4_Salary_GrossNet=Parm!I65,5,IF(User_App4_Salary_GrossNet=Parm!I66,7,0)) -> 5 | BA67: =IF(User_App4_Salary_Amount>0,1,0) -> 0 | BB67: =IF(User_App4_Salary_Freq="",0,1) -> 0 | BC67: =AZ67*BA67*BB67 -> 0 | BG67: =B69 -> Salary | BI67: =AB65 -> 0 | BJ67: 0 | BK67: =BI67*(1-BJ67) -> 0 | BL67: =BK67 -> 0 | BP67: =AE65 -> 0 | BQ67: =BJ67 -> 0 | BR67: =BP67*(1-BQ67) -> 0 | BS67: =BR67 -> 0
C68: Gross/Net | D68: Amount | E68: Frequency | F68: Gross/Net | G68: Amount | H68: Frequency | I68: Gross/Net | J68: Amount | K68: Frequency | L68: Gross/Net | M68: Amount | N68: Frequency | AC68: =GetGrossSalary(AC66) -> 0 | AF68: =GetGrossSalary(AF66) -> 0 | AH68: =IF(AH66<Parm!$O$25,AH66,IFERROR(VLOOKUP(AH66,TMBLCalculation!$T$4:$U$2505,2,1),0)) -> 0 | AJ68: =IF(AJ66<Parm!$O$25,AJ66,IFERROR(VLOOKUP(AJ66,TMBLCalculation!$T$4:$U$2505,2,1),0)) -> 0 | AU68: =IF(User_App3_Second_Job_Salary_GrossNet=Parm!I65,5,IF(User_App3_Second_Job_Salary_GrossNet=Parm!I66,7,0)) -> 5 | AV68: =IF(User_App3_Second_Job_Salary_Amount>0,1,0) -> 0 | AW68: =IF(User_App3_Second_Job_Salary_Freq="",0,1) -> 0 | AX68: =AU68*AV68*AW68 -> 0 | AZ68: =IF(User_App4_Second_Job_Salary_GrossNet=Parm!I65,5,IF(User_App4_Second_Job_Salary_GrossNet=Parm!I66,7,0)) -> 5 | BA68: =IF(User_App4_Second_Job_Salary_Amount>0,1,0) -> 0 | BB68: =IF(User_App4_Second_Job_Salary_Freq="",0,1) -> 0 | BC68: =AZ68*BA68*BB68 -> 0 | BG68: Second Job Salary | BI68: =AB66 -> 0 | BJ68: 0 | BK68: =BI68*(1-BJ68) -> 0 | BL68: =BK68 -> 0 | BP68: =AE66 -> 0 | BQ68: =BJ68 -> 0 | BR68: =BP68*(1-BQ68) -> 0 | BS68: =BR68 -> 0
B69: Salary | T69: =B71 -> Gross Regular Shift Allowance/Overtime | U69: =IF(D71>0,D71*IFERROR(VLOOKUP(E71,AnnualMult,2,0),0),0) -> 0 | V69: =IF(G71>0,G71*IFERROR(VLOOKUP(H71,AnnualMult,2,0),0),0) -> 0 | AA69: =IF(C71=Parm_NonEssentialServices,Parm_NonEssentialServicesHairCut,IF(C71=Parm_EssentialServices,Parm_EssentialServicesHairCut,0)) -> 0 | AB69: =U69 -> 0 | AC69: =(1-AA69)*AB69 -> 0 | AD69: =IF(F71=Parm_NonEssentialServices,Parm_NonEssentialServicesHairCut,IF(F71=Parm_EssentialServices,Parm_EssentialServicesHairCut,0)) -> 0 | AE69: =V69 -> 0 | AF69: =(1-AD69)*AE69 -> 0 | AO69: =AB69 -> 0 | AP69: =AE69 -> 0 | BG69: Gross Regular Shift Allowance/Overtime | BI69: =AB69 -> 0 | BJ69: =IF(C71=Parm_NonEssentialServices,Parm_NonEssentialServicesHairCut,IF(C71=Parm_EssentialServices,Parm_EssentialServicesHairCut,0)) -> 0 | BK69: 0 | BL69: 0 | BP69: =AE69 -> 0 | BQ69: =IF(F71=Parm_NonEssentialServices,Parm_NonEssentialServicesHairCut,IF(F71=Parm_EssentialServices,Parm_EssentialServicesHairCut,0)) -> 0 | BR69: 0 | BS69: 0
B70: Second Job Salary | T70: Gross Bonuses | U70: =IF(D72>0,D72*IFERROR(VLOOKUP(E72,AnnualMult,2,0),0),0) -> 0 | V70: =IF(G72>0,G72*IFERROR(VLOOKUP(H72,AnnualMult,2,0),0),0) -> 0 | AA70: =Parm_BonusesHairCut -> 0.2 | AB70: 0 | AC70: =(1-AA70)*AB70 -> 0 | AD70: =AA70 -> 0.2 | AE70: 0 | AF70: =(1-AD70)*AE70 -> 0 | AO70: 0 | AP70: 0 | BG70: Gross Bonuses | BI70: =AB70 -> 0 | BJ70: =AA70 -> 0.2 | BK70: 0 | BL70: 0 | BP70: =AE70 -> 0 | BQ70: =BJ70 -> 0.2 | BR70: 0 | BS70: 0
B71: Gross Regular Shift Allowance/Overtime | T71: Gross Commissions | U71: =IF(D73>0,D73*IFERROR(VLOOKUP(E73,AnnualMult,2,0),0),0) -> 0 | V71: =IF(G73>0,G73*IFERROR(VLOOKUP(H73,AnnualMult,2,0),0),0) -> 0 | AA71: =Parm_CommissionsHairCut -> 0.2 | AB71: 0 | AC71: =(1-AA71)*AB71 -> 0 | AD71: =AA71 -> 0.2 | AE71: 0 | AF71: =(1-AD71)*AE71 -> 0 | AO71: 0 | AP71: 0 | BG71: Gross Commissions | BI71: =AB71 -> 0 | BJ71: =AA71 -> 0.2 | BK71: 0 | BL71: 0 | BP71: =AE71 -> 0 | BQ71: =BJ71 -> 0.2 | BR71: 0 | BS71: 0
B72: Gross Bonuses | T72: Rental Income | AB72: =IF($D$74="",0,IF($C$63>0,$D$74/$C$63)) -> 0 | AC72: =AB72 -> 0 | AE72: =IF($D$74="",0,IF($C$63>0,$D$74/$C$63)) -> 0 | AF72: =AE72 -> 0 | AK72: =AB72+AE72+AG72+AI72 -> 0 | AN72: ='Rental Income - Applicants 3&4'!K27 -> 0 | AO72: =IF(AN72="",0,IF($C$63>0,AN72/$C$63,0)) -> 0 | AP72: =IF(AN72="",0,IF($C$30>0,AN72/$C$63,0)) -> 0 | AX72: =SUM(AX67:AX68) -> 0 | BC72: =SUM(BC67:BC68) -> 0 | BG72: Rental Income | BH72: ='Rental Income - Applicants 1&2'!K58 -> 0 | BI72: =IF($BH72="",0,IF($C$30>0,$BH72/$C$30,0)) -> 0 | BK72: =IF($D$41="",0,IF($C$30>0,$D$41/$C$30)) -> 0 | BL72: 0 | BP72: =IF($BH72="",0,IF($C$30>0,$BH72/$C$30,0)) -> 0 | BR72: =IF($D$41="",0,IF($C$30>0,$D$41/$C$30)) -> 0 | BS72: 0
B73: Gross Commissions | T73: Interest | U73: =IF(D75>0,D75*IFERROR(VLOOKUP(E75,AnnualMult,2,0),0),0) -> 0 | V73: =IF(G75>0,G75*IFERROR(VLOOKUP(H75,AnnualMult,2,0),0),0) -> 0 | W73: =IF(J75>0,J75*IFERROR(VLOOKUP(K75,AnnualMult,2,0),0),0) -> 0 | X73: =IF(M75>0,M75*IFERROR(VLOOKUP(N75,AnnualMult,2,0),0),0) -> 0 | AA73: =Parm_InterestHairCut -> 0.2 | AB73: =U73 -> 0 | AC73: =(1-AA73)*AB73 -> 0 | AD73: =AA73 -> 0.2 | AE73: =V73 -> 0 | AF73: =(1-AD73)*AE73 -> 0 | AG73: =W73 -> 0 | AI73: =X73 -> 0 | AK73: =AB73+AE73+AG73+AI73 -> 0 | AO73: =AB73 -> 0 | AP73: =AE73 -> 0 | BG73: Interest | BI73: =AB73 -> 0 | BJ73: =AA73 -> 0.2 | BK73: =BI73*(1-BJ73) -> 0 | BL73: =BK73 -> 0 | BP73: =AE73 -> 0 | BQ73: =BJ73 -> 0.2 | BR73: =BP73*(1-BQ73) -> 0 | BS73: =BR73 -> 0
B74: Rental Income | D74: =IF('Rental Income - Applicants 3&4'!O27=0,"",'Rental Income - Applicants 3&4'!O27) ->  | T74: Annuities | U74: 0 | V74: 0 | W74: 0 | X74: 0 | AA74: =Parm_AnnuitiesHairCut -> 0 | AB74: =U74 -> 0 | AC74: =(1-AA74)*AB74 -> 0 | AD74: =AA74 -> 0 | AE74: =V74 -> 0 | AF74: =(1-AD74)*AE74 -> 0 | AG74: =W74 -> 0 | AI74: =X74 -> 0 | AK74: =AB74+AE74+AG74+AI74 -> 0 | AO74: =AB74 -> 0 | AP74: =AE74 -> 0 | BG74: Annuities | BI74: =AB74 -> 0 | BJ74: =AA74 -> 0 | BK74: 0 | BL74: =BK74 -> 0 | BP74: =AE74 -> 0 | BQ74: =BJ74 -> 0 | BR74: 0 | BS74: =BR74 -> 0
B75: Interest | T75: Dividends | U75: 0 | V75: 0 | W75: 0 | X75: 0 | AA75: =Parm_DividendsHairCut -> 0.2 | AB75: =U75 -> 0 | AC75: =(1-AA75)*AB75 -> 0 | AD75: =AA75 -> 0.2 | AE75: =V75 -> 0 | AF75: =(1-AD75)*AE75 -> 0 | AG75: =W75 -> 0 | AI75: =X75 -> 0 | AK75: =AB75+AE75+AG75+AI75 -> 0 | AO75: =AB75 -> 0 | AP75: =AE75 -> 0 | BG75: Dividends | BI75: =AB75 -> 0 | BJ75: 0.2 | BK75: 0 | BL75: =BK75 -> 0 | BP75: =AE75 -> 0 | BQ75: =BJ75 -> 0.2 | BR75: 0 | BS75: =BR75 -> 0
B76: Annuities | T76: Pension | U76: 0 | V76: 0 | W76: 0 | X76: 0 | AB76: 0 | AC76: =AB76 -> 0 | AE76: 0 | AF76: =AE76 -> 0 | AG76: 0 | AI76: 0 | AK76: 0 | AO76: 0 | AP76: 0 | BG76: Pension | BI76: =AB76 -> 0 | BJ76: 0 | BK76: 0 | BL76: 0 | BP76: 0 | BQ76: 0 | BR76: 0 | BS76: 0
B77: Dividends | T77: Government Assistance | U77: 0 | V77: 0 | W77: 0 | X77: 0 | AB77: 0 | AC77: =AB77 -> 0 | AE77: 0 | AF77: =AE77 -> 0 | AG77: 0 | AI77: 0 | AK77: 0 | AO77: 0 | AP77: 0 | BG77: Government Assistance | BI77: 0 | BJ77: 0 | BK77: 0 | BL77: 0 | BP77: 0 | BQ77: 0 | BR77: 0 | BS77: 0
B78: Pension | T78: Superannuation | U78: 0 | V78: 0 | W78: 0 | X78: 0 | AB78: 0 | AC78: =AB78 -> 0 | AE78: 0 | AF78: 0 | AG78: 0 | AI78: 0 | AK78: 0 | AO78: 0 | AP78: 0 | BG78: Superannuation | BI78: 0 | BJ78: 0 | BK78: 0 | BL78: =BK78 -> 0 | BP78: 0 | BQ78: 0 | BR78: 0 | BS78: =BR78 -> 0
B79: Government Assistance | T79: Child Support/Family Allowance | U79: 0 | V79: 0 | W79: 0 | X79: 0 | AB79: 0 | AC79: 0 | AE79: 0 | AF79: 0 | AG79: 0 | AI79: 0 | AK79: 0 | AO79: 0 | AP79: 0 | BG79: Child Support/Family Allowance | BI79: 0 | BJ79: 0 | BK79: 0 | BL79: 0 | BP79: 0 | BQ79: 0 | BR79: 0 | BS79: 0
B80: Superannuation | T80: Other Non Taxable Income | U80: 0 | V80: 0 | W80: 0 | X80: 0 | AB80: 0 | AC80: 0 | AE80: 0 | AF80: 0 | AG80: 0 | AI80: 0 | AK80: 0 | AO80: 0 | AP80: 0 | BG80: Other Non Taxable Income | BI80: 0 | BJ80: 0 | BK80: 0 | BL80: 0 | BP80: 0 | BQ80: 0 | BR80: 0 | BS80: 0
B81: Child Support/Family Allowance | AB81: =SUM(AB69:AB80) -> 0 | AC81: =SUM(AC65:AC66)+AC69+AC70+AC71 -> 0 | AE81: =SUM(AE69:AE80) -> 0 | AF81: =SUM(AF65:AF66)+AF69+AF70+AF71 -> 0 | AG81: =SUM(AG72:AG80) -> 0 | AH81: =SUM(AH65:AH66) -> 0 | AI81: =SUM(AI72:AI80) -> 0 | AJ81: =SUM(AJ65:AJ66) -> 0 | AK81: =SUM(AK72:AK80) -> 0 | BG81: Total | BI81: =SUM(BI67:BI80) -> 0 | BK81: =SUM(BK67:BK80) -> 0 | BL81: =SUM(BL67:BL80) -> 0 | BP81: =SUM(BP67:BP80) -> 0 | BR81: =SUM(BR67:BR80) -> 0 | BS81: =SUM(BS67:BS80) -> 0
B82: Other Non Taxable Income | AB82: =AB65+AB66+AB81 -> 0 | AC82: =TMBLCalculation!F17 -> 0 | AE82: =AE65+AE66+AE81 -> 0 | AF82: =TMBLCalculation!G17 -> 0 | AG82: =AG65+AG66+AG81 -> 0 | AH82: =TMBLCalculation!F48 -> 0 | AI82: =AI65+AI66+AI81 -> 0 | AJ82: =TMBLCalculation!G48 -> 0 | AK82: =AK65+AK66+AK81 -> 0 | AL82: =AC82+AF82+AH82+AJ82 -> 0 | AM82: =IF($C$30>1,AL82,AC82) -> 0 | AO82: =AO65+AO66+SUM(AO69:AO80) -> 0 | AP82: =AP65+AP66+SUM(AP69:AP80) -> 0 | BK82: =BK72+SUM(BK76:BK77)+SUM(BK79:BK80) -> 0 | BM82: =TMBLCalculation!F51 -> 0 | BR82: =BR72+SUM(BR76:BR77)+SUM(BR79:BR80) -> 0 | BT82: =TMBLCalculation!G51 -> 0
AC83: =SUM(AC72:AC80)-AC73-AC74-AC75 -> 0 | AF83: =SUM(AF72:AF80)-AF73-AF74-AF75 -> 0 | BM83: =BK82+BM82 -> 0 | BT83: =BR82+BT82 -> 0
AC84: =SUM(AC82:AC83) -> 0 | AF84: =SUM(AF82:AF83) -> 0 | AK84: =IF(C63>1,AK82,AB82) -> 0 | AL84: =AC84+AF84 -> 0 | AM84: =IF($C$30>1,AL84,AC84) -> 0
BH85: Applicant 3 | BI85: Applicant 4 | BJ85: Combined | BK85: Number applicants
AA86: Preserving Net Income??? | AC86: =AC81 -> 0 | AF86: =AF81 -> 0 | BG86: Net Income for Assessment | BH86: =BM83 -> 0 | BI86: =BT83 -> 0 | BJ86: =BH86+BI86 -> 0 | BK86: =C63 -> 0 | BL86: =IF(BK86>1,BJ86,BH86) -> 0
AC87: =SUM(AB72:AB80) -> 0 | AF87: =SUM(AE72:AE80) -> 0 | BG87: Gross Income for HEM & DTI | BH87: =BI81 -> 0 | BI87: =BP81 -> 0 | BJ87: =BH87+BI87 -> 0 | BK87: =C63 -> 0 | BL87: =IF(BK87>1,BJ87,BH87) -> 0
AC88: =SUM(AC86:AC87) -> 0 | AF88: =SUM(AF86:AF87) -> 0 | AL88: =AC88+AF88 -> 0 | AM88: =IF($C$30>1,AL88,AC88) -> 0
AA90: Net or Gross at applicant level | AC90: =IF(OR(AX72=Parm!C82,AX72=Parm!C83),'Net Monthly Surplus'!AC88,'Net Monthly Surplus'!AC84) -> 0 | AF90: =IF(OR(BC72=Parm!C82,BC72=Parm!C83),'Net Monthly Surplus'!AF88,'Net Monthly Surplus'!AF84) -> 0 | AL90: =AC90+AF90 -> 0 | AM90: =IF($C$30>1,AL90,AC90) -> 0 | AO90: =AO82+AP82 -> 0 | AP90: =IF($C$30>1,AO90,AO82) -> 0 | AR90: =AP90+AP59 -> 0
AN91: Index to Income cases | AO91: =Parm_IndexToIncomeCase -> 1
AN92: Income Case | AO92: 1 | AP92: 2 | AQ92: 3 | AR92: 4 | AS92: 5 | AT92: 6
AO93: =AO51 -> 0 | AP93: =AO59 -> 0 | AQ93: =AO51+AO82 -> 0 | AR93: =AO59+AO82 -> 0 | AS93: =AO51+AO90 -> 0 | AT93: =AO59+AO90 -> 0
AN94: TobeUsed in DTI | AO94: =HLOOKUP(AO91,$AO$92:$AT$93,2,0) -> 0
B95: Total Annual Net Income | D95: =AO97 -> 0 | U95: Annualised Cost
U96: =IF(D98>0,D98*IFERROR(VLOOKUP(E98,AnnualMult,2,0),0),0) -> 0 | AN96: Net Income | AO96: =AC59 -> 0 | AP96: =AC59+AF59 -> 0 | AQ96: =AC59+AC90 -> 0 | AR96: =AC59+AC90+AF59 -> 0 | AS96: =AC59+AC90+AF59 -> 0 | AT96: =AC59+AF59+AC90+AF90 -> 0
B97: Expense Types | D97: Amount | E97: Frequency | U97: 0 | AN97: To Net Income | AO97: =IFERROR(HLOOKUP(AO91,$AO$92:$AT$96,5),"") -> 0
B98: Groceries | E98: Monthly | U98: 0
B99: Childcare and Education | E99: Monthly | U99: 0
B100: Insurance | E100: Monthly | U100: 0
B101: Medical and Health costs | E101: Monthly | U101: 0
B102: Transportation | E102: Monthly | U102: 0
B103: Property | E103: Monthly | U103: 0
B104: Entertainment and Recreation | E104: Monthly | U104: 0
B105: Phone, Internet, Media Streaming and Pay TV | E105: Monthly | U105: =SUM(U96:U104) -> 0
B106: Clothing and Personal Care | E106: Monthly
B108: Total Annual Expenses | D108: =U105 -> 0
B110: Liabilities | T110: Loan Limits | U110: Annualised Liabilities | V110: Assessment Rate | W110: Assessment Terms in Months | X110: Repayments
B112: Liabilities type | C112: Loan Limits | D112: Payment Amount | E112: Frequency | T112: =C114 ->  | U112: =IF(D114="",0,D114*IFERROR(VLOOKUP("Monthly",AnnualMult,2,0),0)) -> 0
T113: =C115 ->  | U113: =IF(D115="",0,D115*IFERROR(VLOOKUP("Monthly",AnnualMult,2,0),0)) -> 0
B114: Enter Mortgage Payment | C114: ='HomeLoan Obligations'!D25 ->  | D114: =IF(User_Applied_Product_Name=Prod_Home_Loan,'HomeLoan Obligations'!P25,'HomeLoan Obligations'!J25) ->  | U114: =IF(D116>0,D116*IFERROR(VLOOKUP(E116,AnnualMult,2,0),0),0) -> 0
B115: Enter Personal Loan Payment | C115: ='PersonalLoan Obligations'!D25 ->  | D115: ='PersonalLoan Obligations'!H25 -> 0 | U115: =IF(D117>0,D117*IFERROR(VLOOKUP(E117,AnnualMult,2,0),0),0) -> 0
B116: Rent/Board | U116: =IF(D118>0,D118*IFERROR(VLOOKUP(E118,AnnualMult,2,0),0),0) -> 0
B117: Superannuation | T117: =User_HECS_Limit -> 0 | U117: =IF(D119>0,D119*IFERROR(VLOOKUP(E119,AnnualMult,2,0),0),0) -> 0
B118: Child Support | U118: =IF(D120>0,D120*IFERROR(VLOOKUP(E120,AnnualMult,2,0),0),0) -> 0
B119: HECS | T119: =C121 -> 0 | U119: =IF(C121>0,Y119*12,0) -> 0 | V119: =CC_Monthly_PaymRate -> 0.115 | W119: =Parm!AD27 -> 36 | Y119: =-PMT(V119/12,W119,T119,0,0) -> 0
B120: Other | T120: =C122 -> 0 | U120: =IF(D122>0,D122*IFERROR(VLOOKUP(E122,AnnualMult,2,0),0),0) -> 0 | V120: =CC_Monthly_PaymRate -> 0.115 | W120: =Parm!AD27 -> 36 | X120: =IF(T120>0,T120*Parm!AD24,0) -> 0 | Y120: =-PMT(V120/12,W120,T120,0,0) -> 0
B121: TMBL Credit Card Limits | D121: =U119/12 -> 0 | T121: =C123 ->  | U121: =IF(C123>0,D123*12,0) -> 0 | V121: =CH_Monthly_PaymRate -> 0.225 | W121: =Parm!AE27 -> 36 | X121: =IF(T121>0,T121*Parm!AE24,0) ->  | Y121: =-PMT(V121/12,W121,T121,0,0) -> 
B122: BNPL | T122: =C124 -> 0 | U122: =IF(C124>0,C124*Overdraft_Monthly_payment*12,0) -> 0
B123: Enter Existing Credit Card and Store Card Limits | C123: =CreditCardObligations!D25 ->  | D123: =CreditCardObligations!N25 -> 0 | T123: =C127 -> 0 | U123: =IF(C127>0,C127*MarginLoan_Monthly_payment*12,0) -> 0
B124: Overdraft Limits | D124: =U122/12 -> 0
C126: Loan Limit | D126: Interest Rate | E126: Payment Amount
B127: Margin Loan/Equity Loan/ Line of Credit | E127: =U123/12 -> 0 | T127: =SUM(T112:T116)+SUM(T118:T123) -> 0 | U127: =SUM(U112:U123) -> 0
V128: Family Type | W128: =User_Family_Type_Selection -> 0 | X128: Family Type | Y128: =User_Family_Type_Selection2 -> 0
B129: Total Annual Liabilities | E129: =U127 -> 0 | V129: Dependants | W129: =IF(ISBLANK(User_Dep_Selection),"",IF(User_Dep_Selection=$W$132,""," with "&User_Dep_Selection)) ->  | X129: Dependants | Y129: =IF(ISBLANK(User_Dep_Selection2),"",IF(User_Dep_Selection2=$W$132,""," with "&User_Dep_Selection2)) -> 
W130: =W128&W129 -> 0 | Y130: =Y128&Y129 -> 0
B131: Total Annual Commitments | E131: =D108+E129 -> 0
W132: =Parm!D27 -> 0 dependants
W133: =Parm!D25 -> 2 Single persons | Y133: =AO51 -> 0 | Z133: =AO82 -> 0 | AA133: First Individuals
B134: Primary Applicant Member/Client No. | C134: =H30 -> 0 | W134: Single | Y134: =AP59 -> 0 | Z134: =AP90 -> 0 | AA134: 2 Individuals
B135: Net Surplus | U135: Postcode | V135: HemPostcodeArea | W135: Family | X135: RegionFamily | Y135: Gross Annual Income | AA135: RowNumber | AB135: ColumnNumber | AG135: =User_NoOfParties -> 1 | AH135: Tie this part to Income type (1 to 6)?
T136: Postcode1 | U136: =IF(Parm_1_Postcode_for_HEM,Parm_1Postcode_to_Use,User_1stPostcode) -> 2000 | V136: =VLOOKUP(U136,'HEM Postcodes'!$B$7:$G$15545,6,0) -> Sydney | W136: =IF(User_Family_Type_Selection=$W$133,$W$134&W129,$W$130) -> 0 | X136: =W136 -> 0 | Y136: =IF(AND(User_NoOfApplicants>1,User_Family_Type_Selection=$W$133),AO51,AP59) -> 0 | AA136: =MATCH(X136,'HEM Living Expenses'!$T$7:$T$27,0) ->  | AB136: =MATCH(Y136,'HEM Living Expenses'!$C$5:$P$5,1) -> 1 | AC136: =INDEX('HEM Living Expenses'!$C$7:$P$27,'Net Monthly Surplus'!AA136,'Net Monthly Surplus'!AB136) ->  | AF136: =IF(AND(User_NoOfApplicants>1,User_Family_Type_Selection=W133),AE137,AC136) -> 
C137: Annual | D137: Monthly | E137: Expenses | F137: Minimum Benchmark | T137: Postcode2 | U137: =IF(Parm_1_Postcode_for_HEM,Parm_1Postcode_to_Use,User_2ndPostcode) -> 2000 | V137: =VLOOKUP(U137,'HEM Postcodes'!$B$7:$G$15545,6,0) -> Sydney | W137: =IF(User_Family_Type_Selection=$W$133,$W$134,$W$130) -> 0 | X137: =W137 -> 0 | Y137: =IF(AND(User_NoOfApplicants>1,User_Family_Type_Selection=$W$133),AP51,0) -> 0 | AA137: =MATCH(X137,'HEM Living Expenses'!$T$7:$T$27,0) ->  | AB137: =MATCH(Y137,'HEM Living Expenses'!$C$5:$P$5,1) -> 1 | AC137: =INDEX('HEM Living Expenses'!$C$7:$P$27,'Net Monthly Surplus'!AA137,'Net Monthly Surplus'!AB137) ->  | AE137: =AC136+AC137 -> 
B138: Total Net Income | C138: =D95 -> 0 | D138: =IF(C138="","",C138/12) -> 0 | T138: Postcode3 | U138: =IF(Parm_1_Postcode_for_HEM,Parm_1Postcode_to_Use,User_3rdPostcode) -> 2000 | V138: =VLOOKUP(U138,'HEM Postcodes'!$B$7:$G$15545,6,0) -> Sydney | W138: =IF(User_Family_Type_Selection2=$W$133,$W$134&Y129,$Y$130) -> 0 | X138: 0 | Y138: =IF(AND(User_NoOfApplicants2>1,User_Family_Type_Selection2=$W$133),AO82,AP90) -> 0 | AA138: =MATCH(X138,'HEM Living Expenses'!$T$7:$T$27,0) ->  | AB138: =MATCH(Y138,'HEM Living Expenses'!$C$5:$P$5,1) -> 1 | AC138: =INDEX('HEM Living Expenses'!$C$7:$P$27,'Net Monthly Surplus'!AA138,'Net Monthly Surplus'!AB138) ->  | AF138: =IF(AND(User_NoOfApplicants2>1,User_Family_Type_Selection2=W133),AE139,AC138) -> 
B139: Total Commitments | C139: =E131 -> 0 | D139: =E129/12+MAX(E139,F139) -> 0 | E139: =IF(AND(User_Applied_Loan_Amount="",User_Select_HL_Total_Amount=0),"",D108/12) ->  | F139: =IFERROR(AG139,"") ->  | T139: Postcode4 | U139: =IF(Parm_1_Postcode_for_HEM,Parm_1Postcode_to_Use,User_4thPostcode) -> 2000 | V139: =VLOOKUP(U139,'HEM Postcodes'!$B$7:$G$15545,6,0) -> Sydney | W139: =IF(User_Family_Type_Selection2=$W$133,$W$134,$Y$130) -> 0 | X139: 0 | Y139: =IF(AND(User_NoOfApplicants2>1,User_Family_Type_Selection2=W133),AP82,0) -> 0 | AA139: =MATCH(X139,'HEM Living Expenses'!$T$7:$T$27,0) ->  | AB139: =MATCH(Y139,'HEM Living Expenses'!$C$5:$P$5,1) -> 1 | AC139: =INDEX('HEM Living Expenses'!$C$7:$P$27,'Net Monthly Surplus'!AA139,'Net Monthly Surplus'!AB139) ->  | AE139: =AC138+AC139 ->  | AF139: =AF136+AF138 ->  | AG139: =IF(User_NoOfParties=Parm_ApplType2,AF139,AF136) -> 
B140: Total Net Surplus | C140: =C138-C139 -> 0 | D140: =D138-D139 -> 0
B142: Monthly Assessment Rate Payment | D142: =IFERROR(IF(User_Applied_Product_Name=Parm_HomeLoan,Calc_HL_AssessedPayment,'Payment Calculation'!M11),"") -> 0
B143: Net Monthly Surplus (NMS) | D143: =IF(AND(User_Applied_Loan_Amount="",User_Select_HL_Total_Amount=0),"",D140-D142) -> 
B144: Meet Home Loan Minimum Surplus | D144: =IFERROR(IF(ISBLANK(User_Estimated_Property_Value),"Input Property Value",IF(E22>=0.9,IF(D143>=200,"Yes","No"),IF(D143>=0,"Yes","No"))),"") -> Input Property Value
U146: Only for Home Loan
U147: Borrower Type | V147: Repayment Type | W147: Construction Loan | X147: Threshold | Y147: Borrower Index | AA147: Repayment Index | AB147: OO IO Construction Flag
U148: =F13 -> 0 | V148: =B16 -> 0 | W148: =_xlfn.IFNA(IF(W1,1,0),0) -> 0 | X148: =IF(AB148,0,INDEX(Parm!$D$54:$E$55,AA148,Y148)) ->  | Y148: =MATCH(U148,Parm!$B$54:$B$55,0) ->  | AA148: =MATCH(V148,Parm!$D$53:$E$53,0) ->  | AB148: =IF(AND(U148=Parm!B54,'Net Monthly Surplus'!V148=Parm!E53,'Net Monthly Surplus'!W148),1,0) -> 0
B150: Maximum Loan Amount | C150: =IF(OR(User_Meet_Home_Loan_Minimum_Surplus="No",Calc_DTI>Parm_Red_DTI),"",IF(User_Applied_Product_Name=Parm_HomeLoan,Calc_MaxHomeLoan_Capacity,'Payment Calculation'!J36)) -> 
D151: Weekly | E151: Fortnightly | F151: Monthly
C152: Repayment on Maximum Loan Amount | D152: =IF(OR(User_Meet_Home_Loan_Minimum_Surplus="No",Calc_DTI>Parm_Red_DTI),"",IF(User_Applied_Product_Name=Parm_HomeLoan,Calc_MaxHLWeekly_Payment,'Payment Calculation'!K50)) ->  | E152: =IF(OR(User_Meet_Home_Loan_Minimum_Surplus="No",Calc_DTI>Parm_Red_DTI),"",IF(User_Applied_Product_Name=Parm_HomeLoan,Calc_MaxHLFornightly_Payment,'Payment Calculation'!L50)) ->  | F152: =IF(OR(User_Meet_Home_Loan_Minimum_Surplus="No",Calc_DTI>Parm_Red_DTI),"",IF(User_Applied_Product_Name=Parm_HomeLoan,Calc_MaxHLMonthly_Payment,'Payment Calculation'!M50)) -> 
B154: Proposed Loan Amount | C154: =IF(User_Applied_Product_Name=Parm_HomeLoan,User_Select_HL_Total_Amount,'Payment Calculation'!K56) -> 0
D155: Weekly | E155: Fortnightly | F155: Monthly | T155: Debt to Income | AA155: Loan to Income
C156: Repayment on Proposed Loan Amount | D156: =IF(User_Applied_Product_Name=Parm_HomeLoan,Calc_HLWeekly_Payment,'Payment Calculation'!K62) -> 0 | E156: =IF(User_Applied_Product_Name=Parm_HomeLoan,Calc_HLFornightly_Payment,'Payment Calculation'!L62) -> 0 | F156: =IF(User_Applied_Product_Name=Parm_HomeLoan,Calc_HLMonthly_Payment,'Payment Calculation'!M62) -> 0 | T156: DTI Calculation | U156: =IFERROR(U159/W157,"") ->  | V156: DTI Index | W156: =IF(U156="","",IF(U156<=4,1,IF(U156<=6,2,IF(U156<=7,3,4)))) ->  | X156: Advanced Code | Y156: =IFERROR(VLOOKUP(W156,Parm!$B$71:$D$74,3,0),"") ->  | AA156: LTI Calculation | AB156: =IFERROR(U157/W157,"") ->  | AC156: LTI Index | AD156: =IF(AB156="","",IF(AB156<=4,1,IF(AB156<=6,2,IF(AB156<=8,3,4)))) ->  | AE156: Advanced Code | AF156: =IFERROR(VLOOKUP(AD156,Parm!$G$71:$I$74,3,0),"") -> 
T157: Applied Loan Amount | U157: =IFERROR(IF(User_Applied_Product_Name=Parm_HomeLoan,User_Select_HL_VarRate_Amount+User_Select_HL_FixRate_Amount,User_Applied_Loan_Amount),0) -> 0 | V157: Gross InCome | W157: =Calc_GrossINcomeForDTI -> 0
D158: DTI | E158: LTI | T158: Existing Loan Limits | U158: =T127 -> 0
B159: Approve / Decline | D159: =Calc_DTI ->  | E159: =Calc_LTI ->  | T159: All Debt | U159: =SUM(U157:U158) -> 0
B161: Total Borrower Exposures
B162: Advanced Approval Code
B163: Debt To Income Advance Approval Code | C163: =IF(User_Applied_Product_Name=Parm_HomeLoan,Calc_DTIAdvancedCode,"") -> 
B164: Loan To Income Advance Approval Code | C164: =IF(User_Applied_Product_Name=Parm_HomeLoan,Calc_LTIAdvancedCode,"") -> 
B165: Assessor Name
B166: Approval Date
B167: Not Unsuitable Expiry Date
B183: Application ID | C183: 1193B85791 | G183: AppSmart Input
B184: Borrower Type | C184: Couple
B185: Credit Limit | C185: 0 | D185: 0
B186: Gross Annual Income | C186: 55000 | D186: 45000
B187: Gross Annual Rental Income | C187: 10000 | D187: 9000
B188: Gross Annual Interest & Dividend Income | C188: 3000 | D188: 2000
B189: Government Benefits & Pensions | C189: 2000 | D189: 1000
B190: Other Non Taxable Income | C190: 1000 | D190: 500
B191: Living Expenses | C191: 25000 | D191: 12500
B192: Mortgage | C192: 900 | D192: 450
B193: Rent/Board/Personal Loan/Other | C193: 1000 | D193: 500
B194: Card Payments | C194: 800 | D194: 900
B195: Principal Borrowers Postcode | C195: 2000
B197: Number of Borrowers | C197: 2
B198: Personal Product Lcode | C198: L22 | M198: All purpose loan
B199: Personal Product Name | C199: RediCredit | M199: Car Loan
M200: Deferred Repayment Loan
B201: Applied Loan Amount | C201: 6000 | M201: Secured New Car Loan
B202: Applied Term in Months | C202: 60 | M202: Travel loan
M203: RediCredit

Sheet Compare (hidden)
B1: first person | C1: Essential Services | I1: 2nd person | J1: Non Essential Services
C2: from pdf | D2: =C4-D4 -> 1485 | G2: =D4-F4 -> 9651.58 | J2: from pdf | K2: =J4-K4 -> 1508.34 | N2: =K4-M4 -> 9062.92
B3: Income | C3: Gross | D3: Assessed Income | E3: Taxable income | F3: Tax payable | G3: Net Income | I3: Income | J3: Gross | K3: Assessed Income | L3: Taxable income | M3: Tax payable | N3: Net Income
B4: monthly | C4: 14241.66 | D4: 12756.66 | E4: 10633.33 | F4: 3105.08 | G4: =D4-F4 -> 9651.58 | I4: monthly | J4: 13208.34 | K4: 11700 | L4: 9433.33 | M4: 2637.08 | N4: =K4-M4 -> 9062.92
B5: Yearly | C5: =C4*12 -> 170899.92 | D5: =D4*12 -> 153079.92 | E5: 127599.96 | F5: =F4*12 -> 37260.96 | G5: =G4*12 -> 115818.96 | I5: Yearly | J5: =J4*12 -> 158500.08 | K5: =K4*12 -> 140400 | L5: 113199.96 | M5: =M4*12 -> 31644.96 | N5: =N4*12 -> 108755.04
B7: This Calculator | I7: This Calculator
C8: ='Net Monthly Surplus'!BI50 -> 0 | D8: ='Net Monthly Surplus'!BK50 -> 0 | E8: ='Net Monthly Surplus'!BL50 -> 0 | F8: =TMBLCalculation!D16 -> 0 | G8: ='Net Monthly Surplus'!BM52 -> 0 | J8: ='Net Monthly Surplus'!BP50 -> 0 | K8: ='Net Monthly Surplus'!BR50 -> 0 | L8: ='Net Monthly Surplus'!BS50 -> 0 | M8: =TMBLCalculation!E16 -> 0 | N8: ='Net Monthly Surplus'!BT52 -> 0
B12: Difference | C12: =C5-C8 -> 170899.92 | D12: =D5-D8 -> 153079.92 | E12: =E5-E8 -> 127599.96 | F12: =F5-F8 -> 37260.96 | G12: =G5-G8 -> 115818.96 | I12: Difference | J12: =J5-J8 -> 158500.08 | K12: =K5-K8 -> 140400 | L12: =L5-L8 -> 113199.96 | M12: =M5-M8 -> 31644.96 | N12: =N5-N8 -> 108755.04
B17: both persons | E17: This caculator has only 1 rental income to be shared among the 2 applicants, hence individual gross income will not reconciled
C18: from pdf | D18: =C20-D20 -> 2993.34 | G18: =D20-F20 -> 18714.5
B19: Income | C19: Gross | D19: Assessed Income | E19: Taxable income | F19: Tax payable | G19: Net Income
B20: monthly | C20: =C4+J4 -> 27450 | D20: =D4+K4 -> 24456.66 | E20: 20066.66 | F20: 5742.16 | G20: 18714.5
B21: Yearly | C21: =C20*12 -> 329400 | D21: =D20*12 -> 293479.92 | E21: 240799.92 | F21: =F20*12 -> 68905.92 | G21: =G20*12 -> 224574
B23: This Calculator | G23: =User_Total_Net_Income -> 0 | I23: Superannuation
C24: =C8+J8 -> 0 | D24: =D8+K8 -> 0 | E24: 0 | F24: 0 | G24: 0 | H24: =G24/12 -> 0 | I24: =G23-H24 -> 0
G25: =User_Total_Annual_Net_Income -> 0
G27: =G20-G23 -> 18714.5
B28: Difference | C28: =C21-C24 -> 329400 | D28: =D21-D24 -> 293479.92 | E28: =E21-E24 -> 240799.92 | F28: =F21-F24 -> 68905.92 | G28: =G21-G24 -> 224574

Sheet HEM Living Expenses (hidden)
C1: 1 | D1: 2 | E1: 3 | F1: 4 | G1: 5 | H1: 6 | I1: 7 | J1: 8 | K1: 9 | L1: 10 | M1: 11 | N1: 12 | O1: 13 | P1: 14
B2: Total Gross Income Band | C2: less than | D2: 27000 | E2: 41000 | F2: 54000 | G2: 68000 | H2: 82000 | I2: 109000 | J2: 136000 | K2: 163000 | L2: 191000 | M2: 218000 | N2: 272000 | O2: 341000 | P2: 409000
C3: 27000 | D3: to | E3: to | F3: to | G3: to | H3: to | I3: to | J3: to | K3: to | L3: to | M3: to | N3: to | O3: to | P3: to
D4: 40999 | E4: 53999 | F4: 67999 | G4: 81999 | H4: 108999 | I4: 135999 | J4: 162999 | K4: 190999 | L4: 217999 | M4: 271999 | N4: 340999 | O4: 408999 | P4: 681000
C5: 0 | D5: 27000 | E5: 41000 | F5: 54000 | G5: 68000 | H5: 82000 | I5: 109000 | J5: 136000 | K5: 163000 | L5: 191000 | M5: 218000 | N5: 272000 | O5: 341000 | P5: 409000
B6: All Australia
B7: Couple | C7: 2705 | D7: 2705 | E7: 2775 | F7: 2880 | G7: 3065 | H7: 3320 | I7: 3600 | J7: 3820 | K7: 4110 | L7: 4210 | M7: 4450 | N7: 4820 | O7: 5500 | P7: 5660 | T7: =B7 -> Couple
B8: Couple with 1 dependant | C8: 3190 | D8: 3190 | E8: 3190 | F8: 3295 | G8: 3485 | H8: 3740 | I8: 4020 | J8: 4240 | K8: 4520 | L8: 4630 | M8: 4870 | N8: 5240 | O8: 5910 | P8: 6070 | T8: =B8 -> Couple with 1 dependant
B9: Couple with 2 dependants | C9: 3530 | D9: 3530 | E9: 3530 | F9: 3630 | G9: 3820 | H9: 4080 | I9: 4360 | J9: 4580 | K9: 4870 | L9: 4970 | M9: 5210 | N9: 5580 | O9: 6260 | P9: 6420 | T9: Couple with 2 dependants
B10: Couple with 3 dependants | C10: 3915 | D10: 3915 | E10: 3915 | F10: 3915 | G10: 4105 | H10: 4370 | I10: 4650 | J10: 4870 | K10: 5160 | L10: 5260 | M10: 5500 | N10: 5880 | O10: 6560 | P10: 6720 | T10: Couple with 3 dependants
B11: Couple with 4 dependants | C11: 3915 | D11: 4305 | E11: 4305 | F11: 4205 | G11: 4395 | H11: 4650 | I11: 4940 | J11: 5160 | K11: 5450 | L11: 5560 | M11: 5800 | N11: 6170 | O11: 6850 | P11: 7010 | T11: Couple with 4 dependants
B12: Couple with 5 dependants | C12: 4305 | D12: 4695 | E12: 4695 | F12: 4490 | G12: 4680 | H12: 4940 | I12: 5220 | J12: 5450 | K12: 5740 | L12: 5850 | M12: 6090 | N12: 6470 | O12: 7150 | P12: 7310 | T12: Couple with 5 dependants
B13: Couple with 6 dependants | C13: 4695 | D13: 5085 | E13: 5085 | F13: 4775 | G13: 4965 | H13: 5230 | I13: 5510 | J13: 5740 | K13: 6030 | L13: 6140 | M13: 6380 | N13: 6760 | O13: 7450 | P13: 7610 | T13: Couple with 6 dependants
B14: Couple with 7 dependants | C14: 5085 | D14: 5475 | E14: 5475 | F14: 5060 | G14: 5250 | H14: 5510 | I14: 5800 | J14: 6030 | K14: 6320 | L14: 6430 | M14: 6670 | N14: 7050 | O14: 7740 | P14: 7910 | T14: Couple with 7 dependants
B15: Couple with 8 dependants | C15: 5475 | D15: 5865 | E15: 5865 | F15: 5345 | G15: 5535 | H15: 5800 | I15: 6090 | J15: 6320 | K15: 6610 | L15: 6720 | M15: 6960 | N15: 7350 | O15: 8040 | P15: 8200 | T15: Couple with 8 dependants
B16: Couple with 9 dependants | C16: 5865 | D16: 6255 | E16: 6255 | F16: 5630 | G16: 5820 | H16: 6090 | I16: 6380 | J16: 6610 | K16: 6900 | L16: 7010 | M16: 7260 | N16: 7640 | O16: 8330 | P16: 8500 | T16: Couple with 9 dependants
B18: Single | C18: 1390 | D18: 1465 | E18: 1535 | F18: 1635 | G18: 1825 | H18: 2080 | I18: 2350 | J18: 2570 | K18: 2850 | L18: 2950 | M18: 3190 | N18: 3560 | O18: 4220 | P18: 4380 | T18: Single
B19: Single with 1 dependant | C19: 1905 | D19: 1905 | E19: 1975 | F19: 2075 | G19: 2260 | H19: 2510 | I19: 2790 | J19: 3000 | K19: 3280 | L19: 3380 | M19: 3620 | N19: 3980 | O19: 4640 | P19: 4800 | T19: Single with 1 dependant
B20: Single with 2 dependants | C20: 2415 | D20: 2415 | E20: 2485 | F20: 2590 | G20: 2775 | H20: 3030 | I20: 3300 | J20: 3520 | K20: 3800 | L20: 3900 | M20: 4130 | N20: 4490 | O20: 5160 | P20: 5320 | T20: Single with 2 dependants
B21: Single with 3 dependants | C21: 3000 | D21: 3000 | E21: 3000 | F21: 3100 | G21: 3290 | H21: 3540 | I21: 3820 | J21: 4030 | K21: 4310 | L21: 4410 | M21: 4650 | N21: 5010 | O21: 5670 | P21: 5830 | T21: =B21 -> Single with 3 dependants
B22: Single with 4 dependants | C22: 3000 | D22: 3585 | E22: 3515 | F22: 3615 | G22: 3800 | H22: 4060 | I22: 4330 | J22: 4550 | K22: 4830 | L22: 4930 | M22: 5160 | N22: 5530 | O22: 6190 | P22: 6350 | T22: Single with 4 dependants
B23: Single with 5 dependants | C23: 3585 | D23: 4165 | E23: 4030 | F23: 4130 | G23: 4315 | H23: 4570 | I23: 4840 | J23: 5060 | K23: 5340 | L23: 5440 | M23: 5680 | N23: 6040 | O23: 6710 | P23: 6870 | T23: Single with 5 dependants
B24: Single with 6 dependants | C24: 4165 | D24: 4750 | E24: 4540 | F24: 4645 | G24: 4830 | H24: 5080 | I24: 5360 | J24: 5580 | K24: 5860 | L24: 5960 | M24: 6190 | N24: 6560 | O24: 7220 | P24: 7380 | T24: Single with 6 dependants
B25: Single with 7 dependants | C25: 4750 | D25: 5335 | E25: 5055 | F25: 5160 | G25: 5345 | H25: 5600 | I25: 5870 | J25: 6090 | K25: 6370 | L25: 6470 | M25: 6710 | N25: 7070 | O25: 7740 | P25: 7900 | T25: Single with 7 dependants
B26: Single with 8 dependants | C26: 5335 | D26: 5915 | E26: 5570 | F26: 5670 | G26: 5860 | H26: 6110 | I26: 6390 | J26: 6600 | K26: 6890 | L26: 6990 | M26: 7220 | N26: 7590 | O26: 8250 | P26: 8410 | T26: Single with 8 dependants
B27: Single with 9 dependants | C27: 5915 | D27: 6500 | E27: 6085 | F27: 6185 | G27: 6370 | H27: 6630 | I27: 6900 | J27: 7120 | K27: 7400 | L27: 7500 | M27: 7740 | N27: 8100 | O27: 8770 | P27: 8930 | T27: Single with 9 dependants

Sheet AIP (hidden)
B10: =TODAY() -> 2026-06-12 | E10: Reference Number: | F10: =IF('Net Monthly Surplus'!H30="","",'Net Monthly Surplus'!H30) -> 
B13: ="Dear "&'Net Monthly Surplus'!H29&"," -> Dear ,
B15: Indicative Approval in principle
B17: Congratulations! We are pleased to provide you with an indicative approval, based on the information you have provided.
B19: Borrower Type: | C19: =IF('Net Monthly Surplus'!F13="","",'Net Monthly Surplus'!F13) -> 
B20: Estimated Property Value: | C20: ='Net Monthly Surplus'!User_Estimated_Property_Value -> 0
B21: Number of applicants: | C21: =IF('Net Monthly Surplus'!C30="","",'Net Monthly Surplus'!C30) -> 
C23: Home Loan 1 | E23: =IF(User_Select_HL_FixRate_Amount="","","Home Loan 2") -> 
B24: Total Loan Amount: | C24: =User_Select_HL_VarRate_Amount -> 0 | E24: =IF(User_Select_HL_FixRate_Amount="","",User_Select_HL_FixRate_Amount) -> 
B25: Loan Term in Years: | C25: =User_Select_HL_VarTerm_in_Months/12 -> 0 | E25: =IF(User_Select_HL_FixRate_Amount="","",User_Select_HL_FixTerm_in_Months/12) -> 
B26: Estimated monthly repayments: | C26: =IF(User_Select_HL_VarRate_Amount="","",'Payment Calculation'!U62) ->  | E26: =IF(User_Select_HL_FixRate_Amount="","",'Payment Calculation'!Y62) -> 
B27: Home Loan Facility: | C27: =IF(User_Select_HL_VarRate_Amount="","",HLYWRateP!AA9) ->  | E27: =IF(User_Split_HL_Flag="No","",HLYWRateP!AA10) -> 
B28: Interest rate: | C28: =User_Select_HL_VarRate ->  | E28: =IF(User_Select_HL_FixRate_Amount="","",User_Select_HL_FixRate) -> 
B29: Repayment type: | C29: =User_Select_HL_VarRepayment_Type -> 0 | E29: =IF(User_Select_HL_FixRate_Amount="","",User_Select_HL_FixRepayment_Type) -> 
B32: *These particulars may change. Details will be given to you if we write to you with a formal loan offer.
B35: Please note, this letter outlines an estimate of your capacity to borrow and is based on the accuracy of the information you have provided.
B36: It does not confirm an offer of a loan; we are under no obligation to lend these funds to you.
B38: This quote is indicative only and finance will be provided subject to:
B40: · All information supplied for the purpose of assessing your application being true and correct;
B41: · You providing all required supporting documentation;
B42: · Our satisfactory assessment of your credit history;
B43: · Our assessment that the loan contract is not unsuitable for you;
B44: · Acceptance by our mortgage insurer (if applicable);
B45: · Satisfactory assessment of the property offered as security for the loan;
B46: · Your acceptance of the loan offer including our terms, conditions, fees and charges.
B48: The Approval in Principle is valid for a period of 90 days. It is intended as a guide only and, it should not be used to facilitate a purchase
B49: of a property at auction.
B50: To gain a formal home loan approval you will need to complete a full application and provide all the required information and documentation
B51: to meet our normal lending criteria.

Sheet HLYOURWAY (hidden)
D1: Home Loan Your Way | F1: 2021-03-31
I3: Essential Worker Applicant Discount | J3: 0.05
D5: Client Type | E5: Client | F5: Product Group | G5: Product Name
D6: OOC | E6: =Parm!F24 -> Owner Occupied | F6: Yourway | G6: Your Way Home Loan
D7: INV | E7: =Parm!F23 -> Investor | F7: Yourwyp | G7: Your Way Plus Home Loan
R8: Home Loan
R9: HL
D10: =HLYWRateP!C111 -> Construct list for Rate table | O10: OTHER ATTRIBUTES | P10: Note can be Shortened | Q10: =MAX(Q12:Q175) -> 51 | S10: =MAX(S12:S175) -> 44
D11: Product | E11: Client | F11: Payment Type | G11: KeyCombination | H11: Product | I11: KeyProduct | J11: Interest Rate | K11: BufferRate | L11: AssessmentFloorRate | M11: Assessment Rate | N11: Max Loan Term Years | O11: OnOffer | P11: AIP Product Names | Q11: length | R11: AIP Product Names Short | S11: New length | U11: FixedVariable | V11: BalanceTier | W11: LVR | X11: Special | Y11: Reversion Rate | Z11: Split Loan | AA11: Brand | AB11: State | AC11: Postcode | AD11: Segment | AG11: DataSource
D12: Yourway | E12: INV | F12: IO | G12: YourwayINVIO | H12: Your Way Home Loan Basic Variable - LVR =<60% | I12: =G12&H12 -> YourwayINVIOYour Way Home Loan Basic Variable - LVR =<60% | J12: 6.59 | K12: =Assessment_Buffer*100 -> 3 | L12: =AssessmentFloorRate*100 -> 6 | M12: =MAX(J23+K12,L12) -> 9.34 | N12: 30 | O12: Y | P12: =H12 -> Your Way Home Loan Basic Variable - LVR =<60% | Q12: =LEN(P12) -> 45 | R12: =SUBSTITUTE(P12,R$8,R$9) -> Your Way HL Basic Variable - LVR =<60% | S12: =LEN(R12) -> 38
D13: Yourway | E13: INV | F13: IO | G13: YourwayINVIO | H13: Your Way Home Loan Basic Variable - LVR >60% to 70% | I13: =G13&H13 -> YourwayINVIOYour Way Home Loan Basic Variable - LVR >60% to 70% | J13: 6.69 | K13: 3 | L13: 6 | M13: 9.44 | N13: 30 | O13: Y | P13: =H13 -> Your Way Home Loan Basic Variable - LVR >60% to 70% | Q13: =LEN(P13) -> 51 | R13: =SUBSTITUTE(P13,R$8,R$9) -> Your Way HL Basic Variable - LVR >60% to 70% | S13: =LEN(R13) -> 44
D14: Yourway | E14: INV | F14: IO | G14: YourwayINVIO | H14: Your Way Home Loan Basic Variable - LVR >70% to 80% | I14: =G14&H14 -> YourwayINVIOYour Way Home Loan Basic Variable - LVR >70% to 80% | J14: 6.69 | K14: 3 | L14: 6 | M14: 9.44 | N14: 30 | O14: Y | P14: =H14 -> Your Way Home Loan Basic Variable - LVR >70% to 80% | Q14: =LEN(P14) -> 51 | R14: =SUBSTITUTE(P14,R$8,R$9) -> Your Way HL Basic Variable - LVR >70% to 80% | S14: =LEN(R14) -> 44
D15: Yourway | E15: INV | F15: IO | G15: YourwayINVIO | H15: Your Way Home Loan Basic Variable - LVR >80% to 90% | I15: YourwayINVIOYour Way Home Loan Basic Variable - LVR >80% to 90% | J15: 6.99 | K15: 3 | L15: 6 | M15: 9.74 | N15: 30 | O15: Y | P15: Your Way Home Loan Basic Variable - LVR >80% to 90% | Q15: 51 | R15: Your Way HL Basic Variable - LVR >80% to 90% | S15: 44
D16: Yourway | E16: INV | F16: IO | G16: YourwayINVIO | H16: Your Way Home Loan Basic Variable - LVR >90% | I16: =G16&H16 -> YourwayINVIOYour Way Home Loan Basic Variable - LVR >90% | J16: 7.34 | K16: 3 | L16: 6 | M16: 10.09 | N16: 30 | O16: Y | P16: =H16 -> Your Way Home Loan Basic Variable - LVR >90% | Q16: =LEN(P16) -> 44 | R16: =SUBSTITUTE(P16,R$8,R$9) -> Your Way HL Basic Variable - LVR >90% | S16: =LEN(R16) -> 37
D17: Yourway | E17: INV | F17: IO | G17: YourwayINVIO | H17: Your Way Home Loan 1 Year Fixed | I17: YourwayINVIOYour Way Home Loan 1 Year Fixed | J17: 6.89 | K17: 3 | L17: 6 | M17: 9.64 | N17: 30 | O17: Y | P17: =H17 -> Your Way Home Loan 1 Year Fixed | Q17: =LEN(P17) -> 31 | R17: =SUBSTITUTE(P17,R$8,R$9) -> Your Way HL 1 Year Fixed | S17: =LEN(R17) -> 24 | AG17: ='[8]Data Input'!E71 -> 0.0274
D18: Yourway | E18: INV | F18: IO | G18: YourwayINVIO | H18: Your Way Home Loan 2 Year Fixed | I18: YourwayINVIOYour Way Home Loan 2 Year Fixed | J18: 6.89 | K18: 3 | L18: 6 | M18: 9.64 | N18: 30 | O18: Y | P18: Your Way Home Loan 2 Year Fixed | Q18: 31 | R18: Your Way HL 2 Year Fixed | S18: 24 | AG18: ='[8]Data Input'!E72 -> 0.0274
D19: Yourway | E19: INV | F19: IO | G19: YourwayINVIO | H19: Your Way Home Loan 3 Year Fixed | I19: YourwayINVIOYour Way Home Loan 3 Year Fixed | J19: 6.99 | K19: 3 | L19: 6 | M19: 9.74 | N19: 30 | O19: Y | P19: Your Way Home Loan 3 Year Fixed | Q19: 31 | R19: Your Way HL 3 Year Fixed | S19: 24 | AG19: ='[8]Data Input'!E73 -> 0.0274
D20: Yourway | E20: INV | F20: IO | G20: YourwayINVIO | H20: Your Way Home Loan 4 Year Fixed | I20: YourwayINVIOYour Way Home Loan 4 Year Fixed | J20: 7.14 | K20: 3 | L20: 6 | M20: 9.89 | N20: 30 | O20: Y | P20: Your Way Home Loan 4 Year Fixed | Q20: 31 | R20: Your Way HL 4 Year Fixed | S20: 24 | AG20: ='[8]Data Input'!E74 -> 0.0264
D21: Yourway | E21: INV | F21: IO | G21: YourwayINVIO | H21: Your Way Home Loan 5 Year Fixed | I21: YourwayINVIOYour Way Home Loan 5 Year Fixed | J21: 7.14 | K21: 3 | L21: 6 | M21: 9.89 | N21: 30 | O21: Y | P21: Your Way Home Loan 5 Year Fixed | Q21: 31 | R21: Your Way HL 5 Year Fixed | S21: 24 | AG21: ='[8]Data Input'!E75 -> 0.0294
D22: Yourway | E22: INV | F22: IO | G22: YourwayINVIO | H22: Your Way Home Loan Standard Variable | I22: =G22&H22 -> YourwayINVIOYour Way Home Loan Standard Variable | J22: 8.99 | K22: 3 | L22: 6 | M22: 11.74 | N22: 31 | O22: Y | P22: Your Way Home Loan Standard Variable | Q22: 36 | R22: Your Way HL Standard Variable | S22: 29
D23: Yourway | E23: INV | F23: PI | G23: YourwayINVPI | H23: Your Way Home Loan Basic Variable - LVR =<60% | I23: =G23&H23 -> YourwayINVPIYour Way Home Loan Basic Variable - LVR =<60% | J23: 6.34 | K23: 3 | L23: 6 | M23: =MAX(J23+K23,L23) -> 9.34 | N23: 30 | O23: Y | P23: Your Way Home Loan Basic Variable - LVR =<60% | Q23: 45 | R23: Your Way HL Basic Variable - LVR =<60% | S23: =LEN(R23) -> 38
D24: Yourway | E24: INV | F24: PI | G24: YourwayINVPI | H24: Your Way Home Loan Basic Variable - LVR >60% to 70% | I24: =G24&H24 -> YourwayINVPIYour Way Home Loan Basic Variable - LVR >60% to 70% | J24: 6.44 | K24: 3 | L24: 6 | M24: =MAX(J24+K24,L24) -> 9.44 | N24: 31 | O24: Y | P24: Your Way Home Loan Basic Variable - LVR >60% to 70% | Q24: 51 | R24: Your Way HL Basic Variable - LVR >60% to 70% | S24: =LEN(R24) -> 44
D25: Yourway | E25: INV | F25: PI | G25: YourwayINVPI | H25: Your Way Home Loan Basic Variable - LVR >70% to 80% | I25: =G25&H25 -> YourwayINVPIYour Way Home Loan Basic Variable - LVR >70% to 80% | J25: 6.44 | K25: 3 | L25: 6 | M25: =MAX(J25+K25,L25) -> 9.44 | N25: 31 | O25: Y | P25: =H25 -> Your Way Home Loan Basic Variable - LVR >70% to 80% | Q25: =LEN(P25) -> 51 | R25: =SUBSTITUTE(P25,R$8,R$9) -> Your Way HL Basic Variable - LVR >70% to 80% | S25: =LEN(R25) -> 44
D26: Yourway | E26: INV | F26: PI | G26: YourwayINVPI | H26: Your Way Home Loan Basic Variable - LVR >80% to 90% | I26: YourwayINVPIYour Way Home Loan Basic Variable - LVR >80% to 90% | J26: 6.74 | K26: 3 | L26: 6 | M26: 9.74 | N26: 32 | O26: Y | P26: Your Way Home Loan Basic Variable - LVR >80% to 90% | Q26: 51 | R26: Your Way HL Basic Variable - LVR >80% to 90% | S26: 44
D27: Yourway | E27: INV | F27: PI | G27: YourwayINVPI | H27: Your Way Home Loan Basic Variable - LVR >90% | I27: YourwayINVPIYour Way Home Loan Basic Variable - LVR >90% | J27: 7.09 | K27: 3 | L27: 6 | M27: =MAX(J27+K27,L27) -> 10.09 | N27: 30 | O27: Y | P27: Your Way Home Loan Basic Variable - LVR >90% | Q27: 44 | R27: Your Way HL Basic Variable - LVR >90% | S27: =LEN(R27) -> 37
D28: Yourway | E28: INV | F28: PI | G28: YourwayINVPI | H28: Your Way Home Loan 1 Year Fixed | I28: YourwayINVPIYour Way Home Loan 1 Year Fixed | J28: 6.64 | K28: 3 | L28: 6 | M28: =MAX(J28+K28,L28) -> 9.64 | N28: 30 | O28: Y | P28: Your Way Home Loan 1 Year Fixed | Q28: 31 | R28: Your Way HL 1 Year Fixed | S28: 24 | AG28: ='[8]Data Input'!C71 -> 0.0254
D29: Yourway | E29: INV | F29: PI | G29: YourwayINVPI | H29: Your Way Home Loan 2 Year Fixed | I29: YourwayINVPIYour Way Home Loan 2 Year Fixed | J29: 6.64 | K29: 3 | L29: 6 | M29: 9.64 | N29: 30 | O29: Y | P29: Your Way Home Loan 2 Year Fixed | Q29: 31 | R29: Your Way HL 2 Year Fixed | S29: 24 | AG29: ='[8]Data Input'!C72 -> 0.0254
D30: Yourway | E30: INV | F30: PI | G30: YourwayINVPI | H30: Your Way Home Loan 3 Year Fixed | I30: YourwayINVPIYour Way Home Loan 3 Year Fixed | J30: 6.74 | K30: 3 | L30: 6 | M30: 9.74 | N30: 30 | O30: Y | P30: Your Way Home Loan 3 Year Fixed | Q30: 31 | R30: Your Way HL 3 Year Fixed | S30: 24 | AG30: ='[8]Data Input'!C73 -> 0.0254
D31: Yourway | E31: INV | F31: PI | G31: YourwayINVPI | H31: Your Way Home Loan 4 Year Fixed | I31: YourwayINVPIYour Way Home Loan 4 Year Fixed | J31: 6.89 | K31: 3 | L31: 6 | M31: 9.89 | N31: 30 | O31: Y | P31: Your Way Home Loan 4 Year Fixed | Q31: 31 | R31: Your Way HL 4 Year Fixed | S31: 24 | AG31: ='[8]Data Input'!C74 -> 0.0244
D32: Yourway | E32: INV | F32: PI | G32: YourwayINVPI | H32: Your Way Home Loan 5 Year Fixed | I32: YourwayINVPIYour Way Home Loan 5 Year Fixed | J32: 6.89 | K32: 3 | L32: 6 | M32: 9.89 | N32: 30 | O32: Y | P32: Your Way Home Loan 5 Year Fixed | Q32: 31 | R32: Your Way HL 5 Year Fixed | S32: 24 | AG32: ='[8]Data Input'!C75 -> 0.0274
D33: Yourway | E33: INV | F33: PI | G33: YourwayINVPI | H33: Your Way Home Loan Standard Variable | I33: =G33&H33 -> YourwayINVPIYour Way Home Loan Standard Variable | J33: 8.74 | K33: 3 | L33: 6 | M33: 11.74 | N33: 31 | O33: Y | P33: Your Way Home Loan Standard Variable | Q33: 36 | R33: Your Way HL Standard Variable | S33: 29
D34: Yourway | E34: OOC | F34: IO | G34: YourwayOOCIO | H34: Your Way Home Loan Basic Variable - LVR =<60% | I34: =G34&H34 -> YourwayOOCIOYour Way Home Loan Basic Variable - LVR =<60% | J34: 6.34 | K34: 3 | L34: 6 | M34: =MAX(J45+K34,L34) -> 9.09 | N34: 30 | O34: Y | P34: Your Way Home Loan Basic Variable - LVR =<60% | Q34: 45 | R34: Your Way HL Basic Variable - LVR =<60% | S34: 38
D35: Yourway | E35: OOC | F35: IO | G35: YourwayOOCIO | H35: Your Way Home Loan Basic Variable - LVR >60% to 70% | I35: =G35&H35 -> YourwayOOCIOYour Way Home Loan Basic Variable - LVR >60% to 70% | J35: 6.54 | K35: 3 | L35: 6 | M35: 9.29 | N35: 31 | O35: Y | P35: Your Way Home Loan Basic Variable - LVR >60% to 70% | Q35: 51 | R35: Your Way HL Basic Variable - LVR >60% to 70% | S35: 44
D36: Yourway | E36: OOC | F36: IO | G36: YourwayOOCIO | H36: Your Way Home Loan Basic Variable - LVR >70% to 80% | I36: =G36&H36 -> YourwayOOCIOYour Way Home Loan Basic Variable - LVR >70% to 80% | J36: 6.54 | K36: 3 | L36: 6 | M36: 9.29 | N36: 31 | O36: Y | P36: =H36 -> Your Way Home Loan Basic Variable - LVR >70% to 80% | Q36: =LEN(P36) -> 51 | R36: =SUBSTITUTE(P36,R$8,R$9) -> Your Way HL Basic Variable - LVR >70% to 80% | S36: =LEN(R36) -> 44
D37: Yourway | E37: OOC | F37: IO | G37: YourwayOOCIO | H37: Your Way Home Loan Basic Variable - LVR >80% to 90% | I37: YourwayOOCIOYour Way Home Loan Basic Variable - LVR >80% to 90% | J37: 6.84 | K37: 3 | L37: 6 | M37: 9.59 | N37: 32 | O37: Y | P37: Your Way Home Loan Basic Variable - LVR >80% to 90% | Q37: 51 | R37: Your Way HL Basic Variable - LVR >80% to 90% | S37: 44
D38: Yourway | E38: OOC | F38: IO | G38: YourwayOOCIO | H38: Your Way Home Loan Basic Variable - LVR >90% | I38: =G38&H38 -> YourwayOOCIOYour Way Home Loan Basic Variable - LVR >90% | J38: 7.19 | K38: 3 | L38: 6 | M38: 9.94 | N38: 30 | O38: Y | P38: Your Way Home Loan Basic Variable - LVR >90% | Q38: 44 | R38: Your Way HL Basic Variable - LVR >90% | S38: 37
D39: Yourway | E39: OOC | F39: IO | G39: YourwayOOCIO | H39: Your Way Home Loan 1 Year Fixed | I39: YourwayOOCIOYour Way Home Loan 1 Year Fixed | J39: 6.74 | K39: 3 | L39: 6 | M39: 9.49 | N39: 30 | O39: Y | P39: Your Way Home Loan 1 Year Fixed | Q39: 31 | R39: Your Way HL 1 Year Fixed | S39: 24 | AG39: ='[8]Data Input'!E60 -> 0.0244
D40: Yourway | E40: OOC | F40: IO | G40: YourwayOOCIO | H40: Your Way Home Loan 2 Year Fixed | I40: YourwayOOCIOYour Way Home Loan 2 Year Fixed | J40: 6.84 | K40: 3 | L40: 6 | M40: 9.59 | N40: 30 | O40: Y | P40: Your Way Home Loan 2 Year Fixed | Q40: 31 | R40: Your Way HL 2 Year Fixed | S40: 24 | AG40: ='[8]Data Input'!E61 -> 0.0244
D41: Yourway | E41: OOC | F41: IO | G41: YourwayOOCIO | H41: Your Way Home Loan 3 Year Fixed | I41: YourwayOOCIOYour Way Home Loan 3 Year Fixed | J41: 6.94 | K41: 3 | L41: 6 | M41: 9.69 | N41: 30 | O41: Y | P41: Your Way Home Loan 3 Year Fixed | Q41: 31 | R41: Your Way HL 3 Year Fixed | S41: 24 | AG41: ='[8]Data Input'!E62 -> 0.0244
D42: Yourway | E42: OOC | F42: IO | G42: YourwayOOCIO | H42: Your Way Home Loan 4 Year Fixed | I42: YourwayOOCIOYour Way Home Loan 4 Year Fixed | J42: 7.04 | K42: 3 | L42: 6 | M42: 9.79 | N42: 30 | O42: Y | P42: Your Way Home Loan 4 Year Fixed | Q42: 31 | R42: Your Way HL 4 Year Fixed | S42: 24 | AG42: ='[8]Data Input'!E63 -> 0.0234
D43: Yourway | E43: OOC | F43: IO | G43: YourwayOOCIO | H43: Your Way Home Loan 5 Year Fixed | I43: YourwayOOCIOYour Way Home Loan 5 Year Fixed | J43: 7.09 | K43: 3 | L43: 6 | M43: 9.84 | N43: 30 | O43: Y | P43: Your Way Home Loan 5 Year Fixed | Q43: 31 | R43: Your Way HL 5 Year Fixed | S43: 24 | AG43: ='[8]Data Input'!E64 -> 0.0264
D44: Yourway | E44: OOC | F44: IO | G44: YourwayOOCIO | H44: Your Way Home Loan Standard Variable | I44: =G44&H44 -> YourwayOOCIOYour Way Home Loan Standard Variable | J44: 8.74 | K44: 3 | L44: 6 | M44: 11.49 | N44: 31 | O44: Y | P44: Your Way Home Loan Standard Variable | Q44: 36 | R44: Your Way HL Standard Variable | S44: 29
D45: Yourway | E45: OOC | F45: PI | G45: YourwayOOCPI | H45: Your Way Home Loan Basic Variable - LVR =<60% | I45: =G45&H45 -> YourwayOOCPIYour Way Home Loan Basic Variable - LVR =<60% | J45: 6.09 | K45: 3 | L45: 6 | M45: =MAX(J45+K45,L45) -> 9.09 | N45: 30 | O45: Y | P45: Your Way Home Loan Basic Variable - LVR =<60% | Q45: 45 | R45: Your Way HL Basic Variable - LVR =<60% | S45: 38
D46: Yourway | E46: OOC | F46: PI | G46: YourwayOOCPI | H46: Your Way Home Loan Basic Variable - LVR >60% to 70% | I46: =G46&H46 -> YourwayOOCPIYour Way Home Loan Basic Variable - LVR >60% to 70% | J46: 6.29 | K46: 3 | L46: 6 | M46: 9.29 | N46: 31 | O46: Y | P46: Your Way Home Loan Basic Variable - LVR >60% to 70% | Q46: 51 | R46: Your Way HL Basic Variable - LVR >60% to 70% | S46: 44
D47: Yourway | E47: OOC | F47: PI | G47: YourwayOOCPI | H47: Your Way Home Loan Basic Variable - LVR >70% to 80% | I47: =G47&H47 -> YourwayOOCPIYour Way Home Loan Basic Variable - LVR >70% to 80% | J47: 6.29 | K47: 3 | L47: 6 | M47: =MAX(J47+K47,L47) -> 9.29 | N47: 31 | O47: Y | P47: =H47 -> Your Way Home Loan Basic Variable - LVR >70% to 80% | Q47: =LEN(P47) -> 51 | R47: =SUBSTITUTE(P47,R$8,R$9) -> Your Way HL Basic Variable - LVR >70% to 80% | S47: =LEN(R47) -> 44
D48: Yourway | E48: OOC | F48: PI | G48: YourwayOOCPI | H48: Your Way Home Loan Basic Variable - LVR >80% to 90% | I48: YourwayOOCPIYour Way Home Loan Basic Variable - LVR >80% to 90% | J48: 6.59 | K48: 3 | L48: 6 | M48: 9.59 | N48: 32 | O48: Y | P48: Your Way Home Loan Basic Variable - LVR >80% to 90% | Q48: 51 | R48: Your Way HL Basic Variable - LVR >80% to 90% | S48: 44
D49: Yourway | E49: OOC | F49: PI | G49: YourwayOOCPI | H49: Your Way Home Loan Basic Variable - LVR >90% | I49: YourwayOOCPIYour Way Home Loan Basic Variable - LVR >90% | J49: 6.94 | K49: 3 | L49: 6 | M49: 9.94 | N49: 30 | O49: Y | P49: Your Way Home Loan Basic Variable - LVR >90% | Q49: 44 | R49: Your Way HL Basic Variable - LVR >90% | S49: =LEN(R49) -> 37
D50: Yourway | E50: OOC | F50: PI | G50: YourwayOOCPI | H50: Your Way Home Loan 1 Year Fixed | I50: YourwayOOCPIYour Way Home Loan 1 Year Fixed | J50: 6.49 | K50: 3 | L50: 6 | M50: 9.49 | N50: 30 | O50: Y | P50: Your Way Home Loan 1 Year Fixed | Q50: 31 | R50: Your Way HL 1 Year Fixed | S50: 24 | AG50: ='[8]Data Input'!C60 -> 0.0224
D51: Yourway | E51: OOC | F51: PI | G51: YourwayOOCPI | H51: Your Way Home Loan 2 Year Fixed | I51: YourwayOOCPIYour Way Home Loan 2 Year Fixed | J51: 6.59 | K51: 3 | L51: 6 | M51: 9.59 | N51: 30 | O51: Y | P51: Your Way Home Loan 2 Year Fixed | Q51: 31 | R51: Your Way HL 2 Year Fixed | S51: 24 | AG51: ='[8]Data Input'!C61 -> 0.0224
D52: Yourway | E52: OOC | F52: PI | G52: YourwayOOCPI | H52: Your Way Home Loan 3 Year Fixed | I52: YourwayOOCPIYour Way Home Loan 3 Year Fixed | J52: 6.69 | K52: 3 | L52: 6 | M52: 9.69 | N52: 30 | O52: Y | P52: Your Way Home Loan 3 Year Fixed | Q52: 31 | R52: Your Way HL 3 Year Fixed | S52: 24 | AG52: ='[8]Data Input'!C62 -> 0.0224
D53: Yourway | E53: OOC | F53: PI | G53: YourwayOOCPI | H53: Your Way Home Loan 4 Year Fixed | I53: YourwayOOCPIYour Way Home Loan 4 Year Fixed | J53: 6.79 | K53: 3 | L53: 6 | M53: 9.79 | N53: 30 | O53: Y | P53: Your Way Home Loan 4 Year Fixed | Q53: 31 | R53: Your Way HL 4 Year Fixed | S53: 24 | AG53: ='[8]Data Input'!C63 -> 0.0214
D54: Yourway | E54: OOC | F54: PI | G54: YourwayOOCPI | H54: Your Way Home Loan 5 Year Fixed | I54: YourwayOOCPIYour Way Home Loan 5 Year Fixed | J54: 6.84 | K54: 3 | L54: 6 | M54: 9.84 | N54: 30 | O54: Y | P54: Your Way Home Loan 5 Year Fixed | Q54: 31 | R54: Your Way HL 5 Year Fixed | S54: 24 | AG54: ='[8]Data Input'!C64 -> 0.0244
D55: Yourway | E55: OOC | F55: PI | G55: YourwayOOCPI | H55: Your Way Home Loan Standard Variable | I55: =G55&H55 -> YourwayOOCPIYour Way Home Loan Standard Variable | J55: 8.49 | K55: 3 | L55: 6 | M55: 11.49 | N55: 31 | O55: Y | P55: Your Way Home Loan Standard Variable | Q55: 36 | R55: Your Way HL Standard Variable | S55: 29
D56: Yourwyp | E56: INV | F56: IO | G56: YourwypINVIO | H56: Your Way Plus Home Loan Variable ≤60% | I56: YourwypINVIOYour Way Plus Home Loan Variable ≤60% | J56: 6.59 | K56: =Assessment_Buffer*100 -> 3 | L56: =AssessmentFloorRate*100 -> 6 | M56: =MAX(J86+K56,L56) -> 9.34 | N56: 35 | O56: Y | P56: Your Way Plus Home Loan Variable ≤60% | Q56: 37 | R56: Your Way Plus HL Variable ≤60% | S56: 30 | AG56: ='[8]Data Input'!E104 -> 0.0319
D57: Yourwyp | E57: INV | F57: IO | G57: YourwypINVIO | H57: Your Way Plus Home Loan Variable >60% to ≤70% | I57: YourwypINVIOYour Way Plus Home Loan Variable >60% to ≤70% | J57: 6.69 | K57: 3 | L57: 6 | M57: 9.44 | N57: 35 | O57: Y | P57: Your Way Plus Home Loan Variable >60% to ≤70% | Q57: 45 | R57: Your Way Plus HL Variable >60% to ≤70% | S57: 38 | AG57: ='[8]Data Input'!E105 -> 0.0329
D58: Yourwyp | E58: INV | F58: IO | G58: YourwypINVIO | H58: Your Way Plus Home Loan Variable >70% to ≤80% | I58: YourwypINVIOYour Way Plus Home Loan Variable >70% to ≤80% | J58: 6.69 | K58: 3 | L58: 6 | M58: 9.44 | N58: 35 | O58: Y | P58: =H58 -> Your Way Plus Home Loan Variable >70% to ≤80% | Q58: =LEN(P58) -> 45 | R58: =SUBSTITUTE(P58,R$8,R$9) -> Your Way Plus HL Variable >70% to ≤80% | S58: =LEN(R58) -> 38
D59: Yourwyp | E59: INV | F59: IO | G59: YourwypINVIO | H59: Your Way Plus Home Loan Variable >80% to ≤90% | I59: YourwypINVIOYour Way Plus Home Loan Variable >80% to ≤90% | J59: 6.99 | K59: =Assessment_Buffer*100 -> 3 | L59: 6 | M59: 9.74 | N59: 35 | O59: Y | P59: Your Way Plus Home Loan Variable >80% to ≤90% | Q59: 45 | R59: Your Way Plus HL Variable >80% to ≤90% | S59: 38 | AG59: ='[8]Data Input'!E106 -> 0.0349
D60: Yourwyp | E60: INV | F60: IO | G60: YourwypINVIO | H60: Your Way Plus Home Loan Variable >90% | I60: YourwypINVIOYour Way Plus Home Loan Variable >90% | J60: 7.34 | K60: 3 | L60: 6 | M60: 10.09 | N60: 35 | O60: Y | P60: Your Way Plus Home Loan Variable >90% | Q60: 37 | R60: Your Way Plus HL Variable >90% | S60: 30 | AG60: ='[8]Data Input'!E107 -> 0.0399
D61: Yourwyp | E61: INV | F61: IO | G61: YourwypINVIO | H61: Your Way Plus Home Loan 1 Year Fixed ≤60% | I61: YourwypINVIOYour Way Plus Home Loan 1 Year Fixed ≤60% | J61: 6.79 | K61: 3 | L61: 6 | M61: 9.54 | N61: 35 | O61: Y | P61: Your Way Plus Home Loan 1 Year Fixed ≤60% | Q61: 41 | R61: Your Way Plus HL 1 Year Fixed ≤60% | S61: 34
D62: Yourwyp | E62: INV | F62: IO | G62: YourwypINVIO | H62: Your Way Plus Home Loan 2 Year Fixed ≤60% | I62: YourwypINVIOYour Way Plus Home Loan 2 Year Fixed ≤60% | J62: 6.64 | K62: =Assessment_Buffer*100 -> 3 | L62: =AssessmentFloorRate*100 -> 6 | M62: 9.39 | N62: 35 | O62: Y | P62: Your Way Plus Home Loan 2 Year Fixed ≤60% | Q62: 41 | R62: Your Way Plus HL 2 Year Fixed ≤60% | S62: 34
D63: Yourwyp | E63: INV | F63: IO | G63: YourwypINVIO | H63: Your Way Plus Home Loan 3 Year Fixed ≤60% | I63: YourwypINVIOYour Way Plus Home Loan 3 Year Fixed ≤60% | J63: 6.74 | K63: 3 | L63: 6 | M63: 9.49 | N63: 35 | O63: Y | P63: Your Way Plus Home Loan 3 Year Fixed ≤60% | Q63: 41 | R63: Your Way Plus HL 3 Year Fixed ≤60% | S63: 34
D64: Yourwyp | E64: INV | F64: IO | G64: YourwypINVIO | H64: Your Way Plus Home Loan 4 Year Fixed ≤60% | I64: YourwypINVIOYour Way Plus Home Loan 4 Year Fixed ≤60% | J64: 6.94 | K64: 3 | L64: 6 | M64: 9.69 | N64: 35 | O64: Y | P64: Your Way Plus Home Loan 4 Year Fixed ≤60% | Q64: 41 | R64: Your Way Plus HL 4 Year Fixed ≤60% | S64: 34
D65: Yourwyp | E65: INV | F65: IO | G65: YourwypINVIO | H65: Your Way Plus Home Loan 5 Year Fixed ≤60% | I65: YourwypINVIOYour Way Plus Home Loan 5 Year Fixed ≤60% | J65: 6.99 | K65: 3 | L65: 6 | M65: 9.74 | N65: 35 | O65: Y | P65: Your Way Plus Home Loan 5 Year Fixed ≤60% | Q65: 41 | R65: Your Way Plus HL 5 Year Fixed ≤60% | S65: 34
D66: Yourwyp | E66: INV | F66: IO | G66: YourwypINVIO | H66: Your Way Plus Home Loan 1 Year Fixed 60% to ≤70% | I66: YourwypINVIOYour Way Plus Home Loan 1 Year Fixed 60% to ≤70% | J66: 6.79 | K66: 3 | L66: 6 | M66: 9.54 | N66: 35 | O66: Y | P66: Your Way Plus Home Loan 1 Year Fixed 60% to ≤70% | Q66: 48 | R66: Your Way Plus HL 1 Year Fixed 60% to ≤70% | S66: 41
D67: Yourwyp | E67: INV | F67: IO | G67: YourwypINVIO | H67: Your Way Plus Home Loan 2 Year Fixed 60% to ≤70% | I67: YourwypINVIOYour Way Plus Home Loan 2 Year Fixed 60% to ≤70% | J67: 6.64 | K67: 3 | L67: 6 | M67: 9.39 | N67: 35 | O67: Y | P67: Your Way Plus Home Loan 2 Year Fixed 60% to ≤70% | Q67: 48 | R67: Your Way Plus HL 2 Year Fixed 60% to ≤70% | S67: 41
D68: Yourwyp | E68: INV | F68: IO | G68: YourwypINVIO | H68: Your Way Plus Home Loan 3 Year Fixed 60% to ≤70% | I68: YourwypINVIOYour Way Plus Home Loan 3 Year Fixed 60% to ≤70% | J68: 6.74 | K68: 3 | L68: 6 | M68: 9.49 | N68: 35 | O68: Y | P68: Your Way Plus Home Loan 3 Year Fixed 60% to ≤70% | Q68: 48 | R68: Your Way Plus HL 3 Year Fixed 60% to ≤70% | S68: 41
D69: Yourwyp | E69: INV | F69: IO | G69: YourwypINVIO | H69: Your Way Plus Home Loan 4 Year Fixed 60% to ≤70% | I69: YourwypINVIOYour Way Plus Home Loan 4 Year Fixed 60% to ≤70% | J69: 6.94 | K69: 3 | L69: 6 | M69: 9.69 | N69: 35 | O69: Y | P69: Your Way Plus Home Loan 4 Year Fixed 60% to ≤70% | Q69: 48 | R69: Your Way Plus HL 4 Year Fixed 60% to ≤70% | S69: 41
D70: Yourwyp | E70: INV | F70: IO | G70: YourwypINVIO | H70: Your Way Plus Home Loan 5 Year Fixed 60% to ≤70% | I70: YourwypINVIOYour Way Plus Home Loan 5 Year Fixed 60% to ≤70% | J70: 6.99 | K70: 3 | L70: 6 | M70: 9.74 | N70: 35 | O70: Y | P70: Your Way Plus Home Loan 5 Year Fixed 60% to ≤70% | Q70: 48 | R70: Your Way Plus HL 5 Year Fixed 60% to ≤70% | S70: 41
D71: Yourwyp | E71: INV | F71: IO | G71: YourwypINVIO | H71: Your Way Plus Home Loan 1 Year Fixed 70% to ≤80% | I71: YourwypINVIOYour Way Plus Home Loan 1 Year Fixed 70% to ≤80% | J71: 6.79 | K71: 3 | L71: 6 | M71: 9.54 | N71: 35 | O71: Y | P71: =H71 -> Your Way Plus Home Loan 1 Year Fixed 70% to ≤80% | Q71: =LEN(P71) -> 48 | R71: =SUBSTITUTE(P71,R$8,R$9) -> Your Way Plus HL 1 Year Fixed 70% to ≤80% | S71: =LEN(R71) -> 41
D72: Yourwyp | E72: INV | F72: IO | G72: YourwypINVIO | H72: Your Way Plus Home Loan 2 Year Fixed 70% to ≤80% | I72: YourwypINVIOYour Way Plus Home Loan 2 Year Fixed 70% to ≤80% | J72: 6.64 | K72: 3 | L72: 6 | M72: 9.39 | N72: 35 | O72: Y | P72: Your Way Plus Home Loan 2 Year Fixed 70% to ≤80% | Q72: 48 | R72: Your Way Plus HL 2 Year Fixed 70% to ≤80% | S72: 41
D73: Yourwyp | E73: INV | F73: IO | G73: YourwypINVIO | H73: Your Way Plus Home Loan 3 Year Fixed 70% to ≤80% | I73: YourwypINVIOYour Way Plus Home Loan 3 Year Fixed 70% to ≤80% | J73: 6.74 | K73: 3 | L73: 6 | M73: 9.49 | N73: 35 | O73: Y | P73: Your Way Plus Home Loan 3 Year Fixed 70% to ≤80% | Q73: 48 | R73: Your Way Plus HL 3 Year Fixed 70% to ≤80% | S73: 41
D74: Yourwyp | E74: INV | F74: IO | G74: YourwypINVIO | H74: Your Way Plus Home Loan 4 Year Fixed 70% to ≤80% | I74: YourwypINVIOYour Way Plus Home Loan 4 Year Fixed 70% to ≤80% | J74: 6.94 | K74: 3 | L74: 6 | M74: 9.69 | N74: 35 | O74: Y | P74: Your Way Plus Home Loan 4 Year Fixed 70% to ≤80% | Q74: 48 | R74: Your Way Plus HL 4 Year Fixed 70% to ≤80% | S74: 41
D75: Yourwyp | E75: INV | F75: IO | G75: YourwypINVIO | H75: Your Way Plus Home Loan 5 Year Fixed 70% to ≤80% | I75: YourwypINVIOYour Way Plus Home Loan 5 Year Fixed 70% to ≤80% | J75: 6.99 | K75: 3 | L75: 6 | M75: 9.74 | N75: 35 | O75: Y | P75: Your Way Plus Home Loan 5 Year Fixed 70% to ≤80% | Q75: 48 | R75: Your Way Plus HL 5 Year Fixed 70% to ≤80% | S75: 41
D76: Yourwyp | E76: INV | F76: IO | G76: YourwypINVIO | H76: Your Way Plus Home Loan 1 Year Fixed 80% to ≤90% | I76: YourwypINVIOYour Way Plus Home Loan 1 Year Fixed 80% to ≤90% | J76: 6.89 | K76: 3 | L76: 6 | M76: 9.64 | N76: 35 | O76: Y | P76: Your Way Plus Home Loan 1 Year Fixed 80% to ≤90% | Q76: 48 | R76: Your Way Plus HL 1 Year Fixed 80% to ≤90% | S76: 41
D77: Yourwyp | E77: INV | F77: IO | G77: YourwypINVIO | H77: Your Way Plus Home Loan 2 Year Fixed 80% to ≤90% | I77: YourwypINVIOYour Way Plus Home Loan 2 Year Fixed 80% to ≤90% | J77: 6.99 | K77: 3 | L77: 6 | M77: 9.74 | N77: 35 | O77: Y | P77: Your Way Plus Home Loan 2 Year Fixed 80% to ≤90% | Q77: 48 | R77: Your Way Plus HL 2 Year Fixed 80% to ≤90% | S77: 41
D78: Yourwyp | E78: INV | F78: IO | G78: YourwypINVIO | H78: Your Way Plus Home Loan 3 Year Fixed 80% to ≤90% | I78: YourwypINVIOYour Way Plus Home Loan 3 Year Fixed 80% to ≤90% | J78: 6.99 | K78: 3 | L78: 6 | M78: 9.74 | N78: 35 | O78: Y | P78: Your Way Plus Home Loan 3 Year Fixed 80% to ≤90% | Q78: 48 | R78: Your Way Plus HL 3 Year Fixed 80% to ≤90% | S78: 41
D79: Yourwyp | E79: INV | F79: IO | G79: YourwypINVIO | H79: Your Way Plus Home Loan 4 Year Fixed 80% to ≤90% | I79: YourwypINVIOYour Way Plus Home Loan 4 Year Fixed 80% to ≤90% | J79: 7.24 | K79: 3 | L79: 6 | M79: 9.99 | N79: 35 | O79: Y | P79: Your Way Plus Home Loan 4 Year Fixed 80% to ≤90% | Q79: 48 | R79: Your Way Plus HL 4 Year Fixed 80% to ≤90% | S79: 41
D80: Yourwyp | E80: INV | F80: IO | G80: YourwypINVIO | H80: Your Way Plus Home Loan 5 Year Fixed 80% to ≤90% | I80: YourwypINVIOYour Way Plus Home Loan 5 Year Fixed 80% to ≤90% | J80: 7.34 | K80: 3 | L80: 6 | M80: 10.09 | N80: 35 | O80: Y | P80: Your Way Plus Home Loan 5 Year Fixed 80% to ≤90% | Q80: 48 | R80: Your Way Plus HL 5 Year Fixed 80% to ≤90% | S80: 41
D81: Yourwyp | E81: INV | F81: IO | G81: YourwypINVIO | H81: Your Way Plus Home Loan 1 Year Fixed >90% | I81: YourwypINVIOYour Way Plus Home Loan 1 Year Fixed >90% | J81: 7.14 | K81: 3 | L81: 6 | M81: 9.89 | N81: 35 | O81: Y | P81: Your Way Plus Home Loan 1 Year Fixed >90% | Q81: 41 | R81: Your Way Plus HL 1 Year Fixed >90% | S81: 34 | AG81: ='[8]Data Input'!E98 -> 0.0259
D82: Yourwyp | E82: INV | F82: IO | G82: YourwypINVIO | H82: Your Way Plus Home Loan 2 Year Fixed >90% | I82: YourwypINVIOYour Way Plus Home Loan 2 Year Fixed >90% | J82: 7.14 | K82: 3 | L82: 6 | M82: 9.89 | N82: 35 | O82: Y | P82: Your Way Plus Home Loan 2 Year Fixed >90% | Q82: 41 | R82: Your Way Plus HL 2 Year Fixed >90% | S82: 34 | AG82: ='[8]Data Input'!E99 -> 0.0259
D83: Yourwyp | E83: INV | F83: IO | G83: YourwypINVIO | H83: Your Way Plus Home Loan 3 Year Fixed >90% | I83: YourwypINVIOYour Way Plus Home Loan 3 Year Fixed >90% | J83: 7.19 | K83: 3 | L83: 6 | M83: 9.94 | N83: 35 | O83: Y | P83: Your Way Plus Home Loan 3 Year Fixed >90% | Q83: 41 | R83: Your Way Plus HL 3 Year Fixed >90% | S83: 34 | AG83: ='[8]Data Input'!E100 -> 0.0259
D84: Yourwyp | E84: INV | F84: IO | G84: YourwypINVIO | H84: Your Way Plus Home Loan 4 Year Fixed >90% | I84: YourwypINVIOYour Way Plus Home Loan 4 Year Fixed >90% | J84: 7.29 | K84: 3 | L84: 6 | M84: 10.04 | N84: 35 | O84: Y | P84: Your Way Plus Home Loan 4 Year Fixed >90% | Q84: 41 | R84: Your Way Plus HL 4 Year Fixed >90% | S84: 34 | AG84: ='[8]Data Input'!E101 -> 0.0249
D85: Yourwyp | E85: INV | F85: IO | G85: YourwypINVIO | H85: Your Way Plus Home Loan 5 Year Fixed >90% | I85: YourwypINVIOYour Way Plus Home Loan 5 Year Fixed >90% | J85: 7.44 | K85: 3 | L85: 6 | M85: 10.19 | N85: 35 | O85: Y | P85: Your Way Plus Home Loan 5 Year Fixed >90% | Q85: 41 | R85: Your Way Plus HL 5 Year Fixed >90% | S85: 34 | AG85: ='[8]Data Input'!E102 -> 0.0279
D86: Yourwyp | E86: INV | F86: PI | G86: YourwypINVPI | H86: Your Way Plus Home Loan Variable ≤60% | I86: =G86&H86 -> YourwypINVPIYour Way Plus Home Loan Variable ≤60% | J86: 6.34 | K86: =Assessment_Buffer*100 -> 3 | L86: =AssessmentFloorRate*100 -> 6 | M86: =MAX(J86+K86,L86) -> 9.34 | N86: 35 | O86: Y | P86: Your Way Plus Home Loan Variable ≤60% | Q86: 37 | R86: Your Way Plus HL Variable ≤60% | S86: 30 | AG86: ='[8]Data Input'!C104 -> 0.0299
D87: Yourwyp | E87: INV | F87: PI | G87: YourwypINVPI | H87: Your Way Plus Home Loan Variable >60% to ≤70% | I87: =G87&H87 -> YourwypINVPIYour Way Plus Home Loan Variable >60% to ≤70% | J87: 6.44 | K87: 3 | L87: 6 | M87: 9.44 | N87: 35 | O87: Y | P87: Your Way Plus Home Loan Variable >60% to ≤70% | Q87: 45 | R87: Your Way Plus HL Variable >60% to ≤70% | S87: 38 | AG87: ='[8]Data Input'!C105 -> 0.0309
D88: Yourwyp | E88: INV | F88: PI | G88: YourwypINVPI | H88: Your Way Plus Home Loan Variable >70% to ≤80% | I88: =G88&H88 -> YourwypINVPIYour Way Plus Home Loan Variable >70% to ≤80% | J88: 6.44 | K88: 3 | L88: 6 | M88: =MAX(J88+K88,L88) -> 9.44 | N88: 35 | O88: Y | P88: =H88 -> Your Way Plus Home Loan Variable >70% to ≤80% | Q88: =LEN(P88) -> 45 | R88: =SUBSTITUTE(P88,R$8,R$9) -> Your Way Plus HL Variable >70% to ≤80% | S88: =LEN(R88) -> 38
D89: Yourwyp | E89: INV | F89: PI | G89: YourwypINVPI | H89: Your Way Plus Home Loan Variable >80% to ≤90% | I89: YourwypINVPIYour Way Plus Home Loan Variable >80% to ≤90% | J89: 6.74 | K89: 3 | L89: 6 | M89: 9.74 | N89: 35 | O89: Y | P89: Your Way Plus Home Loan Variable >80% to ≤90% | Q89: 45 | R89: Your Way Plus HL Variable >80% to ≤90% | S89: 38 | AG89: ='[8]Data Input'!C106 -> 0.0329
D90: Yourwyp | E90: INV | F90: PI | G90: YourwypINVPI | H90: Your Way Plus Home Loan Variable >90% | I90: YourwypINVPIYour Way Plus Home Loan Variable >90% | J90: 7.09 | K90: 3 | L90: 6 | M90: 10.09 | N90: 35 | O90: Y | P90: Your Way Plus Home Loan Variable >90% | Q90: 37 | R90: Your Way Plus HL Variable >90% | S90: 30 | AG90: ='[8]Data Input'!C107 -> 0.0379
D91: Yourwyp | E91: INV | F91: PI | G91: YourwypINVPI | H91: Your Way Plus Home Loan 1 Year Fixed ≤60% | I91: YourwypINVPIYour Way Plus Home Loan 1 Year Fixed ≤60% | J91: 6.54 | K91: 3 | L91: 6 | M91: =MAX(J91+K91,L91) -> 9.54 | N91: 35 | O91: Y | P91: =H91 -> Your Way Plus Home Loan 1 Year Fixed ≤60% | Q91: =LEN(P91) -> 41 | R91: =SUBSTITUTE(P91,R$8,R$9) -> Your Way Plus HL 1 Year Fixed ≤60% | S91: =LEN(R91) -> 34 | AG91: ='[8]Data Input'!C98 -> 0.0239
D92: Yourwyp | E92: INV | F92: PI | G92: YourwypINVPI | H92: Your Way Plus Home Loan 2 Year Fixed ≤60% | I92: YourwypINVPIYour Way Plus Home Loan 2 Year Fixed ≤60% | J92: 6.39 | K92: 3 | L92: 6 | M92: =MAX(J92+K92,L92) -> 9.39 | N92: 35 | O92: Y | P92: Your Way Plus Home Loan 2 Year Fixed ≤60% | Q92: 41 | R92: Your Way Plus HL 2 Year Fixed ≤60% | S92: 34 | AG92: ='[8]Data Input'!C99 -> 0.0239
D93: Yourwyp | E93: INV | F93: PI | G93: YourwypINVPI | H93: Your Way Plus Home Loan 3 Year Fixed ≤60% | I93: YourwypINVPIYour Way Plus Home Loan 3 Year Fixed ≤60% | J93: 6.49 | K93: 3 | L93: 6 | M93: 9.49 | N93: 35 | O93: Y | P93: Your Way Plus Home Loan 3 Year Fixed ≤60% | Q93: 41 | R93: Your Way Plus HL 3 Year Fixed ≤60% | S93: 34 | AG93: ='[8]Data Input'!C100 -> 0.0239
D94: Yourwyp | E94: INV | F94: PI | G94: YourwypINVPI | H94: Your Way Plus Home Loan 4 Year Fixed ≤60% | I94: YourwypINVPIYour Way Plus Home Loan 4 Year Fixed ≤60% | J94: 6.69 | K94: 3 | L94: 6 | M94: 9.69 | N94: 35 | O94: Y | P94: Your Way Plus Home Loan 4 Year Fixed ≤60% | Q94: 41 | R94: Your Way Plus HL 4 Year Fixed ≤60% | S94: 34 | AG94: ='[8]Data Input'!C101 -> 0.0229
D95: Yourwyp | E95: INV | F95: PI | G95: YourwypINVPI | H95: Your Way Plus Home Loan 5 Year Fixed ≤60% | I95: YourwypINVPIYour Way Plus Home Loan 5 Year Fixed ≤60% | J95: 6.74 | K95: 3 | L95: 6 | M95: 9.74 | N95: 35 | O95: Y | P95: Your Way Plus Home Loan 5 Year Fixed ≤60% | Q95: 41 | R95: Your Way Plus HL 5 Year Fixed ≤60% | S95: 34
D96: Yourwyp | E96: INV | F96: PI | G96: YourwypINVPI | H96: Your Way Plus Home Loan 1 Year Fixed 60% to ≤70% | I96: YourwypINVPIYour Way Plus Home Loan 1 Year Fixed 60% to ≤70% | J96: 6.54 | K96: 3 | L96: 6 | M96: =MAX(J96+K96,L96) -> 9.54 | N96: 35 | O96: Y | P96: Your Way Plus Home Loan 1 Year Fixed 60% to ≤70% | Q96: 48 | R96: Your Way Plus HL 1 Year Fixed 60% to ≤70% | S96: 41
D97: Yourwyp | E97: INV | F97: PI | G97: YourwypINVPI | H97: Your Way Plus Home Loan 2 Year Fixed 60% to ≤70% | I97: YourwypINVPIYour Way Plus Home Loan 2 Year Fixed 60% to ≤70% | J97: 6.39 | K97: 3 | L97: 6 | M97: =MAX(J97+K97,L97) -> 9.39 | N97: 35 | O97: Y | P97: Your Way Plus Home Loan 2 Year Fixed 60% to ≤70% | Q97: 48 | R97: Your Way Plus HL 2 Year Fixed 60% to ≤70% | S97: 41
D98: Yourwyp | E98: INV | F98: PI | G98: YourwypINVPI | H98: Your Way Plus Home Loan 3 Year Fixed 60% to ≤70% | I98: YourwypINVPIYour Way Plus Home Loan 3 Year Fixed 60% to ≤70% | J98: 6.49 | K98: 3 | L98: 6 | M98: 9.49 | N98: 35 | O98: Y | P98: Your Way Plus Home Loan 3 Year Fixed 60% to ≤70% | Q98: 48 | R98: Your Way Plus HL 3 Year Fixed 60% to ≤70% | S98: 41
D99: Yourwyp | E99: INV | F99: PI | G99: YourwypINVPI | H99: Your Way Plus Home Loan 4 Year Fixed 60% to ≤70% | I99: YourwypINVPIYour Way Plus Home Loan 4 Year Fixed 60% to ≤70% | J99: 6.69 | K99: 3 | L99: 6 | M99: 9.69 | N99: 35 | O99: Y | P99: Your Way Plus Home Loan 4 Year Fixed 60% to ≤70% | Q99: 48 | R99: Your Way Plus HL 4 Year Fixed 60% to ≤70% | S99: 41
D100: Yourwyp | E100: INV | F100: PI | G100: YourwypINVPI | H100: Your Way Plus Home Loan 5 Year Fixed 60% to ≤70% | I100: YourwypINVPIYour Way Plus Home Loan 5 Year Fixed 60% to ≤70% | J100: 6.74 | K100: 3 | L100: 6 | M100: =MAX(J100+K100,L100) -> 9.74 | N100: 35 | O100: Y | P100: Your Way Plus Home Loan 5 Year Fixed 60% to ≤70% | Q100: 48 | R100: Your Way Plus HL 5 Year Fixed 60% to ≤70% | S100: 41
D101: Yourwyp | E101: INV | F101: PI | G101: YourwypINVPI | H101: Your Way Plus Home Loan 1 Year Fixed 70% to ≤80% | I101: =G101&H101 -> YourwypINVPIYour Way Plus Home Loan 1 Year Fixed 70% to ≤80% | J101: 6.54 | K101: 3 | L101: 6 | M101: =MAX(J101+K101,L101) -> 9.54 | N101: 35 | O101: Y | P101: =H101 -> Your Way Plus Home Loan 1 Year Fixed 70% to ≤80% | Q101: =LEN(P101) -> 48 | R101: =SUBSTITUTE(P101,R$8,R$9) -> Your Way Plus HL 1 Year Fixed 70% to ≤80% | S101: =LEN(R101) -> 41
D102: Yourwyp | E102: INV | F102: PI | G102: YourwypINVPI | H102: Your Way Plus Home Loan 2 Year Fixed 70% to ≤80% | I102: YourwypINVPIYour Way Plus Home Loan 2 Year Fixed 70% to ≤80% | J102: 6.39 | K102: 3 | L102: 6 | M102: =MAX(J102+K102,L102) -> 9.39 | N102: 35 | O102: Y | P102: Your Way Plus Home Loan 2 Year Fixed 70% to ≤80% | Q102: 48 | R102: Your Way Plus HL 2 Year Fixed 70% to ≤80% | S102: 41
D103: Yourwyp | E103: INV | F103: PI | G103: YourwypINVPI | H103: Your Way Plus Home Loan 3 Year Fixed 70% to ≤80% | I103: YourwypINVPIYour Way Plus Home Loan 3 Year Fixed 70% to ≤80% | J103: 6.49 | K103: 3 | L103: 6 | M103: 9.49 | N103: 35 | O103: Y | P103: Your Way Plus Home Loan 3 Year Fixed 70% to ≤80% | Q103: 48 | R103: Your Way Plus HL 3 Year Fixed 70% to ≤80% | S103: 41
D104: Yourwyp | E104: INV | F104: PI | G104: YourwypINVPI | H104: Your Way Plus Home Loan 4 Year Fixed 70% to ≤80% | I104: YourwypINVPIYour Way Plus Home Loan 4 Year Fixed 70% to ≤80% | J104: 6.69 | K104: 3 | L104: 6 | M104: 9.69 | N104: 35 | O104: Y | P104: Your Way Plus Home Loan 4 Year Fixed 70% to ≤80% | Q104: 48 | R104: Your Way Plus HL 4 Year Fixed 70% to ≤80% | S104: 41
D105: Yourwyp | E105: INV | F105: PI | G105: YourwypINVPI | H105: Your Way Plus Home Loan 5 Year Fixed 70% to ≤80% | I105: YourwypINVPIYour Way Plus Home Loan 5 Year Fixed 70% to ≤80% | J105: 6.74 | K105: 3 | L105: 6 | M105: =MAX(J105+K105,L105) -> 9.74 | N105: 35 | O105: Y | P105: Your Way Plus Home Loan 5 Year Fixed 70% to ≤80% | Q105: 48 | R105: Your Way Plus HL 5 Year Fixed 70% to ≤80% | S105: 41
D106: Yourwyp | E106: INV | F106: PI | G106: YourwypINVPI | H106: Your Way Plus Home Loan 1 Year Fixed 80% to ≤90% | I106: YourwypINVPIYour Way Plus Home Loan 1 Year Fixed 80% to ≤90% | J106: 6.64 | K106: 3 | L106: 6 | M106: =MAX(J106+K106,L106) -> 9.64 | N106: 35 | O106: Y | P106: Your Way Plus Home Loan 1 Year Fixed 80% to ≤90% | Q106: 48 | R106: Your Way Plus HL 1 Year Fixed 80% to ≤90% | S106: 41
D107: Yourwyp | E107: INV | F107: PI | G107: YourwypINVPI | H107: Your Way Plus Home Loan 2 Year Fixed 80% to ≤90% | I107: YourwypINVPIYour Way Plus Home Loan 2 Year Fixed 80% to ≤90% | J107: 6.74 | K107: 3 | L107: 6 | M107: =MAX(J107+K107,L107) -> 9.74 | N107: 35 | O107: Y | P107: Your Way Plus Home Loan 2 Year Fixed 80% to ≤90% | Q107: 48 | R107: Your Way Plus HL 2 Year Fixed 80% to ≤90% | S107: 41
D108: Yourwyp | E108: INV | F108: PI | G108: YourwypINVPI | H108: Your Way Plus Home Loan 3 Year Fixed 80% to ≤90% | I108: YourwypINVPIYour Way Plus Home Loan 3 Year Fixed 80% to ≤90% | J108: 6.74 | K108: 3 | L108: 6 | M108: 9.74 | N108: 35 | O108: Y | P108: Your Way Plus Home Loan 3 Year Fixed 80% to ≤90% | Q108: 48 | R108: Your Way Plus HL 3 Year Fixed 80% to ≤90% | S108: 41
D109: Yourwyp | E109: INV | F109: PI | G109: YourwypINVPI | H109: Your Way Plus Home Loan 4 Year Fixed 80% to ≤90% | I109: YourwypINVPIYour Way Plus Home Loan 4 Year Fixed 80% to ≤90% | J109: 6.99 | K109: 3 | L109: 6 | M109: 9.99 | N109: 35 | O109: Y | P109: Your Way Plus Home Loan 4 Year Fixed 80% to ≤90% | Q109: 48 | R109: Your Way Plus HL 4 Year Fixed 80% to ≤90% | S109: 41
D110: Yourwyp | E110: INV | F110: PI | G110: YourwypINVPI | H110: Your Way Plus Home Loan 5 Year Fixed 80% to ≤90% | I110: YourwypINVPIYour Way Plus Home Loan 5 Year Fixed 80% to ≤90% | J110: 7.09 | K110: 3 | L110: 6 | M110: 10.09 | N110: 35 | O110: Y | P110: Your Way Plus Home Loan 5 Year Fixed 80% to ≤90% | Q110: 48 | R110: Your Way Plus HL 5 Year Fixed 80% to ≤90% | S110: 41
D111: Yourwyp | E111: INV | F111: PI | G111: YourwypINVPI | H111: Your Way Plus Home Loan 1 Year Fixed >90% | I111: YourwypINVPIYour Way Plus Home Loan 1 Year Fixed >90% | J111: 6.89 | K111: 3 | L111: 6 | M111: =MAX(J111+K111,L111) -> 9.89 | N111: 35 | O111: Y | P111: Your Way Plus Home Loan 1 Year Fixed >90% | Q111: 41 | R111: Your Way Plus HL 1 Year Fixed >90% | S111: 34
D112: Yourwyp | E112: INV | F112: PI | G112: YourwypINVPI | H112: Your Way Plus Home Loan 2 Year Fixed >90% | I112: YourwypINVPIYour Way Plus Home Loan 2 Year Fixed >90% | J112: 6.89 | K112: 3 | L112: 6 | M112: =MAX(J112+K112,L112) -> 9.89 | N112: 35 | O112: Y | P112: Your Way Plus Home Loan 2 Year Fixed >90% | Q112: 41 | R112: Your Way Plus HL 2 Year Fixed >90% | S112: 34
D113: Yourwyp | E113: INV | F113: PI | G113: YourwypINVPI | H113: Your Way Plus Home Loan 3 Year Fixed >90% | I113: YourwypINVPIYour Way Plus Home Loan 3 Year Fixed >90% | J113: 6.94 | K113: 3 | L113: 6 | M113: 9.94 | N113: 35 | O113: Y | P113: Your Way Plus Home Loan 3 Year Fixed >90% | Q113: 41 | R113: Your Way Plus HL 3 Year Fixed >90% | S113: 34
D114: Yourwyp | E114: INV | F114: PI | G114: YourwypINVPI | H114: Your Way Plus Home Loan 4 Year Fixed >90% | I114: YourwypINVPIYour Way Plus Home Loan 4 Year Fixed >90% | J114: 7.04 | K114: 3 | L114: 6 | M114: 10.04 | N114: 35 | O114: Y | P114: Your Way Plus Home Loan 4 Year Fixed >90% | Q114: 41 | R114: Your Way Plus HL 4 Year Fixed >90% | S114: 34
D115: Yourwyp | E115: INV | F115: PI | G115: YourwypINVPI | H115: Your Way Plus Home Loan 5 Year Fixed >90% | I115: YourwypINVPIYour Way Plus Home Loan 5 Year Fixed >90% | J115: 7.19 | K115: 3 | L115: 6 | M115: =MAX(J115+K115,L115) -> 10.19 | N115: 35 | O115: Y | P115: Your Way Plus Home Loan 5 Year Fixed >90% | Q115: 41 | R115: Your Way Plus HL 5 Year Fixed >90% | S115: 34 | AG115: ='[8]Data Input'!C102 -> 0.0259
D116: Yourwyp | E116: OOC | F116: IO | G116: YourwypOOCIO | H116: Your Way Plus Home Loan Variable ≤60% | I116: YourwypOOCIOYour Way Plus Home Loan Variable ≤60% | J116: 6.34 | K116: =Assessment_Buffer*100 -> 3 | L116: =AssessmentFloorRate*100 -> 6 | M116: =MAX(J146+K116,L116) -> 9.09 | N116: 35 | O116: Y | P116: Your Way Plus Home Loan Variable ≤60% | Q116: 37 | R116: Your Way Plus HL Variable ≤60% | S116: =LEN(R116) -> 30 | AG116: ='[8]Data Input'!E88 -> 0.0289
D117: Yourwyp | E117: OOC | F117: IO | G117: YourwypOOCIO | H117: Your Way Plus Home Loan Variable >60% to ≤70% | I117: YourwypOOCIOYour Way Plus Home Loan Variable >60% to ≤70% | J117: 6.54 | K117: 3 | L117: 6 | M117: 9.29 | N117: 35 | O117: Y | P117: Your Way Plus Home Loan Variable >60% to ≤70% | Q117: 45 | R117: Your Way Plus HL Variable >60% to ≤70% | S117: 38 | AG117: ='[8]Data Input'!E89 -> 0.0299
D118: Yourwyp | E118: OOC | F118: IO | G118: YourwypOOCIO | H118: Your Way Plus Home Loan Variable >70% to ≤80% | I118: YourwypOOCIOYour Way Plus Home Loan Variable >70% to ≤80% | J118: 6.54 | K118: 3 | L118: 6 | M118: 9.29 | N118: 35 | O118: Y | P118: =H118 -> Your Way Plus Home Loan Variable >70% to ≤80% | Q118: =LEN(P118) -> 45 | R118: =SUBSTITUTE(P118,R$8,R$9) -> Your Way Plus HL Variable >70% to ≤80% | S118: =LEN(R118) -> 38
D119: Yourwyp | E119: OOC | F119: IO | G119: YourwypOOCIO | H119: Your Way Plus Home Loan Variable >80% to ≤90% | I119: YourwypOOCIOYour Way Plus Home Loan Variable >80% to ≤90% | J119: 6.84 | K119: 3 | L119: 6 | M119: 9.59 | N119: 35 | O119: Y | P119: Your Way Plus Home Loan Variable >80% to ≤90% | Q119: 45 | R119: Your Way Plus HL Variable >80% to ≤90% | S119: 38 | AG119: ='[8]Data Input'!E90 -> 0.0319
D120: Yourwyp | E120: OOC | F120: IO | G120: YourwypOOCIO | H120: Your Way Plus Home Loan Variable >90% | I120: YourwypOOCIOYour Way Plus Home Loan Variable >90% | J120: 7.19 | K120: 3 | L120: 6 | M120: 9.94 | N120: 35 | O120: Y | P120: Your Way Plus Home Loan Variable >90% | Q120: 37 | R120: Your Way Plus HL Variable >90% | S120: 30 | AG120: ='[8]Data Input'!E91 -> 0.0369
D121: Yourwyp | E121: OOC | F121: IO | G121: YourwypOOCIO | H121: Your Way Plus Home Loan 1 Year Fixed ≤60% | I121: =G121&H121 -> YourwypOOCIOYour Way Plus Home Loan 1 Year Fixed ≤60% | J121: 6.64 | K121: 3 | L121: 6 | M121: 9.39 | N121: 35 | O121: Y | P121: Your Way Plus Home Loan 1 Year Fixed ≤60% | Q121: 41 | R121: Your Way Plus HL 1 Year Fixed ≤60% | S121: 34 | AG121: ='[8]Data Input'!E81 -> 0.0229
D122: Yourwyp | E122: OOC | F122: IO | G122: YourwypOOCIO | H122: Your Way Plus Home Loan 2 Year Fixed ≤60% | I122: YourwypOOCIOYour Way Plus Home Loan 2 Year Fixed ≤60% | J122: 6.69 | K122: 3 | L122: 6 | M122: 9.44 | N122: 35 | O122: Y | P122: Your Way Plus Home Loan 2 Year Fixed ≤60% | Q122: 41 | R122: Your Way Plus HL 2 Year Fixed ≤60% | S122: 34 | AG122: ='[8]Data Input'!E82 -> 0.0229
D123: Yourwyp | E123: OOC | F123: IO | G123: YourwypOOCIO | H123: Your Way Plus Home Loan 3 Year Fixed ≤60% | I123: YourwypOOCIOYour Way Plus Home Loan 3 Year Fixed ≤60% | J123: 6.79 | K123: 3 | L123: 6 | M123: 9.54 | N123: 35 | O123: Y | P123: Your Way Plus Home Loan 3 Year Fixed ≤60% | Q123: 41 | R123: Your Way Plus HL 3 Year Fixed ≤60% | S123: 34 | AG123: ='[8]Data Input'!E83 -> 0.0229
D124: Yourwyp | E124: OOC | F124: IO | G124: YourwypOOCIO | H124: Your Way Plus Home Loan 4 Year Fixed ≤60% | I124: YourwypOOCIOYour Way Plus Home Loan 4 Year Fixed ≤60% | J124: 6.84 | K124: 3 | L124: 6 | M124: 9.59 | N124: 35 | O124: Y | P124: Your Way Plus Home Loan 4 Year Fixed ≤60% | Q124: 41 | R124: Your Way Plus HL 4 Year Fixed ≤60% | S124: 34 | AG124: ='[8]Data Input'!E84 -> 0.0219
D125: Yourwyp | E125: OOC | F125: IO | G125: YourwypOOCIO | H125: Your Way Plus Home Loan 5 Year Fixed ≤60% | I125: YourwypOOCIOYour Way Plus Home Loan 5 Year Fixed ≤60% | J125: 6.99 | K125: 3 | L125: 6 | M125: 9.74 | N125: 35 | O125: Y | P125: Your Way Plus Home Loan 5 Year Fixed ≤60% | Q125: 41 | R125: Your Way Plus HL 5 Year Fixed ≤60% | S125: 34
D126: Yourwyp | E126: OOC | F126: IO | G126: YourwypOOCIO | H126: Your Way Plus Home Loan 1 Year Fixed 60% to ≤70% | I126: YourwypOOCIOYour Way Plus Home Loan 1 Year Fixed 60% to ≤70% | J126: 6.64 | K126: 3 | L126: 6 | M126: 9.39 | N126: 35 | O126: Y | P126: Your Way Plus Home Loan 1 Year Fixed 60% to ≤70% | Q126: 48 | R126: Your Way Plus HL 1 Year Fixed 60% to ≤70% | S126: 41
D127: Yourwyp | E127: OOC | F127: IO | G127: YourwypOOCIO | H127: Your Way Plus Home Loan 2 Year Fixed 60% to ≤70% | I127: YourwypOOCIOYour Way Plus Home Loan 2 Year Fixed 60% to ≤70% | J127: 6.69 | K127: 3 | L127: 6 | M127: 9.44 | N127: 35 | O127: Y | P127: Your Way Plus Home Loan 2 Year Fixed 60% to ≤70% | Q127: 48 | R127: Your Way Plus HL 2 Year Fixed 60% to ≤70% | S127: 41
D128: Yourwyp | E128: OOC | F128: IO | G128: YourwypOOCIO | H128: Your Way Plus Home Loan 3 Year Fixed 60% to ≤70% | I128: YourwypOOCIOYour Way Plus Home Loan 3 Year Fixed 60% to ≤70% | J128: 6.79 | K128: 3 | L128: 6 | M128: 9.54 | N128: 35 | O128: Y | P128: Your Way Plus Home Loan 3 Year Fixed 60% to ≤70% | Q128: 48 | R128: Your Way Plus HL 3 Year Fixed 60% to ≤70% | S128: 41
D129: Yourwyp | E129: OOC | F129: IO | G129: YourwypOOCIO | H129: Your Way Plus Home Loan 4 Year Fixed 60% to ≤70% | I129: YourwypOOCIOYour Way Plus Home Loan 4 Year Fixed 60% to ≤70% | J129: 6.84 | K129: 3 | L129: 6 | M129: 9.59 | N129: 35 | O129: Y | P129: Your Way Plus Home Loan 4 Year Fixed 60% to ≤70% | Q129: 48 | R129: Your Way Plus HL 4 Year Fixed 60% to ≤70% | S129: 41
D130: Yourwyp | E130: OOC | F130: IO | G130: YourwypOOCIO | H130: Your Way Plus Home Loan 5 Year Fixed 60% to ≤70% | I130: YourwypOOCIOYour Way Plus Home Loan 5 Year Fixed 60% to ≤70% | J130: 6.99 | K130: 3 | L130: 6 | M130: 9.74 | N130: 35 | O130: Y | P130: Your Way Plus Home Loan 5 Year Fixed 60% to ≤70% | Q130: 48 | R130: Your Way Plus HL 5 Year Fixed 60% to ≤70% | S130: 41
D131: Yourwyp | E131: OOC | F131: IO | G131: YourwypOOCIO | H131: Your Way Plus Home Loan 1 Year Fixed 70% to ≤80% | I131: =G131&H131 -> YourwypOOCIOYour Way Plus Home Loan 1 Year Fixed 70% to ≤80% | J131: 6.64 | K131: 3 | L131: 6 | M131: 9.39 | N131: 35 | O131: Y | P131: =H131 -> Your Way Plus Home Loan 1 Year Fixed 70% to ≤80% | Q131: =LEN(P131) -> 48 | R131: =SUBSTITUTE(P131,R$8,R$9) -> Your Way Plus HL 1 Year Fixed 70% to ≤80% | S131: =LEN(R131) -> 41
D132: Yourwyp | E132: OOC | F132: IO | G132: YourwypOOCIO | H132: Your Way Plus Home Loan 2 Year Fixed 70% to ≤80% | I132: YourwypOOCIOYour Way Plus Home Loan 2 Year Fixed 70% to ≤80% | J132: 6.69 | K132: 3 | L132: 6 | M132: 9.44 | N132: 35 | O132: Y | P132: Your Way Plus Home Loan 2 Year Fixed 70% to ≤80% | Q132: 48 | R132: Your Way Plus HL 2 Year Fixed 70% to ≤80% | S132: 41
D133: Yourwyp | E133: OOC | F133: IO | G133: YourwypOOCIO | H133: Your Way Plus Home Loan 3 Year Fixed 70% to ≤80% | I133: YourwypOOCIOYour Way Plus Home Loan 3 Year Fixed 70% to ≤80% | J133: 6.79 | K133: 3 | L133: 6 | M133: 9.54 | N133: 35 | O133: Y | P133: Your Way Plus Home Loan 3 Year Fixed 70% to ≤80% | Q133: 48 | R133: Your Way Plus HL 3 Year Fixed 70% to ≤80% | S133: 41
D134: Yourwyp | E134: OOC | F134: IO | G134: YourwypOOCIO | H134: Your Way Plus Home Loan 4 Year Fixed 70% to ≤80% | I134: YourwypOOCIOYour Way Plus Home Loan 4 Year Fixed 70% to ≤80% | J134: 6.84 | K134: 3 | L134: 6 | M134: 9.59 | N134: 35 | O134: Y | P134: Your Way Plus Home Loan 4 Year Fixed 70% to ≤80% | Q134: 48 | R134: Your Way Plus HL 4 Year Fixed 70% to ≤80% | S134: 41
D135: Yourwyp | E135: OOC | F135: IO | G135: YourwypOOCIO | H135: Your Way Plus Home Loan 5 Year Fixed 70% to ≤80% | I135: YourwypOOCIOYour Way Plus Home Loan 5 Year Fixed 70% to ≤80% | J135: 6.99 | K135: 3 | L135: 6 | M135: 9.74 | N135: 35 | O135: Y | P135: Your Way Plus Home Loan 5 Year Fixed 70% to ≤80% | Q135: 48 | R135: Your Way Plus HL 5 Year Fixed 70% to ≤80% | S135: 41
D136: Yourwyp | E136: OOC | F136: IO | G136: YourwypOOCIO | H136: Your Way Plus Home Loan 1 Year Fixed 80% to ≤90% | I136: YourwypOOCIOYour Way Plus Home Loan 1 Year Fixed 80% to ≤90% | J136: 6.84 | K136: 3 | L136: 6 | M136: 9.59 | N136: 35 | O136: Y | P136: Your Way Plus Home Loan 1 Year Fixed 80% to ≤90% | Q136: 48 | R136: Your Way Plus HL 1 Year Fixed 80% to ≤90% | S136: 41
D137: Yourwyp | E137: OOC | F137: IO | G137: YourwypOOCIO | H137: Your Way Plus Home Loan 2 Year Fixed 80% to ≤90% | I137: YourwypOOCIOYour Way Plus Home Loan 2 Year Fixed 80% to ≤90% | J137: 6.94 | K137: 3 | L137: 6 | M137: 9.69 | N137: 35 | O137: Y | P137: Your Way Plus Home Loan 2 Year Fixed 80% to ≤90% | Q137: 48 | R137: Your Way Plus HL 2 Year Fixed 80% to ≤90% | S137: 41
D138: Yourwyp | E138: OOC | F138: IO | G138: YourwypOOCIO | H138: Your Way Plus Home Loan 3 Year Fixed 80% to ≤90% | I138: YourwypOOCIOYour Way Plus Home Loan 3 Year Fixed 80% to ≤90% | J138: 7.04 | K138: 3 | L138: 6 | M138: 9.79 | N138: 35 | O138: Y | P138: Your Way Plus Home Loan 3 Year Fixed 80% to ≤90% | Q138: 48 | R138: Your Way Plus HL 3 Year Fixed 80% to ≤90% | S138: 41
D139: Yourwyp | E139: OOC | F139: IO | G139: YourwypOOCIO | H139: Your Way Plus Home Loan 4 Year Fixed 80% to ≤90% | I139: YourwypOOCIOYour Way Plus Home Loan 4 Year Fixed 80% to ≤90% | J139: 7.14 | K139: 3 | L139: 6 | M139: 9.89 | N139: 35 | O139: Y | P139: Your Way Plus Home Loan 4 Year Fixed 80% to ≤90% | Q139: 48 | R139: Your Way Plus HL 4 Year Fixed 80% to ≤90% | S139: 41
D140: Yourwyp | E140: OOC | F140: IO | G140: YourwypOOCIO | H140: Your Way Plus Home Loan 5 Year Fixed 80% to ≤90% | I140: YourwypOOCIOYour Way Plus Home Loan 5 Year Fixed 80% to ≤90% | J140: 7.19 | K140: 3 | L140: 6 | M140: 9.94 | N140: 35 | O140: Y | P140: Your Way Plus Home Loan 5 Year Fixed 80% to ≤90% | Q140: 48 | R140: Your Way Plus HL 5 Year Fixed 80% to ≤90% | S140: 41
D141: Yourwyp | E141: OOC | F141: IO | G141: YourwypOOCIO | H141: Your Way Plus Home Loan 1 Year Fixed >90% | I141: YourwypOOCIOYour Way Plus Home Loan 1 Year Fixed >90% | J141: 7.09 | K141: 3 | L141: 6 | M141: 9.84 | N141: 35 | O141: Y | P141: Your Way Plus Home Loan 1 Year Fixed >90% | Q141: 41 | R141: Your Way Plus HL 1 Year Fixed >90% | S141: 34
D142: Yourwyp | E142: OOC | F142: IO | G142: YourwypOOCIO | H142: Your Way Plus Home Loan 2 Year Fixed >90% | I142: YourwypOOCIOYour Way Plus Home Loan 2 Year Fixed >90% | J142: 7.14 | K142: 3 | L142: 6 | M142: 9.89 | N142: 35 | O142: Y | P142: Your Way Plus Home Loan 2 Year Fixed >90% | Q142: 41 | R142: Your Way Plus HL 2 Year Fixed >90% | S142: 34
D143: Yourwyp | E143: OOC | F143: IO | G143: YourwypOOCIO | H143: Your Way Plus Home Loan 3 Year Fixed >90% | I143: YourwypOOCIOYour Way Plus Home Loan 3 Year Fixed >90% | J143: 7.24 | K143: 3 | L143: 6 | M143: 9.99 | N143: 35 | O143: Y | P143: Your Way Plus Home Loan 3 Year Fixed >90% | Q143: 41 | R143: Your Way Plus HL 3 Year Fixed >90% | S143: 34
D144: Yourwyp | E144: OOC | F144: IO | G144: YourwypOOCIO | H144: Your Way Plus Home Loan 4 Year Fixed >90% | I144: YourwypOOCIOYour Way Plus Home Loan 4 Year Fixed >90% | J144: 7.14 | K144: 3 | L144: 6 | M144: 9.89 | N144: 35 | O144: Y | P144: Your Way Plus Home Loan 4 Year Fixed >90% | Q144: 41 | R144: Your Way Plus HL 4 Year Fixed >90% | S144: 34
D145: Yourwyp | E145: OOC | F145: IO | G145: YourwypOOCIO | H145: Your Way Plus Home Loan 5 Year Fixed >90% | I145: YourwypOOCIOYour Way Plus Home Loan 5 Year Fixed >90% | J145: 7.29 | K145: 3 | L145: 6 | M145: 10.04 | N145: 35 | O145: Y | P145: Your Way Plus Home Loan 5 Year Fixed >90% | Q145: 41 | R145: Your Way Plus HL 5 Year Fixed >90% | S145: 34 | AG145: ='[8]Data Input'!E85 -> 0.0249
D146: Yourwyp | E146: OOC | F146: PI | G146: YourwypOOCPI | H146: Your Way Plus Home Loan Variable ≤60% | I146: YourwypOOCPIYour Way Plus Home Loan Variable ≤60% | J146: 6.09 | K146: =Assessment_Buffer*100 -> 3 | L146: =AssessmentFloorRate*100 -> 6 | M146: =MAX(J146+K146,L146) -> 9.09 | N146: 35 | O146: Y | P146: Your Way Plus Home Loan Variable ≤60% | Q146: 37 | R146: Your Way Plus HL Variable ≤60% | S146: 30 | AG146: ='[8]Data Input'!C88 -> 0.0269
D147: Yourwyp | E147: OOC | F147: PI | G147: YourwypOOCPI | H147: Your Way Plus Home Loan Variable >60% to ≤70% | I147: YourwypOOCPIYour Way Plus Home Loan Variable >60% to ≤70% | J147: 6.29 | K147: 3 | L147: 6 | M147: 9.29 | N147: 35 | O147: Y | P147: Your Way Plus Home Loan Variable >60% to ≤70% | Q147: 45 | R147: Your Way Plus HL Variable >60% to ≤70% | S147: 38 | AG147: ='[8]Data Input'!C89 -> 0.0279
D148: Yourwyp | E148: OOC | F148: PI | G148: YourwypOOCPI | H148: Your Way Plus Home Loan Variable >70% to ≤80% | I148: YourwypOOCPIYour Way Plus Home Loan Variable >70% to ≤80% | J148: 6.29 | K148: 3 | L148: 6 | M148: =MAX(J148+K148,L148) -> 9.29 | N148: 35 | O148: Y | P148: =H148 -> Your Way Plus Home Loan Variable >70% to ≤80% | Q148: =LEN(P148) -> 45 | R148: =SUBSTITUTE(P148,R$8,R$9) -> Your Way Plus HL Variable >70% to ≤80% | S148: =LEN(R148) -> 38
D149: Yourwyp | E149: OOC | F149: PI | G149: YourwypOOCPI | H149: Your Way Plus Home Loan Variable >80% to ≤90% | I149: YourwypOOCPIYour Way Plus Home Loan Variable >80% to ≤90% | J149: 6.59 | K149: 3 | L149: 6 | M149: 9.59 | N149: 35 | O149: Y | P149: Your Way Plus Home Loan Variable >80% to ≤90% | Q149: 45 | R149: Your Way Plus HL Variable >80% to ≤90% | S149: 38 | AG149: ='[8]Data Input'!C90 -> 0.0299
D150: Yourwyp | E150: OOC | F150: PI | G150: YourwypOOCPI | H150: Your Way Plus Home Loan Variable >90% | I150: YourwypOOCPIYour Way Plus Home Loan Variable >90% | J150: 6.94 | K150: 3 | L150: 6 | M150: 9.94 | N150: 35 | O150: Y | P150: Your Way Plus Home Loan Variable >90% | Q150: 37 | R150: Your Way Plus HL Variable >90% | S150: 30 | AG150: ='[8]Data Input'!C91 -> 0.0349
D151: Yourwyp | E151: OOC | F151: PI | G151: YourwypOOCPI | H151: Your Way Plus Home Loan 1 Year Fixed ≤60% | I151: =G151&H151 -> YourwypOOCPIYour Way Plus Home Loan 1 Year Fixed ≤60% | J151: 6.39 | K151: 3 | L151: 6 | M151: =MAX(J151+K151,L151) -> 9.39 | N151: 35 | O151: Y | P151: Your Way Plus Home Loan 1 Year Fixed ≤60% | Q151: 41 | R151: Your Way Plus HL 1 Year Fixed ≤60% | S151: 34 | AG151: ='[8]Data Input'!C81 -> 0.0209
D152: Yourwyp | E152: OOC | F152: PI | G152: YourwypOOCPI | H152: Your Way Plus Home Loan 2 Year Fixed ≤60% | I152: YourwypOOCPIYour Way Plus Home Loan 2 Year Fixed ≤60% | J152: 6.44 | K152: 3 | L152: 6 | M152: =MAX(J152+K152,L152) -> 9.44 | N152: 35 | O152: Y | P152: Your Way Plus Home Loan 2 Year Fixed ≤60% | Q152: 41 | R152: Your Way Plus HL 2 Year Fixed ≤60% | S152: 34 | AG152: ='[8]Data Input'!C82 -> 0.0209
D153: Yourwyp | E153: OOC | F153: PI | G153: YourwypOOCPI | H153: Your Way Plus Home Loan 3 Year Fixed ≤60% | I153: YourwypOOCPIYour Way Plus Home Loan 3 Year Fixed ≤60% | J153: 6.54 | K153: 3 | L153: 6 | M153: 9.54 | N153: 35 | O153: Y | P153: Your Way Plus Home Loan 3 Year Fixed ≤60% | Q153: 41 | R153: Your Way Plus HL 3 Year Fixed ≤60% | S153: 34 | AG153: ='[8]Data Input'!C83 -> 0.0209
D154: Yourwyp | E154: OOC | F154: PI | G154: YourwypOOCPI | H154: Your Way Plus Home Loan 4 Year Fixed ≤60% | I154: YourwypOOCPIYour Way Plus Home Loan 4 Year Fixed ≤60% | J154: 6.59 | K154: 3 | L154: 6 | M154: 9.59 | N154: 35 | O154: Y | P154: Your Way Plus Home Loan 4 Year Fixed ≤60% | Q154: 41 | R154: Your Way Plus HL 4 Year Fixed ≤60% | S154: 34 | AG154: ='[8]Data Input'!C84 -> 0.0199
D155: Yourwyp | E155: OOC | F155: PI | G155: YourwypOOCPI | H155: Your Way Plus Home Loan 5 Year Fixed ≤60% | I155: YourwypOOCPIYour Way Plus Home Loan 5 Year Fixed ≤60% | J155: 6.74 | K155: 3 | L155: 6 | M155: 9.74 | N155: 35 | O155: Y | P155: Your Way Plus Home Loan 5 Year Fixed ≤60% | Q155: 41 | R155: Your Way Plus HL 5 Year Fixed ≤60% | S155: 34
D156: Yourwyp | E156: OOC | F156: PI | G156: YourwypOOCPI | H156: Your Way Plus Home Loan 1 Year Fixed 60% to ≤70% | I156: YourwypOOCPIYour Way Plus Home Loan 1 Year Fixed 60% to ≤70% | J156: 6.39 | K156: 3 | L156: 6 | M156: =MAX(J156+K156,L156) -> 9.39 | N156: 35 | O156: Y | P156: Your Way Plus Home Loan 1 Year Fixed 60% to ≤70% | Q156: 48 | R156: Your Way Plus HL 1 Year Fixed 60% to ≤70% | S156: 41
D157: Yourwyp | E157: OOC | F157: PI | G157: YourwypOOCPI | H157: Your Way Plus Home Loan 2 Year Fixed 60% to ≤70% | I157: YourwypOOCPIYour Way Plus Home Loan 2 Year Fixed 60% to ≤70% | J157: 6.44 | K157: 3 | L157: 6 | M157: =MAX(J157+K157,L157) -> 9.44 | N157: 35 | O157: Y | P157: Your Way Plus Home Loan 2 Year Fixed 60% to ≤70% | Q157: 48 | R157: Your Way Plus HL 2 Year Fixed 60% to ≤70% | S157: 41
D158: Yourwyp | E158: OOC | F158: PI | G158: YourwypOOCPI | H158: Your Way Plus Home Loan 3 Year Fixed 60% to ≤70% | I158: YourwypOOCPIYour Way Plus Home Loan 3 Year Fixed 60% to ≤70% | J158: 6.54 | K158: 3 | L158: 6 | M158: 9.54 | N158: 35 | O158: Y | P158: Your Way Plus Home Loan 3 Year Fixed 60% to ≤70% | Q158: 48 | R158: Your Way Plus HL 3 Year Fixed 60% to ≤70% | S158: 41
D159: Yourwyp | E159: OOC | F159: PI | G159: YourwypOOCPI | H159: Your Way Plus Home Loan 4 Year Fixed 60% to ≤70% | I159: YourwypOOCPIYour Way Plus Home Loan 4 Year Fixed 60% to ≤70% | J159: 6.59 | K159: 3 | L159: 6 | M159: 9.59 | N159: 35 | O159: Y | P159: Your Way Plus Home Loan 4 Year Fixed 60% to ≤70% | Q159: 48 | R159: Your Way Plus HL 4 Year Fixed 60% to ≤70% | S159: 41
D160: Yourwyp | E160: OOC | F160: PI | G160: YourwypOOCPI | H160: Your Way Plus Home Loan 5 Year Fixed 60% to ≤70% | I160: YourwypOOCPIYour Way Plus Home Loan 5 Year Fixed 60% to ≤70% | J160: 6.74 | K160: 3 | L160: 6 | M160: =MAX(J160+K160,L160) -> 9.74 | N160: 35 | O160: Y | P160: Your Way Plus Home Loan 5 Year Fixed 60% to ≤70% | Q160: 48 | R160: Your Way Plus HL 5 Year Fixed 60% to ≤70% | S160: 41
D161: Yourwyp | E161: OOC | F161: PI | G161: YourwypOOCPI | H161: Your Way Plus Home Loan 1 Year Fixed 70% to ≤80% | I161: =G161&H161 -> YourwypOOCPIYour Way Plus Home Loan 1 Year Fixed 70% to ≤80% | J161: 6.39 | K161: 3 | L161: 6 | M161: =MAX(J161+K161,L161) -> 9.39 | N161: 35 | O161: Y | P161: =H161 -> Your Way Plus Home Loan 1 Year Fixed 70% to ≤80% | Q161: =LEN(P161) -> 48 | R161: =SUBSTITUTE(P161,R$8,R$9) -> Your Way Plus HL 1 Year Fixed 70% to ≤80% | S161: =LEN(R161) -> 41
D162: Yourwyp | E162: OOC | F162: PI | G162: YourwypOOCPI | H162: Your Way Plus Home Loan 2 Year Fixed 70% to ≤80% | I162: YourwypOOCPIYour Way Plus Home Loan 2 Year Fixed 70% to ≤80% | J162: 6.44 | K162: 3 | L162: 6 | M162: =MAX(J162+K162,L162) -> 9.44 | N162: 35 | O162: Y | P162: Your Way Plus Home Loan 2 Year Fixed 70% to ≤80% | Q162: 48 | R162: Your Way Plus HL 2 Year Fixed 70% to ≤80% | S162: 41
D163: Yourwyp | E163: OOC | F163: PI | G163: YourwypOOCPI | H163: Your Way Plus Home Loan 3 Year Fixed 70% to ≤80% | I163: YourwypOOCPIYour Way Plus Home Loan 3 Year Fixed 70% to ≤80% | J163: 6.54 | K163: 3 | L163: 6 | M163: 9.54 | N163: 35 | O163: Y | P163: Your Way Plus Home Loan 3 Year Fixed 70% to ≤80% | Q163: 48 | R163: Your Way Plus HL 3 Year Fixed 70% to ≤80% | S163: 41
D164: Yourwyp | E164: OOC | F164: PI | G164: YourwypOOCPI | H164: Your Way Plus Home Loan 4 Year Fixed 70% to ≤80% | I164: YourwypOOCPIYour Way Plus Home Loan 4 Year Fixed 70% to ≤80% | J164: 6.59 | K164: 3 | L164: 6 | M164: 9.59 | N164: 35 | O164: Y | P164: Your Way Plus Home Loan 4 Year Fixed 70% to ≤80% | Q164: 48 | R164: Your Way Plus HL 4 Year Fixed 70% to ≤80% | S164: 41
D165: Yourwyp | E165: OOC | F165: PI | G165: YourwypOOCPI | H165: Your Way Plus Home Loan 5 Year Fixed 70% to ≤80% | I165: YourwypOOCPIYour Way Plus Home Loan 5 Year Fixed 70% to ≤80% | J165: 6.74 | K165: 3 | L165: 6 | M165: =MAX(J165+K165,L165) -> 9.74 | N165: 35 | O165: Y | P165: Your Way Plus Home Loan 5 Year Fixed 70% to ≤80% | Q165: 48 | R165: Your Way Plus HL 5 Year Fixed 70% to ≤80% | S165: 41
D166: Yourwyp | E166: OOC | F166: PI | G166: YourwypOOCPI | H166: Your Way Plus Home Loan 1 Year Fixed 80% to ≤90% | I166: YourwypOOCPIYour Way Plus Home Loan 1 Year Fixed 80% to ≤90% | J166: 6.59 | K166: 3 | L166: 6 | M166: =MAX(J166+K166,L166) -> 9.59 | N166: 35 | O166: Y | P166: Your Way Plus Home Loan 1 Year Fixed 80% to ≤90% | Q166: 48 | R166: Your Way Plus HL 1 Year Fixed 80% to ≤90% | S166: 41
D167: Yourwyp | E167: OOC | F167: PI | G167: YourwypOOCPI | H167: Your Way Plus Home Loan 2 Year Fixed 80% to ≤90% | I167: YourwypOOCPIYour Way Plus Home Loan 2 Year Fixed 80% to ≤90% | J167: 6.69 | K167: 3 | L167: 6 | M167: =MAX(J167+K167,L167) -> 9.69 | N167: 35 | O167: Y | P167: Your Way Plus Home Loan 2 Year Fixed 80% to ≤90% | Q167: 48 | R167: Your Way Plus HL 2 Year Fixed 80% to ≤90% | S167: 41
D168: Yourwyp | E168: OOC | F168: PI | G168: YourwypOOCPI | H168: Your Way Plus Home Loan 3 Year Fixed 80% to ≤90% | I168: YourwypOOCPIYour Way Plus Home Loan 3 Year Fixed 80% to ≤90% | J168: 6.79 | K168: 3 | L168: 6 | M168: 9.79 | N168: 35 | O168: Y | P168: Your Way Plus Home Loan 3 Year Fixed 80% to ≤90% | Q168: 48 | R168: Your Way Plus HL 3 Year Fixed 80% to ≤90% | S168: 41
D169: Yourwyp | E169: OOC | F169: PI | G169: YourwypOOCPI | H169: Your Way Plus Home Loan 4 Year Fixed 80% to ≤90% | I169: YourwypOOCPIYour Way Plus Home Loan 4 Year Fixed 80% to ≤90% | J169: 6.89 | K169: 3 | L169: 6 | M169: 9.89 | N169: 35 | O169: Y | P169: Your Way Plus Home Loan 4 Year Fixed 80% to ≤90% | Q169: 48 | R169: Your Way Plus HL 4 Year Fixed 80% to ≤90% | S169: 41
D170: Yourwyp | E170: OOC | F170: PI | G170: YourwypOOCPI | H170: Your Way Plus Home Loan 5 Year Fixed 80% to ≤90% | I170: YourwypOOCPIYour Way Plus Home Loan 5 Year Fixed 80% to ≤90% | J170: 6.94 | K170: 3 | L170: 6 | M170: 9.94 | N170: 35 | O170: Y | P170: Your Way Plus Home Loan 5 Year Fixed 80% to ≤90% | Q170: 48 | R170: Your Way Plus HL 5 Year Fixed 80% to ≤90% | S170: 41
D171: Yourwyp | E171: OOC | F171: PI | G171: YourwypOOCPI | H171: Your Way Plus Home Loan 1 Year Fixed >90% | I171: YourwypOOCPIYour Way Plus Home Loan 1 Year Fixed >90% | J171: 6.84 | K171: 3 | L171: 6 | M171: =MAX(J171+K171,L171) -> 9.84 | N171: 35 | O171: Y | P171: Your Way Plus Home Loan 1 Year Fixed >90% | Q171: 41 | R171: Your Way Plus HL 1 Year Fixed >90% | S171: 34
D172: Yourwyp | E172: OOC | F172: PI | G172: YourwypOOCPI | H172: Your Way Plus Home Loan 2 Year Fixed >90% | I172: YourwypOOCPIYour Way Plus Home Loan 2 Year Fixed >90% | J172: 6.89 | K172: 3 | L172: 6 | M172: =MAX(J172+K172,L172) -> 9.89 | N172: 35 | O172: Y | P172: =H172 -> Your Way Plus Home Loan 2 Year Fixed >90% | Q172: =LEN(P172) -> 41 | R172: =SUBSTITUTE(P172,R$8,R$9) -> Your Way Plus HL 2 Year Fixed >90% | S172: 34
D173: Yourwyp | E173: OOC | F173: PI | G173: YourwypOOCPI | H173: Your Way Plus Home Loan 3 Year Fixed >90% | I173: YourwypOOCPIYour Way Plus Home Loan 3 Year Fixed >90% | J173: 6.99 | K173: 3 | L173: 6 | M173: 9.99 | N173: 35 | O173: Y | P173: Your Way Plus Home Loan 3 Year Fixed >90% | Q173: 41 | R173: Your Way Plus HL 3 Year Fixed >90% | S173: 34
D174: Yourwyp | E174: OOC | F174: PI | G174: YourwypOOCPI | H174: Your Way Plus Home Loan 4 Year Fixed >90% | I174: YourwypOOCPIYour Way Plus Home Loan 4 Year Fixed >90% | J174: 6.89 | K174: 3 | L174: 6 | M174: 9.89 | N174: 35 | O174: Y | P174: Your Way Plus Home Loan 4 Year Fixed >90% | Q174: 41 | R174: Your Way Plus HL 4 Year Fixed >90% | S174: 34
D175: Yourwyp | E175: OOC | F175: PI | G175: YourwypOOCPI | H175: Your Way Plus Home Loan 5 Year Fixed >90% | I175: YourwypOOCPIYour Way Plus Home Loan 5 Year Fixed >90% | J175: 7.04 | K175: 3 | L175: 6 | M175: =MAX(J175+K175,L175) -> 10.04 | N175: 35 | O175: Y | P175: Your Way Plus Home Loan 5 Year Fixed >90% | Q175: 41 | R175: Your Way Plus HL 5 Year Fixed >90% | S175: 34 | AG175: ='[8]Data Input'!C85 -> 0.0229
D185: Classic | E185: OOC | F185: PI | G185: ClassicOOCPI | H185: Classic Home Loan Special | I185: ClassicOOCPIClassic Home Loan Special | J185: 0 | K185: =Assessment_Buffer*100 -> 3 | L185: =AssessmentFloorRate*100 -> 6 | M185: =MAX(J185+K185,L185) -> 6 | N185: 30 | O185: N | AG185: ='[8]Data Input'!$C$38 -> 0.0249
D186: Obsolete due to Yourway Rebadge on 01Feb2022
D187: Product | E187: Client | F187: Payment Type | G187: KeyCombination | H187: Product | I187: KeyProduct | J187: Interest Rate | K187: BufferRate | L187: AssessmentFloorRate | M187: Assessment Rate | N187: Max Loan Term Years | O187: OnOffer | P187: AIP Product Names | Q187: length | R187: AIP Product Names Short | S187: New length | U187: FixedVariable | V187: BalanceTier | W187: LVR | X187: Special | Y187: Reversion Rate | Z187: Split Loan | AA187: Brand | AB187: State | AC187: Postcode | AD187: Segment | AG187: DataSource
D188: Classic | E188: INV | F188: PI | G188: ClassicINVPI | H188: Classic Home Loan | I188: ClassicINVPIClassic Home Loan | J188: 3.19 | K188: =Assessment_Buffer*100 -> 3 | L188: =AssessmentFloorRate*100 -> 6 | M188: =MAX(J188+K188,L188) -> 6.19 | N188: 30 | O188: Y | P188: =H188 -> Classic Home Loan | Q188: =LEN(P188) -> 17 | R188: =SUBSTITUTE(P188,R$8,R$9) -> Classic HL | S188: =LEN(R188) -> 10 | AG188: ='[8]Data Input'!$C$40 -> 0.0319
D189: Classic | E189: OOC | F189: PI | G189: ClassicOOCPI | H189: Classic Home Loan | I189: ClassicOOCPIClassic Home Loan | J189: 2.34 | K189: 3 | L189: 6 | M189: =MAX(J189+K189,L189) -> 6 | N189: 30 | O189: Y | P189: =H189 -> Classic Home Loan | Q189: =LEN(P189) -> 18 | R189: =SUBSTITUTE(P189,R$8,R$9) -> Classic HL | S189: =LEN(R189) -> 11 | AG189: ='[8]Data Input'!$C$39 -> 0.0304
D192: Client Type | E192: Client | F192: Product Group | G192: Product Name
D193: OOC | E193: =Parm!F125 -> Income Summary | F193: =Parm!C241 -> 0 | G193: Classic Home Loan

Sheet HLYWRateP (hidden)
C1: This is the Home Loan Your Way Rate selection processing | U1: =User_Select_HL_VarRate_Name -> 0
C3: Based on | E3: From User Selection
Z5: Test User Select Product Name
D6: Essential Worker Applicant | E6: =IFERROR(IF(F6,1,0),0) -> 0 | P6: =LEN(P9) ->  | X6: Test
D7: Product Selected | E7: =User_I_Want_Product -> 0 | F7: =VLOOKUP(E7,$C$17:$D$19,2,1) ->  | M7: List to Display | O7: Used to Get rates | P7: Product Key | Q7: Product Rate | R7: Discount Rate | S7: Assessment Rate | T7: User Selected Product | U7: Discounted Product | X7: =Q7 -> Product Rate | Y7: =S7 -> Assessment Rate | Z7: Long Name | AA7: Shortname
D8: OO or Investor | E8: =User_I_am_an -> 0 | F8: =VLOOKUP(E8,$E$17:$F$18,2,1) ->  | H8: User Combination | I8: Short Combination | J8: Get Listnames | L8: Validation in | M8: Logic | O8: Product Selected by User | AF8: Test Validation HL1 | AG8: Test Validation HL1 | AH8: Test Validation HL
C9: HL1 | D9: Repayment Type | E9: =User_Select_HL_VarRepayment_Type -> 0 | F9: =VLOOKUP(E9,$H$17:$I$18,2,1) ->  | H9: =E7&E8&E9 -> 000 | I9: =F7&F8&F9 ->  | J9: =VLOOKUP(I9,$D$23:$E$32,2,1) ->  | L9: User_Select_HL_VarRate_Name | M9: =VLOOKUP(User_Product_Client_Payment_HL1,Parm_Select_ListHL_Products,2,0) ->  | O9: =User_Select_HL_VarRate_Name -> 0 | P9: =TRIM(User_Product_Client_Payment_HL1&O9) ->  | Q9: =VLOOKUP($P9,Parm_Table_Product_Rates,2,0)/100-R9 ->  | R9: =User_Is_Essential_Worker_Applicant*Parm_Essential_Worker_Applicant_Discount*U9/100 -> 0 | S9: =VLOOKUP($P9,Parm_Table_Product_Rates,5,0)/100 ->  | T9: =User_Select_HL_VarRate_Name -> 0 | U9: =(IFERROR(MATCH(User_Select_HL_VarRate_Name,Parm_List_YourwypToDiscountRate,0),0)>0) -> FALSE | X9: =VLOOKUP($P9,Parm_Table_Product_Rates,2,0)/100 ->  | Y9: =VLOOKUP($P9,Parm_Table_Product_Rates,5,0)/100 ->  | Z9: =VLOOKUP($P9,Parm_Table_Product_Names,8,0) ->  | AA9: =VLOOKUP($P9,Parm_Table_Product_Names,10,0) ->  | AF9: Your Way Home Loan 2 Year Fixed | AG9: Classic Home Loan Special | AH9: Classic Home Loan Special
C10: HL2 | E10: =User_Select_HL_FixRepayment_Type -> 0 | F10: =VLOOKUP(E10,$H$17:$I$18,2,1) ->  | H10: =E7&E8&E10 -> 000 | I10: =F7&F8&F10 ->  | J10: =VLOOKUP(I10,$D$23:$E$32,2,1) ->  | L10: User_Select_HL_FixRate_Name | M10: =VLOOKUP(User_Product_Client_Payment_HL2,Parm_Select_ListHL_Products,2,0) ->  | O10: =User_Select_HL_FixRate_Name -> 0 | P10: =TRIM(User_Product_Client_Payment_HL2&O10) ->  | Q10: =VLOOKUP($P10,Parm_Table_Product_Rates,2,0)/100-R10 ->  | R10: =User_Is_Essential_Worker_Applicant*Parm_Essential_Worker_Applicant_Discount*U10/100 -> 0 | S10: =VLOOKUP($P10,Parm_Table_Product_Rates,5,0)/100 ->  | T10: =User_Select_HL_FixRate_Name -> 0 | U10: =(IFERROR(MATCH(User_Select_HL_FixRate_Name,Parm_List_YourwypToDiscountRate,0),0)>0) -> FALSE | X10: =VLOOKUP($P10,Parm_Table_Product_Rates,2,0)/100 ->  | Y10: =VLOOKUP($P10,Parm_Table_Product_Rates,5,0)/100 ->  | Z10: =VLOOKUP($P10,Parm_Table_Product_Names,8,0) ->  | AA10: =VLOOKUP($P10,Parm_Table_Product_Names,10,0) -> 
Z12: =Z9=O9 -> 
Z13: =Z10=O10 -> 
C15: Selection Tree | E15: For each Product | F15: 4 Cases below | G15: =3*4 -> 12 | H15: lists of products to display (Maximum)
C16: Product | E16: Client | H16: Repayment
C17: =Parm!B152 -> Your Way Home Loan | D17: =Parm!C152 -> Yourway | E17: =Parm_Borrower_Type -> Investor | F17: INV | H17: =Parm_Repayment_Type -> IO | I17: IO
C18: =Parm!B153 -> Your Way Plus Home Loan | D18: =Parm!C153 -> Yourwyp | E18: Owner Occupied | F18: OOC | H18: P&I | I18: PI
B22: Listno | C22: List Combination of User Selections | D22: Short Combination | E22: List Name | F22: List | G22: Product | H22: Client | I22: Repayment | J22: KeyToList | K22: Check | X22: Test Table of ListNames
A23: YourwayINVIO | B23: 1 | C23: =C17&E17&H17 -> Your Way Home LoanInvestorIO | D23: =D17&F17&I17 -> YourwayINVIO | E23: ="Parm_List"&F23&"_"&D23 -> Parm_ListC_YourwayINVIO | F23: C | G23: =D17 -> Yourway | H23: =F17 -> INV | I23: =I17 -> IO | J23: =G23&H23&I23 -> YourwayINVIO | K23: =J23=D23 -> TRUE | X23: =Parm_Select_ListHL_Products -> YourwayINVIO | Y23: Parm_ListC_YourwayINVIO | AA23: =VLOOKUP(X23,Parm_Select_ListHL_Products,2,0) -> Parm_ListC_YourwayINVIO | AD23: =VLOOKUP(I9,Parm_Select_ListHL_Products,2,0) ->  | AF23: Parm_CPP_Comb_ClassicINVPI | AG23: Parm_ListA_ClassicINVPI
A24: YourwayINVPI | B24: 2 | C24: =C17&E17&H18 -> Your Way Home LoanInvestorP&I | D24: =D17&F17&I18 -> YourwayINVPI | E24: Parm_ListD_YourwayINVPI | F24: D | G24: =G23 -> Yourway | H24: =H23 -> INV | I24: =I18 -> PI | J24: =G24&H24&I24 -> YourwayINVPI | K24: =J24=D24 -> TRUE | X24: YourwayINVPI | Y24: Parm_ListD_YourwayINVPI | AA24: Parm_ListD_YourwayINVPI | AF24: Parm_CPP_Comb_ClassicOOCPI | AG24: Parm_ListB_ClassicOOCPI
A25: YourwayOOCIO | B25: 3 | C25: =C17&E18&H17 -> Your Way Home LoanOwner OccupiedIO | D25: =D17&F18&I17 -> YourwayOOCIO | E25: ="Parm_List"&F25&"_"&D25 -> Parm_ListE_YourwayOOCIO | F25: E | G25: =G24 -> Yourway | H25: =F18 -> OOC | I25: =I17 -> IO | J25: =G25&H25&I25 -> YourwayOOCIO | K25: TRUE | X25: YourwayOOCIO | Y25: Parm_ListE_YourwayOOCIO | AA25: Parm_ListE_YourwayOOCIO | AF25: Parm_CPP_Comb_YourwayINVIO | AG25: Parm_ListC_YourwayINVIO
A26: YourwayOOCPI | B26: 4 | C26: =C17&E18&H18 -> Your Way Home LoanOwner OccupiedP&I | D26: =D17&F18&I18 -> YourwayOOCPI | E26: ="Parm_List"&F26&"_"&D26 -> Parm_ListF_YourwayOOCPI | F26: F | G26: Yourway | H26: =H25 -> OOC | I26: =I18 -> PI | J26: YourwayOOCPI | K26: TRUE | X26: YourwayOOCPI | Y26: Parm_ListF_YourwayOOCPI | AA26: Parm_ListF_YourwayOOCPI | AF26: Parm_CPP_Comb_YourwayINVPI | AG26: Parm_ListD_YourwayINVPI
A27: YourwypINVIO | B27: 5 | C27: =C18&E17&H17 -> Your Way Plus Home LoanInvestorIO | D27: =D18&F17&I17 -> YourwypINVIO | E27: Parm_ListG_YourwypINVIO | F27: G | G27: =D18 -> Yourwyp | H27: =F17 -> INV | I27: =I25 -> IO | J27: YourwypINVIO | K27: TRUE | X27: YourwypINVIO | Y27: Parm_ListG_YourwypINVIO | AA27: Parm_ListG_YourwypINVIO | AF27: Parm_CPP_Comb_YourwayOOCIO | AG27: Parm_ListE_YourwayOOCIO
A28: YourwypINVPI | B28: 6 | C28: =C18&E17&H18 -> Your Way Plus Home LoanInvestorP&I | D28: =D18&F17&I18 -> YourwypINVPI | E28: Parm_ListH_YourwypINVPI | F28: H | G28: =G27 -> Yourwyp | H28: =H27 -> INV | I28: =I26 -> PI | J28: YourwypINVPI | K28: TRUE | X28: YourwypINVPI | Y28: Parm_ListH_YourwypINVPI | AA28: Parm_ListH_YourwypINVPI | AF28: Parm_CPP_Comb_YourwayOOCPI | AG28: Parm_ListF_YourwayOOCPI
A29: YourwypOOCIO | B29: 7 | C29: =C18&E18&H17 -> Your Way Plus Home LoanOwner OccupiedIO | D29: =D18&F18&I17 -> YourwypOOCIO | E29: Parm_ListI_YourwypOOCIO | F29: I | G29: Yourwyp | H29: =H25 -> OOC | I29: =I25 -> IO | J29: YourwypOOCIO | K29: TRUE | X29: YourwypOOCIO | Y29: Parm_ListI_YourwypOOCIO | AA29: Parm_ListI_YourwypOOCIO | AF29: Parm_CPP_Comb_YourwypINVIO | AG29: Parm_ListG_YourwypINVIO
A30: YourwypOOCPI | B30: 8 | C30: =C18&E18&H18 -> Your Way Plus Home LoanOwner OccupiedP&I | D30: =D18&F18&I18 -> YourwypOOCPI | E30: Parm_ListJ_YourwypOOCPI | F30: J | G30: Yourwyp | H30: =H29 -> OOC | I30: =I26 -> PI | J30: YourwypOOCPI | K30: TRUE | X30: YourwypOOCPI | Y30: Parm_ListJ_YourwypOOCPI | AA30: Parm_ListJ_YourwypOOCPI | AF30: Parm_CPP_Comb_YourwypINVPI | AG30: Parm_ListH_YourwypINVPI
B31: 9 | X31: 0 | Y31: 0 | AF31: Parm_CPP_Comb_YourwypOOCIO | AG31: Parm_ListI_YourwypOOCIO
B32: 10 | X32: 0 | Y32: 0 | AF32: Parm_CPP_Comb_YourwypOOCPI | AG32: Parm_ListJ_YourwypOOCPI
B33: 11
B34: 12
C44: Model for all combinations | D44: This will determine which Product list to use to get List of Product Names and Related Product Rates and Assessment Rates
E45: 1 | F45: 2
E46: =TRANSPOSE(Parm_Borrower_Type) -> Investor | F46: Owner Occupied
C47: 1 | D47: =Parm_Repayment_Type -> IO | E47: X | F47: XXX
C48: 2 | D48: P&I | E48: XX | F48: XXXX
C52: =C17 -> Your Way Home Loan | D52: This will determine which Product list to use to get List of Product Names and Related Product Rates and Assessment Rates
E53: 1 | F53: 2
E54: =TRANSPOSE(Parm_Borrower_Type) -> Investor | F54: Owner Occupied
C55: 1 | D55: =Parm_Repayment_Type -> IO
C56: 2 | D56: P&I | E56: A | F56: B
C59: YourWay | D59: This will determine which Product list to use to get List of Product Names and Related Product Rates and Assessment Rates
E60: 1 | F60: 2
E61: =TRANSPOSE(Parm_Borrower_Type) -> Investor | F61: Owner Occupied
C62: 1 | D62: =Parm_Repayment_Type -> IO | E62: C | F62: E
C63: 2 | D63: P&I | E63: D | F63: F
C66: YourWayPlus | D66: This will determine which Product list to use to get List of Product Names and Related Product Rates and Assessment Rates
E67: 1 | F67: 2
E68: =TRANSPOSE(Parm_Borrower_Type) -> Investor | F68: Owner Occupied
C69: 1 | D69: =Parm_Repayment_Type -> IO | E69: G | F69: I
C70: 2 | D70: P&I | E70: H | F70: J
C72: CARE NO INSERTING OF COLUMN OR ROW AROUND THESE PRODUCT LISTS | F72: DO NOT DISTURB ORDER
C74: Obsolete | D74: Obsolete | E74: =TRANSPOSE(E23:E32) -> Parm_ListC_YourwayINVIO | F74: Parm_ListD_YourwayINVPI | G74: Parm_ListE_YourwayOOCIO | H74: Parm_ListF_YourwayOOCPI | I74: Parm_ListG_YourwypINVIO | J74: Parm_ListH_YourwypINVPI | K74: Parm_ListI_YourwypOOCIO | L74: Parm_ListJ_YourwypOOCPI | M74: 0 | N74: 0 | O74: Parm_List_YourwypToDiscountRate
B75: 1 | C75: Classic Home Loan | D75: Classic Home Loan | E75: Your Way Home Loan Basic Variable - LVR =<60% | F75: Your Way Home Loan Basic Variable - LVR =<60% | G75: Your Way Home Loan Basic Variable - LVR =<60% | H75: Your Way Home Loan Basic Variable - LVR =<60% | I75: Your Way Plus Home Loan Variable ≤60% | J75: Your Way Plus Home Loan Variable ≤60% | K75: Your Way Plus Home Loan Variable ≤60% | L75: Your Way Plus Home Loan Variable ≤60% | M75: Your Way Plus Home Loan Variable ≤60%
B76: 2 | D76: Classic Home Loan Special | E76: Your Way Home Loan Basic Variable - LVR >60% to 70% | F76: Your Way Home Loan Basic Variable - LVR >60% to 70% | G76: Your Way Home Loan Basic Variable - LVR >60% to 70% | H76: Your Way Home Loan Basic Variable - LVR >60% to 70% | I76: Your Way Plus Home Loan Variable >60% to ≤70% | J76: Your Way Plus Home Loan Variable >60% to ≤70% | K76: Your Way Plus Home Loan Variable >60% to ≤70% | L76: Your Way Plus Home Loan Variable >60% to ≤70% | M76: Your Way Plus Home Loan Variable >60% to ≤70%
E77: Your Way Home Loan Basic Variable - LVR >70% to 80% | F77: Your Way Home Loan Basic Variable - LVR >70% to 80% | G77: Your Way Home Loan Basic Variable - LVR >70% to 80% | H77: Your Way Home Loan Basic Variable - LVR >70% to 80% | I77: Your Way Plus Home Loan Variable >70% to ≤80% | J77: Your Way Plus Home Loan Variable >70% to ≤80% | K77: Your Way Plus Home Loan Variable >70% to ≤80% | L77: Your Way Plus Home Loan Variable >70% to ≤80% | M77: Your Way Plus Home Loan Variable >70% to ≤80%
B78: 3 | E78: Your Way Home Loan Basic Variable - LVR >80% to 90% | F78: Your Way Home Loan Basic Variable - LVR >80% to 90% | G78: Your Way Home Loan Basic Variable - LVR >80% to 90% | H78: Your Way Home Loan Basic Variable - LVR >80% to 90% | I78: Your Way Plus Home Loan Variable >80% to ≤90% | J78: Your Way Plus Home Loan Variable >80% to ≤90% | K78: Your Way Plus Home Loan Variable >80% to ≤90% | L78: Your Way Plus Home Loan Variable >80% to ≤90% | M78: Your Way Plus Home Loan Variable >80% to ≤90%
B79: 4 | E79: Your Way Home Loan Basic Variable - LVR >90% | F79: Your Way Home Loan Basic Variable - LVR >90% | G79: Your Way Home Loan Basic Variable - LVR >90% | H79: Your Way Home Loan Basic Variable - LVR >90% | I79: Your Way Plus Home Loan Variable >90% | J79: Your Way Plus Home Loan Variable >90% | K79: Your Way Plus Home Loan Variable >90% | L79: Your Way Plus Home Loan Variable >90% | M79: Your Way Plus Home Loan Variable >90%
B80: 5 | E80: Your Way Home Loan 1 Year Fixed | F80: Your Way Home Loan 1 Year Fixed | G80: Your Way Home Loan 1 Year Fixed | H80: Your Way Home Loan 1 Year Fixed | I80: Your Way Plus Home Loan 1 Year Fixed ≤60% | J80: Your Way Plus Home Loan 1 Year Fixed ≤60% | K80: Your Way Plus Home Loan 1 Year Fixed ≤60% | L80: Your Way Plus Home Loan 1 Year Fixed ≤60%
B81: 6 | E81: Your Way Home Loan 2 Year Fixed | F81: Your Way Home Loan 2 Year Fixed | G81: Your Way Home Loan 2 Year Fixed | H81: Your Way Home Loan 2 Year Fixed | I81: Your Way Plus Home Loan 1 Year Fixed 60% to ≤70% | J81: Your Way Plus Home Loan 1 Year Fixed 60% to ≤70% | K81: Your Way Plus Home Loan 1 Year Fixed 60% to ≤70% | L81: Your Way Plus Home Loan 1 Year Fixed 60% to ≤70%
B82: 7 | E82: Your Way Home Loan 3 Year Fixed | F82: Your Way Home Loan 3 Year Fixed | G82: Your Way Home Loan 3 Year Fixed | H82: Your Way Home Loan 3 Year Fixed | I82: Your Way Plus Home Loan 1 Year Fixed 70% to ≤80% | J82: Your Way Plus Home Loan 1 Year Fixed 70% to ≤80% | K82: Your Way Plus Home Loan 1 Year Fixed 70% to ≤80% | L82: Your Way Plus Home Loan 1 Year Fixed 70% to ≤80%
B83: 8 | E83: Your Way Home Loan 4 Year Fixed | F83: Your Way Home Loan 4 Year Fixed | G83: Your Way Home Loan 4 Year Fixed | H83: Your Way Home Loan 4 Year Fixed | I83: Your Way Plus Home Loan 1 Year Fixed 80% to ≤90% | J83: Your Way Plus Home Loan 1 Year Fixed 80% to ≤90% | K83: Your Way Plus Home Loan 1 Year Fixed 80% to ≤90% | L83: Your Way Plus Home Loan 1 Year Fixed 80% to ≤90%
B84: 9 | E84: Your Way Home Loan 5 Year Fixed | F84: Your Way Home Loan 5 Year Fixed | G84: Your Way Home Loan 5 Year Fixed | H84: Your Way Home Loan 5 Year Fixed | I84: Your Way Plus Home Loan 1 Year Fixed >90% | J84: Your Way Plus Home Loan 1 Year Fixed >90% | K84: Your Way Plus Home Loan 1 Year Fixed >90% | L84: Your Way Plus Home Loan 1 Year Fixed >90%
E85: Your Way Home Loan Standard Variable | F85: Your Way Home Loan Standard Variable | G85: Your Way Home Loan Standard Variable | H85: Your Way Home Loan Standard Variable | I85: Your Way Plus Home Loan 2 Year Fixed ≤60% | J85: Your Way Plus Home Loan 2 Year Fixed ≤60% | K85: Your Way Plus Home Loan 2 Year Fixed ≤60% | L85: Your Way Plus Home Loan 2 Year Fixed ≤60%
I86: Your Way Plus Home Loan 2 Year Fixed 60% to ≤70% | J86: Your Way Plus Home Loan 2 Year Fixed 60% to ≤70% | K86: Your Way Plus Home Loan 2 Year Fixed 60% to ≤70% | L86: Your Way Plus Home Loan 2 Year Fixed 60% to ≤70%
I87: Your Way Plus Home Loan 2 Year Fixed 70% to ≤80% | J87: Your Way Plus Home Loan 2 Year Fixed 70% to ≤80% | K87: Your Way Plus Home Loan 2 Year Fixed 70% to ≤80% | L87: Your Way Plus Home Loan 2 Year Fixed 70% to ≤80%
I88: Your Way Plus Home Loan 2 Year Fixed 80% to ≤90% | J88: Your Way Plus Home Loan 2 Year Fixed 80% to ≤90% | K88: Your Way Plus Home Loan 2 Year Fixed 80% to ≤90% | L88: Your Way Plus Home Loan 2 Year Fixed 80% to ≤90%
I89: Your Way Plus Home Loan 2 Year Fixed >90% | J89: Your Way Plus Home Loan 2 Year Fixed >90% | K89: Your Way Plus Home Loan 2 Year Fixed >90% | L89: Your Way Plus Home Loan 2 Year Fixed >90%
I90: Your Way Plus Home Loan 3 Year Fixed ≤60% | J90: Your Way Plus Home Loan 3 Year Fixed ≤60% | K90: Your Way Plus Home Loan 3 Year Fixed ≤60% | L90: Your Way Plus Home Loan 3 Year Fixed ≤60%
I91: Your Way Plus Home Loan 3 Year Fixed 60% to ≤70% | J91: Your Way Plus Home Loan 3 Year Fixed 60% to ≤70% | K91: Your Way Plus Home Loan 3 Year Fixed 60% to ≤70% | L91: Your Way Plus Home Loan 3 Year Fixed 60% to ≤70%
I92: Your Way Plus Home Loan 3 Year Fixed 70% to ≤80% | J92: Your Way Plus Home Loan 3 Year Fixed 70% to ≤80% | K92: Your Way Plus Home Loan 3 Year Fixed 70% to ≤80% | L92: Your Way Plus Home Loan 3 Year Fixed 70% to ≤80%
I93: Your Way Plus Home Loan 3 Year Fixed 80% to ≤90% | J93: Your Way Plus Home Loan 3 Year Fixed 80% to ≤90% | K93: Your Way Plus Home Loan 3 Year Fixed 80% to ≤90% | L93: Your Way Plus Home Loan 3 Year Fixed 80% to ≤90%
I94: Your Way Plus Home Loan 3 Year Fixed >90% | J94: Your Way Plus Home Loan 3 Year Fixed >90% | K94: Your Way Plus Home Loan 3 Year Fixed >90% | L94: Your Way Plus Home Loan 3 Year Fixed >90%
I95: Your Way Plus Home Loan 4 Year Fixed ≤60% | J95: Your Way Plus Home Loan 4 Year Fixed ≤60% | K95: Your Way Plus Home Loan 4 Year Fixed ≤60% | L95: Your Way Plus Home Loan 4 Year Fixed ≤60%
I96: Your Way Plus Home Loan 4 Year Fixed 60% to ≤70% | J96: Your Way Plus Home Loan 4 Year Fixed 60% to ≤70% | K96: Your Way Plus Home Loan 4 Year Fixed 60% to ≤70% | L96: Your Way Plus Home Loan 4 Year Fixed 60% to ≤70%
I97: Your Way Plus Home Loan 4 Year Fixed 70% to ≤80% | J97: Your Way Plus Home Loan 4 Year Fixed 70% to ≤80% | K97: Your Way Plus Home Loan 4 Year Fixed 70% to ≤80% | L97: Your Way Plus Home Loan 4 Year Fixed 70% to ≤80%
I98: Your Way Plus Home Loan 4 Year Fixed 80% to ≤90% | J98: Your Way Plus Home Loan 4 Year Fixed 80% to ≤90% | K98: Your Way Plus Home Loan 4 Year Fixed 80% to ≤90% | L98: Your Way Plus Home Loan 4 Year Fixed 80% to ≤90%
I99: Your Way Plus Home Loan 4 Year Fixed >90% | J99: Your Way Plus Home Loan 4 Year Fixed >90% | K99: Your Way Plus Home Loan 4 Year Fixed >90% | L99: Your Way Plus Home Loan 4 Year Fixed >90%
I100: Your Way Plus Home Loan 5 Year Fixed ≤60% | J100: Your Way Plus Home Loan 5 Year Fixed ≤60% | K100: Your Way Plus Home Loan 5 Year Fixed ≤60% | L100: Your Way Plus Home Loan 5 Year Fixed ≤60%
I101: Your Way Plus Home Loan 5 Year Fixed 60% to ≤70% | J101: Your Way Plus Home Loan 5 Year Fixed 60% to ≤70% | K101: Your Way Plus Home Loan 5 Year Fixed 60% to ≤70% | L101: Your Way Plus Home Loan 5 Year Fixed 60% to ≤70%
I102: Your Way Plus Home Loan 5 Year Fixed 70% to ≤80% | J102: Your Way Plus Home Loan 5 Year Fixed 70% to ≤80% | K102: Your Way Plus Home Loan 5 Year Fixed 70% to ≤80% | L102: Your Way Plus Home Loan 5 Year Fixed 70% to ≤80%
I103: Your Way Plus Home Loan 5 Year Fixed 80% to ≤90% | J103: Your Way Plus Home Loan 5 Year Fixed 80% to ≤90% | K103: Your Way Plus Home Loan 5 Year Fixed 80% to ≤90% | L103: Your Way Plus Home Loan 5 Year Fixed 80% to ≤90%
I104: Your Way Plus Home Loan 5 Year Fixed >90% | J104: Your Way Plus Home Loan 5 Year Fixed >90% | K104: Your Way Plus Home Loan 5 Year Fixed >90% | L104: Your Way Plus Home Loan 5 Year Fixed >90%
C111: Construct list for Rate table | F111: Can use this to get Product | H111: used to get rate
C112: Product | D112: Client | E112: Payment Type | F112: Key1 | G112: Product | H112: KeyProduct
C113: =D17 -> Yourway | D113: =F17 -> INV | E113: =I17 -> IO | F113: =C113&D113&E113 -> YourwayINVIO | G113: =Parm_ListA_ClassicINVPI -> Classic Home Loan | H113: =F113&G113 -> YourwayINVIOClassic Home Loan
C114: =D17 -> Yourway | D114: =F18 -> OOC | E114: =I18 -> PI | F114: =C114&D114&E114 -> YourwayOOCPI | G114: =D75 -> Classic Home Loan | H114: =F114&G114 -> YourwayOOCPIClassic Home Loan
C115: =C114 -> Yourway | D115: =D114 -> OOC | E115: PI | F115: YourwayOOCPI | G115: =D76 -> Classic Home Loan Special | H115: YourwayOOCPIClassic Home Loan Special
C116: =D18 -> Yourwyp | D116: =F17 -> INV | E116: =I17 -> IO | F116: YourwypINVIO | G116: Your Way Home Loan Variable | H116: =F116&G116 -> YourwypINVIOYour Way Home Loan Variable
C117: =C116 -> Yourwyp | D117: =D116 -> INV | E117: =E116 -> IO | F117: YourwypINVIO | G117: Your Way Home Loan 1 Year Fixed | H117: =F117&G117 -> YourwypINVIOYour Way Home Loan 1 Year Fixed
C118: =C117 -> Yourwyp | D118: =D117 -> INV | E118: =E117 -> IO | F118: YourwypINVIO | G118: Your Way Home Loan 2 Year Fixed | H118: YourwypINVIOYour Way Home Loan 2 Year Fixed
C119: Yourwyp | D119: INV | E119: IO | F119: YourwypINVIO | G119: Your Way Home Loan 3 Year Fixed | H119: YourwypINVIOYour Way Home Loan 3 Year Fixed
C120: Yourwyp | D120: INV | E120: IO | F120: YourwypINVIO | G120: Your Way Home Loan 4 Year Fixed | H120: YourwypINVIOYour Way Home Loan 4 Year Fixed
C121: Yourwyp | D121: INV | E121: IO | F121: YourwypINVIO | G121: Your Way Home Loan 5 Year Fixed | H121: YourwypINVIOYour Way Home Loan 5 Year Fixed
C122: =D18 -> Yourwyp | D122: =F17 -> INV | E122: =I18 -> PI | F122: YourwypINVPI | G122: =#REF! -> 
C123: =C122 -> Yourwyp | D123: =D122 -> INV | E123: PI | F123: YourwypINVPI | G123: =F80 -> Your Way Home Loan 1 Year Fixed | H123: YourwypINVPIYour Way Home Loan 1 Year Fixed
C124: =C123 -> Yourwyp | D124: =D123 -> INV | E124: =E123 -> PI | F124: YourwypINVPI | G124: =F81 -> Your Way Home Loan 2 Year Fixed | H124: YourwypINVPIYour Way Home Loan 2 Year Fixed
C125: Yourwyp | D125: INV | E125: PI | F125: YourwypINVPI | G125: =F82 -> Your Way Home Loan 3 Year Fixed | H125: YourwypINVPIYour Way Home Loan 3 Year Fixed
C126: =C125 -> Yourwyp | D126: =D125 -> INV | E126: =E125 -> PI | F126: YourwypINVPI | G126: =F83 -> Your Way Home Loan 4 Year Fixed | H126: YourwypINVPIYour Way Home Loan 4 Year Fixed
C127: Yourwyp | D127: INV | E127: PI | F127: YourwypINVPI | G127: =F84 -> Your Way Home Loan 5 Year Fixed | H127: YourwypINVPIYour Way Home Loan 5 Year Fixed
C128: =D18 -> Yourwyp | D128: =F18 -> OOC | E128: =I17 -> IO | F128: YourwypOOCIO | G128: =#REF! -> 
C129: =C128 -> Yourwyp | D129: =D128 -> OOC | E129: IO | F129: YourwypOOCIO | G129: =G80 -> Your Way Home Loan 1 Year Fixed | H129: YourwypOOCIOYour Way Home Loan 1 Year Fixed
C130: =C129 -> Yourwyp | D130: =D129 -> OOC | E130: =E129 -> IO | F130: YourwypOOCIO | G130: =G81 -> Your Way Home Loan 2 Year Fixed | H130: YourwypOOCIOYour Way Home Loan 2 Year Fixed
C131: Yourwyp | D131: OOC | E131: IO | F131: YourwypOOCIO | G131: =G82 -> Your Way Home Loan 3 Year Fixed | H131: YourwypOOCIOYour Way Home Loan 3 Year Fixed
C132: =C131 -> Yourwyp | D132: =D131 -> OOC | E132: =E131 -> IO | F132: YourwypOOCIO | G132: =G83 -> Your Way Home Loan 4 Year Fixed | H132: YourwypOOCIOYour Way Home Loan 4 Year Fixed
C133: Yourwyp | D133: OOC | E133: IO | F133: YourwypOOCIO | G133: =G84 -> Your Way Home Loan 5 Year Fixed | H133: YourwypOOCIOYour Way Home Loan 5 Year Fixed
C134: =D18 -> Yourwyp | D134: =F18 -> OOC | E134: =I18 -> PI | F134: YourwypOOCPI | G134: =#REF! -> 
C135: =C134 -> Yourwyp | D135: =D134 -> OOC | E135: PI | F135: YourwypOOCPI | G135: =H80 -> Your Way Home Loan 1 Year Fixed | H135: YourwypOOCPIYour Way Home Loan 1 Year Fixed
C136: =C135 -> Yourwyp | D136: =D135 -> OOC | E136: =E135 -> PI | F136: YourwypOOCPI | G136: =H81 -> Your Way Home Loan 2 Year Fixed | H136: YourwypOOCPIYour Way Home Loan 2 Year Fixed
C137: Yourwyp | D137: OOC | E137: PI | F137: YourwypOOCPI | G137: =H82 -> Your Way Home Loan 3 Year Fixed | H137: YourwypOOCPIYour Way Home Loan 3 Year Fixed
C138: Yourwyp | D138: OOC | E138: PI | F138: YourwypOOCPI | G138: =H83 -> Your Way Home Loan 4 Year Fixed | H138: YourwypOOCPIYour Way Home Loan 4 Year Fixed
C139: Yourwyp | D139: OOC | E139: PI | F139: YourwypOOCPI | G139: =H84 -> Your Way Home Loan 5 Year Fixed | H139: YourwypOOCPIYour Way Home Loan 5 Year Fixed
C140: =D19 -> 0 | D140: =F17 -> INV | E140: =I17 -> IO | F140: 0INVIO | G140: =I75 -> Your Way Plus Home Loan Variable ≤60% | H140: 0INVIOYour Way Plus Home Loan Variable ≤60%
C141: =C140 -> 0 | D141: =D140 -> INV | E141: IO | F141: 0INVIO | G141: =I76 -> Your Way Plus Home Loan Variable >60% to ≤70% | H141: 0INVIOYour Way Plus Home Loan Variable >60% to ≤70%
C142: =C141 -> 0 | D142: =D141 -> INV | E142: =E141 -> IO | F142: =C142&D142&E142 -> 0INVIO | G142: =I78 -> Your Way Plus Home Loan Variable >80% to ≤90% | H142: 0INVIOYour Way Plus Home Loan Variable >80% to ≤90%
C143: 0 | D143: INV | E143: IO | F143: 0INVIO | G143: Your Way Plus Home Loan Variable >90% | H143: 0INVIOYour Way Plus Home Loan Variable >90%
C144: 0 | D144: INV | E144: IO | F144: 0INVIO | G144: Your Way Plus Home Loan 1 Year Fixed ≤60% | H144: 0INVIOYour Way Plus Home Loan 1 Year Fixed ≤60%
C145: 0 | D145: INV | E145: IO | F145: 0INVIO | G145: Your Way Plus Home Loan 1 Year Fixed 60% to ≤70% | H145: 0INVIOYour Way Plus Home Loan 1 Year Fixed 60% to ≤70%
C146: 0 | D146: INV | E146: IO | F146: 0INVIO | G146: =I83 -> Your Way Plus Home Loan 1 Year Fixed 80% to ≤90% | H146: 0INVIOYour Way Plus Home Loan 1 Year Fixed 80% to ≤90%
C147: 0 | D147: INV | E147: IO | F147: 0INVIO | G147: =I84 -> Your Way Plus Home Loan 1 Year Fixed >90% | H147: 0INVIOYour Way Plus Home Loan 1 Year Fixed >90%
C148: 0 | D148: INV | E148: IO | F148: 0INVIO | G148: =I85 -> Your Way Plus Home Loan 2 Year Fixed ≤60% | H148: 0INVIOYour Way Plus Home Loan 2 Year Fixed ≤60%
C149: =D19 -> 0 | D149: =F17 -> INV | E149: =I18 -> PI | F149: 0INVPI | G149: =J75 -> Your Way Plus Home Loan Variable ≤60% | H149: 0INVPIYour Way Plus Home Loan Variable ≤60%
C150: =C149 -> 0 | D150: =D149 -> INV | E150: PI | F150: =C150&D150&E150 -> 0INVPI | G150: =J76 -> Your Way Plus Home Loan Variable >60% to ≤70% | H150: 0INVPIYour Way Plus Home Loan Variable >60% to ≤70%
C151: =C150 -> 0 | D151: =D150 -> INV | E151: =E150 -> PI | F151: =C151&D151&E151 -> 0INVPI | G151: =J78 -> Your Way Plus Home Loan Variable >80% to ≤90% | H151: 0INVPIYour Way Plus Home Loan Variable >80% to ≤90%
C152: 0 | D152: INV | E152: PI | F152: 0INVPI | G152: Your Way Plus Home Loan Variable >90% | H152: 0INVPIYour Way Plus Home Loan Variable >90%
C153: 0 | D153: INV | E153: PI | F153: 0INVPI | G153: Your Way Plus Home Loan 1 Year Fixed ≤60% | H153: 0INVPIYour Way Plus Home Loan 1 Year Fixed ≤60%
C154: 0 | D154: INV | E154: PI | F154: 0INVPI | G154: Your Way Plus Home Loan 1 Year Fixed 60% to ≤70% | H154: 0INVPIYour Way Plus Home Loan 1 Year Fixed 60% to ≤70%
C155: 0 | D155: INV | E155: PI | F155: 0INVPI | G155: =J83 -> Your Way Plus Home Loan 1 Year Fixed 80% to ≤90% | H155: 0INVPIYour Way Plus Home Loan 1 Year Fixed 80% to ≤90%
C156: 0 | D156: INV | E156: PI | F156: 0INVPI | G156: =J84 -> Your Way Plus Home Loan 1 Year Fixed >90% | H156: 0INVPIYour Way Plus Home Loan 1 Year Fixed >90%
C157: 0 | D157: INV | E157: PI | F157: 0INVPI | G157: =J85 -> Your Way Plus Home Loan 2 Year Fixed ≤60% | H157: 0INVPIYour Way Plus Home Loan 2 Year Fixed ≤60%
C158: =D19 -> 0 | D158: =F18 -> OOC | E158: =I17 -> IO | F158: 0OOCIO | G158: =K75 -> Your Way Plus Home Loan Variable ≤60% | H158: 0OOCIOYour Way Plus Home Loan Variable ≤60%
C159: =C158 -> 0 | D159: =D158 -> OOC | E159: IO | F159: 0OOCIO | G159: =K76 -> Your Way Plus Home Loan Variable >60% to ≤70% | H159: 0OOCIOYour Way Plus Home Loan Variable >60% to ≤70%
C160: =C159 -> 0 | D160: =D159 -> OOC | E160: =E159 -> IO | F160: =C160&D160&E160 -> 0OOCIO | G160: =K78 -> Your Way Plus Home Loan Variable >80% to ≤90% | H160: 0OOCIOYour Way Plus Home Loan Variable >80% to ≤90%
C161: 0 | D161: OOC | E161: IO | F161: 0OOCIO | G161: Your Way Plus Home Loan Variable >90% | H161: 0OOCIOYour Way Plus Home Loan Variable >90%
C162: 0 | D162: OOC | E162: IO | F162: 0OOCIO | G162: Your Way Plus Home Loan 1 Year Fixed ≤60% | H162: 0OOCIOYour Way Plus Home Loan 1 Year Fixed ≤60%
C163: 0 | D163: OOC | E163: IO | F163: 0OOCIO | G163: Your Way Plus Home Loan 1 Year Fixed 60% to ≤70% | H163: 0OOCIOYour Way Plus Home Loan 1 Year Fixed 60% to ≤70%
C164: 0 | D164: OOC | E164: IO | F164: 0OOCIO | G164: =K83 -> Your Way Plus Home Loan 1 Year Fixed 80% to ≤90% | H164: 0OOCIOYour Way Plus Home Loan 1 Year Fixed 80% to ≤90%
C165: 0 | D165: OOC | E165: IO | F165: 0OOCIO | G165: =K84 -> Your Way Plus Home Loan 1 Year Fixed >90% | H165: 0OOCIOYour Way Plus Home Loan 1 Year Fixed >90%
C166: 0 | D166: OOC | E166: IO | F166: 0OOCIO | G166: =K85 -> Your Way Plus Home Loan 2 Year Fixed ≤60% | H166: 0OOCIOYour Way Plus Home Loan 2 Year Fixed ≤60%
C167: =D19 -> 0 | D167: =F18 -> OOC | E167: =I18 -> PI | F167: 0OOCPI | G167: =L75 -> Your Way Plus Home Loan Variable ≤60% | H167: 0OOCPIYour Way Plus Home Loan Variable ≤60%
C168: =C167 -> 0 | D168: =D167 -> OOC | E168: PI | F168: 0OOCPI | G168: =L76 -> Your Way Plus Home Loan Variable >60% to ≤70% | H168: 0OOCPIYour Way Plus Home Loan Variable >60% to ≤70%
C169: =C168 -> 0 | D169: =D168 -> OOC | E169: =E168 -> PI | F169: =C169&D169&E169 -> 0OOCPI | G169: =L78 -> Your Way Plus Home Loan Variable >80% to ≤90% | H169: 0OOCPIYour Way Plus Home Loan Variable >80% to ≤90%
C170: 0 | D170: OOC | E170: PI | F170: 0OOCPI | G170: Your Way Plus Home Loan Variable >90% | H170: 0OOCPIYour Way Plus Home Loan Variable >90%
C171: 0 | D171: OOC | E171: PI | F171: 0OOCPI | G171: Your Way Plus Home Loan 1 Year Fixed ≤60% | H171: 0OOCPIYour Way Plus Home Loan 1 Year Fixed ≤60%
C172: 0 | D172: OOC | E172: PI | F172: 0OOCPI | G172: Your Way Plus Home Loan 1 Year Fixed 60% to ≤70% | H172: 0OOCPIYour Way Plus Home Loan 1 Year Fixed 60% to ≤70%
C173: 0 | D173: OOC | E173: PI | F173: 0OOCPI | G173: =L83 -> Your Way Plus Home Loan 1 Year Fixed 80% to ≤90% | H173: 0OOCPIYour Way Plus Home Loan 1 Year Fixed 80% to ≤90%
C174: 0 | D174: OOC | E174: PI | F174: 0OOCPI | G174: =L84 -> Your Way Plus Home Loan 1 Year Fixed >90% | H174: 0OOCPIYour Way Plus Home Loan 1 Year Fixed >90%
C175: 0 | D175: OOC | E175: PI | F175: 0OOCPI | G175: =L85 -> Your Way Plus Home Loan 2 Year Fixed ≤60% | H175: 0OOCPIYour Way Plus Home Loan 2 Year Fixed ≤60%

Sheet HLRATEProc (hidden)
C2: This is the Home Loan Rate selection processing
E3: From User Selection | N3: Used to Get rates | P3: Product Rate | R3: Assessment Rate
C4: Base on | D4: OO or Investor | E4: =User_I_am_an -> 0 | G4: User Combination | H4: =F15 -> Get Listnumber | I4: Get Listnames | K4: Validation in | L4: Logic | N4: Product Selected by User
C5: HL1 | D5: Repayment Type | E5: =User_Select_HL_VarRepayment_Type -> 0 | G5: =E4&E5 -> 00 | H5: =VLOOKUP($G5,$C$16:$G$19,4,1) ->  | I5: =VLOOKUP($G5,$C$16:$G$19,5,1) ->  | K5: User_Select_HL_VarRate_Name | L5: =IF(User_Select_HL1_OOINVRepay =C16,G16,G17) -> Parm_ListB_HLINVPI | N5: =User_Select_HL_VarRate_Name -> 0 | P5: =VLOOKUP($N5,IF(User_Select_HL1_OOINVRepay=HLRATEProc!$C$16,Parm_ListA_HLINVIO_Rates,IF(User_Select_HL1_OOINVRepay=HLRATEProc!$C$17,Parm_ListB_HLINVPI_Rates,IF(User_Select_HL1_OOINVRepay=HLRATEProc!$C$18,Parm_ListC_HLOOIO_Rates,Parm_ListD_HLOOPI_Rates))),2,1)/100 ->  | R5: =VLOOKUP($N5,IF(User_Select_HL1_OOINVRepay=HLRATEProc!$C$16,Parm_ListA_HLINVIO_Rates,IF(User_Select_HL1_OOINVRepay=HLRATEProc!$C$17,Parm_ListB_HLINVPI_Rates,IF(User_Select_HL1_OOINVRepay=HLRATEProc!$C$18,Parm_ListC_HLOOIO_Rates,Parm_ListD_HLOOPI_Rates))),5,1)/100 -> 
C6: HL2 | E6: =User_Select_HL_FixRepayment_Type -> 0 | G6: =E4&E6 -> 00 | H6: =VLOOKUP($G6,$C$16:$G$19,4,1) ->  | I6: =VLOOKUP($G6,$C$16:$G$19,5,1) ->  | K6: User_Select_HL_FixRate_Name | L6: =IF(User_Select_HL2_OOINVRepay =C16,G16,G17) -> Parm_ListB_HLINVPI | N6: =User_Select_HL_FixRate_Name -> 0 | P6: =VLOOKUP($N6,IF(User_Select_HL2_OOINVRepay=HLRATEProc!$C$16,Parm_ListA_HLINVIO_Rates,IF(User_Select_HL2_OOINVRepay=HLRATEProc!$C$17,Parm_ListB_HLINVPI_Rates,IF(User_Select_HL2_OOINVRepay=HLRATEProc!$C$18,Parm_ListC_HLOOIO_Rates,Parm_ListD_HLOOPI_Rates))),2,1)/100 ->  | R6: =VLOOKUP($N6,IF(User_Select_HL2_OOINVRepay=HLRATEProc!$C$16,Parm_ListA_HLINVIO_Rates,IF(User_Select_HL2_OOINVRepay=HLRATEProc!$C$17,Parm_ListB_HLINVPI_Rates,IF(User_Select_HL2_OOINVRepay=HLRATEProc!$C$18,Parm_ListC_HLOOIO_Rates,Parm_ListD_HLOOPI_Rates))),5,1)/100 -> 
C9: This will determine which Product list to use to get List of Product Names and Related Product Rates and Assessment Rates
D10: 1 | E10: 2
D11: =TRANSPOSE(Parm_Borrower_Type) -> Investor | E11: Owner Occupied
B12: 1 | C12: =Parm!B142 -> IO | D12: A | E12: C
B13: 2 | C13: =Parm!B143 -> P&I | D13: B | E13: D
C15: Use in Validation | D15: Row | E15: Column | F15: Get Listnumber | G15: Get List Names | H15: Sheet
C16: =D11&C12 -> InvestorIO | D16: 1 | E16: 1 | F16: =INDEX($D$12:$E$13,D16,E16) -> A | G16: =TRANSPOSE(C22:F22) -> Parm_ListA_HLINVIO | H16: HLINVIO
C17: =D11&C13 -> InvestorP&I | D17: 2 | E17: 1 | F17: =INDEX($D$12:$E$13,D17,E17) -> B | G17: Parm_ListB_HLINVPI | H17: HLINVPI
C18: =E11&C12 -> Owner OccupiedIO | D18: 1 | E18: 2 | F18: C | G18: Parm_ListC_HLOOIO | H18: HLOOIO
C19: =E11&C13 -> Owner OccupiedP&I | D19: 2 | E19: 2 | F19: D | G19: Parm_ListD_HLOOPI | H19: HLOOPI
C21: Range value and Sort List of Products | F21: CARE NO INSERTING OF COLUMN OR ROW AROUND THESE PRODUCT LISTS
C22: Parm_ListA_HLINVIO | D22: Parm_ListB_HLINVPI | E22: Parm_ListC_HLOOIO | F22: Parm_ListD_HLOOPI
C23: Fixed Rate Home Loan – 1 year – IO | D23: Classic Home Loan - P&I | E23: $150k–$249k–IOLVR is 60% or less | F23: $150k – $249k–P&I;LVR is 60% or less
C24: Fixed Rate Home Loan – 2 year – IO | D24: Fixed Rate Home Loan – 1 year – P&I | E24: $150k–$249k–IOLVR is above 60% and less than or equal to 80% | F24: $150k – $249k–P&ILVR is above 60% and less than or equal to 80%
C25: Fixed Rate Home Loan – 3 year – IO | D25: Fixed Rate Home Loan – 2 year – P&I | E25: $150k–$249k–IOLVR is above 80% and less than or equal to 90% | F25: $150k – $249k–P&ILVR is above 80% and less than or equal to 90%
C26: Fixed Rate Home Loan – 4 year – IO | D26: Fixed Rate Home Loan – 3 year – P&I | E26: $150k–$249k–IOLVR is above 90% | F26: $150k – $249k–P&ILVR is above 90%
C27: Fixed Rate Home Loan – 5 year – IO | D27: Fixed Rate Home Loan – 4 year – P&I | E27: $250k-$499k–IOLVR is 60% or less | F27: $250k - $499k–P&ILVR is 60% or less
C28: Interest Only Variable | D28: Fixed Rate Home Loan – 5 year – P&I | E28: $250k-$499k–IOLVR is above 60% and less than or equal to 80% | F28: $250k - $499k–P&ILVR is above 60% and less than or equal to 80%
D29: Flexi Choice Loan – P&I | E29: $250k-$499k–IOLVR is above 80% and less than or equal to 90% | F29: $250k - $499k–P&ILVR is above 80% and less than or equal to 90%
E30: $250k-$499k–IOLVR is above 90% | F30: $250k - $499k–P&ILVR is above 90%
E31: $500k-$749k–IOLVR is 60% or less | F31: $500k-$749-P&ILVR is 60% or less
E32: $500k-$749k–IOLVR is above 60% and less than or equal to 80% | F32: $500k-$749-P&ILVR is above 60% and less than or equal to 80%
E33: $500k-$749k–IOLVR is above 80% and less than or equal to 90% | F33: $500k-$749-P&ILVR is above 80% and less than or equal to 90%
E34: $500k-$749k–IOLVR is above 90% | F34: $500k-$749-P&ILVR is above 90%
E35: $750k+– IOLVR is 60% or less | F35: $750k+– P&ILVR is 60% or less
E36: $750k+– IOLVR is above 60% and less than or equal to 80% | F36: $750k+– P&ILVR is above 60% and less than or equal to 80%
E37: $750k+– IOLVR is above 80% and less than or equal to 90% | F37: $750k+– P&ILVR is above 80% and less than or equal to 90%
E38: $750k+– IOLVR is above 90% | F38: $750k+– P&ILVR is above 90%
E39: Fixed Rate Home Loan – 1 year – IO | F39: Classic Home Loan – P&I
E40: Fixed Rate Home Loan – 2 year – IO | F40: Classic Home Loan Special - P&I
E41: Fixed Rate Home Loan – 3 year – IO | F41: Fixed Rate Home Loan – 1 year – P&I
E42: Fixed Rate Home Loan – 4 year – IO | F42: Fixed Rate Home Loan – 2 year – P&I
E43: Fixed Rate Home Loan – 5 year – IO | F43: Fixed Rate Home Loan – 3 year – P&I
E44: Interest Only Variable | F44: Fixed Rate Home Loan – 4 year – P&I
E45: My First Home Loan – IO | F45: Fixed Rate Home Loan – 5 year – P&I
F46: Flexi Choice Loan – P&I
F47: My First Home Loan – P&I

Sheet HLOOPI (hidden)
C1: HOME LOAN OWNER OCCUPIED P&I PRODUCT DATA ENTRY - RISK ONLY
I3: OTHER ATTRIBUTES
C4: Product Name | D4: P&I Interest Rate | E4: BufferRate | F4: AssessmentFloorRate | G4: P&I Assessment Rate | H4: Max Loan Term Years | I4: OnOffer | J4: FixedVariable | K4: BalanceTier | L4: LVR | M4: Special | O4: Brand | P4: State | Q4: Postcode | R4: Segment
C5: $150k – $249k–P&I;LVR is 60% or less | D5: 3.04 | E5: =Assessment_Buffer*100 -> 3 | F5: =AssessmentFloorRate*100 -> 6 | G5: =MAX(D5+E5,F5) -> 6.04 | H5: 30 | I5: Y
C6: $150k – $249k–P&ILVR is above 60% and less than or equal to 80% | D6: 3.09 | E6: =Assessment_Buffer*100 -> 3 | F6: 6 | G6: 6.09 | H6: 30 | I6: Y
C7: $150k – $249k–P&ILVR is above 80% and less than or equal to 90% | D7: 4.28 | E7: 3 | F7: 6 | G7: 7.28 | H7: 30 | I7: Y
C8: $150k – $249k–P&ILVR is above 90% | D8: 4.28 | E8: 3 | F8: 6 | G8: 7.28 | H8: 30 | I8: Y
C9: $250k - $499k–P&ILVR is 60% or less | D9: 3.02 | E9: 3 | F9: 6 | G9: 6.02 | H9: 30 | I9: Y
C10: $250k - $499k–P&ILVR is above 60% and less than or equal to 80% | D10: 3.07 | E10: 3 | F10: 6 | G10: 6.07 | H10: 30 | I10: Y
C11: $250k - $499k–P&ILVR is above 80% and less than or equal to 90% | D11: 3.83 | E11: 3 | F11: 6 | G11: 6.83 | H11: 30 | I11: Y
C12: $250k - $499k–P&ILVR is above 90% | D12: 4.24 | E12: 3 | F12: 6 | G12: 7.24 | H12: 30 | I12: Y
C13: $500k-$749-P&ILVR is 60% or less | D13: 3 | E13: 3 | F13: 6 | G13: 6 | H13: 30 | I13: Y
C14: $500k-$749-P&ILVR is above 60% and less than or equal to 80% | D14: 3.05 | E14: 3 | F14: 6 | G14: 6.05 | H14: 30 | I14: Y
C15: $500k-$749-P&ILVR is above 80% and less than or equal to 90% | D15: 3.78 | E15: 3 | F15: 6 | G15: 6.78 | H15: 30 | I15: Y
C16: $500k-$749-P&ILVR is above 90% | D16: 4.21 | E16: 3 | F16: 6 | G16: 7.21 | H16: 30 | I16: Y
C17: $750k+– P&ILVR is 60% or less | D17: 2.98 | E17: 3 | F17: 6 | G17: 6 | H17: 30 | I17: Y
C18: $750k+– P&ILVR is above 60% and less than or equal to 80% | D18: 3.03 | E18: 3 | F18: 6 | G18: 6.03 | H18: 30 | I18: Y
C19: $750k+– P&ILVR is above 80% and less than or equal to 90% | D19: 3.71 | E19: 3 | F19: 6 | G19: 6.71 | H19: 30 | I19: Y
C20: $750k+– P&ILVR is above 90% | D20: 4.14 | E20: 3 | F20: 6 | G20: 7.14 | H20: 30 | I20: Y
C21: Classic Home Loan – P&I | D21: 3.04 | E21: 3 | F21: 6 | G21: 6.04 | H21: 30 | I21: Y
C22: Classic Home Loan Special - P&I | D22: 2.55 | E22: 3 | F22: 6 | G22: =MAX(D21+E22,F22) -> 6.04 | H22: 30 | I22: Y
C23: Fixed Rate Home Loan – 1 year – P&I | D23: 2.05 | E23: 3 | F23: 6 | G23: =MAX(D23+E23,F23) -> 6 | H23: 30 | I23: Y
C24: Fixed Rate Home Loan – 2 year – P&I | D24: 2.05 | E24: 3 | F24: 6 | G24: 6 | H24: 30 | I24: Y
C25: Fixed Rate Home Loan – 3 year – P&I | D25: 2.05 | E25: 3 | F25: 6 | G25: 6 | H25: 30 | I25: Y
C26: Fixed Rate Home Loan – 4 year – P&I | D26: 1.95 | E26: 3 | F26: 6 | G26: 6 | H26: 30 | I26: Y
C27: Fixed Rate Home Loan – 5 year – P&I | D27: 2.25 | E27: 3 | F27: 6 | G27: 6 | H27: 30 | I27: Y
C28: Flexi Choice Loan – P&I | D28: 4.37 | E28: 3 | F28: 6 | G28: 7.37 | H28: 30 | I28: Y
C29: My First Home Loan – P&I | D29: 4.16 | E29: 3 | F29: 6 | G29: 7.16 | H29: 35 | I29: Y
C30: Future Product 1 | D30: 2.88 | E30: =Assessment_Buffer*100 -> 3 | F30: =AssessmentFloorRate*100 -> 6 | G30: =MAX(D30+E30,F30) -> 6 | H30: 30 | I30: N
C31: Future Product 2 | D31: 2.88 | E31: 3 | F31: 6 | G31: 6 | H31: 30 | I31: N
C32: Future Product 3 | D32: 2.88 | E32: 3 | F32: 6 | G32: 6 | H32: 30 | I32: N
C33: Future Product 4 | D33: 2.88 | E33: 3 | F33: 6 | G33: 6 | H33: 30 | I33: N

Sheet HLOOIO (hidden)
C1: HOME LOAN OWNER OCCUPIED IO PRODUCT DATA ENTRY - RISK ONLY
C3: 1 | D3: 2 | E3: 3 | F3: 4 | G3: 5 | H3: 6 | I3: OTHER ATTRIBUTES
B4: P&I RATE | C4: Product Name | D4: IO Interest Rate | E4: BufferRate | F4: AssessmentFloorRate | G4: IO Assessment Rate | H4: Max Loan Term Years | I4: OnOffer | J4: FixedVariable | K4: BalanceTier | L4: LVR | M4: Special | O4: Brand | P4: State | Q4: Postcode | R4: Segment
B5: 3.04 | C5: $150k–$249k–IOLVR is 60% or less | D5: 3.19 | E5: =Assessment_Buffer*100 -> 3 | F5: =AssessmentFloorRate*100 -> 6 | G5: =MAX(B5+E5,F5) -> 6.04 | H5: 30 | I5: Y
B6: 3.09 | C6: $150k–$249k–IOLVR is above 60% and less than or equal to 80% | D6: 3.24 | E6: 3 | F6: 6 | G6: 6.09 | H6: 30 | I6: Y
B7: 4.28 | C7: $150k–$249k–IOLVR is above 80% and less than or equal to 90% | D7: 4.28 | E7: 3 | F7: 6 | G7: 7.28 | H7: 30 | I7: Y
B8: 4.28 | C8: $150k–$249k–IOLVR is above 90% | D8: 4.28 | E8: 3 | F8: 6 | G8: 7.28 | H8: 30 | I8: Y
B9: 3.02 | C9: $250k-$499k–IOLVR is 60% or less | D9: 3.17 | E9: 3 | F9: 6 | G9: 6.02 | H9: 30 | I9: Y
B10: 3.07 | C10: $250k-$499k–IOLVR is above 60% and less than or equal to 80% | D10: 3.22 | E10: 3 | F10: 6 | G10: 6.07 | H10: 30 | I10: Y
B11: 3.83 | C11: $250k-$499k–IOLVR is above 80% and less than or equal to 90% | D11: 4.28 | E11: 3 | F11: 6 | G11: 6.83 | H11: 30 | I11: Y
B12: 4.24 | C12: $250k-$499k–IOLVR is above 90% | D12: 4.28 | E12: 3 | F12: 6 | G12: 7.24 | H12: 30 | I12: Y
B13: 3 | C13: $500k-$749k–IOLVR is 60% or less | D13: 3.15 | E13: 3 | F13: 6 | G13: 6 | H13: 30 | I13: Y
B14: 3.05 | C14: $500k-$749k–IOLVR is above 60% and less than or equal to 80% | D14: 3.2 | E14: 3 | F14: 6 | G14: 6.05 | H14: 30 | I14: Y
B15: 3.78 | C15: $500k-$749k–IOLVR is above 80% and less than or equal to 90% | D15: 4.28 | E15: 3 | F15: 6 | G15: 6.78 | H15: 30 | I15: Y
B16: 4.21 | C16: $500k-$749k–IOLVR is above 90% | D16: 4.28 | E16: 3 | F16: 6 | G16: 7.21 | H16: 30 | I16: Y
B17: 2.98 | C17: $750k+– IOLVR is 60% or less | D17: 3.13 | E17: 3 | F17: 6 | G17: 6 | H17: 30 | I17: Y
B18: 3.03 | C18: $750k+– IOLVR is above 60% and less than or equal to 80% | D18: 3.18 | E18: 3 | F18: 6 | G18: 6.03 | H18: 30 | I18: Y
B19: 3.71 | C19: $750k+– IOLVR is above 80% and less than or equal to 90% | D19: 4.21 | E19: 3 | F19: 6 | G19: 6.71 | H19: 30 | I19: Y
B20: 4.14 | C20: $750k+– IOLVR is above 90% | D20: 4.28 | E20: 3 | F20: 6 | G20: 7.14 | H20: 30 | I20: Y
B21: 2.05 | C21: Fixed Rate Home Loan – 1 year – IO | D21: 2.35 | E21: 3 | F21: 6 | G21: 6 | H21: 30 | I21: Y
B22: 2.05 | C22: Fixed Rate Home Loan – 2 year – IO | D22: 2.35 | E22: 3 | F22: 6 | G22: 6 | H22: 30 | I22: Y
B23: 2.05 | C23: Fixed Rate Home Loan – 3 year – IO | D23: 2.35 | E23: 3 | F23: 6 | G23: 6 | H23: 30 | I23: Y
B24: 1.95 | C24: Fixed Rate Home Loan – 4 year – IO | D24: 2.25 | E24: 3 | F24: 6 | G24: 6 | H24: 30 | I24: Y
B25: 2.25 | C25: Fixed Rate Home Loan – 5 year – IO | D25: 2.55 | E25: 3 | F25: 6 | G25: 6 | H25: 30 | I25: Y
B26: 4.37 | C26: Interest Only Variable | D26: 4.52 | E26: 3 | F26: 6 | G26: 7.37 | H26: 30 | I26: Y
B27: 4.16 | C27: My First Home Loan – IO | D27: 4.16 | E27: 3 | F27: 6 | G27: =MAX(D27+E27,F27) -> 7.16 | H27: 35 | I27: Y
B28: =HLOOPI!D30 -> 2.88 | C28: Future Product 1 | D28: 3.99 | E28: =Assessment_Buffer*100 -> 3 | F28: =AssessmentFloorRate*100 -> 6 | G28: =MAX(B28+E28,F28) -> 6 | H28: 30 | I28: N
B29: =HLOOPI!D31 -> 2.88 | C29: Future Product 2 | D29: 3.99 | E29: 3 | F29: 6 | G29: 6 | H29: 30 | I29: N
B30: =HLOOPI!D32 -> 2.88 | C30: Future Product 3 | D30: 3.99 | E30: 3 | F30: 6 | G30: 6 | H30: 30 | I30: N
B31: =HLOOPI!D33 -> 2.88 | C31: Future Product 4 | D31: 3.99 | E31: 3 | F31: 6 | G31: 6 | H31: 30 | I31: N

Sheet HLINVPI (hidden)
C1: HOME LOAN INVESTOR P&I PRODUCT DATA ENTRY - RISK ONLY
I3: OTHER ATTRIBUTES
C4: Product Name | D4: P&I Interest Rate | E4: BufferRate | F4: AssessmentFloorRate | G4: P&I Assessment Rate | H4: Max Loan Term Years | I4: OnOffer | J4: FixedVariable | K4: BalanceTier | L4: LVR | M4: Special | O4: Brand | P4: State | Q4: Postcode | R4: Segment
C5: Classic Home Loan - P&I | D5: 3.19 | E5: =Assessment_Buffer*100 -> 3 | F5: =AssessmentFloorRate*100 -> 6 | G5: =MAX(D5+E5,F5) -> 6.19 | H5: 30 | I5: Y
C6: Fixed Rate Home Loan – 1 year – P&I | D6: 2.35 | E6: 3 | F6: 6 | G6: 6 | H6: 30 | I6: Y
C7: Fixed Rate Home Loan – 2 year – P&I | D7: 2.35 | E7: 3 | F7: 6 | G7: 6 | H7: 30 | I7: Y
C8: Fixed Rate Home Loan – 3 year – P&I | D8: 2.35 | E8: 3 | F8: 6 | G8: 6 | H8: 30 | I8: Y
C9: Fixed Rate Home Loan – 4 year – P&I | D9: 2.25 | E9: 3 | F9: 6 | G9: 6 | H9: 30 | I9: Y
C10: Fixed Rate Home Loan – 5 year – P&I | D10: 2.55 | E10: 3 | F10: 6 | G10: 6 | H10: 30 | I10: Y
C11: Flexi Choice Loan – P&I | D11: 4.37 | E11: 3 | F11: 6 | G11: 7.37 | H11: 30 | I11: Y
C12: Future Product 1 | D12: 4.05 | E12: =Assessment_Buffer*100 -> 3 | F12: =AssessmentFloorRate*100 -> 6 | G12: =MAX(D12+E12,F12) -> 7.05 | H12: 30 | I12: N
C13: Future Product 2 | D13: 4.05 | E13: 3 | F13: 6 | G13: 7.05 | H13: 30 | I13: N
C14: Future Product 3 | D14: 4.05 | E14: 3 | F14: 6 | G14: 7.05 | H14: 30 | I14: N
C15: Future Product 4 | D15: 4.05 | E15: 3 | F15: 6 | G15: 7.05 | H15: 30 | I15: N

Sheet HLINVIO (hidden)
C1: HOME LOAN INVESTOR IO PRODUCT DATA ENTRY - RISK ONLY
C3: 1 | D3: 2 | E3: 3 | F3: 4 | G3: 5 | H3: 6 | I3: OTHER ATTRIBUTES
B4: =HLOOIO!B4 -> P&I RATE | C4: Product Name | D4: IO Interest Rate | E4: BufferRate | F4: AssessmentFloorRate | G4: IO Assessment Rate | H4: Max Loan Term Years | I4: OnOffer | J4: FixedVariable | K4: BalanceTier | L4: LVR | M4: Special | O4: Brand | P4: State | Q4: Postcode | R4: Segment
B5: 2.35 | C5: Fixed Rate Home Loan – 1 year – IO | D5: 2.5 | E5: =Assessment_Buffer*100 -> 3 | F5: =AssessmentFloorRate*100 -> 6 | G5: =MAX(B5+E5,F5) -> 6 | H5: 30 | I5: Y
B6: 2.35 | C6: Fixed Rate Home Loan – 2 year – IO | D6: 2.5 | E6: 3 | F6: 6 | G6: 6 | H6: 30 | I6: Y
B7: 2.35 | C7: Fixed Rate Home Loan – 3 year – IO | D7: 2.5 | E7: 3 | F7: 6 | G7: 6 | H7: 30 | I7: Y
B8: 2.25 | C8: Fixed Rate Home Loan – 4 year – IO | D8: 2.4 | E8: 3 | F8: 6 | G8: 6 | H8: 30 | I8: Y
B9: 2.55 | C9: Fixed Rate Home Loan – 5 year – IO | D9: 2.7 | E9: 3 | F9: 6 | G9: 6 | H9: 30 | I9: Y
B10: 4.37 | C10: Interest Only Variable | D10: 4.52 | E10: 3 | F10: 6 | G10: 7.37 | H10: 30 | I10: Y
B11: =HLINVPI!D11 -> 4.37 | C11: Future Product 1 | D11: 4.79 | E11: =Assessment_Buffer*100 -> 3 | F11: =AssessmentFloorRate*100 -> 6 | G11: =MAX(B11+E11,F11) -> 7.37 | H11: 30 | I11: N
B12: =HLINVPI!D12 -> 4.05 | C12: Future Product 2 | D12: 4.79 | E12: 3 | F12: 6 | G12: 7.05 | H12: 30 | I12: N
B13: =HLINVPI!D13 -> 4.05 | C13: Future Product 3 | D13: 4.79 | E13: 3 | F13: 6 | G13: 7.05 | H13: 30 | I13: N
B14: =HLINVPI!D14 -> 4.05 | C14: Future Product 4 | D14: 4.79 | E14: 3 | F14: 6 | G14: 7.05 | H14: 30 | I14: N

Sheet UNSECCR (hidden)
C1: UNSECURED CREDIT PRODUCT DATA ENTRY - RISK ONLY | D1: Note this list must be sorted by Product Name for lookup rate to work
C3: 1 | D3: 2 | E3: 3 | F3: 4 | G3: 5 | H3: 6 | I3: OTHER ATTRIBUTES
C4: Product Name | D4: P&I Interest Rate | E4: BufferRate | F4: AssessmentFloorRate | G4: P&I Assessment Rate | H4: Max Loan Term Years | I4: OnOffer | J4: FixedVariable | K4: BalanceTier | L4: LVR | M4: Special | O4: Brand | P4: State | Q4: Postcode | R4: Segment
C5: All Purpose Loan | D5: 11.99 | E5: 0 | F5: 0 | G5: =MAX(D5+E5,F5) -> 11.99 | H5: 6 | I5: Y
C6: All Purpose Loan 1 Year Fixed | D6: 11.05 | E6: 0 | F6: 0 | G6: 11.05 | H6: 1 | I6: N
C7: All Purpose Loan 2 Year Fixed | D7: 6.99 | E7: 0 | F7: 0 | G7: 6.99 | H7: 2 | I7: Y
C8: All Purpose Loan 3 Year Fixed | D8: 6.99 | E8: 0 | F8: 0 | G8: 6.99 | H8: 3 | I8: Y
C9: All Purpose Loan 4 Year Fixed | D9: 6.99 | E9: 0 | F9: 0 | G9: 6.99 | H9: 4 | I9: Y
C10: All Purpose Loan 5 Year Fixed | D10: 6.99 | E10: 0 | F10: 0 | G10: 6.99 | H10: 5 | I10: Y
C11: All Purpose Loan 6 Year Fixed | D11: 6.99 | E11: 0 | F11: 0 | G11: 6.99 | H11: 6 | I11: Y
C12: Car Loan | D12: 9.99 | E12: 0 | F12: 0 | G12: 9.99 | H12: 6 | I12: Y
C13: Car Loan 1 Year Fixed | D13: 8.5 | E13: 0 | F13: 0 | G13: 8.5 | H13: 1 | I13: N
C14: Car Loan 2 Year Fixed | D14: 7.45 | E14: 0 | F14: 0 | G14: 7.45 | H14: 2 | I14: N
C15: Car Loan 3 Year Fixed | D15: 6.19 | E15: 0 | F15: 0 | G15: 6.19 | H15: 3 | I15: Y
C16: Car Loan 4 Year Fixed | D16: 6.19 | E16: 0 | F16: 0 | G16: 6.19 | H16: 4 | I16: Y
C17: Car Loan 5 Year Fixed | D17: 6.19 | E17: 0 | F17: 0 | G17: 6.19 | H17: 5 | I17: Y
C18: Car Loan 6 Year Fixed | D18: 6.19 | E18: 0 | F18: 0 | G18: 6.19 | H18: 6 | I18: Y
C19: Credit Card | D19: 11.5 | E19: 0 | F19: 0 | G19: 11.5 | H19: NA | I19: Y
C20: Deferred Repayment Loan | D20: 13.19 | E20: 0 | F20: 0 | G20: 13.19 | H20: 3 | I20: N
C21: Future Product 1 | D21: 10 | E21: 0 | F21: 0 | G21: 10 | H21: 6 | I21: N
C22: Future Product 2 | D22: 10 | E22: 0 | F22: 0 | G22: 10 | H22: 6 | I22: N
C23: Future Product 3 | D23: 10 | E23: 0 | F23: 0 | G23: 10 | H23: 6 | I23: N
C24: Future Product 4 | D24: 10 | E24: 0 | F24: 0 | G24: 10 | H24: 6 | I24: N
C25: RediCredit | D25: 12.64 | E25: 0 | F25: 0 | G25: 12.64 | H25: NA | I25: N
C26: Secured New Car Loan | D26: 8.39 | E26: 0 | F26: 0 | G26: 8.39 | H26: 8 | I26: N
C27: Travel Loan | D27: 11.45 | E27: 0 | F27: 0 | G27: 11.45 | H27: 5 | I27: N
C31: =User_Applied_Product_Name -> Home Loan
C32: =VLOOKUP(C31,Risk_UNSECCR_Products,2,1) -> 10

Sheet HomeLoanProduct (hidden)
H1: Note | I1: Solution Plus has IO PI, LVR Balance Tier
D2: Construction of Unique product identifier
D4: UniqueLType | E4: Lgroup | F4: BalanceTier | G4: LVR Tier | H4: L Type | I4: Owner Occupied Product Name | J4: PIIO | K4: BalTier | L4: LVR Tier | M4: FixedRate | N4: Order | R4: UniqueLType | S4: L Type | T4: Investor | U4: PIIO | V4: FixedRate
D5: =H5&J5&K5&L5 -> L33PI | H5: L33 | I5: Classic Home Loan – P&I | J5: PI | M5: N | N5: 1 | R5: =S5&U5 -> L43PI | S5: L43 | T5: Classic Home Loan - P&I | U5: PI | V5: N
D6: =H6&J6&K6&L6 -> L81PI | H6: L81 | I6: Flexi Choice Loan – P&I | J6: PI | M6: N | N6: 2 | R6: =S6&U6 -> L82PI | S6: L82 | T6: Flexi Choice Loan – P&I | U6: PI | V6: N
D7: L81IO | H7: L81 | I7: Interest Only Variable | J7: IO | M7: N | N7: 3 | R7: L82IO | S7: L82 | T7: Interest Only Variable | U7: IO | V7: N
D8: L12PI | H8: L12 | I8: My First Home Loan – P&I | J8: PI | M8: N | N8: 4 | R8: L82PI1 | S8: L82 | T8: Fixed Rate Home Loan – 1 year – P&I | U8: PI1 | V8: Y
D9: L12IO | H9: L12 | I9: My First Home Loan – IO | J9: IO | M9: N | N9: 5 | R9: L82PI2 | S9: L82 | T9: Fixed Rate Home Loan – 2 year – P&I | U9: PI2 | V9: Y
D10: L81PI1 | H10: L81 | I10: Fixed Rate Home Loan – 1 year – P&I | J10: PI1 | M10: Y | N10: 6 | R10: L82PI3 | S10: L82 | T10: Fixed Rate Home Loan – 3 year – P&I | U10: PI3 | V10: Y
D11: L81PI2 | H11: L81 | I11: Fixed Rate Home Loan – 2 year – P&I | J11: PI2 | M11: Y | N11: 7 | R11: L82PI4 | S11: L82 | T11: Fixed Rate Home Loan – 4 year – P&I | U11: PI4 | V11: Y
D12: L81PI3 | H12: L81 | I12: Fixed Rate Home Loan – 3 year – P&I | J12: PI3 | M12: Y | N12: 8 | R12: L82PI5 | S12: L82 | T12: Fixed Rate Home Loan – 5 year – P&I | U12: PI5 | V12: Y
D13: L81PI4 | H13: L81 | I13: Fixed Rate Home Loan – 4 year – P&I | J13: PI4 | M13: Y | N13: 9 | R13: L82IO1 | S13: L82 | T13: Fixed Rate Home Loan – 1 year – IO | U13: IO1 | V13: Y
D14: L81PI5 | H14: L81 | I14: Fixed Rate Home Loan – 5 year – P&I | J14: PI5 | M14: Y | N14: 10 | R14: L82IO2 | S14: L82 | T14: Fixed Rate Home Loan – 2 year – IO | U14: IO2 | V14: Y
D15: L81IO1 | H15: L81 | I15: Fixed Rate Home Loan – 1 year – IO | J15: IO1 | M15: Y | N15: 11 | R15: L82IO3 | S15: L82 | T15: Fixed Rate Home Loan – 3 year – IO | U15: IO3 | V15: Y
D16: L81IO2 | H16: L81 | I16: Fixed Rate Home Loan – 2 year – IO | J16: IO2 | M16: Y | N16: 12 | R16: L82IO4 | S16: L82 | T16: Fixed Rate Home Loan – 4 year – IO | U16: IO4 | V16: Y
D17: L81IO3 | H17: L81 | I17: Fixed Rate Home Loan – 3 year – IO | J17: IO3 | M17: Y | N17: 13 | R17: L82IO5 | S17: L82 | T17: Fixed Rate Home Loan – 5 year – IO | U17: IO5 | V17: Y
D18: L81IO4 | H18: L81 | I18: Fixed Rate Home Loan – 4 year – IO | J18: IO4 | M18: Y | N18: 14
D19: L81IO5 | H19: L81 | I19: Fixed Rate Home Loan – 5 year – IO | J19: IO5 | M19: Y | N19: 15
B20: LVR is 60% or less | C20: $150,000 – $249,999 – P&I | D20: L5PI25060 | E20: Solutions Plus Home Loan2 – Principal & Interest (P&I) | F20: $150k – $249k–P&I | G20: LVR is 60% or less | H20: L5 | I20: =F20&";"&G20 -> $150k – $249k–P&I;LVR is 60% or less | J20: PI | K20: 250 | L20: 60 | M20: N | N20: 16
B21: LVR is above 60% and less than or equal to 80% | C21: $150,000 – $249,999 – P&I | D21: L5PI25080 | F21: $150k – $249k–P&I | G21: LVR is above 60% and less than or equal to 80% | H21: L5 | I21: =F21&G21 -> $150k – $249k–P&ILVR is above 60% and less than or equal to 80% | J21: PI | K21: 250 | L21: 80 | M21: N | N21: 17
B22: LVR is above 80% and less than or equal to 90% | C22: $150,000 – $249,999 – P&I | D22: L5PI25090 | F22: $150k – $249k–P&I | G22: LVR is above 80% and less than or equal to 90% | H22: L5 | I22: $150k – $249k–P&ILVR is above 80% and less than or equal to 90% | J22: PI | K22: 250 | L22: 90 | M22: N | N22: 18
B23: LVR is above 90% | C23: $150,000 – $249,999 – P&I | D23: L5PI25091 | F23: $150k – $249k–P&I | G23: LVR is above 90% | H23: L5 | I23: $150k – $249k–P&ILVR is above 90% | J23: PI | K23: 250 | L23: 91 | M23: N | N23: 19
B24: LVR is 60% or less | C24: $250,000 - $499,999 – P&I | D24: L5PI50060 | F24: $250k - $499k–P&I | G24: LVR is 60% or less | H24: L5 | I24: $250k - $499k–P&ILVR is 60% or less | J24: PI | K24: 500 | L24: 60 | M24: N | N24: 20
B25: LVR is above 60% and less than or equal to 80% | C25: $250,000 - $499,999 – P&I | D25: L5PI50080 | F25: $250k - $499k–P&I | G25: LVR is above 60% and less than or equal to 80% | H25: L5 | I25: $250k - $499k–P&ILVR is above 60% and less than or equal to 80% | J25: PI | K25: 500 | L25: 80 | M25: N | N25: 21
B26: LVR is above 80% and less than or equal to 90% | C26: $250,000 - $499,999 – P&I | D26: L5PI50090 | F26: $250k - $499k–P&I | G26: LVR is above 80% and less than or equal to 90% | H26: L5 | I26: $250k - $499k–P&ILVR is above 80% and less than or equal to 90% | J26: PI | K26: 500 | L26: 90 | M26: N | N26: 22
B27: LVR is above 90% | C27: $250,000 - $499,999 – P&I | D27: L5PI50091 | F27: $250k - $499k–P&I | G27: LVR is above 90% | H27: L5 | I27: $250k - $499k–P&ILVR is above 90% | J27: PI | K27: 500 | L27: 91 | M27: N | N27: 23
B28: LVR is 60% or less | C28: $500,000 - $749,999 – P&I | D28: L5PI75060 | F28: $500k-$749-P&I | G28: LVR is 60% or less | H28: L5 | I28: $500k-$749-P&ILVR is 60% or less | J28: PI | K28: 750 | L28: 60 | M28: N | N28: 24
B29: LVR is above 60% and less than or equal to 80% | C29: $500,000 - $749,999 – P&I | D29: L5PI75080 | F29: $500k-$749-P&I | G29: LVR is above 60% and less than or equal to 80% | H29: L5 | I29: $500k-$749-P&ILVR is above 60% and less than or equal to 80% | J29: PI | K29: 750 | L29: 80 | M29: N | N29: 25
B30: LVR is above 80% and less than or equal to 90% | C30: $500,000 - $749,999 – P&I | D30: L5PI75090 | F30: $500k-$749-P&I | G30: LVR is above 80% and less than or equal to 90% | H30: L5 | I30: $500k-$749-P&ILVR is above 80% and less than or equal to 90% | J30: PI | K30: 750 | L30: 90 | M30: N | N30: 26
B31: LVR is above 90% | C31: $500,000 - $749,999 – P&I | D31: L5PI75091 | F31: $500k-$749-P&I | G31: LVR is above 90% | H31: L5 | I31: $500k-$749-P&ILVR is above 90% | J31: PI | K31: 750 | L31: 91 | M31: N | N31: 27
B32: LVR is 60% or less | C32: $750,000+ – P&I | D32: L5PI75160 | F32: $750k+– P&I | G32: LVR is 60% or less | H32: L5 | I32: $750k+– P&ILVR is 60% or less | J32: PI | K32: 751 | L32: 60 | M32: N | N32: 28
B33: LVR is above 60% and less than or equal to 80% | C33: $750,000+ – P&I | D33: L5PI75180 | F33: $750k+– P&I | G33: LVR is above 60% and less than or equal to 80% | H33: L5 | I33: $750k+– P&ILVR is above 60% and less than or equal to 80% | J33: PI | K33: 751 | L33: 80 | M33: N | N33: 29
B34: LVR is above 80% and less than or equal to 90% | C34: $750,000+ – P&I | D34: L5PI75190 | F34: $750k+– P&I | G34: LVR is above 80% and less than or equal to 90% | H34: L5 | I34: $750k+– P&ILVR is above 80% and less than or equal to 90% | J34: PI | K34: 751 | L34: 90 | M34: N | N34: 30
B35: LVR is above 90% | C35: $750,000+ – P&I | D35: L5PI75191 | F35: $750k+– P&I | G35: LVR is above 90% | H35: L5 | I35: $750k+– P&ILVR is above 90% | J35: PI | K35: 751 | L35: 91 | M35: N | N35: 31
B36: LVR is 60% or less | C36: $150,000 – $249,999 – IO | D36: L5IO25060 | E36: Solutions Plus Home Loan2 – Interest Only (IO) | F36: $150k–$249k–IO | G36: LVR is 60% or less | H36: L5 | I36: $150k–$249k–IOLVR is 60% or less | J36: IO | K36: 250 | L36: 60 | M36: N | N36: 32
B37: LVR is above 60% and less than or equal to 80% | C37: $150,000 – $249,999 – IO | D37: L5IO25080 | F37: $150k–$249k–IO | G37: LVR is above 60% and less than or equal to 80% | H37: L5 | I37: $150k–$249k–IOLVR is above 60% and less than or equal to 80% | J37: IO | K37: 250 | L37: 80 | M37: N | N37: 33
B38: LVR is above 80% and less than or equal to 90% | C38: $150,000 – $249,999 – IO | D38: L5IO25090 | F38: $150k–$249k–IO | G38: LVR is above 80% and less than or equal to 90% | H38: L5 | I38: $150k–$249k–IOLVR is above 80% and less than or equal to 90% | J38: IO | K38: 250 | L38: 90 | M38: N | N38: 34
B39: LVR is above 90% | C39: $150,000 – $249,999 – IO | D39: L5IO25091 | F39: $150k–$249k–IO | G39: LVR is above 90% | H39: L5 | I39: $150k–$249k–IOLVR is above 90% | J39: IO | K39: 250 | L39: 91 | M39: N | N39: 35
B40: LVR is 60% or less | C40: $250,000 - $499,999 – IO | D40: L5IO50060 | F40: $250k-$499k–IO | G40: LVR is 60% or less | H40: L5 | I40: $250k-$499k–IOLVR is 60% or less | J40: IO | K40: 500 | L40: 60 | M40: N | N40: 36
B41: LVR is above 60% and less than or equal to 80% | C41: $250,000 - $499,999 – IO | D41: L5IO50080 | F41: $250k-$499k–IO | G41: LVR is above 60% and less than or equal to 80% | H41: L5 | I41: $250k-$499k–IOLVR is above 60% and less than or equal to 80% | J41: IO | K41: 500 | L41: 80 | M41: N | N41: 37
B42: LVR is above 80% and less than or equal to 90% | C42: $250,000 - $499,999 – IO | D42: L5IO50090 | F42: $250k-$499k–IO | G42: LVR is above 80% and less than or equal to 90% | H42: L5 | I42: $250k-$499k–IOLVR is above 80% and less than or equal to 90% | J42: IO | K42: 500 | L42: 90 | M42: N | N42: 38
B43: LVR is above 90% | C43: $250,000 - $499,999 – IO | D43: L5IO50091 | F43: $250k-$499k–IO | G43: LVR is above 90% | H43: L5 | I43: $250k-$499k–IOLVR is above 90% | J43: IO | K43: 500 | L43: 91 | M43: N | N43: 39
B44: LVR is 60% or less | C44: $500,000 - $749,999 – IO | D44: L5IO75060 | F44: $500k-$749k–IO | G44: LVR is 60% or less | H44: L5 | I44: $500k-$749k–IOLVR is 60% or less | J44: IO | K44: 750 | L44: 60 | M44: N | N44: 40
B45: LVR is above 60% and less than or equal to 80% | C45: $500,000 - $749,999 – IO | D45: L5IO75080 | F45: $500k-$749k–IO | G45: LVR is above 60% and less than or equal to 80% | H45: L5 | I45: $500k-$749k–IOLVR is above 60% and less than or equal to 80% | J45: IO | K45: 750 | L45: 80 | M45: N | N45: 41
B46: LVR is above 80% and less than or equal to 90% | C46: $500,000 - $749,999 – IO | D46: L5IO75090 | F46: $500k-$749k–IO | G46: LVR is above 80% and less than or equal to 90% | H46: L5 | I46: $500k-$749k–IOLVR is above 80% and less than or equal to 90% | J46: IO | K46: 750 | L46: 90 | M46: N | N46: 42
B47: LVR is above 90% | C47: $500,000 - $749,999 – IO | D47: L5IO75091 | F47: $500k-$749k–IO | G47: LVR is above 90% | H47: L5 | I47: $500k-$749k–IOLVR is above 90% | J47: IO | K47: 750 | L47: 91 | M47: N | N47: 43
B48: LVR is 60% or less | C48: $750,000+ – IO | D48: L5IO75160 | F48: $750k+– IO | G48: LVR is 60% or less | H48: L5 | I48: $750k+– IOLVR is 60% or less | J48: IO | K48: 751 | L48: 60 | M48: N | N48: 44
B49: LVR is above 60% and less than or equal to 80% | C49: $750,000+ – IO | D49: L5IO75180 | F49: $750k+– IO | G49: LVR is above 60% and less than or equal to 80% | H49: L5 | I49: $750k+– IOLVR is above 60% and less than or equal to 80% | J49: IO | K49: 751 | L49: 80 | M49: N | N49: 45
B50: LVR is above 80% and less than or equal to 90% | C50: $750,000+ – IO | D50: L5IO75190 | F50: $750k+– IO | G50: LVR is above 80% and less than or equal to 90% | H50: L5 | I50: $750k+– IOLVR is above 80% and less than or equal to 90% | J50: IO | K50: 751 | L50: 90 | M50: N | N50: 46 | P50: =VLOOKUP(User_Select_HL_FixRate_Name,$P$59:$Q$105,2,) -> 
B51: LVR is above 90% | C51: $750,000+ – IO | D51: L5IO75191 | F51: $750k+– IO | G51: LVR is above 90% | H51: L5 | I51: $750k+– IOLVR is above 90% | J51: IO | K51: 751 | L51: 91 | M51: N | N51: 47 | P51: =VLOOKUP(User_Select_HL_VarRate_Name,$P$59:$Q$105,2,) -> 
B56: List of OO Variable Rate
B57: Count of PIIO | D57: FixedRate | H57: List | I57: LongNames00 | P57: LongNames | Q57: Parm_SimplifiedNamesForAIP
B58: Order | C58: Owner Occupied Product Name | D58: N | E58: Y | F58: Grand Total | H58: 1 | I58: Classic Home Loan – P&I | P58: =I58 -> Classic Home Loan – P&I | Q58: =I58 -> Classic Home Loan – P&I
B59: 1 | C59: Classic Home Loan – P&I | D59: 1 | F59: 1 | H59: 2 | I59: Classic Home Loan Special - P&I | K59: Fixed Rate Home Loan – 1 year – P&I | P59: Classic Home Loan Special - P&I | Q59: Classic Home Loan Special - P&I
B60: 2 | C60: Flexi Choice Loan – P&I | D60: 1 | F60: 1 | H60: 3 | I60: Flexi Choice Loan – P&I | K60: Fixed Rate Home Loan – 2 year – P&I | P60: Flexi Choice Loan – P&I | Q60: Flexi Choice Loan – P&I
B61: 3 | C61: Interest Only Variable | D61: 1 | F61: 1 | H61: 4 | I61: Interest Only Variable | K61: Fixed Rate Home Loan – 3 year – P&I | P61: Interest Only Variable | Q61: Interest Only Variable
B62: 4 | C62: My First Home Loan – P&I | D62: 1 | F62: 1 | H62: 5 | I62: My First Home Loan – P&I | K62: Fixed Rate Home Loan – 4 year – P&I | P62: My First Home Loan – P&I | Q62: My First Home Loan – P&I
B63: 5 | C63: My First Home Loan – IO | D63: 1 | F63: 1 | H63: 6 | I63: My First Home Loan – IO | K63: Fixed Rate Home Loan – 5 year – P&I | P63: My First Home Loan – IO | Q63: My First Home Loan – IO
B64: 6 | C64: Fixed Rate Home Loan – 1 year – P&I | E64: 1 | F64: 1 | H64: 7 | I64: Fixed Rate Home Loan – 1 year – P&I | K64: Fixed Rate Home Loan – 1 year – IO | P64: Fixed Rate Home Loan – 1 year – P&I | Q64: Fixed Rate Home Loan – 1 year – P&I
B65: 7 | C65: Fixed Rate Home Loan – 2 year – P&I | E65: 1 | F65: 1 | H65: 8 | I65: Fixed Rate Home Loan – 2 year – P&I | K65: Fixed Rate Home Loan – 2 year – IO | P65: Fixed Rate Home Loan – 2 year – P&I | Q65: Fixed Rate Home Loan – 2 year – P&I
B66: 8 | C66: Fixed Rate Home Loan – 3 year – P&I | E66: 1 | F66: 1 | H66: 9 | I66: Fixed Rate Home Loan – 3 year – P&I | K66: Fixed Rate Home Loan – 3 year – IO | P66: Fixed Rate Home Loan – 3 year – P&I | Q66: Fixed Rate Home Loan – 3 year – P&I
B67: 9 | C67: Fixed Rate Home Loan – 4 year – P&I | E67: 1 | F67: 1 | H67: 10 | I67: Fixed Rate Home Loan – 4 year – P&I | K67: Fixed Rate Home Loan – 4 year – IO | P67: Fixed Rate Home Loan – 4 year – P&I | Q67: Fixed Rate Home Loan – 4 year – P&I
B68: 10 | C68: Fixed Rate Home Loan – 5 year – P&I | E68: 1 | F68: 1 | H68: 11 | I68: Fixed Rate Home Loan – 5 year – P&I | K68: Fixed Rate Home Loan – 5 year – IO | P68: Fixed Rate Home Loan – 5 year – P&I | Q68: Fixed Rate Home Loan – 5 year – P&I
B69: 11 | C69: Fixed Rate Home Loan – 1 year – IO | E69: 1 | F69: 1 | H69: 12 | I69: Fixed Rate Home Loan – 1 year – IO | P69: Fixed Rate Home Loan – 1 year – IO | Q69: Fixed Rate Home Loan – 1 year – IO
B70: 12 | C70: Fixed Rate Home Loan – 2 year – IO | E70: 1 | F70: 1 | H70: 13 | I70: Fixed Rate Home Loan – 2 year – IO | P70: Fixed Rate Home Loan – 2 year – IO | Q70: Fixed Rate Home Loan – 2 year – IO
B71: 13 | C71: Fixed Rate Home Loan – 3 year – IO | E71: 1 | F71: 1 | H71: 14 | I71: Fixed Rate Home Loan – 3 year – IO | P71: Fixed Rate Home Loan – 3 year – IO | Q71: Fixed Rate Home Loan – 3 year – IO
B72: 14 | C72: Fixed Rate Home Loan – 4 year – IO | E72: 1 | F72: 1 | H72: 15 | I72: Fixed Rate Home Loan – 4 year – IO | P72: Fixed Rate Home Loan – 4 year – IO | Q72: Fixed Rate Home Loan – 4 year – IO
B73: 15 | C73: Fixed Rate Home Loan – 5 year – IO | E73: 1 | F73: 1 | H73: 16 | I73: Fixed Rate Home Loan – 5 year – IO | P73: Fixed Rate Home Loan – 5 year – IO | Q73: Fixed Rate Home Loan – 5 year – IO
B74: 16 | C74: $150k – $249k–P&I;LVR is 60% or less | D74: 1 | F74: 1 | H74: 17 | I74: $150k – $249k–P&I;LVR is 60% or less | J74: Solutions Plus P&I | P74: $150k – $249k–P&I;LVR is 60% or less | Q74: =J74 -> Solutions Plus P&I
B75: 17 | C75: $150k – $249k–P&ILVR is above 60% and less than or equal to 80% | D75: 1 | F75: 1 | H75: 18 | I75: $150k – $249k–P&ILVR is above 60% and less than or equal to 80% | J75: Solutions Plus P&I | P75: $150k – $249k–P&ILVR is above 60% and less than or equal to 80% | Q75: Solutions Plus P&I
B76: 18 | C76: $150k – $249k–P&ILVR is above 80% and less than or equal to 90% | D76: 1 | F76: 1 | H76: 19 | I76: $150k – $249k–P&ILVR is above 80% and less than or equal to 90% | J76: Solutions Plus P&I | P76: $150k – $249k–P&ILVR is above 80% and less than or equal to 90% | Q76: Solutions Plus P&I
B77: 19 | C77: $150k – $249k–P&ILVR is above 90% | D77: 1 | F77: 1 | H77: 20 | I77: $150k – $249k–P&ILVR is above 90% | J77: Solutions Plus P&I | P77: $150k – $249k–P&ILVR is above 90% | Q77: Solutions Plus P&I
B78: 20 | C78: $250k - $499k–P&ILVR is 60% or less | D78: 1 | F78: 1 | H78: 21 | I78: $250k - $499k–P&ILVR is 60% or less | J78: Solutions Plus P&I | P78: $250k - $499k–P&ILVR is 60% or less | Q78: Solutions Plus P&I
B79: 21 | C79: $250k - $499k–P&ILVR is above 60% and less than or equal to 80% | D79: 1 | F79: 1 | H79: 22 | I79: $250k - $499k–P&ILVR is above 60% and less than or equal to 80% | J79: Solutions Plus P&I | P79: $250k - $499k–P&ILVR is above 60% and less than or equal to 80% | Q79: Solutions Plus P&I
B80: 22 | C80: $250k - $499k–P&ILVR is above 80% and less than or equal to 90% | D80: 1 | F80: 1 | H80: 23 | I80: $250k - $499k–P&ILVR is above 80% and less than or equal to 90% | J80: Solutions Plus P&I | P80: $250k - $499k–P&ILVR is above 80% and less than or equal to 90% | Q80: Solutions Plus P&I
B81: 23 | C81: $250k - $499k–P&ILVR is above 90% | D81: 1 | F81: 1 | H81: 24 | I81: $250k - $499k–P&ILVR is above 90% | J81: Solutions Plus P&I | P81: $250k - $499k–P&ILVR is above 90% | Q81: Solutions Plus P&I
B82: 24 | C82: $500k-$749-P&ILVR is 60% or less | D82: 1 | F82: 1 | H82: 25 | I82: $500k-$749-P&ILVR is 60% or less | J82: Solutions Plus P&I | P82: $500k-$749-P&ILVR is 60% or less | Q82: Solutions Plus P&I
B83: 25 | C83: $500k-$749-P&ILVR is above 60% and less than or equal to 80% | D83: 1 | F83: 1 | H83: 26 | I83: $500k-$749-P&ILVR is above 60% and less than or equal to 80% | J83: Solutions Plus P&I | P83: $500k-$749-P&ILVR is above 60% and less than or equal to 80% | Q83: Solutions Plus P&I
B84: 26 | C84: $500k-$749-P&ILVR is above 80% and less than or equal to 90% | D84: 1 | F84: 1 | H84: 27 | I84: $500k-$749-P&ILVR is above 80% and less than or equal to 90% | J84: Solutions Plus P&I | P84: $500k-$749-P&ILVR is above 80% and less than or equal to 90% | Q84: Solutions Plus P&I
B85: 27 | C85: $500k-$749-P&ILVR is above 90% | D85: 1 | F85: 1 | H85: 28 | I85: $500k-$749-P&ILVR is above 90% | J85: Solutions Plus P&I | P85: $500k-$749-P&ILVR is above 90% | Q85: Solutions Plus P&I
B86: 28 | C86: $750k+– P&ILVR is 60% or less | D86: 1 | F86: 1 | H86: 29 | I86: $750k+– P&ILVR is 60% or less | J86: Solutions Plus P&I | P86: $750k+– P&ILVR is 60% or less | Q86: Solutions Plus P&I
B87: 29 | C87: $750k+– P&ILVR is above 60% and less than or equal to 80% | D87: 1 | F87: 1 | H87: 30 | I87: $750k+– P&ILVR is above 60% and less than or equal to 80% | J87: Solutions Plus P&I | P87: $750k+– P&ILVR is above 60% and less than or equal to 80% | Q87: Solutions Plus P&I
B88: 30 | C88: $750k+– P&ILVR is above 80% and less than or equal to 90% | D88: 1 | F88: 1 | H88: 31 | I88: $750k+– P&ILVR is above 80% and less than or equal to 90% | J88: Solutions Plus P&I | P88: $750k+– P&ILVR is above 80% and less than or equal to 90% | Q88: Solutions Plus P&I
B89: 31 | C89: $750k+– P&ILVR is above 90% | D89: 1 | F89: 1 | H89: 32 | I89: $750k+– P&ILVR is above 90% | J89: Solutions Plus IO | P89: $750k+– P&ILVR is above 90% | Q89: Solutions Plus IO
B90: 32 | C90: $150k–$249k–IOLVR is 60% or less | D90: 1 | F90: 1 | H90: 33 | I90: $150k–$249k–IOLVR is 60% or less | J90: Solutions Plus IO | P90: $150k–$249k–IOLVR is 60% or less | Q90: Solutions Plus IO
B91: 33 | C91: $150k–$249k–IOLVR is above 60% and less than or equal to 80% | D91: 1 | F91: 1 | H91: 34 | I91: $150k–$249k–IOLVR is above 60% and less than or equal to 80% | J91: Solutions Plus IO | P91: $150k–$249k–IOLVR is above 60% and less than or equal to 80% | Q91: Solutions Plus IO
B92: 34 | C92: $150k–$249k–IOLVR is above 80% and less than or equal to 90% | D92: 1 | F92: 1 | H92: 35 | I92: $150k–$249k–IOLVR is above 80% and less than or equal to 90% | J92: Solutions Plus IO | P92: $150k–$249k–IOLVR is above 80% and less than or equal to 90% | Q92: Solutions Plus IO
B93: 35 | C93: $150k–$249k–IOLVR is above 90% | D93: 1 | F93: 1 | H93: 36 | I93: $150k–$249k–IOLVR is above 90% | J93: Solutions Plus IO | P93: $150k–$249k–IOLVR is above 90% | Q93: Solutions Plus IO
B94: 36 | C94: $250k-$499k–IOLVR is 60% or less | D94: 1 | F94: 1 | H94: 37 | I94: $250k-$499k–IOLVR is 60% or less | J94: Solutions Plus IO | P94: $250k-$499k–IOLVR is 60% or less | Q94: Solutions Plus IO
B95: 37 | C95: $250k-$499k–IOLVR is above 60% and less than or equal to 80% | D95: 1 | F95: 1 | H95: 38 | I95: $250k-$499k–IOLVR is above 60% and less than or equal to 80% | J95: Solutions Plus IO | P95: $250k-$499k–IOLVR is above 60% and less than or equal to 80% | Q95: Solutions Plus IO
B96: 38 | C96: $250k-$499k–IOLVR is above 80% and less than or equal to 90% | D96: 1 | F96: 1 | H96: 39 | I96: $250k-$499k–IOLVR is above 80% and less than or equal to 90% | J96: Solutions Plus IO | P96: $250k-$499k–IOLVR is above 80% and less than or equal to 90% | Q96: Solutions Plus IO
B97: 39 | C97: $250k-$499k–IOLVR is above 90% | D97: 1 | F97: 1 | H97: 40 | I97: $250k-$499k–IOLVR is above 90% | J97: Solutions Plus IO | P97: $250k-$499k–IOLVR is above 90% | Q97: Solutions Plus IO
B98: 40 | C98: $500k-$749k–IOLVR is 60% or less | D98: 1 | F98: 1 | H98: 41 | I98: $500k-$749k–IOLVR is 60% or less | J98: Solutions Plus IO | P98: $500k-$749k–IOLVR is 60% or less | Q98: Solutions Plus IO
B99: 41 | C99: $500k-$749k–IOLVR is above 60% and less than or equal to 80% | D99: 1 | F99: 1 | H99: 42 | I99: $500k-$749k–IOLVR is above 60% and less than or equal to 80% | J99: Solutions Plus IO | P99: $500k-$749k–IOLVR is above 60% and less than or equal to 80% | Q99: Solutions Plus IO
B100: 42 | C100: $500k-$749k–IOLVR is above 80% and less than or equal to 90% | D100: 1 | F100: 1 | H100: 43 | I100: $500k-$749k–IOLVR is above 80% and less than or equal to 90% | J100: Solutions Plus IO | P100: $500k-$749k–IOLVR is above 80% and less than or equal to 90% | Q100: Solutions Plus IO
B101: 43 | C101: $500k-$749k–IOLVR is above 90% | D101: 1 | F101: 1 | H101: 44 | I101: $500k-$749k–IOLVR is above 90% | J101: Solutions Plus IO | P101: $500k-$749k–IOLVR is above 90% | Q101: Solutions Plus IO
B102: 44 | C102: $750k+– IOLVR is 60% or less | D102: 1 | F102: 1 | H102: 45 | I102: $750k+– IOLVR is 60% or less | J102: Solutions Plus IO | P102: $750k+– IOLVR is 60% or less | Q102: Solutions Plus IO
B103: 45 | C103: $750k+– IOLVR is above 60% and less than or equal to 80% | D103: 1 | F103: 1 | H103: 46 | I103: $750k+– IOLVR is above 60% and less than or equal to 80% | J103: Solutions Plus IO | P103: $750k+– IOLVR is above 60% and less than or equal to 80% | Q103: Solutions Plus IO
B104: 46 | C104: $750k+– IOLVR is above 80% and less than or equal to 90% | D104: 1 | F104: 1 | H104: 47 | I104: $750k+– IOLVR is above 80% and less than or equal to 90% | J104: Solutions Plus IO | P104: $750k+– IOLVR is above 80% and less than or equal to 90% | Q104: Solutions Plus IO
B105: 47 | C105: $750k+– IOLVR is above 90% | D105: 1 | F105: 1 | H105: 48 | I105: $750k+– IOLVR is above 90% | J105: Solutions Plus IO | P105: $750k+– IOLVR is above 90% | Q105: Solutions Plus IO
B106: Grand Total | D106: 37 | E106: 10 | F106: 47

Sheet Parm (hidden)
A1: ="/* -- See "&CELL("address")&" OF "&CELL("filename")&" */" -> /* -- See '[Loan Origination Servicing CalcV076.xlsm]HEM Living Expenses'!$C$2 OF Q:\Risk\Credit Risk\Serviceability Calculators\Loan Origination Servicing Calculators\1st Party\[Loan Origination Servicing CalcV076.xlsm]HEM Living Expenses */ | B1: Parameters | D1: Entered by user | E1: Selections | G1: up to row 20 is for documentation
D2: Processed on Sheet
D3: Processed by VBA
D4: Temporary results
D5: Log
B13: This Calculator is for | C13: Third Party | D13: Change for party using this calculator
B14: Mode to use | C14: =VLOOKUP(C13,$B$15:$C$16,2,0) -> Office Work | D14: Will be used in restart
B15: First Party | C15: =B148 -> Office Work
B16: Third Party | C16: =B148 -> Office Work
AD21: Yearly Assessment Rates
B22: Number of Applicants | C22: Number of Dependents | D22: Family Type | F22: Borrower Type | G22: Application Type | I22: Gross/Net | K22: Frequency | L22: x times | N22: https://www.ato.gov.au/rates/individual-income-tax-rates/ | AC22: =CalculationsReference!A70 -> Region | AD22: TMBL Credit Card Monthly payment | AE22: OFI Credit Card & ChargeCard | AF22: Overdraft Monthly payment | AG22: MarginLoan Monthly Payment | AK22: Credit Card BenchMark Rates
B23: 1 | C23: 0 | D23: Couple | F23: Investor | G23: 1 | I23: Gross | K23: Weekly | L23: 52 | N23: Taxable income | O23: Income Range | P23: Minimum | Q23: Rate | R23: Tax on this income | S23: Min Gross Income | T23: Max Gross Income | U23: Tax Paid for Range | V23: Effective tax rate | W23: Net Income | X23: Derived Gross Income | Z23: GrossIncome | AC23: =CalculationsReference!A71 -> Sydney | AD23: =ProductRate!I45 -> 0.115 | AE23: 0.225 | AF23: 0.02 | AG23: =Parm_margin_Lending_assessmentRate/12 -> 0.0025
B24: 2 | C24: 1 | D24: Single | F24: Owner Occupied | G24: 2 | I24: Net | K24: Fortnightly | L24: 26 | N24: ="$"&S24&" - $"&T24 -> $0 - $18200 | O24: 0 | P24: 0 | R24: Nil | S24: 0 | T24: 18200 | U24: 0 | V24: =U24/T24 -> 0 | W24: =T24-U24 -> 18200 | X24: =W24 -> 18200 | Z24: 155000 | AC24: =CalculationsReference!A72 -> Balance of NSW | AD24: 0.03 | AE24: 0.03 | AK24: Credit Card 1 | AL24: 0.2164
B25: 3 | C25: 2 | D25: 2 Single persons | K25: Monthly | L25: 12 | N25: ="$"&S25&" - $"&T25 -> $18201 - $45000 | O25: =S25 -> 18201 | P25: 0 | Q25: 0.16 | R25: 19c for each $1 over $18,200 | S25: =T24+1 -> 18201 | T25: 45000 | U25: =U24+Q25*(T25-T24) -> 4288 | V25: =U25/T25 -> 0.09528888889 | W25: =T25-U25 -> 40712 | X25: =W25/(1-V25) -> 45000 | Z25: =Z24-O27 -> 19999 | AC25: =CalculationsReference!A73 -> Melbourne | AD25: Terms in Months | AK25: Credit Card 2 | AL25: =AL24 -> 0.2164
B26: 4 | C26: 3 | K26: Annually | L26: 1 | N26: $45001 - $135000 | O26: =S26 -> 45001 | P26: =(O26-O25)*Q25+P25 -> 4288 | Q26: 0.3 | S26: =T25+1 -> 45001 | T26: 135000 | U26: =U25+Q26*(T26-T25) -> 31288 | V26: 0.231762963 | W26: 103712 | X26: =W26/(1-V26) -> 135000 | Z26: =Z25*Q27 -> 7399.63 | AC26: =CalculationsReference!A74 -> Balance of VIC | AD26: =AD22 -> TMBL Credit Card Monthly payment | AE26: =AE22 -> OFI Credit Card & ChargeCard | AK26: Credit Card 3 | AL26: =AL25 -> 0.2164
D27: 0 dependants | N27: $135001 - $190000 | O27: 135001 | P27: =(O27-O26)*Q26+P26 -> 31288 | Q27: 0.37 | S27: 135001 | T27: 190000 | U27: 51638 | V27: 0.2717789474 | W27: 138362 | X27: 190000 | Z27: =Z26+P27 -> 38687.63 | AC27: =CalculationsReference!A75 -> Brisbane | AD27: =3*12 -> 36 | AE27: =3*12 -> 36 | AK27: Credit Card 4 | AL27: 0.2164
D28: 1 dependant | N28: $190001 - $10000000 | O28: 190001 | P28: =(O28-O27)*Q27+P27 -> 51638 | Q28: 0.45 | S28: 190001 | T28: 10000000 | U28: =U27+Q28*(T28-T27) -> 4466138 | V28: 0.4466138 | W28: 5533862 | X28: 10000000 | Z28: =Z24-Z27 -> 116312.37 | AC28: =CalculationsReference!A76 -> Balance of QLD | AK28: Credit Card 5 | AL28: 0.2164
D29: 2 dependants | AC29: =CalculationsReference!A77 -> Adelaide
D30: 3 dependants | N30: Medicare levy reduction for low-income earners | AC30: =CalculationsReference!A78 -> Balance of SA
D31: 4 dependants | N31: https://www.ato.gov.au/Individuals/Medicare-levy/Medicare-levy-reduction-for-low-income-earners/ | S31: Gross Income | T31: Income Range | U31: Tax Range 1 | V31: Tax Range2 | W31: Total Tax | X31: Medicare Levy | Y31: Net Income | AC31: =CalculationsReference!A79 -> Perth
D32: 5 dependants | N32: https://www.ato.gov.au/individuals/medicare-levy/medicare-levy-surcharge/income-thresholds-and-rates-for-the-medicare-levy-surcharge/ | S32: 100000 | T32: =VLOOKUP($S32,ATOTaxScales,1) -> 45001 | U32: =VLOOKUP($S32,ATOTaxScales,2) -> 4288 | V32: =VLOOKUP($S32,ATOTaxScales,3)*(S32-T32) -> 16499.7 | W32: =U32+V32 -> 20787.7 | X32: =Parm_Medicare_Levy_Rate*S32 -> 2000 | Y32: =S32-W32-X32 -> 77212.3 | AC32: =CalculationsReference!A80 -> Balance of WA
D33: 6 dependants | N33: Medicare Levy | O33: 0.02 | AC33: =CalculationsReference!A81 -> Hobart
D34: 7 dependants | N34: Income Theshold for Medicare Levy | O34: 27476 | AC34: =CalculationsReference!A82 -> Balance of TAS
D35: 8 dependants | AC35: =CalculationsReference!A83 -> ACT & NT
D36: 9 dependants
B48: Surplus rules | C48: =F22 -> Borrower Type | D48: =ProductRate!E55 -> Repayment Type
B49: Home Loans – Owner Occupied P&I and IO loans for the purpose of construction of an owner occupied dwelling - The applicant must be able to demonstrate a monthly surplus of ≥$0 using the approved servicing calculator.
B50: Home Loans – Owner Occupied IO - The applicant must be able to demonstrate a monthly surplus of ≥$300 using the approved servicing calculator.
B51: Home Loans – Investment P&I, Investment IO - The applicant must be able to demonstrate a monthly surplus of ≥$1,000 using the approved servicing calculator.
B53: Surplus Threshold | D53: =ProductRate!E57 -> P&I | E53: =ProductRate!E56 -> IO | G53: How to get to Threshold | J53: =C48 -> Borrower Type | K53: index | M53: =D48 -> Repayment Type | Q53: =J53 -> Borrower Type | R53: =M53 -> Repayment Type | S53: Threshold | U53: =J53 -> Borrower Type | V53: =R53 -> Repayment Type | W53: Threshold
B54: =F24 -> Owner Occupied | D54: 0 | E54: 0 | G54: =INDEX($D$54:$E$55,1,1) -> 0 | H54: =INDEX($D$54:$E$55,1,2) -> 0 | J54: =F24 -> Owner Occupied | K54: =MATCH(J54,$B$54:$B$55,0) -> 1 | M54: =E53 -> IO | N54: =MATCH(M54,$D$53:$E$53,0) -> 2 | Q54: =J54 -> Owner Occupied | R54: =M54 -> IO | S54: =INDEX($D$54:$E$55,MATCH(Q54,$B$54:$B$55,0),MATCH(R54,$D$53:$E$53,0)) -> 0 | U54: =J55 -> Investor | V54: =R54 -> IO | W54: =INDEX($D$54:$E$55,MATCH(U54,$B$54:$B$55,0),MATCH(V54,$D$53:$E$53,0)) -> 0
B55: =F23 -> Investor | D55: 0 | E55: 0 | G55: =INDEX($D$54:$E$55,2,1) -> 0 | H55: =INDEX($D$54:$E$55,2,2) -> 0 | J55: =F23 -> Investor | K55: =MATCH(J55,$B$54:$B$55,0) -> 2 | M55: =D53 -> P&I | N55: =MATCH(M55,$D$53:$E$53,0) -> 1 | Q55: =J54 -> Owner Occupied | R55: =M55 -> P&I | S55: =INDEX($D$54:$E$55,MATCH(Q55,$B$54:$B$55,0),MATCH(R55,$D$53:$E$53,0)) -> 0 | U55: =U54 -> Investor | V55: =R55 -> P&I | W55: =INDEX($D$54:$E$55,MATCH(U55,$B$54:$B$55,0),MATCH(V55,$D$53:$E$53,0)) -> 0
B64: Approved | D64: Red DTI | E64: 7.001
B65: Declined
B68: Debt To Income Ratio | C68: 2018-08-02 | G68: Loan To Income Ratio | H68: 2020-06-25
B70: DTI_ID | C70: DTI_Band | D70: Advanced Code | G70: LTI_ID | H70: LTI_Band | I70: Advanced Code
B71: 1 | C71: <=4 | D71: Code 2F | G71: 1 | H71: <=4 | I71: Code 3A
B72: 2 | C72: >4-<=6 | D72: Code 2G | G72: 2 | H72: >4-<=6 | I72: Code 3B
B73: 3 | C73: >6-<=7 | D73: Code 2H | G73: 3 | H73: >6-<=8 | I73: Code 3C
B74: 4 | C74: >7 | D74: Code 2I | G74: 4 | H74: >8 | I74: Code 3D
B77: Assumptions on Cases of Gross Net Salaries
B79: User may select these cases | C79: ID | D79: Cases
B80: G | C80: 5 | D80: Gross
B81: GG | C81: 10 | D81: Gross
B82: N | C82: 7 | D82: Net
B83: NN | C83: 14 | D83: Net
B84: GN | C84: 12 | D84: Mixed
B85: NG | C85: 12 | D85: Mixed
B89: Other Income | D89: Option | E89: HairCut | F89: Recognised | G89: Definition
B90: Regular Shift Allowance/Overtime | D90: Non Essential Services | E90: 0.2 | F90: =1-E90 -> 0.8 | G90: Essential Services are ambulance, fire & rescue, police
D91: Essential Services | E91: 0 | F91: =1-E91 -> 1
B92: Bonuses | E92: 0.2 | F92: 0.8 | G92: Enter the average of last two years
B93: Commissions | E93: 0.2 | F93: 0.8
B94: Allowances | E94: 0.2 | F94: 0.8
B95: Interest | E95: 0.2 | F95: 0.8 | G95: Enter the average of last two years
B96: Annuities | E96: 0 | F96: 1
B97: Dividends | E97: 0.2 | F97: 0.8 | G97: Enter the average of last two years
B98: Rental Income first 3 Properties | E98: 0.2 | F98: 0.8
B99: Rental Income 04th Property onward | E99: 0.5 | F99: 0.5
B101: Decision in August 2019 to use Only 1 postcode for HEM | F101: Test
B102: 1 Postcode for HEM | C102: 1 | F102: =IF(Parm_1_Postcode_for_HEM,Parm_1Postcode_to_Use,User_1stPostcode) -> 2000
B103: Postcode to Use | C103: 2000 | F103: =IF(Parm_1_Postcode_for_HEM,Parm_1Postcode_to_Use,User_2ndPostcode) -> 2000
E104: Product Selected
B105: Split Loan Indicator | C105: No | E105: =User_I_Want_Product -> 0
C106: Yes
B108: Homeloan Constant in UI | C108: Home Loan
E109: Index Into Income Summary | F109: =B133 -> Income Summary code
B110: User Select Application Type | D110: =User_NoOfParties -> 1 | F110: =IFERROR(INDEX($D$135:$E$137,E112,E111),1) -> 1
B111: No of applicants in Application 1 | D111: =User_NoOfApplicants -> 0 | E111: =User_NoOfApplicants -> 0
B112: No of applicants in Application 2 | D112: =User_NoOfApplicants2 -> 0 | E112: =IF(User_NoOfParties=Parm_ApplType1,0,User_NoOfApplicants2)+1 -> 1
D115: Number of Borrowers
B116: Application 1 | D116: 1 | E116: 2 | G116: Most of the Times
D119: Application 1
D120: 1 | E120: 2
B121: Application 2 | C121: 1 | D121: =C121+D120 -> 2 | E121: =C121+E120 -> 3 | G121: Minority of the times
C122: 2 | D122: =C122+D120 -> 3 | E122: =C122+E120 -> 4
F124: Set up
D125: Income cases | E125: Coded as | F125: Income Summary
D126: =D116 -> 1 | E126: 1 | F126: 1 applicant
D127: =E116 -> 2 | E127: 2 | F127: 2 applicants
D128: =D121 -> 2 | E128: 3 | F128: 2 applicants
D129: =E121 -> 3 | E129: 4 | F129: 3 applicant
D130: =D122 -> 3 | E130: 5 | F130: 3 applicants
D131: =E122 -> 4 | E131: 6 | F131: 4 applicants
B133: Income Summary code | D133: Application 1
B134: Application 2 | D134: 1 | E134: 2
B135: 0 | C135: 1 | D135: =E126 -> 1 | E135: =E127 -> 2
B136: 1 | C136: 2 | D136: =E128 -> 3 | E136: =E129 -> 4
B137: 2 | C137: 3 | D137: =E130 -> 5 | E137: =E131 -> 6
B140: Source of this | C140: =ProductRate!E55 -> Repayment Type
B141: Repayment Type | C141: Note
B142: IO | C142: Interest Only
B143: P&I | C143: Principal & Interest
B146: Conversation enablement
B147: Conversation
B148: Office Work
B150: Cannot split this table, used in Split Loan Validation | F150: =User_I_Want_Product -> 0 | I150: Structure pre Your Way rebadge
B151: Home Loan Product Group | C151: Home Loan Product Group Short | D151: Split Option | F151: Test | G151: Used in Split validation | I151: Home Loan Product Group | J151: Home Loan Product Group Short | K151: Split Option
B152: Your Way Home Loan | C152: Yourway | D152: Parm_HL_Split_Options | F152: =VLOOKUP(User_I_Want_Product,Parm_HL_Product_GroupXpand,3,0) ->  | G152: =INDIRECT(VLOOKUP(User_I_Want_Product,Parm_HL_Product_GroupXpand,3,0)) ->  | I152: Classic Home Loan | J152: Classic | K152: Parm_SplitLoan_No
B153: Your Way Plus Home Loan | C153: Yourwyp | D153: Parm_HL_Split_Options | F153: =VLOOKUP(User_I_Want_Product,Parm_HL_Product_GroupXpand,3,0) ->  | I153: Your Way Home Loan | J153: Yourway | K153: Parm_HL_Split_Options
F154: =VLOOKUP(User_I_Want_Product,Parm_HL_Product_GroupXpand,3,0) ->  | I154: Your Way Plus Home Loan | J154: Yourwyp | K154: Parm_HL_Split_Options

Sheet Main (hidden)
B1: Teachers Mutual Bank Ltd | G1: V0.5
B2: Loan Servicing Calculator
A8: Applicant Name | G8: =NOW() -> 2026-06-12T13:01:29.510
A9: Personal Loan (Apply) | B9: ='Net Monthly Surplus'!E10 -> 0
A10: RediCredit Loan (Apply) | B10: ='Net Monthly Surplus'!E10 -> 0
A11: Total Loan Amount | B11: =IF('Payment Calculation'!K3="RediCredit",Loan_Investment,Loan_Owner_Occupied) -> 0
A12: Loan Interest Rate (p.a.) | B12: ='Payment Calculation'!K6 -> 0
A13: Loan Term (Years) | B13: ='Payment Calculation'!K5/12 -> 0 | E13: Help in using this Calculator is available on the next page.
A14: Monthly Payment | B14: =Proposed_Loan_Monthly_Payment -> 0 | E14: Use the Tab Key to move between fields on this page.
A16: Other Commitments not being Financed by the Proposed Loan
A17: Type | E17: Amount / Limit | F17: Total Monthly Payments
A18: Other Mortgage Loans - Owner Occupied
A19: Other Mortgage Loans - Investment | F19: ='Net Monthly Surplus'!C192+'Net Monthly Surplus'!D192 -> 1350
A20: Credit Cards (Total Limits) | E20: ='Net Monthly Surplus'!C194+'Net Monthly Surplus'!D194 -> 1700 | F20: =E20*Credit_Card_Monthly_Payment_Percent -> 51
A21: Other | E21: 0 | F21: ='Net Monthly Surplus'!C193+'Net Monthly Surplus'!D193 -> 1500
A22: Credit cards (New) | E22: =B4 -> 0 | F22: =E22*Credit_Card_Monthly_Payment_Percent -> 0
A23: Total | E23: =SUM(E18:E22) -> 1700 | F23: =SUM(F18:F22) -> 2901
A25: Income Calculations | B25: Gross Annual Income | C25: Gross Annual Rental Income | D25: Gross Annual Interest & Dividend Income | E25: Total Gross Annual Income | F25: Income Tax | G25: Net Annual Income
A26: Applicant 1 | B26: ='Net Monthly Surplus'!C186 -> 55000 | C26: ='Net Monthly Surplus'!C187 -> 10000 | D26: ='Net Monthly Surplus'!C188 -> 3000 | E26: =CalculationsReference!B19 -> 64400 | F26: =CalculationsReference!B35 -> 13765 | G26: =CalculationsReference!B36 -> 50635
A27: Applicant 2 | B27: ='Net Monthly Surplus'!D186 -> 45000 | C27: ='Net Monthly Surplus'!D187 -> 9000 | D27: ='Net Monthly Surplus'!D188 -> 2000 | E27: =CalculationsReference!C19 -> 52900 | F27: =CalculationsReference!C35 -> 9797 | G27: =CalculationsReference!C36 -> 43103
A28: Applicant 3 | B28: 0 | C28: 0 | D28: 0 | E28: =CalculationsReference!D19 -> 0 | F28: =CalculationsReference!D35 -> 0 | G28: =CalculationsReference!D36 -> 0
A29: Applicant 4 | B29: 0 | C29: 0 | D29: 0 | E29: =CalculationsReference!E19 -> 0 | F29: =CalculationsReference!E35 -> 0 | G29: =CalculationsReference!E36 -> 0
A30: Applicant 5 | B30: 0 | C30: 0 | D30: 0 | E30: =CalculationsReference!F19 -> 0 | F30: =CalculationsReference!F35 -> 0 | G30: =CalculationsReference!F36 -> 0
A31: Applicant 6 | B31: 0 | C31: 0 | D31: 0 | E31: =CalculationsReference!G19 -> 0 | F31: =CalculationsReference!G35 -> 0 | G31: =CalculationsReference!G36 -> 0
A32: Company NPBT - most recent year | B32: 0 | C32: 0 | E32: =CalculationsReference!H19 -> 0 | F32: =CalculationsReference!H33 -> 0 | G32: =CalculationsReference!H36 -> 0
A33: Company NPBT - previous year | B33: 0
A34: Amount Used as Company NPBT | B34: =IF(Company_NPBT_GAIncomePY=0,Company_NPBT_GAIncomeMRY,IF((Company_NPBT_GAIncomeMRY/Company_NPBT_GAIncomePY)<=1.2,Company_NPBT_GAIncomeMRY,Company_NPBT_GAIncomePY*1.2)) -> 0 | C34: =IF(Error_Count>0,VLOOKUP(1,Error_Table,2,FALSE),"") -> 
A35: Other non taxable income | E35: ='Net Monthly Surplus'!C190+'Net Monthly Surplus'!D190 -> 1500 | G35: ='Net Monthly Surplus'!C190+'Net Monthly Surplus'!D190 -> 1500
A36: Government Benefits & Pensions | E36: ='Net Monthly Surplus'!C189+'Net Monthly Surplus'!D189 -> 3000 | G36: ='Net Monthly Surplus'!C189+'Net Monthly Surplus'!D189 -> 3000
A37: Totals | B37: =SUM(B26:B31,B34) -> 100000 | C37: =SUM(C26:C32) -> 19000 | E37: =SUM(E26:E32)+E35+E36 -> 121800 | F37: =SUM(F26:F32) -> 23562 | G37: =SUM(G26:G36) -> 98238
A39: Borrower | C39: Calculated Living Expenses p.a.
A40: Borrower Type | B40: =VLOOKUP('Net Monthly Surplus'!C184,Main!$C$65:$D$83,2,0) -> Couple | C40: Calculated | E40: =Calculated_Living_Expenses -> 
A41: Borrower Residential Postcode | B41: ='Net Monthly Surplus'!C195 -> 2000 | C41: Overide (refer Help) | E41: 0
C42: Applicable for NSR | E42: =MAX(Calculated_Living_Expenses,Living_Expenses_Override) -> 
A44: Per Annum Calculations
A45: Borrower Estimated Living Expenses | B45: ='Net Monthly Surplus'!C191+'Net Monthly Surplus'!D191 -> 37500
A46: Assessed Living Expenses | C46: =IF(Calculated_Living_Expenses>=B45,Calculated_Living_Expenses,B45) ->  | E46: Total Net Income | G46: =Total_Net_Annual_Income -> 98238
A47: ="Proposed Loan Payments @ "&TEXT(CalculationsReference!E8,"##0.00%") -> Proposed Loan Payments @ 0.00% | C47: =NSR_Rate_Monthly_Payment*12 -> 0 | E47: Total Costs | G47: =SUM(C46:C48) -> 
A48: Other Commitment Payments | C48: =Other_Commits_Total_Monthly_Payment*12 -> 34812 | E48: Net Disposable Income | G48: =G46-G47 -> 
A50: Yearly Surplus | B50: =ARA -> 
A51: Monthly Surplus | B51: =ARA_MONTHLY -> 
A52: =Maximum_Loan_Amount_Text ->  | B52: =MaximumLoanAmount -> 
C64: AppSmart Desc | D64: Hem Desc | G64: From Frontend | H64: Should return
A65: Couple | C65: Couple | D65: Couple | G65: Couple | H65: =VLOOKUP(G65,$C$65:$D$83,2,0) -> Couple
A66: Couple with 1 child | C66: Couple 1 Child | D66: Couple with 1 child | G66: Couple 1 Child | H66: =VLOOKUP(G66,$C$65:$D$83,2,0) -> Couple with 1 child
A67: Couple with 2 children | C67: Couple 2 Child | D67: Couple with 2 children | G67: Couple 2 Child | H67: Couple with 2 children
A68: Couple with 3 or more children | C68: Couple 3 Child | D68: Couple with 3 or more children | G68: Couple 3 Child | H68: Couple with 3 or more children
C69: Couple 4 Child | D69: Couple with 3 or more children | G69: Couple 4 Child | H69: Couple with 3 or more children
C70: Couple 5 Child | D70: Couple with 3 or more children | G70: Couple 5 Child | H70: Couple with 3 or more children
C71: Couple 6 Child | D71: Couple with 3 or more children | G71: Couple 6 Child | H71: Couple with 3 or more children
C72: Couple 7 Child | D72: Couple with 3 or more children | G72: Couple 7 Child | H72: Couple with 3 or more children
C73: Couple 8 Child | D73: Couple with 3 or more children | G73: Couple 8 Child | H73: Couple with 3 or more children
A75: Single person | C75: Single | D75: Single person | G75: Single | H75: Single person
A76: Single parent with 1 child | C76: Single Parent 1 Child | D76: Single parent with 1 child | G76: Single Parent 1 Child | H76: Single parent with 1 child
A77: Single parent with 2 children | C77: Single Parent 2 Child | D77: Single parent with 2 children | G77: Single Parent 2 Child | H77: Single parent with 2 children
A78: Single parent with 3 or more children | C78: Single Parent 3 Child | D78: Single parent with 3 or more children | G78: Single Parent 3 Child | H78: Single parent with 3 or more children
C79: Single Parent 4 Child | D79: Single parent with 3 or more children | G79: Single Parent 4 Child | H79: Single parent with 3 or more children
C80: Single Parent 5 Child | D80: Single parent with 3 or more children | G80: Single Parent 5 Child | H80: Single parent with 3 or more children
C81: Single Parent 6 Child | D81: Single parent with 3 or more children | G81: Single Parent 6 Child | H81: Single parent with 3 or more children
C82: Single Parent 7 Child | D82: Single parent with 3 or more children | G82: Single Parent 7 Child | H82: Single parent with 3 or more children
C83: Single Parent 8 Child | D83: Single parent with 3 or more children | G83: Single Parent 8 Child | H83: Single parent with 3 or more children
C91: Used in Parm
C92: Row Labels | D92: Count of AppSmart Desc
C93: Couple | D93: 1
C94: Couple with 1 child | D94: 1
C95: Couple with 2 children | D95: 1
C96: Couple with 3 or more children | D96: 6
C97: Single parent with 1 child | D97: 1
C98: Single parent with 2 children | D98: 1
C99: Single parent with 3 or more children | D99: 6
C100: Single person | D100: 1
C101: Grand Total | D101: 18

Sheet Help (hidden)
A1: Home Loans Mortgage Loan Servicing Calculator - Help Reference | F1: =Main!G1 -> V0.5
A3: BORROWER & NEW LOAN DETAILS
A5: Applicant Name | B5: Enter borrower surname(s) and initials.
A7: Loan - Owner Occupied | B7: Enter total proposed new (Owner Occupied) loan amount(s).
A9: Loan - Investment | B9: Enter total proposed new (Investment) loan amount(s).
A11: Loan Interest Rate (p.a.) | B11: Enter the actual rate for this loan. The calculator will then apply the higher of the rate you entered (plus 1.50%), or the
B12: Benchmark Rate, whichever is the highest. The benchmark Rate is published from time to time and can be reset using
B13: the "CalculationsReference" worksheet (click on that worksheet tab, below).
A15: Loan Term (Years) | B15: For new loans, enter loan term of 10, 15, 20, 25 or 30 years.
B16: For further advances, enter remaining term, rounded to the nearest year.
A18: PRINTING, REFRESHING AND MOVING AROUND THE CALCULATOR
A20: Refresh Button | B20: Press to clear the calculator and start again with a new calculation.
A22: Zoom / 100% Button | B22: Press to toggle between the maximum Full screen view of the entire page and a 100% view.
A24: Preview Button | B24: Press to print preview the Calculator Print Page.
A26: Print Button | B26: Press to print the Calculator Print Page without preview.
A28: Tab Key | B28: If your tab key does not move you between the calculator fields, click on:
A29: Enter total number of children dependent on all adult borrowers. | B29: Tools, Options, Transition and then ensure that the Transition navigation box is NOT ticked.
A31: BORROWERS AND DEPENDENTS
A33: Adult Singles | B33: Enter number of single adult borrowers.
A35: Adult Couples | B35: Enter number of adult couples borrowers (e.g 1 couple, enter “1”, 2 couples, enter “2”).
A37: Dependent Children | B37: Enter total number of children dependent on all adult borrowers.
A39: Companies and/or Trusts | B39: The number of adults and children should be included for all applications, even if the borrower is a company or trust
B40: entity (e.g. Smith Pty Ltd may = Mr & Mrs Smith + 3 children).
A42: CALCULATED LIVING EXPENSES
A44: Calculated | B44: Total living expenses will be automatically calculated based upon the number of adult singles, adult couples and
B45: total dependent children.
A47: Overide (refer Help) | B47: The calculated amount should be manually increased in circumstances where the declared expenditure in the loan
B48: application exceeds the calculated living expenses amount. If an application declares that actual living expenses are
B49: less than the calculated living expenses, do not attempt to reduce the calculated amount. Simply explain the position
B50: in your submission and provide evidence of claimed living costs.
A52: OTHER COMMITMENTS
A54: Other Loans - Owner Occupied | B54: Enter total current limit/balance(s) and total monthly payment(s) for all EXISTING OWNER OCCUPIED facilities.
A56: Other Loans - Investment | B56: Enter total current limit/balance(s) and total monthly payment(s) for all EXISTING INVESTMENT facilities.
A58: Credit Cards (Total Limits) | B58: Enter total of all credit card limits. Monthly payment commitments will be calculated automatically using the usual 3%
B59: of total limits, per month (i.e 36% per annum).
A61: Other (Please Specify) | B61: Enter the total amount of any personal, lease or other committed payment(s) not already included in “Loans” or “Credit
B62: Cards”. Please specify details such as type of commitment and lender.
A64: Total | B64: Automatically calculates credit card payments and totals all other commitment payments.
A66: INCOME CALCULATIONS
A68: Gross Income of Applicants 1- 6 | B68: Enter gross annual income for each applicant, including Sole Trader/Partnership Net Profit Before Tax.
A70: Gross Annual Rental Income | B70: Enter gross annual rental income using the lesser of:
B71: - valuer’s estimate (per valuation report);
B72: - current rent received (evidenced by statements); or
B73: - letter from Real Estate Agent.
B74: When an investment property loan is included on the NSR calculator and the rent from that property is entered in the Gross Annual
B75: Rental Income field, the calculator will add rent plus the borrower's income together, calculate the amount of tax deductible interest,
B76: then reduce the borrower's total taxable income by that amount.
A78: Company NPBT, most recent year | B78: Enter total annual company Net Profit Before Tax for last financial year
A80: Company NPBT, previous year | B80: Enter total annual company Net Profit Before Tax for financial year before last
A82: Amt used as Company NPBT | B82: Automatically calculates Company Net Profit Before Tax, as set out in the Operations Manual.
A84: Company/Business Addbacks | B84: Enter total amount of any allowable non-cash addbacks (i.e. depreciation).
A86: Centrelink Family Payments | B86: Enter total amount of eligible Centrelink Family payments (Type A & B only).
A88: CALCULATED LIVING EXPENSES
A90: Total Net Income | B90: Automatically totals all personal, rental and company income, and deducts tax.
B91: For loans involving existing and/or proposed investment loans:
B92: - the calculator will add rent plus the borrower's base income together, calculate the amount of tax-deductible interest payable
B93: on investment loans, then reduce the borrower's total taxable income by that amount.
B94: - tax-deductible interest is apportioned across applicants in accordance with the allocation of rent. For example, total rent
B95: of $10,000 allocated against Applicant 1 @ $6,000 and Applicant 2 @ $4,000 would see total tax-deductible interest
B96: allocated as to 60% Applicant 1 and 40% Applicant 2.
A98: Monthly Payment | B98: The monthly payment for total proposed new/increased loan amount(s) will be automatically calculated.
A100: Loan Amount | B100: Automatically totals all proposed Owner Occupied and/or Investment loans being applied for.
A102: Total Costs | B102: Automatically totals all living expenses, proposed loan payments and other commitment payments.
A104: Net Disposable Income | B104: Automatically calculates net income after tax, living expenses, proposed new loan payments and all other commitment payments.
A106: Yearly Surplus | B106: Automatically calculates the Assessed Repayment Amount per year, as below:
B107: "Total Net Income" minus "Total Costs" equals surplus
B108: "Total Net Income" equals gross income minus income tax
B109: "Total Costs" equals (assessed living expenses plus proposed repayments plus existing other debt repayments)
A111: Monthly Surplus | B111: Surplus must be greater than $0 to be acceptable.
A113: Maximum Loan Amount | B113: Maximum Loan Amount is for demonstrative purposes only and is shown in whole $1,000 amounts only.
B114: Where any new or existing investment loan(s) is involved, an asterix will appear indicating that the Maximum Loan Amount is
B115: an approximation only. To determine the actual maximum servicing capacity, simply amend the amount applied for in line
B116: with the approximated loan amount until both amounts agree. This may require a few attempts but, when the amounts are in
B117: equilibrium, the asterix will no longer appear.
B118: In any case, the Maximum Loan Amount in this calculator is limited to $2 million.
B119: The maximum loan amount of any lending approval is subject to policy and processes as set out in the Consumer Credit
B120: Assessment Principles eg dependent on LVR, acceptable property guidelines and Lender's Mortgage Insurance approval.

Sheet TMBLCalculation (hidden)
J1: Start | K1: 18201 | L1: Increment | M1: 100 | O1: 5000000 | P1: =O1-M4 -> 4981799 | Q1: =P1/M1 -> 49817.99 | W1: test GetNetSalary function | AC1: test GetGrossSalary function
K2: =Parm!O25 -> 18201 | W2: Gross Salary | X2: Net Salary | Z2: Tax | AC2: Net Salary | AD2: Gross Salary | AE2: Check | AF2: Tax | AG2: Effectie Tax rate
D3: Applicant 1 | E3: Applicant 2 | F3: Applicant 3 | G3: Applicant 4 | L3: Listno | M3: Gross Income | N3: =C9 -> Tax Scale Base | O3: =C10 -> Base Tax Amount | P3: =C11 -> Salary Over Base Tax Amount | Q3: =C12 -> Tax Scale Rate | R3: =C13 -> Tax on Over Base Amount | S3: Tax | T3: Net Income | U3: Derived Gross | V3: Effective Tax rate | W3: 0 | X3: =GetNetSalary(W3) -> 0
L4: 1 | M4: =K1 -> 18201 | N4: =IF(M4>0,VLOOKUP(M4,ATOTaxScales,1),0) -> 18201 | O4: =IF(M4>0,VLOOKUP(M4,ATOTaxScales,2),0) -> 0 | P4: =IF(M4>0,M4-N4,0) -> 0 | Q4: =IF(M4>0,VLOOKUP(M4,ATOTaxScales,3),0) -> 0.16 | R4: =IF(M4>0,ROUND(P4*Q4,2),0) -> 0 | S4: =IF(M4>0,ROUND(O4+R4,0),0) -> 0 | T4: =M4-S4 -> 18201 | U4: =M4 -> 18201 | V4: =S4/M4 -> 0 | W4: =M4 -> 18201 | X4: 18201 | Y4: =X4-T4 -> 0 | Z4: =W4-X4 -> 0 | AC4: =T4 -> 18201 | AD4: =GetGrossSalary(AC4) -> 18201 | AE4: =AD4-U4 -> 8.569586498e-07 | AF4: =AD4-AC4 -> 8.569586498e-07 | AG4: =AF4/AD4 -> 4.708305312e-11
C5: ='Net Monthly Surplus'!B36 -> Salary | D5: ='Net Monthly Surplus'!AB33 -> 0 | E5: ='Net Monthly Surplus'!AE33 -> 0 | F5: ='Net Monthly Surplus'!AB65 -> 0 | G5: ='Net Monthly Surplus'!AE65 -> 0 | L5: 2 | M5: =M4+$M$1 -> 18301 | N5: 18201 | O5: 0 | P5: =IF(M5>0,M5-N5,0) -> 100 | Q5: 0.16 | R5: =IF(M5>0,ROUND(P5*Q5,2),0) -> 16 | S5: =IF(M5>0,ROUND(O5+R5,0),0) -> 16 | T5: =M5-S5 -> 18285 | U5: =M5 -> 18301 | V5: =S5/M5 -> 0.0008742691656 | W5: =M5 -> 18301 | X5: 18285 | Y5: =X5-T5 -> 0 | Z5: =W5-X5 -> 16 | AC5: =T5 -> 18285 | AD5: =GetGrossSalary(AC5) -> 18301 | AE5: =AD5-U5 -> 8.60192813e-07 | AF5: =AD5-AC5 -> 16.00000086 | AG5: =AF5/AD5 -> 0.0008742692126
C6: ='Net Monthly Surplus'!B37 -> Second Job Salary | D6: ='Net Monthly Surplus'!AB34 -> 0 | E6: ='Net Monthly Surplus'!AE34 -> 0 | F6: ='Net Monthly Surplus'!AB66 -> 0 | G6: ='Net Monthly Surplus'!AE66 -> 0 | L6: 3 | M6: =M5+$M$1 -> 18401 | N6: 18201 | O6: 0 | P6: =IF(M6>0,M6-N6,0) -> 200 | Q6: 0.16 | R6: =IF(M6>0,ROUND(P6*Q6,2),0) -> 32 | S6: =IF(M6>0,ROUND(O6+R6,0),0) -> 32 | T6: =M6-S6 -> 18369 | U6: =M6 -> 18401 | V6: 0.001739035922 | W6: 18401 | X6: 18369 | Y6: 0 | Z6: 32 | AC6: 18369 | AD6: 18401 | AE6: =AD6-U6 -> 8.634269761e-07 | AF6: =AD6-AC6 -> 32.00000086 | AG6: 0.001739035969
C7: Other Income | D7: ='Net Monthly Surplus'!AC37+'Net Monthly Surplus'!AC38+'Net Monthly Surplus'!AC39+'Net Monthly Surplus'!AC41+'Net Monthly Surplus'!AC42+'Net Monthly Surplus'!AC43+'Net Monthly Surplus'!AC44 -> 0 | E7: ='Net Monthly Surplus'!AF37+'Net Monthly Surplus'!AF38+'Net Monthly Surplus'!AF39+'Net Monthly Surplus'!AF41+'Net Monthly Surplus'!AF42+'Net Monthly Surplus'!AF43+'Net Monthly Surplus'!AF44 -> 0 | F7: ='Net Monthly Surplus'!AC69+'Net Monthly Surplus'!AC70+'Net Monthly Surplus'!AC71+'Net Monthly Surplus'!AC73+'Net Monthly Surplus'!AC74+'Net Monthly Surplus'!AC75 -> 0 | G7: ='Net Monthly Surplus'!AF69+'Net Monthly Surplus'!AF70+'Net Monthly Surplus'!AF71+'Net Monthly Surplus'!AF73+'Net Monthly Surplus'!AF74+'Net Monthly Surplus'!AF75 -> 0 | L7: 4 | M7: 18501 | N7: 18201 | O7: 0 | P7: 300 | Q7: 0.16 | R7: 48 | S7: 48 | T7: 18453 | U7: 18501 | V7: 0.002594454354 | W7: 18501 | X7: 18453 | Y7: 0 | Z7: 48 | AC7: 18453 | AD7: 18501 | AE7: =AD7-U7 -> 8.666611393e-07 | AF7: =AD7-AC7 -> 48.00000087 | AG7: =AF7/AD7 -> 0.002594454401
C8: Total Gross Salay | D8: =SUM(D5:D7) -> 0 | E8: =SUM(E5:E7) -> 0 | F8: 0 | G8: 0 | K8: =D8/12 -> 0 | L8: 5 | M8: 18601 | N8: 18201 | O8: 0 | P8: 400 | Q8: 0.16 | R8: 64 | S8: 64 | T8: 18537 | U8: 18601 | V8: 0.003440675233 | W8: 18601 | X8: 18537 | Y8: 0 | Z8: 64 | AC8: 18537 | AD8: 18601 | AE8: 8.698989404e-07 | AF8: 64.00000087 | AG8: 0.003440675279
C9: Tax Scale Base | D9: =IF(D8>0,VLOOKUP(D8,ATOTaxScales,1),0) -> 0 | E9: =IF(E8>0,VLOOKUP(E8,ATOTaxScales,1),0) -> 0 | F9: =IF(F8>0,VLOOKUP(F8,ATOTaxScales,1),0) -> 0 | G9: =IF(G8>0,VLOOKUP(G8,ATOTaxScales,1),0) -> 0 | L9: 6 | M9: 18701 | N9: 18201 | O9: 0 | P9: 500 | Q9: 0.16 | R9: 80 | S9: 80 | T9: 18621 | U9: 18701 | V9: 0.004277846104 | W9: 18701 | X9: 18621 | Y9: 0 | Z9: 80 | AC9: 18621 | AD9: 18701 | AE9: 8.731294656e-07 | AF9: 80.00000087 | AG9: 0.004277846151
C10: Base Tax Amount | D10: =IF(D8>0,VLOOKUP(D8,ATOTaxScales,2),0) -> 0 | E10: =IF(E8>0,VLOOKUP(E8,ATOTaxScales,2),0) -> 0 | F10: =IF(F8>0,VLOOKUP(F8,ATOTaxScales,2),0) -> 0 | G10: =IF(G8>0,VLOOKUP(G8,ATOTaxScales,2),0) -> 0 | L10: 7 | M10: 18801 | N10: 18201 | O10: 0 | P10: 600 | Q10: 0.16 | R10: 96 | S10: 96 | T10: 18705 | U10: 18801 | V10: 0.005106111377 | W10: =M10 -> 18801 | X10: 18705 | Y10: =X10-T10 -> 0 | Z10: 96 | AC10: 18705 | AD10: 18801 | AE10: 8.763672668e-07 | AF10: 96.00000088 | AG10: 0.005106111423
C11: Salary Over Base Tax Amount | D11: =IF(D8>0,D8-D9,0) -> 0 | E11: =IF(E8>0,E8-E9,0) -> 0 | F11: 0 | G11: 0 | L11: 8 | M11: 18901 | N11: 18201 | O11: 0 | P11: 700 | Q11: 0.16 | R11: 112 | S11: 112 | T11: 18789 | U11: 18901 | V11: 0.005925612401 | W11: 18901 | X11: 18789 | Y11: 0 | Z11: 112 | AC11: 18789 | AD11: 18901 | AE11: 8.796014299e-07 | AF11: 112.0000009 | AG11: 0.005925612448
C12: Tax Scale Rate | D12: =IF(D8>0,VLOOKUP(D8,ATOTaxScales,3),0) -> 0 | E12: =IF(E8>0,VLOOKUP(E8,ATOTaxScales,3),0) -> 0 | F12: =IF(F8>0,VLOOKUP(F8,ATOTaxScales,3),0) -> 0 | G12: =IF(G8>0,VLOOKUP(G8,ATOTaxScales,3),0) -> 0 | L12: 9 | M12: 19001 | N12: 18201 | O12: 0 | P12: 800 | Q12: 0.16 | R12: 128 | S12: 128 | T12: 18873 | U12: 19001 | V12: 0.006736487553 | W12: 19001 | X12: 18873 | Y12: 0 | Z12: 128 | AC12: 18873 | AD12: 19001 | AE12: 8.828355931e-07 | AF12: 128.0000009 | AG12: 0.006736487599
C13: Tax on Over Base Amount | D13: =IF(D8>0,ROUND(D12*D11,2),0) -> 0 | E13: =IF(E8>0,ROUND(E12*E11,2),0) -> 0 | F13: 0 | G13: 0 | L13: 10 | M13: 19101 | N13: 18201 | O13: 0 | P13: 900 | Q13: 0.16 | R13: 144 | S13: 144 | T13: 18957 | U13: 19101 | V13: 0.00753887231 | W13: 19101 | X13: 18957 | Y13: 0 | Z13: 144 | AC13: 18957 | AD13: 19101 | AE13: 8.860697562e-07 | AF13: 144.0000009 | AG13: 0.007538872356
C14: Tax | D14: =IF(D8>0,ROUND(D10+D13,0),0) -> 0 | E14: =IF(E8>0,ROUND(E10+E13,0),0) -> 0 | F14: 0 | G14: 0 | L14: 11 | M14: 19201 | N14: 18201 | O14: 0 | P14: 1000 | Q14: 0.16 | R14: 160 | S14: 160 | T14: 19041 | U14: 19201 | V14: 0.008332899328 | W14: 19201 | X14: 19041 | Y14: 0 | Z14: 160 | AC14: 19041 | AD14: 19201 | AE14: 8.893039194e-07 | AF14: 160.0000009 | AG14: 0.008332899374
C15: Medicare Levy | D15: =ROUND(Parm_Medicare_Levy_Rate*D8,0)*D22 -> 0 | E15: =ROUND(Parm_Medicare_Levy_Rate*E8,0)*E22 -> 0 | F15: =ROUND(Parm_Medicare_Levy_Rate*F8,0)*F22 -> 0 | G15: =ROUND(Parm_Medicare_Levy_Rate*G8,0)*G22 -> 0 | L15: 12 | M15: 19301 | N15: 18201 | O15: 0 | P15: 1100 | Q15: 0.16 | R15: 176 | S15: 176 | T15: 19125 | U15: 19301 | V15: 0.009118698513 | W15: 19301 | X15: 19125 | Y15: 0 | Z15: 176 | AC15: 19125 | AD15: 19301 | AE15: 8.925380826e-07 | AF15: 176.0000009 | AG15: 0.009118698559
C16: Total Tax & Medicare Levy | D16: =ROUND(D14+D15,0) -> 0 | E16: =ROUND(E14+E15,0) -> 0 | F16: 0 | G16: 0 | L16: 13 | M16: 19401 | N16: 18201 | O16: 0 | P16: 1200 | Q16: 0.16 | R16: 192 | S16: 192 | T16: 19209 | U16: 19401 | V16: 0.009896397093 | W16: 19401 | X16: 19209 | Y16: 0 | Z16: 192 | AC16: =T16 -> 19209 | AD16: 19401 | AE16: =AD16-U16 -> 8.957722457e-07 | AF16: =AD16-AC16 -> 192.0000009 | AG16: =AF16/AD16 -> 0.009896397139
C17: Total Net Annual Income | D17: =ROUND(D8-D16,0) -> 0 | E17: =ROUND(E8-E16,0) -> 0 | F17: 0 | G17: 0 | L17: 14 | M17: 19501 | N17: 18201 | O17: 0 | P17: 1300 | Q17: 0.16 | R17: 208 | S17: 208 | T17: 19293 | U17: 19501 | V17: 0.01066611969 | W17: =M17 -> 19501 | X17: 19293 | Y17: =X17-T17 -> 0 | Z17: 208 | AC17: 19293 | AD17: 19501 | AE17: 8.990064089e-07 | AF17: 208.0000009 | AG17: 0.01066611973
L18: 15 | M18: 19601 | N18: 18201 | O18: 0 | P18: 1400 | Q18: 0.16 | R18: 224 | S18: 224 | T18: 19377 | U18: 19601 | V18: 0.01142798837 | W18: 19601 | X18: 19377 | Y18: 0 | Z18: 224 | AC18: 19377 | AD18: 19601 | AE18: 9.02240572e-07 | AF18: 224.0000009 | AG18: 0.01142798841
C19: Total Net Annual Income & Medicare Levy | D19: =D15+D17 -> 0 | E19: =E15+E17 -> 0 | F19: =F15+F17 -> 0 | G19: 0 | L19: 16 | M19: 19701 | N19: 18201 | O19: 0 | P19: 1500 | Q19: 0.16 | R19: 240 | S19: 240 | T19: 19461 | U19: 19701 | V19: 0.01218212273 | W19: 19701 | X19: 19461 | Y19: 0 | Z19: 240 | AC19: 19461 | AD19: 19701 | AE19: 9.054747352e-07 | AF19: 240.0000009 | AG19: 0.01218212278
L20: 17 | M20: 19801 | N20: 18201 | O20: 0 | P20: 1600 | Q20: 0.16 | R20: 256 | S20: 256 | T20: 19545 | U20: 19801 | V20: 0.01292863997 | W20: 19801 | X20: 19545 | Y20: 0 | Z20: 256 | AC20: 19545 | AD20: 19801 | AE20: 9.087088984e-07 | AF20: 256.0000009 | AG20: 0.01292864001
C21: Medicare Levy Threshold | D21: =Parm_Income_Theshold_for_Medicare_Levy -> 27476 | E21: =Parm_Income_Theshold_for_Medicare_Levy -> 27476 | F21: =Parm_Income_Theshold_for_Medicare_Levy -> 27476 | G21: =Parm_Income_Theshold_for_Medicare_Levy -> 27476 | L21: 18 | M21: 19901 | N21: 18201 | O21: 0 | P21: 1700 | Q21: 0.16 | R21: 272 | S21: 272 | T21: 19629 | U21: 19901 | V21: 0.01366765489 | W21: =M21 -> 19901 | X21: 19629 | Y21: =X21-T21 -> 0 | Z21: =W21-X21 -> 272 | AC21: =T21 -> 19629 | AD21: 19901 | AE21: =AD21-U21 -> 9.119430615e-07 | AF21: =AD21-AC21 -> 272.0000009 | AG21: =AF21/AD21 -> 0.01366765494
C22: Apply Medicare Levy | D22: =IF(D8-D21>0,1,0) -> 0 | E22: =IF(E8-E21>0,1,0) -> 0 | F22: 0 | G22: 0 | L22: 19 | M22: 20001 | N22: 18201 | O22: 0 | P22: 1800 | Q22: 0.16 | R22: 288 | S22: 288 | T22: 19713 | U22: 20001 | V22: 0.01439928004 | W22: 80000 | X22: 63612.3 | Y22: =X22-T22 -> 43899.3 | Z22: =W22-X22 -> 16387.7 | AA22: =Z22/W22 -> 0.20484625 | AC22: 19713 | AD22: 20001 | AE22: 9.151772247e-07 | AF22: 288.0000009 | AG22: 0.01439928008
L23: 20 | M23: 20101 | N23: 18201 | O23: 0 | P23: 1900 | Q23: 0.16 | R23: 304 | S23: 304 | T23: 19797 | U23: 20101 | V23: 0.01512362569 | AC23: 19797 | AD23: 20101 | AE23: 9.184113878e-07 | AF23: 304.0000009 | AG23: 0.01512362574
L24: 21 | M24: 20201 | N24: 18201 | O24: 0 | P24: 2000 | Q24: 0.16 | R24: 320 | S24: 320 | T24: 19881 | U24: 20201 | V24: 0.01584079996 | AC24: =T24 -> 19881 | AD24: 20201 | AE24: =AD24-U24 -> 9.21645551e-07 | AF24: =AD24-AC24 -> 320.0000009 | AG24: =AF24/AD24 -> 0.01584080001
L25: 22 | M25: 20301 | N25: 18201 | O25: 0 | P25: 2100 | Q25: 0.16 | R25: 336 | S25: 336 | T25: 19965 | U25: 20301 | V25: 0.01655090882 | AC25: 19965 | AD25: 20301 | AE25: 9.248833521e-07 | AF25: 336.0000009 | AG25: 0.01655090887
C26: ='Net Monthly Surplus'!B36 -> Salary | D26: ='Net Monthly Surplus'!BL35 -> 0 | E26: ='Net Monthly Surplus'!BS35 -> 0 | F26: ='Net Monthly Surplus'!BL67 -> 0 | G26: ='Net Monthly Surplus'!BS67 -> 0 | L26: 23 | M26: 20401 | N26: 18201 | O26: 0 | P26: 2200 | Q26: 0.16 | R26: 352 | S26: 352 | T26: 20049 | U26: 20401 | V26: 0.01725405617 | AC26: =T26 -> 20049 | AD26: 20401 | AE26: =AD26-U26 -> 9.281175153e-07 | AF26: =AD26-AC26 -> 352.0000009 | AG26: =AF26/AD26 -> 0.01725405622
C27: ='Net Monthly Surplus'!B37 -> Second Job Salary | D27: ='Net Monthly Surplus'!BL36 -> 0 | E27: ='Net Monthly Surplus'!BS36 -> 0 | F27: ='Net Monthly Surplus'!BL68 -> 0 | G27: ='Net Monthly Surplus'!BS68 -> 0 | L27: 24 | M27: 20501 | N27: 18201 | O27: 0 | P27: 2300 | Q27: 0.16 | R27: 368 | S27: 368 | T27: 20133 | U27: 20501 | V27: 0.01795034389 | AC27: 20133 | AD27: 20501 | AE27: 9.313516784e-07 | AF27: 368.0000009 | AG27: 0.01795034393
C28: ='Net Monthly Surplus'!B38 -> Gross Regular Shift Allowance/Overtime | D28: ='Net Monthly Surplus'!BL37 -> 0 | E28: ='Net Monthly Surplus'!BS37 -> 0 | F28: ='Net Monthly Surplus'!BL69 -> 0 | G28: ='Net Monthly Surplus'!BS69 -> 0 | L28: 25 | M28: 20601 | N28: 18201 | O28: 0 | P28: 2400 | Q28: 0.16 | R28: 384 | S28: 384 | T28: 20217 | U28: 20601 | V28: 0.01863987185 | AC28: 20217 | AD28: 20601 | AE28: 9.345858416e-07 | AF28: 384.0000009 | AG28: 0.0186398719
C29: ='Net Monthly Surplus'!B39 -> Gross Bonuses | D29: ='Net Monthly Surplus'!BL38 -> 0 | E29: ='Net Monthly Surplus'!BS38 -> 0 | F29: ='Net Monthly Surplus'!BL70 -> 0 | G29: ='Net Monthly Surplus'!BS70 -> 0 | L29: 26 | M29: 20701 | N29: 18201 | O29: 0 | P29: 2500 | Q29: 0.16 | R29: 400 | S29: 400 | T29: 20301 | U29: 20701 | V29: 0.01932273803 | AC29: 20301 | AD29: 20701 | AE29: 9.378200048e-07 | AF29: 400.0000009 | AG29: 0.01932273808
C30: ='Net Monthly Surplus'!B40 -> Gross Commissions | D30: ='Net Monthly Surplus'!BL39 -> 0 | E30: ='Net Monthly Surplus'!BS39 -> 0 | F30: ='Net Monthly Surplus'!BL71 -> 0 | G30: ='Net Monthly Surplus'!BS71 -> 0 | L30: 27 | M30: 20801 | N30: 18201 | O30: 0 | P30: 2600 | Q30: 0.16 | R30: 416 | S30: 416 | T30: 20385 | U30: 20801 | V30: 0.01999903851 | AC30: 20385 | AD30: 20801 | AE30: 9.410541679e-07 | AF30: 416.0000009 | AG30: 0.01999903855
C31: ='Net Monthly Surplus'!B41 -> Rental Income | D31: ='Net Monthly Surplus'!BL40 -> 0 | E31: ='Net Monthly Surplus'!BS40 -> 0 | F31: ='Net Monthly Surplus'!BL72 -> 0 | G31: ='Net Monthly Surplus'!BS72 -> 0 | L31: 28 | M31: 20901 | N31: 18201 | O31: 0 | P31: 2700 | Q31: 0.16 | R31: 432 | S31: 432 | T31: 20469 | U31: 20901 | V31: 0.02066886752 | AC31: 20469 | AD31: 20901 | AE31: 9.442883311e-07 | AF31: 432.0000009 | AG31: 0.02066886756
C32: ='Net Monthly Surplus'!B42 -> Allowances | D32: ='Net Monthly Surplus'!BL41 -> 0 | E32: ='Net Monthly Surplus'!BS41 -> 0 | F32: ='Net Monthly Surplus'!BL72 -> 0 | G32: ='Net Monthly Surplus'!BS72 -> 0 | L32: 29 | M32: 21001 | N32: 18201 | O32: 0 | P32: 2800 | Q32: 0.16 | R32: 448 | S32: 448 | T32: 20553 | U32: 21001 | V32: 0.02133231751 | AC32: 20553 | AD32: 21001 | AE32: 9.475224942e-07 | AF32: 448.0000009 | AG32: 0.02133231755
C33: ='Net Monthly Surplus'!B43 -> Interest | D33: ='Net Monthly Surplus'!BL42 -> 0 | E33: ='Net Monthly Surplus'!BS42 -> 0 | F33: ='Net Monthly Surplus'!BL73 -> 0 | G33: ='Net Monthly Surplus'!BS73 -> 0 | L33: 30 | M33: 21101 | N33: 18201 | O33: 0 | P33: 2900 | Q33: 0.16 | R33: 464 | S33: 464 | T33: 20637 | U33: 21101 | V33: 0.02198947917 | AC33: 20637 | AD33: 21101 | AE33: 9.507566574e-07 | AF33: 464.000001 | AG33: 0.02198947922
C34: ='Net Monthly Surplus'!B44 -> Annuities | D34: ='Net Monthly Surplus'!BL43 -> 0 | E34: ='Net Monthly Surplus'!BS43 -> 0 | F34: ='Net Monthly Surplus'!BL74 -> 0 | G34: ='Net Monthly Surplus'!BS74 -> 0 | L34: 31 | M34: 21201 | N34: 18201 | O34: 0 | P34: 3000 | Q34: 0.16 | R34: 480 | S34: 480 | T34: 20721 | U34: 21201 | V34: 0.02264044149 | AC34: 20721 | AD34: 21201 | AE34: 9.539908206e-07 | AF34: 480.000001 | AG34: 0.02264044153
C35: ='Net Monthly Surplus'!B45 -> Dividends | D35: ='Net Monthly Surplus'!BL44 -> 0 | E35: ='Net Monthly Surplus'!BS44 -> 0 | F35: ='Net Monthly Surplus'!BL75 -> 0 | G35: ='Net Monthly Surplus'!BS75 -> 0 | L35: 32 | M35: 21301 | N35: 18201 | O35: 0 | P35: 3100 | Q35: 0.16 | R35: 496 | S35: 496 | T35: 20805 | U35: 21301 | V35: 0.02328529177 | AC35: 20805 | AD35: 21301 | AE35: 9.572249837e-07 | AF35: 496.000001 | AG35: 0.02328529181
C36: ='Net Monthly Surplus'!B46 -> Pension | D36: ='Net Monthly Surplus'!BL45 -> 0 | E36: ='Net Monthly Surplus'!BS45 -> 0 | F36: ='Net Monthly Surplus'!BL76 -> 0 | G36: ='Net Monthly Surplus'!BS76 -> 0 | L36: 33 | M36: 21401 | N36: 18201 | O36: 0 | P36: 3200 | Q36: 0.16 | R36: 512 | S36: 512 | T36: 20889 | U36: 21401 | V36: 0.0239241157 | AC36: 20889 | AD36: 21401 | AE36: 9.604591469e-07 | AF36: 512.000001 | AG36: 0.02392411574
C37: ='Net Monthly Surplus'!B47 -> Government Assistance | D37: ='Net Monthly Surplus'!BL46 -> 0 | E37: ='Net Monthly Surplus'!BS46 -> 0 | F37: ='Net Monthly Surplus'!BL77 -> 0 | G37: ='Net Monthly Surplus'!BS77 -> 0 | L37: 34 | M37: 21501 | N37: 18201 | O37: 0 | P37: 3300 | Q37: 0.16 | R37: 528 | S37: 528 | T37: 20973 | U37: 21501 | V37: 0.02455699735 | AC37: 20973 | AD37: 21501 | AE37: 9.6369331e-07 | AF37: 528.000001 | AG37: 0.02455699739
C38: ='Net Monthly Surplus'!B48 -> Superannuation | D38: ='Net Monthly Surplus'!BL47 -> 0 | E38: ='Net Monthly Surplus'!BS47 -> 0 | F38: ='Net Monthly Surplus'!BL78 -> 0 | G38: ='Net Monthly Surplus'!BS78 -> 0 | L38: 35 | M38: 21601 | N38: 18201 | O38: 0 | P38: 3400 | Q38: 0.16 | R38: 544 | S38: 544 | T38: 21057 | U38: 21601 | V38: 0.02518401926 | AC38: 21057 | AD38: 21601 | AE38: 9.669274732e-07 | AF38: 544.000001 | AG38: 0.0251840193
C39: ='Net Monthly Surplus'!B49 -> Child Support/Family Allowance | D39: ='Net Monthly Surplus'!BL48 -> 0 | E39: ='Net Monthly Surplus'!BS48 -> 0 | F39: ='Net Monthly Surplus'!BL79 -> 0 | G39: ='Net Monthly Surplus'!BS79 -> 0 | L39: 36 | M39: 21701 | N39: 18201 | O39: 0 | P39: 3500 | Q39: 0.16 | R39: 560 | S39: 560 | T39: 21141 | U39: 21701 | V39: 0.02580526243 | AC39: 21141 | AD39: 21701 | AE39: 9.701616364e-07 | AF39: 560.000001 | AG39: 0.02580526247
C40: ='Net Monthly Surplus'!B50 -> Other Non Taxable Income | D40: ='Net Monthly Surplus'!BL49 -> 0 | E40: ='Net Monthly Surplus'!BS49 -> 0 | F40: ='Net Monthly Surplus'!BL80 -> 0 | G40: ='Net Monthly Surplus'!BS80 -> 0 | L40: 37 | M40: 21801 | N40: 18201 | O40: 0 | P40: 3600 | Q40: 0.16 | R40: 576 | S40: 576 | T40: 21225 | U40: 21801 | V40: 0.02642080639 | AC40: 21225 | AD40: 21801 | AE40: 9.733994375e-07 | AF40: 576.000001 | AG40: 0.02642080643
L41: 38 | M41: 21901 | N41: 18201 | O41: 0 | P41: 3700 | Q41: 0.16 | R41: 592 | S41: 592 | T41: 21309 | U41: 21901 | V41: 0.02703072919 | AC41: 21309 | AD41: 21901 | AE41: 9.766336007e-07 | AF41: 592.000001 | AG41: 0.02703072923
C42: Total Gross Salay | D42: =SUM(D26:D41) -> 0 | E42: =SUM(E26:E41) -> 0 | F42: =SUM(F26:F41) -> 0 | G42: 0 | L42: 39 | M42: 22001 | N42: 18201 | O42: 0 | P42: 3800 | Q42: 0.16 | R42: 608 | S42: 608 | T42: 21393 | U42: 22001 | V42: 0.0276351075 | AC42: 21393 | AD42: 22001 | AE42: 9.798677638e-07 | AF42: 608.000001 | AG42: 0.02763510754
C43: Tax Scale Base | D43: =IF(D42>0,VLOOKUP(D42,ATOTaxScales,1),0) -> 0 | E43: =IF(E42>0,VLOOKUP(E42,ATOTaxScales,1),0) -> 0 | F43: =IF(F42>0,VLOOKUP(F42,ATOTaxScales,1),0) -> 0 | G43: =IF(G42>0,VLOOKUP(G42,ATOTaxScales,1),0) -> 0 | L43: 40 | M43: 22101 | N43: 18201 | O43: 0 | P43: 3900 | Q43: 0.16 | R43: 624 | S43: 624 | T43: 21477 | U43: 22101 | V43: 0.02823401656 | AC43: 21477 | AD43: 22101 | AE43: 9.83101927e-07 | AF43: 624.000001 | AG43: 0.0282340166
C44: Base Tax Amount | D44: =IF(D42>0,VLOOKUP(D42,ATOTaxScales,2),0) -> 0 | E44: =IF(E42>0,VLOOKUP(E42,ATOTaxScales,2),0) -> 0 | F44: =IF(F42>0,VLOOKUP(F42,ATOTaxScales,2),0) -> 0 | G44: =IF(G42>0,VLOOKUP(G42,ATOTaxScales,2),0) -> 0 | L44: 41 | M44: 22201 | N44: 18201 | O44: 0 | P44: 4000 | Q44: 0.16 | R44: 640 | S44: 640 | T44: 21561 | U44: 22201 | V44: 0.02882753029 | AC44: 21561 | AD44: 22201 | AE44: 9.863360901e-07 | AF44: 640.000001 | AG44: 0.02882753033
C45: Salary Over Base Tax Amount | D45: =IF(D42>0,D42-D43,0) -> 0 | E45: =IF(E42>0,E42-E43,0) -> 0 | F45: =IF(F42>0,F42-F43,0) -> 0 | G45: 0 | L45: 42 | M45: 22301 | N45: 18201 | O45: 0 | P45: 4100 | Q45: 0.16 | R45: 656 | S45: 656 | T45: 21645 | U45: 22301 | V45: 0.02941572127 | AC45: 21645 | AD45: 22301 | AE45: 9.895702533e-07 | AF45: 656.000001 | AG45: 0.02941572131
C46: Tax Scale Rate | D46: =IF(D42>0,VLOOKUP(D42,ATOTaxScales,3),0) -> 0 | E46: =IF(E42>0,VLOOKUP(E42,ATOTaxScales,3),0) -> 0 | F46: =IF(F42>0,VLOOKUP(F42,ATOTaxScales,3),0) -> 0 | G46: =IF(G42>0,VLOOKUP(G42,ATOTaxScales,3),0) -> 0 | L46: 43 | M46: 22401 | N46: 18201 | O46: 0 | P46: 4200 | Q46: 0.16 | R46: 672 | S46: 672 | T46: 21729 | U46: 22401 | V46: 0.02999866077 | AC46: 21729 | AD46: 22401 | AE46: 9.928044165e-07 | AF46: 672.000001 | AG46: 0.02999866082
C47: Tax on Over Base Amount | D47: =IF(D42>0,ROUND(D46*D45,2),0) -> 0 | E47: =IF(E42>0,ROUND(E46*E45,2),0) -> 0 | F47: =IF(F42>0,ROUND(F46*F45,2),0) -> 0 | G47: 0 | L47: 44 | M47: 22501 | N47: 18201 | O47: 0 | P47: 4300 | Q47: 0.16 | R47: 688 | S47: 688 | T47: 21813 | U47: 22501 | V47: 0.03057641883 | AC47: 21813 | AD47: 22501 | AE47: 9.960385796e-07 | AF47: 688.000001 | AG47: 0.03057641887
C48: Tax | D48: =IF(D42>0,ROUND(D44+D47,0),0) -> 0 | E48: =IF(E42>0,ROUND(E44+E47,0),0) -> 0 | F48: =IF(F42>0,ROUND(F44+F47,0),0) -> 0 | G48: 0 | L48: 45 | M48: 22601 | N48: 18201 | O48: 0 | P48: 4400 | Q48: 0.16 | R48: 704 | S48: 704 | T48: 21897 | U48: 22601 | V48: 0.0311490642 | AC48: 21897 | AD48: 22601 | AE48: 9.992727428e-07 | AF48: 704.000001 | AG48: 0.03114906424
C49: Medicare Levy | D49: =ROUND(Parm_Medicare_Levy_Rate*D42,0)*D54 -> 0 | E49: =ROUND(Parm_Medicare_Levy_Rate*E42,0)*E54 -> 0 | F49: =ROUND(Parm_Medicare_Levy_Rate*F42,0)*F54 -> 0 | G49: =ROUND(Parm_Medicare_Levy_Rate*G42,0)*G54 -> 0 | L49: 46 | M49: 22701 | N49: 18201 | O49: 0 | P49: 4500 | Q49: 0.16 | R49: 720 | S49: 720 | T49: 21981 | U49: 22701 | V49: 0.03171666446 | AC49: 21981 | AD49: 22701 | AE49: 1.002506906e-06 | AF49: 720.000001 | AG49: 0.03171666451
C50: Total Tax & Medicare Levy | D50: =ROUND(D48+D49,0) -> 0 | E50: =ROUND(E48+E49,0) -> 0 | F50: =ROUND(F48+F49,0) -> 0 | G50: 0 | L50: 47 | M50: 22801 | N50: 18201 | O50: 0 | P50: 4600 | Q50: 0.16 | R50: 736 | S50: 736 | T50: 22065 | U50: 22801 | V50: 0.032279286 | AC50: 22065 | AD50: 22801 | AE50: 1.005741069e-06 | AF50: 736.000001 | AG50: 0.03227928604
C51: Total Net Annual Income | D51: =ROUND(D42-D50,0) -> 0 | E51: =ROUND(E42-E50,0) -> 0 | F51: =ROUND(F42-F50,0) -> 0 | G51: 0 | L51: 48 | M51: 22901 | N51: 18201 | O51: 0 | P51: 4700 | Q51: 0.16 | R51: 752 | S51: 752 | T51: 22149 | U51: 22901 | V51: 0.03283699402 | AC51: 22149 | AD51: 22901 | AE51: 1.008975232e-06 | AF51: 752.000001 | AG51: 0.03283699406
L52: 49 | M52: 23001 | N52: 18201 | O52: 0 | P52: 4800 | Q52: 0.16 | R52: 768 | S52: 768 | T52: 22233 | U52: 23001 | V52: 0.03338985262 | AC52: 22233 | AD52: 23001 | AE52: 1.012209395e-06 | AF52: 768.000001 | AG52: 0.03338985266
C53: Medicare Levy Threshold | D53: =Parm_Income_Theshold_for_Medicare_Levy -> 27476 | E53: =Parm_Income_Theshold_for_Medicare_Levy -> 27476 | F53: =Parm_Income_Theshold_for_Medicare_Levy -> 27476 | G53: =Parm_Income_Theshold_for_Medicare_Levy -> 27476 | L53: 50 | M53: 23101 | N53: 18201 | O53: 0 | P53: 4900 | Q53: 0.16 | R53: 784 | S53: 784 | T53: 22317 | U53: 23101 | V53: 0.03393792477 | AC53: 22317 | AD53: 23101 | AE53: 1.015443559e-06 | AF53: 784.000001 | AG53: 0.03393792481
C54: Apply Medicare Levy | D54: =IF(D42-D53>0,1,0) -> 0 | E54: =IF(E42-E53>0,1,0) -> 0 | F54: 0 | G54: 0 | L54: 51 | M54: 23201 | N54: 18201 | O54: 0 | P54: 5000 | Q54: 0.16 | R54: 800 | S54: 800 | T54: 22401 | U54: 23201 | V54: 0.03448127236 | AC54: 22401 | AD54: 23201 | AE54: 1.018677722e-06 | AF54: 800.000001 | AG54: 0.0344812724
L55: 52 | M55: 23301 | N55: 18201 | O55: 0 | P55: 5100 | Q55: 0.16 | R55: 816 | S55: 816 | T55: 22485 | U55: 23301 | V55: 0.03501995623 | AC55: 22485 | AD55: 23301 | AE55: 1.021915523e-06 | AF55: 816.000001 | AG55: 0.03501995627
L56: 53 | M56: 23401 | N56: 18201 | O56: 0 | P56: 5200 | Q56: 0.16 | R56: 832 | S56: 832 | T56: 22569 | U56: 23401 | V56: 0.03555403615 | AC56: 22569 | AD56: 23401 | AE56: 1.025149686e-06 | AF56: 832.000001 | AG56: 0.03555403619
L57: 54 | M57: 23501 | N57: 18201 | O57: 0 | P57: 5300 | Q57: 0.16 | R57: 848 | S57: 848 | T57: 22653 | U57: 23501 | V57: 0.03608357091 | AC57: 22653 | AD57: 23501 | AE57: 1.028383849e-06 | AF57: 848.000001 | AG57: 0.03608357095
L58: 55 | M58: 23601 | N58: 18201 | O58: 0 | P58: 5400 | Q58: 0.16 | R58: 864 | S58: 864 | T58: 22737 | U58: 23601 | V58: 0.03660861828 | AC58: 22737 | AD58: 23601 | AE58: 1.031618012e-06 | AF58: 864.000001 | AG58: 0.03660861832
L59: 56 | M59: 23701 | N59: 18201 | O59: 0 | P59: 5500 | Q59: 0.16 | R59: 880 | S59: 880 | T59: 22821 | U59: 23701 | V59: 0.03712923505 | AC59: 22821 | AD59: 23701 | AE59: 1.034852176e-06 | AF59: 880.000001 | AG59: 0.0371292351
L60: 57 | M60: 23801 | N60: 18201 | O60: 0 | P60: 5600 | Q60: 0.16 | R60: 896 | S60: 896 | T60: 22905 | U60: 23801 | V60: 0.03764547708 | AC60: 22905 | AD60: 23801 | AE60: 3.208442649e-07 | AF60: 896.0000003 | AG60: 0.03764547709
L61: 58 | M61: 23901 | N61: 18201 | O61: 0 | P61: 5700 | Q61: 0.16 | R61: 912 | S61: 912 | T61: 22989 | U61: 23901 | V61: 0.03815739927 | AC61: 22989 | AD61: 23901 | AE61: 3.219902283e-07 | AF61: 912.0000003 | AG61: 0.03815739928
L62: 59 | M62: 24001 | N62: 18201 | O62: 0 | P62: 5800 | Q62: 0.16 | R62: 928 | S62: 928 | T62: 23073 | U62: 24001 | V62: 0.03866505562 | AC62: 23073 | AD62: 24001 | AE62: 3.231325536e-07 | AF62: 928.0000003 | AG62: 0.03866505564
L63: 60 | M63: 24101 | N63: 18201 | O63: 0 | P63: 5900 | Q63: 0.16 | R63: 944 | S63: 944 | T63: 23157 | U63: 24101 | V63: 0.03916849923 | AC63: 23157 | AD63: 24101 | AE63: 3.242785169e-07 | AF63: 944.0000003 | AG63: 0.03916849925
L64: 61 | M64: 24201 | N64: 18201 | O64: 0 | P64: 6000 | Q64: 0.16 | R64: 960 | S64: 960 | T64: 23241 | U64: 24201 | V64: 0.03966778232 | AC64: 23241 | AD64: 24201 | AE64: 3.254244803e-07 | AF64: 960.0000003 | AG64: 0.03966778234
L65: 62 | M65: 24301 | N65: 18201 | O65: 0 | P65: 6100 | Q65: 0.16 | R65: 976 | S65: 976 | T65: 23325 | U65: 24301 | V65: 0.04016295626 | AC65: 23325 | AD65: 24301 | AE65: 3.265704436e-07 | AF65: 976.0000003 | AG65: 0.04016295627
L66: 63 | M66: 24401 | N66: 18201 | O66: 0 | P66: 6200 | Q66: 0.16 | R66: 992 | S66: 992 | T66: 23409 | U66: 24401 | V66: 0.04065407155 | AC66: 23409 | AD66: 24401 | AE66: 3.277127689e-07 | AF66: 992.0000003 | AG66: 0.04065407157
L67: 64 | M67: 24501 | N67: 18201 | O67: 0 | P67: 6300 | Q67: 0.16 | R67: 1008 | S67: 1008 | T67: 23493 | U67: 24501 | V67: 0.04114117791 | AC67: 23493 | AD67: 24501 | AE67: 3.288587322e-07 | AF67: 1008 | AG67: 0.04114117792
L68: 65 | M68: 24601 | N68: =IF(M68>0,VLOOKUP(M68,ATOTaxScales,1),0) -> 18201 | O68: =IF(M68>0,VLOOKUP(M68,ATOTaxScales,2),0) -> 0 | P68: 6400 | Q68: =IF(M68>0,VLOOKUP(M68,ATOTaxScales,3),0) -> 0.16 | R68: 1024 | S68: 1024 | T68: 23577 | U68: 24601 | V68: 0.04162432421 | AC68: 23577 | AD68: 24601 | AE68: 3.300046956e-07 | AF68: 1024 | AG68: 0.04162432423
L69: 66 | M69: 24701 | N69: 18201 | O69: 0 | P69: 6500 | Q69: 0.16 | R69: 1040 | S69: 1040 | T69: 23661 | U69: 24701 | V69: =S69/M69 -> 0.04210355856 | AC69: 23661 | AD69: =GetGrossSalary(AC69) -> 24701 | AE69: 3.311506589e-07 | AF69: 1040 | AG69: 0.04210355857
L70: 67 | M70: =M69+$M$1 -> 24801 | N70: 18201 | O70: 0 | P70: =IF(M70>0,M70-N70,0) -> 6600 | Q70: 0.16 | R70: =IF(M70>0,ROUND(P70*Q70,2),0) -> 1056 | S70: =IF(M70>0,ROUND(O70+R70,0),0) -> 1056 | T70: =M70-S70 -> 23745 | U70: =M70 -> 24801 | V70: 0.04257892827 | AC70: 23745 | AD70: 24801 | AE70: 3.322929842e-07 | AF70: 1056 | AG70: 0.04257892828
L71: 68 | M71: 24901 | N71: 18201 | O71: 0 | P71: 6700 | Q71: 0.16 | R71: 1072 | S71: 1072 | T71: 23829 | U71: 24901 | V71: 0.0430504799 | AC71: 23829 | AD71: 24901 | AE71: 3.334389476e-07 | AF71: 1072 | AG71: 0.04305047991
L72: 69 | M72: 25001 | N72: 18201 | O72: 0 | P72: 6800 | Q72: 0.16 | R72: 1088 | S72: 1088 | T72: 23913 | U72: 25001 | V72: 0.04351825927 | AC72: 23913 | AD72: 25001 | AE72: 3.345849109e-07 | AF72: 1088 | AG72: 0.04351825928
L73: 70 | M73: 25101 | N73: 18201 | O73: 0 | P73: 6900 | Q73: 0.16 | R73: 1104 | S73: 1104 | T73: 23997 | U73: 25101 | V73: 0.04398231146 | AC73: 23997 | AD73: 25101 | AE73: 3.357308742e-07 | AF73: 1104 | AG73: 0.04398231147
L74: 71 | M74: 25201 | N74: 18201 | O74: 0 | P74: 7000 | Q74: 0.16 | R74: 1120 | S74: 1120 | T74: 24081 | U74: 25201 | V74: 0.04444268085 | AC74: 24081 | AD74: 25201 | AE74: 3.368731996e-07 | AF74: 1120 | AG74: 0.04444268086
L75: 72 | M75: 25301 | N75: 18201 | O75: 0 | P75: 7100 | Q75: 0.16 | R75: 1136 | S75: 1136 | T75: 24165 | U75: 25301 | V75: 0.04489941109 | AC75: 24165 | AD75: 25301 | AE75: 3.380191629e-07 | AF75: 1136 | AG75: 0.0448994111
L76: 73 | M76: 25401 | N76: 18201 | O76: 0 | P76: 7200 | Q76: 0.16 | R76: 1152 | S76: 1152 | T76: 24249 | U76: 25401 | V76: 0.04535254518 | AC76: 24249 | AD76: 25401 | AE76: 3.391651262e-07 | AF76: 1152 | AG76: 0.04535254519
L77: 74 | M77: 25501 | N77: 18201 | O77: 0 | P77: 7300 | Q77: 0.16 | R77: 1168 | S77: 1168 | T77: 24333 | U77: 25501 | V77: 0.04580212541 | AC77: 24333 | AD77: 25501 | AE77: 3.403110895e-07 | AF77: 1168 | AG77: 0.04580212542
L78: 75 | M78: 25601 | N78: 18201 | O78: 0 | P78: 7400 | Q78: 0.16 | R78: 1184 | S78: 1184 | T78: 24417 | U78: 25601 | V78: 0.04624819343 | AC78: 24417 | AD78: 25601 | AE78: 3.414570529e-07 | AF78: 1184 | AG78: 0.04624819344
L79: 76 | M79: 25701 | N79: 18201 | O79: 0 | P79: 7500 | Q79: 0.16 | R79: 1200 | S79: 1200 | T79: 24501 | U79: 25701 | V79: 0.04669079024 | AC79: 24501 | AD79: 25701 | AE79: 3.425993782e-07 | AF79: 1200 | AG79: 0.04669079025
L80: 77 | M80: 25801 | N80: 18201 | O80: 0 | P80: 7600 | Q80: 0.16 | R80: 1216 | S80: 1216 | T80: 24585 | U80: 25801 | V80: 0.0471299562 | AC80: 24585 | AD80: 25801 | AE80: 3.437453415e-07 | AF80: 1216 | AG80: 0.04712995622
L81: 78 | M81: 25901 | N81: 18201 | O81: 0 | P81: 7700 | Q81: 0.16 | R81: 1232 | S81: 1232 | T81: 24669 | U81: 25901 | V81: 0.04756573105 | AC81: 24669 | AD81: 25901 | AE81: 3.448913048e-07 | AF81: 1232 | AG81: 0.04756573107
L82: 79 | M82: 26001 | N82: 18201 | O82: 0 | P82: 7800 | Q82: 0.16 | R82: 1248 | S82: 1248 | T82: 24753 | U82: 26001 | V82: 0.04799815392 | AC82: 24753 | AD82: 26001 | AE82: 3.46066372e-07 | AF82: 1248 | AG82: 0.04799815393
L83: 80 | M83: 26101 | N83: 18201 | O83: 0 | P83: 7900 | Q83: 0.16 | R83: 1264 | S83: 1264 | T83: 24837 | U83: 26101 | V83: 0.04842726332 | AC83: 24837 | AD83: 26101 | AE83: 3.48296453e-07 | AF83: 1264 | AG83: 0.04842726334
L84: 81 | M84: 26201 | N84: 18201 | O84: 0 | P84: 8000 | Q84: 0.16 | R84: 1280 | S84: 1280 | T84: 24921 | U84: 26201 | V84: 0.04885309721 | AC84: 24921 | AD84: 26201 | AE84: 3.50522896e-07 | AF84: 1280 | AG84: 0.04885309722
L85: 82 | M85: 26301 | N85: 18201 | O85: 0 | P85: 8100 | Q85: 0.16 | R85: 1296 | S85: 1296 | T85: 25005 | U85: 26301 | V85: 0.04927569294 | AC85: 25005 | AD85: 26301 | AE85: 2.115557436e-07 | AF85: 1296 | AG85: 0.04927569295
L86: 83 | M86: 26401 | N86: 18201 | O86: 0 | P86: 8200 | Q86: 0.16 | R86: 1312 | S86: 1312 | T86: 25089 | U86: 26401 | V86: 0.04969508731 | AC86: 25089 | AD86: 26401 | AE86: 2.12519808e-07 | AF86: 1312 | AG86: 0.04969508731
L87: 84 | M87: 26501 | N87: 18201 | O87: 0 | P87: 8300 | Q87: 0.16 | R87: 1328 | S87: 1328 | T87: 25173 | U87: 26501 | V87: 0.05011131655 | AC87: 25173 | AD87: 26501 | AE87: 2.134838724e-07 | AF87: 1328 | AG87: 0.05011131656
L88: 85 | M88: 26601 | N88: 18201 | O88: 0 | P88: 8400 | Q88: 0.16 | R88: 1344 | S88: 1344 | T88: 25257 | U88: 26601 | V88: 0.05052441638 | AC88: 25257 | AD88: 26601 | AE88: 2.144479367e-07 | AF88: 1344 | AG88: 0.05052441638
L89: 86 | M89: 26701 | N89: 18201 | O89: 0 | P89: 8500 | Q89: 0.16 | R89: 1360 | S89: 1360 | T89: 25341 | U89: 26701 | V89: 0.05093442193 | AC89: 25341 | AD89: 26701 | AE89: 2.154120011e-07 | AF89: 1360 | AG89: 0.05093442194
L90: 87 | M90: 26801 | N90: 18201 | O90: 0 | P90: 8600 | Q90: 0.16 | R90: 1376 | S90: 1376 | T90: 25425 | U90: 26801 | V90: 0.05134136786 | AC90: =T90 -> 25425 | AD90: 26801 | AE90: =AD90-U90 -> 1.186399459e-06 | AF90: =AD90-AC90 -> 1376.000001 | AG90: =AF90/AD90 -> 0.0513413679
L91: 88 | M91: 26901 | N91: 18201 | O91: 0 | P91: 8700 | Q91: 0.16 | R91: 1392 | S91: 1392 | T91: 25509 | U91: 26901 | V91: 0.05174528828 | AC91: 25509 | AD91: 27557.12195 | AE91: 656.121952 | AF91: 2048.121952 | AG91: 0.07432278144
L92: 89 | M92: 27001 | N92: 18201 | O92: 0 | P92: 8800 | Q92: 0.16 | R92: 1408 | S92: 1408 | T92: 25593 | U92: 27001 | V92: 0.05214621681 | AC92: 25593 | AD92: 27659.56098 | AE92: 658.5609764 | AF92: 2066.560976 | AG92: 0.07471416405
L93: 90 | M93: 27101 | N93: 18201 | O93: 0 | P93: 8900 | Q93: 0.16 | R93: 1424 | S93: 1424 | T93: 25677 | U93: 27101 | V93: 0.05254418656 | AC93: 25677 | AD93: 27762 | AE93: 661.0000008 | AF93: 2085.000001 | AG93: 0.07510265834
L94: 91 | M94: 27201 | N94: 18201 | O94: 0 | P94: 9000 | Q94: 0.16 | R94: 1440 | S94: 1440 | T94: 25761 | U94: 27201 | V94: 0.05293923018 | AC94: 25761 | AD94: 27864.43903 | AE94: 663.4390252 | AF94: 2103.439025 | AG94: 0.07548829615
L95: 92 | M95: 27301 | N95: 18201 | O95: 0 | P95: 9100 | Q95: 0.16 | R95: 1456 | S95: 1456 | T95: 25845 | U95: 27301 | V95: 0.0533313798 | AC95: 25845 | AD95: 27966.87805 | AE95: 665.8780496 | AF95: 2121.87805 | AG95: 0.07587110888
L96: 93 | M96: 27401 | N96: 18201 | O96: 0 | P96: 9200 | Q96: 0.16 | R96: 1472 | S96: 1472 | T96: 25929 | U96: 27401 | V96: 0.05372066713 | AC96: 25929 | AD96: 28069.31707 | AE96: 668.3170739 | AF96: 2140.317074 | AG96: 0.07625112746
L97: 94 | M97: 27501 | N97: 18201 | O97: 0 | P97: 9300 | Q97: 0.16 | R97: 1488 | S97: 1488 | T97: 26013 | U97: 27501 | V97: 0.05410712338 | AC97: 26013 | AD97: 28171.7561 | AE97: 670.7560983 | AF97: 2158.756098 | AG97: 0.07662838237
L98: 95 | M98: 27601 | N98: 18201 | O98: 0 | P98: 9400 | Q98: 0.16 | R98: 1504 | S98: 1504 | T98: 26097 | U98: 27601 | V98: 0.05449077932 | AC98: 26097 | AD98: 28274.19512 | AE98: 673.1951227 | AF98: 2177.195123 | AG98: 0.07700290365
L99: 96 | M99: 27701 | N99: 18201 | O99: 0 | P99: 9500 | Q99: 0.16 | R99: 1520 | S99: 1520 | T99: 26181 | U99: 27701 | V99: 0.05487166528 | AC99: 26181 | AD99: 28376.63415 | AE99: 675.6341471 | AF99: 2195.634147 | AG99: 0.0773747209
L100: 97 | M100: 27801 | N100: 18201 | O100: 0 | P100: 9600 | Q100: 0.16 | R100: 1536 | S100: 1536 | T100: 26265 | U100: 27801 | V100: 0.05524981116 | AC100: 26265 | AD100: 28479.07317 | AE100: 678.0731715 | AF100: 2214.073172 | AG100: 0.0777438633
L101: 98 | M101: 27901 | N101: 18201 | O101: 0 | P101: 9700 | Q101: 0.16 | R101: 1552 | S101: 1552 | T101: 26349 | U101: 27901 | V101: 0.05562524641 | AC101: 26349 | AD101: 28581.5122 | AE101: 680.5121959 | AF101: 2232.512196 | AG101: 0.07811035961
L102: 99 | M102: 28001 | N102: 18201 | O102: 0 | P102: 9800 | Q102: 0.16 | R102: 1568 | S102: 1568 | T102: 26433 | U102: 28001 | V102: 0.05599800007 | AC102: 26433 | AD102: 28683.95122 | AE102: 682.9512203 | AF102: 2250.95122 | AG102: 0.07847423819
L103: 100 | M103: 28101 | N103: 18201 | O103: 0 | P103: 9900 | Q103: 0.16 | R103: 1584 | S103: 1584 | T103: 26517 | U103: 28101 | V103: 0.05636810078 | AC103: 26517 | AD103: 28786.39024 | AE103: 685.3902447 | AF103: 2269.390245 | AG103: 0.07883552698
L104: 101 | M104: 28201 | N104: 18201 | O104: 0 | P104: 10000 | Q104: 0.16 | R104: 1600 | S104: 1600 | T104: 26601 | U104: 28201 | V104: 0.05673557675 | AC104: 26601 | AD104: 28888.82927 | AE104: 687.8292691 | AF104: 2287.829269 | AG104: 0.07919425352
L105: 102 | M105: 28301 | N105: 18201 | O105: 0 | P105: 10100 | Q105: 0.16 | R105: 1616 | S105: 1616 | T105: 26685 | U105: 28301 | V105: 0.05710045581 | AC105: 26685 | AD105: 28991.26829 | AE105: 690.2682935 | AF105: 2306.268294 | AG105: 0.07955044499
L106: 103 | M106: 28401 | N106: 18201 | O106: 0 | P106: 10200 | Q106: 0.16 | R106: 1632 | S106: 1632 | T106: 26769 | U106: 28401 | V106: 0.0574627654 | AC106: 26769 | AD106: 29093.70732 | AE106: 692.7073179 | AF106: 2324.707318 | AG106: 0.07990412815
L107: 104 | M107: 28501 | N107: 18201 | O107: 0 | P107: 10300 | Q107: 0.16 | R107: 1648 | S107: 1648 | T107: 26853 | U107: 28501 | V107: 0.05782253254 | AC107: 26853 | AD107: 29196.14634 | AE107: 695.1463423 | AF107: 2343.146342 | AG107: 0.08025532941
L108: 105 | M108: 28601 | N108: 18201 | O108: 0 | P108: 10400 | Q108: 0.16 | R108: 1664 | S108: 1664 | T108: 26937 | U108: 28601 | V108: 0.05817978392 | AC108: 26937 | AD108: 29298.58537 | AE108: 697.5853667 | AF108: 2361.585367 | AG108: 0.08060407481
L109: 106 | M109: 28701 | N109: 18201 | O109: 0 | P109: 10500 | Q109: 0.16 | R109: 1680 | S109: 1680 | T109: 27021 | U109: 28701 | V109: 0.05853454583 | AC109: 27021 | AD109: 29401.02439 | AE109: 700.0243911 | AF109: 2380.024391 | AG109: 0.08095039001
L110: 107 | M110: 28801 | N110: 18201 | O110: 0 | P110: 10600 | Q110: 0.16 | R110: 1696 | S110: 1696 | T110: 27105 | U110: 28801 | V110: 0.05888684421 | AC110: 27105 | AD110: 29503.46342 | AE110: 702.4634155 | AF110: 2398.463416 | AG110: 0.08129430032
L111: 108 | M111: 28901 | N111: 18201 | O111: 0 | P111: 10700 | Q111: 0.16 | R111: 1712 | S111: 1712 | T111: 27189 | U111: 28901 | V111: 0.05923670461 | AC111: 27189 | AD111: 29605.90244 | AE111: 704.9024399 | AF111: 2416.90244 | AG111: 0.08163583072
L112: 109 | M112: 29001 | N112: 18201 | O112: 0 | P112: 10800 | Q112: 0.16 | R112: 1728 | S112: 1728 | T112: 27273 | U112: 29001 | V112: 0.05958415227 | AC112: 27273 | AD112: 29708.34146 | AE112: 707.3414643 | AF112: 2435.341464 | AG112: 0.08197500582
L113: 110 | M113: 29101 | N113: 18201 | O113: 0 | P113: 10900 | Q113: 0.16 | R113: 1744 | S113: 1744 | T113: 27357 | U113: 29101 | V113: 0.05992921205 | AC113: 27357 | AD113: 29810.78049 | AE113: 709.7804887 | AF113: 2453.780489 | AG113: 0.08231184989
L114: 111 | M114: 29201 | N114: 18201 | O114: 0 | P114: 11000 | Q114: 0.16 | R114: 1760 | S114: 1760 | T114: 27441 | U114: 29201 | V114: 0.0602719085 | AC114: 27441 | AD114: 29913.21951 | AE114: 712.2195131 | AF114: 2472.219513 | AG114: 0.08264638689
L115: 112 | M115: 29301 | N115: 18201 | O115: 0 | P115: 11100 | Q115: 0.16 | R115: 1776 | S115: 1776 | T115: 27525 | U115: 29301 | V115: 0.06061226579 | AC115: 27525 | AD115: 30015.65854 | AE115: 714.6585375 | AF115: 2490.658537 | AG115: 0.08297864044
L116: 113 | M116: 29401 | N116: 18201 | O116: 0 | P116: 11200 | Q116: 0.16 | R116: 1792 | S116: 1792 | T116: 27609 | U116: 29401 | V116: 0.06095030781 | AC116: 27609 | AD116: 30118.09756 | AE116: 717.0975619 | AF116: 2509.097562 | AG116: 0.08330863384
L117: 114 | M117: 29501 | N117: 18201 | O117: 0 | P117: 11300 | Q117: 0.16 | R117: 1808 | S117: 1808 | T117: 27693 | U117: 29501 | V117: 0.0612860581 | AC117: 27693 | AD117: 30220.53659 | AE117: 719.5365863 | AF117: 2527.536586 | AG117: 0.08363639008
L118: 115 | M118: 29601 | N118: 18201 | O118: 0 | P118: 11400 | Q118: 0.16 | R118: 1824 | S118: 1824 | T118: 27777 | U118: 29601 | V118: 0.06161953988 | AC118: 27777 | AD118: 30322.97561 | AE118: 721.9756107 | AF118: 2545.975611 | AG118: 0.08396193182
L119: 116 | M119: 29701 | N119: 18201 | O119: 0 | P119: 11500 | Q119: 0.16 | R119: 1840 | S119: 1840 | T119: 27861 | U119: 29701 | V119: 0.06195077607 | AC119: 27861 | AD119: 30425.41464 | AE119: 724.4146351 | AF119: 2564.414635 | AG119: 0.08428528143
L120: 117 | M120: 29801 | N120: 18201 | O120: 0 | P120: 11600 | Q120: 0.16 | R120: 1856 | S120: 1856 | T120: 27945 | U120: 29801 | V120: 0.06227978927 | AC120: 27945 | AD120: 30527.85366 | AE120: 726.8536595 | AF120: 2582.853659 | AG120: 0.08460646098
L121: 118 | M121: 29901 | N121: 18201 | O121: 0 | P121: 11700 | Q121: 0.16 | R121: 1872 | S121: 1872 | T121: 28029 | U121: 29901 | V121: 0.06260660179 | AC121: 28029 | AD121: 30630.29268 | AE121: 729.2926839 | AF121: 2601.292684 | AG121: 0.08492549225
L122: 119 | M122: 30001 | N122: 18201 | O122: 0 | P122: 11800 | Q122: 0.16 | R122: 1888 | S122: 1888 | T122: 28113 | U122: 30001 | V122: 0.06293123563 | AC122: 28113 | AD122: 30732.73171 | AE122: 731.7317083 | AF122: 2619.731708 | AG122: 0.08524239671
L123: 120 | M123: 30101 | N123: 18201 | O123: 0 | P123: 11900 | Q123: 0.16 | R123: 1904 | S123: 1904 | T123: 28197 | U123: 30101 | V123: 0.0632537125 | AC123: 28197 | AD123: 30835.17073 | AE123: 734.1707327 | AF123: 2638.170733 | AG123: 0.08555719557
L124: 121 | M124: 30201 | N124: 18201 | O124: 0 | P124: 12000 | Q124: 0.16 | R124: 1920 | S124: 1920 | T124: 28281 | U124: 30201 | V124: 0.06357405384 | AC124: 28281 | AD124: 30937.60976 | AE124: 736.6097571 | AF124: 2656.609757 | AG124: 0.08586990973
L125: 122 | M125: 30301 | N125: 18201 | O125: 0 | P125: 12100 | Q125: 0.16 | R125: 1936 | S125: 1936 | T125: 28365 | U125: 30301 | V125: 0.06389228078 | AC125: 28365 | AD125: 31040.04878 | AE125: 739.0487814 | AF125: 2675.048781 | AG125: 0.08618055984
L126: 123 | M126: 30401 | N126: 18201 | O126: 0 | P126: 12200 | Q126: 0.16 | R126: 1952 | S126: 1952 | T126: 28449 | U126: 30401 | V126: 0.0642084142 | AC126: 28449 | AD126: 31142.48781 | AE126: 741.4878058 | AF126: 2693.487806 | AG126: 0.08648916627
L127: 124 | M127: 30501 | N127: 18201 | O127: 0 | P127: 12300 | Q127: 0.16 | R127: 1968 | S127: 1968 | T127: 28533 | U127: 30501 | V127: 0.06452247467 | AC127: 28533 | AD127: 31244.92683 | AE127: 743.9268302 | AF127: 2711.92683 | AG127: 0.08679574911
L128: 125 | M128: 30601 | N128: 18201 | O128: 0 | P128: 12400 | Q128: 0.16 | R128: 1984 | S128: 1984 | T128: 28617 | U128: 30601 | V128: 0.06483448253 | AC128: 28617 | AD128: 31347.36585 | AE128: 746.3658546 | AF128: 2730.365855 | AG128: 0.08710032822
L129: 126 | M129: 30701 | N129: 18201 | O129: 0 | P129: 12500 | Q129: 0.16 | R129: 2000 | S129: 2000 | T129: 28701 | U129: 30701 | V129: 0.06514445784 | AC129: 28701 | AD129: 31449.80488 | AE129: 748.804879 | AF129: 2748.804879 | AG129: 0.08740292315
L130: 127 | M130: 30801 | N130: 18201 | O130: 0 | P130: 12600 | Q130: 0.16 | R130: 2016 | S130: 2016 | T130: 28785 | U130: 30801 | V130: 0.06545242038 | AC130: 28785 | AD130: 31552.2439 | AE130: 751.2439034 | AF130: 2767.243903 | AG130: 0.08770355325
L131: 128 | M131: 30901 | N131: 18201 | O131: 0 | P131: 12700 | Q131: 0.16 | R131: 2032 | S131: 2032 | T131: 28869 | U131: 30901 | V131: 0.0657583897 | AC131: 28869 | AD131: 31654.68293 | AE131: 753.6829278 | AF131: 2785.682928 | AG131: 0.08800223759
L132: 129 | M132: 31001 | N132: =IF(M132>0,VLOOKUP(M132,ATOTaxScales,1),0) -> 18201 | O132: =IF(M132>0,VLOOKUP(M132,ATOTaxScales,2),0) -> 0 | P132: 12800 | Q132: =IF(M132>0,VLOOKUP(M132,ATOTaxScales,3),0) -> 0.16 | R132: 2048 | S132: 2048 | T132: 28953 | U132: 31001 | V132: 0.06606238508 | AC132: 28953 | AD132: 31757.12195 | AE132: 756.1219522 | AF132: 2804.121952 | AG132: 0.08829899499
L133: 130 | M133: 31101 | N133: 18201 | O133: 0 | P133: 12900 | Q133: 0.16 | R133: 2064 | S133: 2064 | T133: 29037 | U133: 31101 | V133: =S133/M133 -> 0.06636442558 | AC133: 29037 | AD133: =GetGrossSalary(AC133) -> 31859.56098 | AE133: 758.5609766 | AF133: 2822.560977 | AG133: 0.08859384405
L134: 131 | M134: =M133+$M$1 -> 31201 | N134: 18201 | O134: 0 | P134: =IF(M134>0,M134-N134,0) -> 13000 | Q134: 0.16 | R134: =IF(M134>0,ROUND(P134*Q134,2),0) -> 2080 | S134: =IF(M134>0,ROUND(O134+R134,0),0) -> 2080 | T134: =M134-S134 -> 29121 | U134: =M134 -> 31201 | V134: 0.06666452998 | AC134: 29121 | AD134: 31962 | AE134: 761.000001 | AF134: 2841.000001 | AG134: 0.08888680311
L135: 132 | M135: 31301 | N135: 18201 | O135: 0 | P135: 13100 | Q135: 0.16 | R135: 2096 | S135: 2096 | T135: 29205 | U135: 31301 | V135: 0.06696271685 | AC135: 29205 | AD135: 32064.43903 | AE135: 763.4390254 | AF135: 2859.439025 | AG135: 0.08917789028
L136: 133 | M136: 31401 | N136: 18201 | O136: 0 | P136: 13200 | Q136: 0.16 | R136: 2112 | S136: 2112 | T136: 29289 | U136: 31401 | V136: 0.06725900449 | AC136: 29289 | AD136: 32166.87805 | AE136: 765.8780498 | AF136: 2877.87805 | AG136: 0.08946712346
L137: 134 | M137: 31501 | N137: 18201 | O137: 0 | P137: 13300 | Q137: 0.16 | R137: 2128 | S137: 2128 | T137: 29373 | U137: 31501 | V137: 0.067553411 | AC137: 29373 | AD137: 32269.31707 | AE137: 768.3170742 | AF137: 2896.317074 | AG137: 0.08975452029
L138: 135 | M138: 31601 | N138: 18201 | O138: 0 | P138: 13400 | Q138: 0.16 | R138: 2144 | S138: 2144 | T138: 29457 | U138: 31601 | V138: 0.06784595424 | AC138: 29457 | AD138: 32371.7561 | AE138: 770.7560986 | AF138: 2914.756099 | AG138: 0.09004009822
L139: 136 | M139: 31701 | N139: 18201 | O139: 0 | P139: 13500 | Q139: 0.16 | R139: 2160 | S139: 2160 | T139: 29541 | U139: 31701 | V139: 0.06813665184 | AC139: 29541 | AD139: 32474.19512 | AE139: 773.195123 | AF139: 2933.195123 | AG139: 0.09032387445
L140: 137 | M140: 31801 | N140: 18201 | O140: 0 | P140: 13600 | Q140: 0.16 | R140: 2176 | S140: 2176 | T140: 29625 | U140: 31801 | V140: 0.06842552121 | AC140: 29625 | AD140: 32576.63415 | AE140: 775.6341474 | AF140: 2951.634147 | AG140: 0.09060586597
L141: 138 | M141: 31901 | N141: 18201 | O141: 0 | P141: 13700 | Q141: 0.16 | R141: 2192 | S141: 2192 | T141: 29709 | U141: 31901 | V141: 0.06871257954 | AC141: 29709 | AD141: 32679.07317 | AE141: 778.0731718 | AF141: 2970.073172 | AG141: 0.09088608958
L142: 139 | M142: 32001 | N142: 18201 | O142: 0 | P142: 13800 | Q142: 0.16 | R142: 2208 | S142: 2208 | T142: 29793 | U142: 32001 | V142: 0.06899784382 | AC142: 29793 | AD142: 32781.5122 | AE142: 780.5121962 | AF142: 2988.512196 | AG142: 0.09116456185
L143: 140 | M143: 32101 | N143: 18201 | O143: 0 | P143: 13900 | Q143: 0.16 | R143: 2224 | S143: 2224 | T143: 29877 | U143: 32101 | V143: 0.0692813308 | AC143: 29877 | AD143: 32883.95122 | AE143: 782.9512206 | AF143: 3006.951221 | AG143: 0.09144129914
L144: 141 | M144: 32201 | N144: 18201 | O144: 0 | P144: 14000 | Q144: 0.16 | R144: 2240 | S144: 2240 | T144: 29961 | U144: 32201 | V144: 0.06956305705 | AC144: 29961 | AD144: 32986.39024 | AE144: 785.390245 | AF144: 3025.390245 | AG144: 0.09171631762
L145: 142 | M145: 32301 | N145: 18201 | O145: 0 | P145: 14100 | Q145: 0.16 | R145: 2256 | S145: 2256 | T145: 30045 | U145: 32301 | V145: 0.06984303892 | AC145: 30045 | AD145: 33088.82927 | AE145: 787.8292694 | AF145: 3043.829269 | AG145: 0.09198963326
L146: 143 | M146: 32401 | N146: 18201 | O146: 0 | P146: 14200 | Q146: 0.16 | R146: 2272 | S146: 2272 | T146: 30129 | U146: 32401 | V146: 0.07012129255 | AC146: 30129 | AD146: 33191.26829 | AE146: 790.2682938 | AF146: 3062.268294 | AG146: 0.09226126181
L147: 144 | M147: 32501 | N147: 18201 | O147: 0 | P147: 14300 | Q147: 0.16 | R147: 2288 | S147: 2288 | T147: 30213 | U147: 32501 | V147: 0.07039783391 | AC147: 30213 | AD147: 33293.70732 | AE147: 792.7073182 | AF147: 3080.707318 | AG147: 0.09253121885
L148: 145 | M148: 32601 | N148: 18201 | O148: 0 | P148: 14400 | Q148: 0.16 | R148: 2304 | S148: 2304 | T148: 30297 | U148: 32601 | V148: 0.07067267875 | AC148: 30297 | AD148: 33396.14634 | AE148: 795.1463426 | AF148: 3099.146343 | AG148: 0.09279951976
L149: 146 | M149: 32701 | N149: 18201 | O149: 0 | P149: 14500 | Q149: 0.16 | R149: 2320 | S149: 2320 | T149: 30381 | U149: 32701 | V149: 0.07094584263 | AC149: 30381 | AD149: 33498.58537 | AE149: 797.585367 | AF149: 3117.585367 | AG149: 0.09306617975
L150: 147 | M150: 32801 | N150: 18201 | O150: 0 | P150: 14600 | Q150: 0.16 | R150: 2336 | S150: 2336 | T150: 30465 | U150: 32801 | V150: 0.07121734093 | AC150: 30465 | AD150: 33601.02439 | AE150: 800.0243914 | AF150: 3136.024391 | AG150: 0.0933312138
L151: 148 | M151: 32901 | N151: 18201 | O151: 0 | P151: 14700 | Q151: 0.16 | R151: 2352 | S151: 2352 | T151: 30549 | U151: 32901 | V151: 0.07148718884 | AC151: 30549 | AD151: 33703.46342 | AE151: 802.4634158 | AF151: 3154.463416 | AG151: 0.09359463675
L152: 149 | M152: 33001 | N152: 18201 | O152: 0 | P152: 14800 | Q152: 0.16 | R152: 2368 | S152: 2368 | T152: 30633 | U152: 33001 | V152: 0.07175540135 | AC152: 30633 | AD152: 33805.90244 | AE152: 804.9024402 | AF152: 3172.90244 | AG152: 0.09385646325
L153: 150 | M153: 33101 | N153: 18201 | O153: 0 | P153: 14900 | Q153: 0.16 | R153: 2384 | S153: 2384 | T153: 30717 | U153: 33101 | V153: 0.07202199329 | AC153: 30717 | AD153: 33908.34146 | AE153: 807.3414646 | AF153: 3191.341465 | AG153: 0.09411670777
L154: 151 | M154: 33201 | N154: 18201 | O154: 0 | P154: 15000 | Q154: 0.16 | R154: 2400 | S154: 2400 | T154: 30801 | U154: 33201 | V154: 0.07228697931 | AC154: =T154 -> 30801 | AD154: 34010.78049 | AE154: =AD154-U154 -> 809.7804889 | AF154: =AD154-AC154 -> 3209.780489 | AG154: =AF154/AD154 -> 0.09437538459
L155: 152 | M155: 33301 | N155: 18201 | O155: 0 | P155: 15100 | Q155: 0.16 | R155: 2416 | S155: 2416 | T155: 30885 | U155: 33301 | V155: 0.07255037386 | AC155: 30885 | AD155: 34113.21951 | AE155: 812.2195133 | AF155: 3228.219513 | AG155: 0.09463250785
L156: 153 | M156: 33401 | N156: 18201 | O156: 0 | P156: 15200 | Q156: 0.16 | R156: 2432 | S156: 2432 | T156: 30969 | U156: 33401 | V156: 0.07281219125 | AC156: 30969 | AD156: 34215.65854 | AE156: 814.6585377 | AF156: 3246.658538 | AG156: 0.09488809149
L157: 154 | M157: 33501 | N157: 18201 | O157: 0 | P157: 15300 | Q157: 0.16 | R157: 2448 | S157: 2448 | T157: 31053 | U157: 33501 | V157: 0.0730724456 | AC157: 31053 | AD157: 34318.09756 | AE157: 817.0975621 | AF157: 3265.097562 | AG157: 0.09514214931
L158: 155 | M158: 33601 | N158: 18201 | O158: 0 | P158: 15400 | Q158: 0.16 | R158: 2464 | S158: 2464 | T158: 31137 | U158: 33601 | V158: 0.07333115086 | AC158: 31137 | AD158: 34420.53659 | AE158: 819.5365865 | AF158: 3283.536587 | AG158: 0.09539469492
L159: 156 | M159: 33701 | N159: 18201 | O159: 0 | P159: 15500 | Q159: 0.16 | R159: 2480 | S159: 2480 | T159: 31221 | U159: 33701 | V159: 0.07358832082 | AC159: 31221 | AD159: 34522.97561 | AE159: 821.9756109 | AF159: 3301.975611 | AG159: 0.09564574178
L160: 157 | M160: 33801 | N160: 18201 | O160: 0 | P160: 15600 | Q160: 0.16 | R160: 2496 | S160: 2496 | T160: 31305 | U160: 33801 | V160: 0.07384396911 | AC160: 31305 | AD160: 34625.41464 | AE160: 824.4146353 | AF160: 3320.414635 | AG160: 0.09589530321
L161: 158 | M161: 33901 | N161: 18201 | O161: 0 | P161: 15700 | Q161: 0.16 | R161: 2512 | S161: 2512 | T161: 31389 | U161: 33901 | V161: 0.0740981092 | AC161: 31389 | AD161: 34727.85366 | AE161: 826.8536597 | AF161: 3338.85366 | AG161: 0.09614339235
L162: 159 | M162: 34001 | N162: 18201 | O162: 0 | P162: 15800 | Q162: 0.16 | R162: 2528 | S162: 2528 | T162: 31473 | U162: 34001 | V162: 0.07435075439 | AC162: 31473 | AD162: 34830.29268 | AE162: 829.2926841 | AF162: 3357.292684 | AG162: 0.09639002217
L163: 160 | M163: 34101 | N163: 18201 | O163: 0 | P163: 15900 | Q163: 0.16 | R163: 2544 | S163: 2544 | T163: 31557 | U163: 34101 | V163: 0.07460191783 | AC163: 31557 | AD163: 34932.73171 | AE163: 831.7317085 | AF163: 3375.731709 | AG163: 0.09663520553
L164: 161 | M164: 34201 | N164: 18201 | O164: 0 | P164: 16000 | Q164: 0.16 | R164: 2560 | S164: 2560 | T164: 31641 | U164: 34201 | V164: 0.07485161253 | AC164: 31641 | AD164: 35035.17073 | AE164: 834.1707329 | AF164: 3394.170733 | AG164: 0.09687895512
L165: 162 | M165: 34301 | N165: 18201 | O165: 0 | P165: 16100 | Q165: 0.16 | R165: 2576 | S165: 2576 | T165: 31725 | U165: 34301 | V165: 0.07509985132 | AC165: 31725 | AD165: 35137.60976 | AE165: 836.6097573 | AF165: 3412.609757 | AG165: 0.09712128346
L166: 163 | M166: 34401 | N166: 18201 | O166: 0 | P166: 16200 | Q166: 0.16 | R166: 2592 | S166: 2592 | T166: 31809 | U166: 34401 | V166: 0.0753466469 | AC166: 31809 | AD166: 35240.04878 | AE166: 839.0487807 | AF166: 3431.048781 | AG166: 0.09736220293
L167: 164 | M167: 34501 | N167: 18201 | O167: 0 | P167: 16300 | Q167: 0.16 | R167: 2608 | S167: 2608 | T167: 31893 | U167: 34501 | V167: 0.07559201183 | AC167: 31893 | AD167: 35342.48781 | AE167: 841.4878051 | AF167: 3449.487805 | AG167: 0.09760172584
L168: 165 | M168: 34601 | N168: 18201 | O168: 0 | P168: 16400 | Q168: 0.16 | R168: 2624 | S168: 2624 | T168: 31977 | U168: 34601 | V168: 0.0758359585 | AC168: 31977 | AD168: 35444.92683 | AE168: 843.9268295 | AF168: 3467.926829 | AG168: 0.09783986425
L169: 166 | M169: 34701 | N169: 18201 | O169: 0 | P169: 16500 | Q169: 0.16 | R169: 2640 | S169: 2640 | T169: 32061 | U169: 34701 | V169: 0.07607849918 | AC169: 32061 | AD169: 35547.36585 | AE169: 846.3658539 | AF169: 3486.365854 | AG169: 0.09807663016
L170: 167 | M170: 34801 | N170: 18201 | O170: 0 | P170: 16600 | Q170: 0.16 | R170: 2656 | S170: 2656 | T170: 32145 | U170: 34801 | V170: 0.07631964599 | AC170: 32145 | AD170: 35649.80488 | AE170: 848.8048783 | AF170: 3504.804878 | AG170: 0.09831203537
L171: 168 | M171: 34901 | N171: 18201 | O171: 0 | P171: 16700 | Q171: 0.16 | R171: 2672 | S171: 2672 | T171: 32229 | U171: 34901 | V171: 0.07655941091 | AC171: 32229 | AD171: 35752.2439 | AE171: 851.2439027 | AF171: 3523.243903 | AG171: 0.0985460916
L172: 169 | M172: 35001 | N172: 18201 | O172: 0 | P172: 16800 | Q172: 0.16 | R172: 2688 | S172: 2688 | T172: 32313 | U172: 35001 | V172: 0.07679780578 | AC172: 32313 | AD172: 35854.68293 | AE172: 853.6829271 | AF172: 3541.682927 | AG172: 0.09877881041
L173: 170 | M173: 35101 | N173: 18201 | O173: 0 | P173: 16900 | Q173: 0.16 | R173: 2704 | S173: 2704 | T173: 32397 | U173: 35101 | V173: 0.07703484231 | AC173: 32397 | AD173: 35957.12195 | AE173: 856.1219514 | AF173: 3560.121951 | AG173: 0.09901020322
L174: 171 | M174: 35201 | N174: 18201 | O174: 0 | P174: 17000 | Q174: 0.16 | R174: 2720 | S174: 2720 | T174: 32481 | U174: 35201 | V174: 0.07727053209 | AC174: 32481 | AD174: 36059.56098 | AE174: 858.5609758 | AF174: 3578.560976 | AG174: 0.09924028133
L175: 172 | M175: 35301 | N175: 18201 | O175: 0 | P175: 17100 | Q175: 0.16 | R175: 2736 | S175: 2736 | T175: 32565 | U175: 35301 | V175: 0.07750488655 | AC175: 32565 | AD175: 36162 | AE175: 861.0000002 | AF175: 3597 | AG175: 0.09946905592
L176: 173 | M176: 35401 | N176: 18201 | O176: 0 | P176: 17200 | Q176: 0.16 | R176: 2752 | S176: 2752 | T176: 32649 | U176: 35401 | V176: 0.07773791701 | AC176: 32649 | AD176: 36264.43902 | AE176: 863.4390246 | AF176: 3615.439025 | AG176: 0.09969653804
L177: 174 | M177: 35501 | N177: 18201 | O177: 0 | P177: 17300 | Q177: 0.16 | R177: 2768 | S177: 2768 | T177: 32733 | U177: 35501 | V177: 0.07796963466 | AC177: 32733 | AD177: 36366.87805 | AE177: 865.878049 | AF177: 3633.878049 | AG177: 0.0999227386
L178: 175 | M178: 35601 | N178: 18201 | O178: 0 | P178: 17400 | Q178: 0.16 | R178: 2784 | S178: 2784 | T178: 32817 | U178: 35601 | V178: 0.07820005056 | AC178: 32817 | AD178: 36469.31707 | AE178: 868.3170734 | AF178: 3652.317073 | AG178: 0.1001476684
L179: 176 | M179: 35701 | N179: 18201 | O179: 0 | P179: 17500 | Q179: 0.16 | R179: 2800 | S179: 2800 | T179: 32901 | U179: 35701 | V179: 0.07842917565 | AC179: 32901 | AD179: 36571.7561 | AE179: 870.7560978 | AF179: 3670.756098 | AG179: 0.1003713381
L180: 177 | M180: 35801 | N180: 18201 | O180: 0 | P180: 17600 | Q180: 0.16 | R180: 2816 | S180: 2816 | T180: 32985 | U180: 35801 | V180: 0.07865702075 | AC180: 32985 | AD180: 36674.19512 | AE180: 873.1951222 | AF180: 3689.195122 | AG180: 0.1005937584
L181: 178 | M181: 35901 | N181: 18201 | O181: 0 | P181: 17700 | Q181: 0.16 | R181: 2832 | S181: 2832 | T181: 33069 | U181: 35901 | V181: 0.07888359656 | AC181: 33069 | AD181: 36776.63415 | AE181: 875.6341466 | AF181: 3707.634147 | AG181: 0.1008149395
L182: 179 | M182: 36001 | N182: 18201 | O182: 0 | P182: 17800 | Q182: 0.16 | R182: 2848 | S182: 2848 | T182: 33153 | U182: 36001 | V182: 0.07910891364 | AC182: 33153 | AD182: 36879.07317 | AE182: 878.073171 | AF182: 3726.073171 | AG182: 0.1010348919
L183: 180 | M183: 36101 | N183: 18201 | O183: 0 | P183: 17900 | Q183: 0.16 | R183: 2864 | S183: 2864 | T183: 33237 | U183: 36101 | V183: 0.07933298247 | AC183: 33237 | AD183: 36981.5122 | AE183: 880.5121954 | AF183: 3744.512195 | AG183: 0.1012536257
L184: 181 | M184: 36201 | N184: 18201 | O184: 0 | P184: 18000 | Q184: 0.16 | R184: 2880 | S184: 2880 | T184: 33321 | U184: 36201 | V184: 0.07955581338 | AC184: 33321 | AD184: 37083.95122 | AE184: 882.9512198 | AF184: 3762.95122 | AG184: 0.1014711512
L185: 182 | M185: 36301 | N185: 18201 | O185: 0 | P185: 18100 | Q185: 0.16 | R185: 2896 | S185: 2896 | T185: 33405 | U185: 36301 | V185: 0.0797774166 | AC185: 33405 | AD185: 37186.39024 | AE185: 885.3902441 | AF185: 3781.390244 | AG185: 0.1016874781
L186: 183 | M186: 36401 | N186: 18201 | O186: 0 | P186: 18200 | Q186: 0.16 | R186: 2912 | S186: 2912 | T186: 33489 | U186: 36401 | V186: 0.07999780226 | AC186: 33489 | AD186: 37288.82927 | AE186: 887.8292685 | AF186: 3799.829269 | AG186: 0.1019026165
L187: 184 | M187: 36501 | N187: 18201 | O187: 0 | P187: 18300 | Q187: 0.16 | R187: 2928 | S187: 2928 | T187: 33573 | U187: 36501 | V187: 0.08021698036 | AC187: 33573 | AD187: 37391.26829 | AE187: 890.2682929 | AF187: 3818.268293 | AG187: 0.1021165761
L188: 185 | M188: 36601 | N188: 18201 | O188: 0 | P188: 18400 | Q188: 0.16 | R188: 2944 | S188: 2944 | T188: 33657 | U188: 36601 | V188: 0.08043496079 | AC188: 33657 | AD188: 37493.70732 | AE188: 892.7073173 | AF188: 3836.707317 | AG188: 0.1023293665
L189: 186 | M189: 36701 | N189: 18201 | O189: 0 | P189: 18500 | Q189: 0.16 | R189: 2960 | S189: 2960 | T189: 33741 | U189: 36701 | V189: 0.08065175336 | AC189: 33741 | AD189: 37596.14634 | AE189: 895.1463417 | AF189: 3855.146342 | AG189: 0.1025409973
L190: 187 | M190: 36801 | N190: 18201 | O190: 0 | P190: 18600 | Q190: 0.16 | R190: 2976 | S190: 2976 | T190: 33825 | U190: 36801 | V190: 0.08086736773 | AC190: 33825 | AD190: 37698.58537 | AE190: 897.5853661 | AF190: 3873.585366 | AG190: 0.102751478
L191: 188 | M191: 36901 | N191: 18201 | O191: 0 | P191: 18700 | Q191: 0.16 | R191: 2992 | S191: 2992 | T191: 33909 | U191: 36901 | V191: 0.0810818135 | AC191: 33909 | AD191: 37801.02439 | AE191: 900.0243905 | AF191: 3892.02439 | AG191: 0.1029608179
L192: 189 | M192: 37001 | N192: 18201 | O192: 0 | P192: 18800 | Q192: 0.16 | R192: 3008 | S192: 3008 | T192: 33993 | U192: 37001 | V192: 0.08129510013 | AC192: 33993 | AD192: 37903.46341 | AE192: 902.4634149 | AF192: 3910.463415 | AG192: 0.1031690263
L193: 190 | M193: 37101 | N193: 18201 | O193: 0 | P193: 18900 | Q193: 0.16 | R193: 3024 | S193: 3024 | T193: 34077 | U193: 37101 | V193: 0.081507237 | AC193: 34077 | AD193: 38005.90244 | AE193: 904.9024393 | AF193: 3928.902439 | AG193: 0.1033761123
L194: 191 | M194: 37201 | N194: 18201 | O194: 0 | P194: 19000 | Q194: 0.16 | R194: 3040 | S194: 3040 | T194: 34161 | U194: 37201 | V194: 0.08171823338 | AC194: 34161 | AD194: 38108.34146 | AE194: 907.3414637 | AF194: 3947.341464 | AG194: 0.103582085
L195: 192 | M195: 37301 | N195: 18201 | O195: 0 | P195: 19100 | Q195: 0.16 | R195: 3056 | S195: 3056 | T195: 34245 | U195: 37301 | V195: 0.08192809844 | AC195: 34245 | AD195: 38210.78049 | AE195: 909.7804881 | AF195: 3965.780488 | AG195: 0.1037869532
L196: 193 | M196: 37401 | N196: =IF(M196>0,VLOOKUP(M196,ATOTaxScales,1),0) -> 18201 | O196: =IF(M196>0,VLOOKUP(M196,ATOTaxScales,2),0) -> 0 | P196: 19200 | Q196: =IF(M196>0,VLOOKUP(M196,ATOTaxScales,3),0) -> 0.16 | R196: 3072 | S196: 3072 | T196: 34329 | U196: 37401 | V196: 0.08213684126 | AC196: 34329 | AD196: 38313.21951 | AE196: 912.2195125 | AF196: 3984.219512 | AG196: 0.103990726
L197: 194 | M197: 37501 | N197: 18201 | O197: 0 | P197: 19300 | Q197: 0.16 | R197: 3088 | S197: 3088 | T197: 34413 | U197: 37501 | V197: =S197/M197 -> 0.08234447081 | AC197: 34413 | AD197: =GetGrossSalary(AC197) -> 38415.65854 | AE197: 914.6585368 | AF197: 4002.658537 | AG197: 0.104193412
L198: 195 | M198: =M197+$M$1 -> 37601 | N198: 18201 | O198: 0 | P198: =IF(M198>0,M198-N198,0) -> 19400 | Q198: 0.16 | R198: =IF(M198>0,ROUND(P198*Q198,2),0) -> 3104 | S198: =IF(M198>0,ROUND(O198+R198,0),0) -> 3104 | T198: =M198-S198 -> 34497 | U198: =M198 -> 37601 | V198: 0.08255099598 | AC198: 34497 | AD198: 38518.09756 | AE198: 917.0975612 | AF198: 4021.097561 | AG198: 0.1043950199
L199: 196 | M199: 37701 | N199: 18201 | O199: 0 | P199: 19500 | Q199: 0.16 | R199: 3120 | S199: 3120 | T199: 34581 | U199: 37701 | V199: 0.08275642556 | AC199: 34581 | AD199: 38620.53659 | AE199: 919.5365856 | AF199: 4039.536586 | AG199: 0.1045955583
L200: 197 | M200: 37801 | N200: 18201 | O200: 0 | P200: 19600 | Q200: 0.16 | R200: 3136 | S200: 3136 | T200: 34665 | U200: 37801 | V200: 0.08296076823 | AC200: 34665 | AD200: 38722.97561 | AE200: 921.97561 | AF200: 4057.97561 | AG200: 0.1047950357
... 2307 more rows

Sheet Payment Calculation (hidden)
C1: ="/* -- See "&CELL("address")&" OF "&CELL("filename")&" */" -> /* -- See '[Loan Origination Servicing CalcV076.xlsm]HEM Living Expenses'!$C$2 OF Q:\Risk\Credit Risk\Serviceability Calculators\Loan Origination Servicing Calculators\1st Party\[Loan Origination Servicing CalcV076.xlsm]HEM Living Expenses */ | R1: For Split Home Loan | T1: =User_Applied_Product_Name -> Home Loan
U2: ='Net Monthly Surplus'!C15 -> Home Loan 1 | W2: ='Net Monthly Surplus'!C17 -> Home Loan 2 | Y2: Total
D3: =ProductRate!C55 -> List of Products | J3: Applied Product Name | K3: ='Net Monthly Surplus'!C10 -> Home Loan | R3: Applied Product Name | U3: =User_Select_HL_VarRate_Name -> 0 | W3: =User_Select_HL_FixRate_Name -> 0
D4: =ProductRate!C56 -> All purpose loan | J4: Applied Loan Amount | K4: ='Net Monthly Surplus'!E10 -> 0 | R4: Applied Loan Amount | U4: =User_Select_HL_VarRate_Amount -> 0 | W4: =User_Select_HL_FixRate_Amount -> 0 | Y4: =U4+W4 -> 0
D5: =ProductRate!C57 -> All Purpose Loan 2 Year Fixed | J5: Applied Loan Terms in Months | K5: =IF('Net Monthly Surplus'!B16="IO",K17,K15) -> 0 | R5: Applied Loan Terms in Months after IO | U5: =U17 -> 0 | W5: =W17 -> 0
D6: =ProductRate!C58 -> All Purpose Loan 3 Year Fixed | I6: =IF(User_NHL_ProductRate="",0,User_NHL_ProductRate) -> 0 | J6: Product Rate | K6: =IF(User_NHL_ProductRate="",0,User_NHL_ProductRate) -> 0 | L6: =User_NHL_ProductRate ->  | R6: Product Rate | U6: =IF(User_Select_HL_VarRate="",0,User_Select_HL_VarRate) -> 0 | W6: =IF(User_Select_HL_FixRate="", 0,User_Select_HL_FixRate) -> 0 | Y6: =(U6*U4+W6*W4)/User_Select_HL_Total_Amount -> 
D7: =ProductRate!C59 -> All Purpose Loan 4 Year Fixed | J7: Buffer Rate | K7: =IF(K3=Prod_Home_Loan,Assessment_Buffer,0) -> 0.03 | R7: Buffer Rate | T7: =AssessmentFloorRate -> 0.06 | U7: =Assessment_Buffer -> 0.03 | W7: =Assessment_Buffer -> 0.03
D8: =ProductRate!C60 -> All Purpose Loan 5 Year Fixed | J8: Payment Rate | K8: =MAX(IF(K3=Prod_Home_Loan,AssessmentFloorRate,0),L8) -> 0.06 | L8: =K6+K7 -> 0.03 | R8: Payment Rate | T8: =U6+U7 -> 0.03 | U8: =MAX(AssessmentFloorRate,V8) ->  | V8: =HLYWRateP!S9 ->  | W8: =MAX(AssessmentFloorRate,X8) -> 0.06 | X8: =IFERROR(HLYWRateP!S10,0) -> 0
D9: =ProductRate!C61 -> All Purpose Loan 6 Year Fixed | J9: Payment Rate per month | K9: =K8/12 -> 0.005 | R9: Payment Rate per month | U9: =U8/12 ->  | W9: =W8/12 -> 0.005
D10: =ProductRate!C62 -> Car Loan | L10: Assessment For HomeLoan & Personal Loan&CreditCard | M10: To main sheet
D11: =ProductRate!C63 -> Car Loan 3 Year Fixed | J11: Payment Amount | K11: =ProductRate!E24*K4 -> 0 | L11: =IFERROR(-PMT(K9,K5,K4,0,0),0) -> 0 | M11: =IF(OR(K3=Prod_Redi_Credit),K11,L11) -> 0 | R11: Payment Amount | S11: Assessment | U11: =IFERROR(-PMT(U9,U5,U4,0,0),0) -> 0 | W11: =IFERROR(-PMT(W9,W5,W4,0,0),0) -> 0 | Y11: =U11+W11 -> 0
D12: =ProductRate!C64 -> Car Loan 4 Year Fixed | L12: =L11-Proposed_Loan_Monthly_Payment -> 0 | M12: =-PMT(K9,K5,K4,0,0) -> 
D13: =ProductRate!C65 -> Car Loan 5 Year Fixed
D14: =ProductRate!C66 -> Car Loan 6 Year Fixed
D15: =ProductRate!C67 -> Credit Card | J15: Applied Loan Terms in Months | K15: =IF(K3=Prod_Credit_Card,Parm!AD27,'Net Monthly Surplus'!F10) -> 0 | L15: =Parm!AD27 -> 36 | R15: Applied Loan Terms in Months | U15: =User_Select_HL_VarTerm_in_Months -> 0 | W15: =User_Select_HL_FixTerm_in_Months -> 0
D16: =ProductRate!C68 -> Home Loan | J16: IO Loan Term | K16: =IF(K3=Prod_Home_Loan,'Net Monthly Surplus'!G16,0) -> 0 | L16: Only for Home Loan? | R16: IO Loan Term | U16: =User_Select_HL_VarIOTerm_in_Months -> 0 | W16: =User_Select_HL_FixIOTerm_in_Months -> 0
J17: Remaining Loan Term | K17: =K15-K16 -> 0 | R17: Remaining Loan Term | U17: =U15-U16 -> 0 | W17: =W15-W16 -> 0
J19: Numerator | L19: =K9*(1+K9)^K5 -> 0.005 | R19: Numerator | U19: =U9*(1+U9)^U5 ->  | W19: =W9*(1+W9)^W5 -> 0.005
J20: Denominator | L20: =((1+K9)^K5)-1 -> 0 | R20: Denominator | U20: =((1+U9)^U5)-1 ->  | W20: =((1+W9)^W5)-1 -> 0
J21: Amortisation | L21: =L19/L20 ->  | R21: Amortisation | U21: =U19/U20 ->  | W21: =IFERROR(W19/W20,0) -> 0
J22: Amortised Payment | L22: =K4*L21 ->  | R22: Amortised Payment | U22: =U21*U4 ->  | W22: =W21*W4 -> 0
J23: Difference | L23: =L11-L22 ->  | N23: =10^12 -> 1000000000000 | O23: =N23*L23 ->  | P23: 12 decimal places | R23: Difference | U23: =U22-U11 ->  | W23: =W22-W11 -> 0
J24: Check | L24: =IF(ABS(L23)<L25,"OK","NotOK") ->  | R24: Check | U24: =IF(ABS(U23)<U25,"OK","NotOK") ->  | W24: =IF(ABS(W23)<W25,"OK","NotOK") -> OK
J25: Threshold | L25: 1e-05 | R25: Threshold | U25: 1e-07 | W25: 1e-07
J27: Total Net Income | K27: ='Net Monthly Surplus'!D95 -> 0 | L27: =Main!G46 -> 98238 | R27: Total Net Income | Y27: =User_Total_Annual_Net_Income -> 0
J28: Total Costs Excluding Loan Applied | K28: ='Net Monthly Surplus'!E131 -> 0 | L28: =TOTAL_COSTS-Main!C47 ->  | R28: Total Costs Excluding Loan Applied | Y28: =User_Total_Annual_Commitments -> 0
J29: Net Disposible Income | K29: =K27-K28 -> 0 | L29: =L27-L28 ->  | R29: Net Disposible Income | Y29: =Y27-Y28 -> 0
J30: Monthly Surplus Excluding Loan Applied | K30: =K29/12 -> 0 | L30: =L29/12 ->  | R30: Monthly Surplus Excluding Loan Applied | Y30: =Y29/12 -> 0
U31: =U33/U21 ->  | W31: =IFERROR(W33/W21,0) -> 0
J32: Surplus taking HEM into account | K32: ='Net Monthly Surplus'!D140 -> 0 | L32: =Main!B51 ->  | M32: =Main!A51 -> Monthly Surplus | R32: Surplus taking HEM into account | U32: =Y32*U4/User_Select_HL_Total_Amount ->  | W32: =Y32*W4/User_Select_HL_Total_Amount ->  | Y32: =User_Total_Net_Surplus -> 0
J33: Surplus taking HEM & Minimum Net Surplus into account | K33: ='Net Monthly Surplus'!D140-'Net Monthly Surplus'!X148 ->  | R33: Surplus taking HEM & Minimum Net Surplus into account | U33: =Y33*U4/User_Select_HL_Total_Amount ->  | W33: =Y33*W4/User_Select_HL_Total_Amount ->  | Y33: =User_Total_Net_Surplus-Calc_Surplus_Threshold -> 
U34: =-PV(U9,U5,U33,0,0) ->  | W34: =-PV(W9,W5,W33,0,0) -> 
J35: Max Loan Capacity | K35: Product Maximum | L35: Surplus Capacity | N35: Difference | O35: Check | R35: Max Loan Capacity | S35: Product Maximum | T35: Surplus Capacity | V35: Difference | W35: Check
J36: =IFERROR(MIN(K36,L36),"") ->  | K36: =VLOOKUP(K3,ProductRate!$C$7:$K$26,9,0) -> 5000000 | L36: =-PV(K9,K5,K33,0,0) ->  | M36: =K32/L21 ->  | N36: =M36-L36 ->  | O36: =IF(ABS(N36)<L25,"OK","NotOK") ->  | R36: =IFERROR(MIN(S36,T36),"") ->  | S36: =VLOOKUP(T1,ProductRate!$C$7:$K$26,9,0) -> 5000000 | T36: =U34+W34 ->  | U36: =U31+W31 ->  | V36: =U36-T36 ->  | W36: =IF(ABS(V36)<U25,"OK","NotOK") -> 
L37: =-PV(K9,K5,K32,0,0) -> 0
J39: For Home Loan | R39: For Home Loan
J40: Product Rate from User | K40: =User_NHL_ProductRate ->  | R40: Product Rate from User | U40: =U6 -> 0 | W40: =W6 -> 0 | Y40: =Y6 -> 
J41: Maximum Loan Amount | K41: =J36 ->  | L41: =J36 ->  | R41: Maximum Loan Amount | U41: =U34 ->  | W41: =W34 ->  | Y41: =Calc_MaxHomeLoan_Capacity -> 
J42: Term | K42: =K5 -> 0 | L42: =K42/12 -> 0 | R42: Term | T42: =U42/12 -> 0 | U42: =U5 -> 0 | V42: =W42/12 -> 0 | W42: =W5 -> 0
J43: Repayment Type | K43: P&I | R43: Repayment Type | U43: =User_Select_HL_VarRepayment_Type -> 0 | W43: =User_Select_HL_FixRepayment_Type -> 0
J45: Periods per year | K45: 52 | L45: 26 | M45: 12 | R45: Periods per year | S45: 52 | T45: 26 | U45: 12 | W45: 52 | X45: 26 | Y45: 12
K46: Weekly | L46: Fortnightly | M46: Monthly | S46: Weekly | T46: Fortnightly | U46: Monthly | W46: Weekly | X46: Fortnightly | Y46: Monthly
J47: Repayment on Maximum Loan Amount | R47: Repayment on Maximum Loan Amount
J48: IO | K48: =IFERROR($K$41*$K$40/K$45,0) -> 0 | L48: =IFERROR($K$41*$K$40/L$45,0) -> 0 | M48: =IFERROR($K$41*$K$40/M$45,0) -> 0 | R48: IO | S48: =IFERROR(U40*U41/S$45,0) -> 0 | T48: =IFERROR(U40*U41/T$45,0) -> 0 | U48: =IFERROR(U40*U41/U$45,0) -> 0 | W48: =IFERROR(W40*W41/W$45,0) -> 0 | X48: =IFERROR(W40*W41/X$45,0) -> 0 | Y48: =IFERROR(W40*W41/Y$45,0) -> 0
J49: P&I | K49: =IFERROR(-PMT($K$40/K$45,$L$42*K$45,$K$41),0) -> 0 | L49: =IFERROR(-PMT($K$40/L$45,$L$42*L$45,$K$41),0) -> 0 | M49: =IFERROR(-PMT($K$40/M$45,$L$42*M$45,$K$41),0) -> 0 | R49: P&I | S49: =IFERROR(-PMT(U40/S45,T42*S45,U41),0) -> 0 | T49: =IFERROR(-PMT(U40/T45,T45*T42,U41),0) -> 0 | U49: =IFERROR(-PMT(U40/U45,T42*U45,U41),0) -> 0 | W49: =IFERROR(-PMT(W40/W45,V42*W45,W41),0) -> 0 | X49: =IFERROR(-PMT(W40/X45,X45*V42,W41),0) -> 0 | Y49: =IFERROR(-PMT(W40/Y45,V42*Y45,W41),0) -> 0
J50: To Be Displayed | K50: =IF($K$43=$J49,K49,K48) -> 0 | L50: =IF($K$43=$J49,L49,L48) -> 0 | M50: 0 | R50: To Be Displayed | S50: =IF(U43=R49,S49,S48) -> 0 | T50: =IF(U43=R49,T49,T48) -> 0 | U50: =IF(U43=R49,U49,U48) -> 0 | W50: =IF(W43=R49,W49,W48) -> 0 | X50: =IF(W43=R49,X49,X48) -> 0 | Y50: =IF(W43=R49,Y49,Y48) -> 0
R52: =R48 -> IO | S52: =S48+W48 -> 0 | T52: =T48+X48 -> 0 | U52: 0
R53: =R49 -> P&I | S53: =S49+W49 -> 0 | T53: =T49+X49 -> 0 | U53: =U49+Y49 -> 0
R54: To Be Displayed Split | S54: 0 | T54: 0 | U54: 0
J56: Repayment on Proposed Loan Amount | K56: ='Net Monthly Surplus'!E10 -> 0 | R56: Proposed Loan Amount | U56: =U4 -> 0 | W56: =W4 -> 0 | Y56: =U56+W56 -> 0
J57: Data Entered | K57: =K56*K40 ->  | R57: Data Entered | U57: =U56*U40 -> 0 | W57: =W56*W40 -> 0 | Y57: =Y56*Y40 -> 
J59: Repayment on Proprosed Loan Amount | R59: Repayment on Proprosed Loan Amount
J60: IO | K60: =IFERROR($K$56*$K$40/K$45,0) -> 0 | L60: =IFERROR($K$56*$K$40/L$45,0) -> 0 | M60: =IFERROR($K$56*$K$40/M$45,0) -> 0 | R60: IO | S60: =IFERROR($U$56*$U$40/S$45,0) -> 0 | T60: =IFERROR($U$56*$U$40/T$45,0) -> 0 | U60: =IFERROR($U$56*$U$40/U$45,0) -> 0 | W60: =IFERROR($W$56*$W$40/W$45,0) -> 0 | X60: =IFERROR($W$56*$W$40/X$45,0) -> 0 | Y60: =IFERROR($W$56*$W$40/Y$45,0) -> 0
J61: P&I | K61: =IFERROR(-PMT($K$40/K$45,$L$42*K$45,$K$56),0) -> 0 | L61: =IFERROR(-PMT($K$40/L$45,$L$42*L$45,$K$56),0) -> 0 | M61: =IFERROR(-PMT($K$40/M$45,$L$42*M$45,$K$56),0) -> 0 | R61: P&I | S61: =IFERROR(-PMT($U$40/S$45,S$45*$T$42,$U$56),0) -> 0 | T61: =IFERROR(-PMT($U$40/T$45,T$45*$T$42,$U$56),0) -> 0 | U61: =IFERROR(-PMT($U$40/U$45,U$45*$T$42,$U$56),0) -> 0 | W61: =IFERROR(-PMT($W$40/W$45,W$45*$V$42,$W$56),0) -> 0 | X61: =IFERROR(-PMT($W$40/X$45,X$45*$V$42,$W$56),0) -> 0 | Y61: =IFERROR(-PMT($W$40/Y$45,Y$45*$V$42,$W$56),0) -> 0
J62: To Be Displayed | K62: =IF(AND($K$57,$K$43=$J61),K61,K60) ->  | L62: =IF(AND($K$57,$K$43=$J61),L61,L60) ->  | M62: =IF(AND($K$57,$K$43=$J61),M61,M60) ->  | R62: To Be Displayed | S62: =IF(AND($U$57,$U$43=$R$61),S61,S60) -> 0 | T62: =IF(AND($U$57,$U$43=$R$61),T61,T60) -> 0 | U62: 0 | W62: =IF(AND($W$57,$W$43=$R$61),W61,W60) -> 0 | X62: =IF(AND($W$57,$W$43=$R$61),X61,X60) -> 0 | Y62: =IF(AND($W$57,$W$43=$R$61),Y61,Y60) -> 0
R64: =R60 -> IO | S64: =S60+W60 -> 0 | T64: =T60+X60 -> 0 | U64: 0
R65: =R61 -> P&I | S65: =S61+W61 -> 0 | T65: 0 | U65: 0
R66: To Be Displayed Split | S66: 0 | T66: 0 | U66: 0

Sheet ProductRate (hidden)
B1: Table copy from Rich B Product Parameters and sorted by Product Name | G1: No Inserting of Rows or Column; Work right and Down
C4: 0 | D4: 1 | E4: 2 | F4: 3 | G4: 4 | H4: 5 | I4: 6 | J4: 7 | K4: 8 | L4: 9 | M4: 10
E5: Assessment Rate By Product | F5: Term in Years | O5: Terms in Months
C6: Product name | D6: L-Code | E6: APR Rate | F6: Min Termn | G6: Max Termn | H6: Min Term | I6: Max Term | J6: Min amount | K6: Max amount | L6: App fee | M6: Exceptions | O6: Min | P6: Max
C7: All purpose loan | D7: L22 | E7: 0.1319 | F7: 0.5 | G7: 6 | H7: 6months | I7: 6years | J7: 4000 | K7: 80000 | L7: 100 | M7: Debt consolidation (5 year term and $50K) | O7: =12*$F7 -> 6 | P7: =12*$G7 -> 72
C8: All Purpose Loan 1 Year Fixed | D8: =D$7&"1YF" -> L221YF | E8: 0.1105 | F8: 1 | G8: 1 | H8: 12months | I8: 1years | J8: 4000 | K8: 80000 | O8: =12*$F8 -> 12 | P8: =12*$G8 -> 12
C9: All Purpose Loan 2 Year Fixed | D9: =D$7&"2YF" -> L222YF | E9: 0.1045 | F9: 2 | G9: 2 | H9: 24months | I9: 2years | J9: 4000 | K9: 80000 | O9: 24 | P9: 24
C10: All Purpose Loan 3 Year Fixed | D10: =D$7&"3YF" -> L223YF | E10: 0.0995 | F10: 3 | G10: 3 | H10: 36months | I10: 3years | J10: 4000 | K10: 80000 | O10: 36 | P10: 36
C11: All Purpose Loan 4 Year Fixed | D11: =D$7&"4YF" -> L224YF | E11: 0.0995 | F11: 4 | G11: 4 | H11: 48months | I11: 4years | J11: 4000 | K11: 80000 | O11: 48 | P11: 48
C12: All Purpose Loan 5 Year Fixed | D12: =D$7&"5YF" -> L225YF | E12: 0.0895 | F12: 5 | G12: 5 | H12: 60months | I12: 5years | J12: 4000 | K12: 80000 | O12: 60 | P12: 60
C13: All Purpose Loan 6 Year Fixed | D13: =D$7&"6YF" -> L226YF | E13: 0.0895 | F13: 6 | G13: 6 | H13: 72months | I13: 6years | J13: 4000 | K13: 80000 | O13: 72 | P13: 72
C14: Car Loan | D14: L21 | E14: 0.0995 | F14: 0.5 | G14: 6 | H14: 6months | I14: 6years | J14: 5000 | K14: 80000 | L14: 100 | O14: =12*$F14 -> 6 | P14: =12*$G14 -> 72
C15: Car Loan 1 Year Fixed | D15: =D$14&"1YF" -> L211YF | E15: 0.085 | F15: 1 | G15: 1 | H15: 12months | I15: 1years | J15: 2000 | K15: 80000 | O15: =12*$F15 -> 12 | P15: =12*$G15 -> 12
C16: Car Loan 2 Year Fixed | D16: =D$14&"2YF" -> L212YF | E16: 0.0745 | F16: 2 | G16: 2 | H16: 24months | I16: 2years | J16: 2000 | K16: 80000 | O16: 24 | P16: 24
C17: Car Loan 3 Year Fixed | D17: =D$14&"3YF" -> L213YF | E17: 0.0499 | F17: 3 | G17: 3 | H17: 36months | I17: 3years | J17: 10000 | K17: 80000 | O17: 36 | P17: 36
C18: Car Loan 4 Year Fixed | D18: =D$14&"4YF" -> L214YF | E18: 0.0499 | F18: 4 | G18: 4 | H18: 48months | I18: 4years | J18: 10000 | K18: 80000 | O18: 48 | P18: 48
C19: Car Loan 5 Year Fixed | D19: =D$14&"5YF" -> L215YF | E19: 0.0499 | F19: 5 | G19: 5 | H19: 60months | I19: 5years | J19: 10000 | K19: 80000 | O19: 60 | P19: 60
C20: Car Loan 6 Year Fixed | D20: =D$14&"6YF" -> L216YF | E20: 0.0499 | F20: 6 | G20: 6 | H20: 72months | I20: 6years | J20: 10000 | K20: 80000 | O20: 72 | P20: 72
C21: Deferred Repayment Loan | D21: L48 | E21: 0.1319 | F21: 0.5 | G21: 3 | H21: 6months | I21: 3years | J21: 2000 | K21: 50000 | L21: 100 | M21: Available in November to January only | O21: =12*$F21 -> 6 | P21: =12*$G21 -> 36
C22: Secured New Car Loan | D22: L45 | E22: 0.0839 | F22: 0.5 | G22: 8 | H22: 6months | I22: 8years | J22: 10000 | K22: 80000 | L22: 100 | M22: Security only taken on cars $40K> | O22: =12*$F22 -> 6 | P22: =12*$G22 -> 96
C23: Travel loan | D23: L44 | E23: 0.1145 | F23: 0.5 | G23: 5 | H23: 6months | I23: 5years | J23: 2000 | K23: 30000 | L23: 100 | O23: =12*$F23 -> 6 | P23: =12*$G23 -> 60
C24: RediCredit | D24: S1 | E24: 0.02 | F24: 0.5 | G24: 40 | H24: 6months | I24: 40years | J24: 500 | K24: 40000 | O24: =12*$F24 -> 6 | P24: =12*$G24 -> 480
C25: Home Loan | D25: HL | E25: =E45 ->  | F25: 0.5 | G25: 35 | H25: 6months | I25: 40years | J25: =E50 -> 10000 | K25: =E51 -> 5000000 | O25: =12*$F25 -> 6 | P25: =12*$G25 -> 420
C26: Credit Card | D26: CC | E26: =I45 -> 0.115 | F26: 0.5 | G26: 40 | H26: 6months | I26: 40years | J26: =I50 -> 1000 | K26: =I51 -> 25000 | O26: 6 | P26: 480
J28: =MIN(J7:J24) -> 500 | K28: =MAX(K7:K24) -> 80000
C30: User Selected Product | D30: ='Net Monthly Surplus'!C10 -> Home Loan | E30: =VLOOKUP(D30,$C$7:$D$26,2,0) -> HL
C31: Select Product | D31: =E30 -> HL
C33: Selected Product | D33: =D31 -> HL | E33: Term
C34: Min Amount | D34: =VLOOKUP(D$31,$D$7:$M$26,7,0) -> 10000 | E34: =VLOOKUP(D$31,$D$7:$M$26,3,0)*12 -> 6
C35: Max Amount | D35: =VLOOKUP(D$31,$D$7:$M$26,8,0) -> 5000000 | E35: =VLOOKUP(D$31,$D$7:$M$26,4,0)*12 -> 420
C36: APR Rate | D36: =VLOOKUP(D$31,$D$7:$M$26,2,0) -> 
C38: Maximum Usual Formula | D38: =K28 -> 80000
C39: Maximum Depending ON Product | D39: =MIN(D35,D38) -> 80000
E43: Home Loan | I43: Credit Card | K43: Personal Loan
C45: Assessment Rate (Using Product Rate) | E45: =User_NHL_ProductRate ->  | I45: 0.115 | K45: 0.12
E46: Month | F46: Year
C47: Min term | E47: 6 | F47: =E47/12 -> 0.5
C48: Max term | E48: =P25 -> 420 | F48: =E48/12 -> 35
C50: Min Amt | E50: 10000 | I50: 1000
C51: Max Amt | E51: 5000000 | I51: 25000
C52: Inc Min | E52: 10000
C54: UI Data Validation Sorted
C55: List of Products | E55: Repayment Type | F55: Note | H55: =C55 -> List of Products | I55: Max Applicants
B56: 1 | C56: All purpose loan | E56: IO | F56: Interest Only | H56: =C56 -> All purpose loan | I56: 2
B57: 3 | C57: All Purpose Loan 2 Year Fixed | E57: P&I | F57: Principal & Interest | H57: =C57 -> All Purpose Loan 2 Year Fixed | I57: 2
B58: 4 | C58: All Purpose Loan 3 Year Fixed | H58: All Purpose Loan 3 Year Fixed | I58: 1
B59: 5 | C59: All Purpose Loan 4 Year Fixed | H59: All Purpose Loan 4 Year Fixed | I59: 2
B60: 6 | C60: All Purpose Loan 5 Year Fixed | H60: All Purpose Loan 5 Year Fixed | I60: 2
B61: 7 | C61: All Purpose Loan 6 Year Fixed | H61: All Purpose Loan 6 Year Fixed | I61: 1
B62: 8 | C62: Car Loan | H62: Car Loan | I62: 2
B63: 11 | C63: Car Loan 3 Year Fixed | H63: Car Loan 3 Year Fixed | I63: 2
B64: 12 | C64: Car Loan 4 Year Fixed
B65: 13 | C65: Car Loan 5 Year Fixed
B66: 14 | C66: Car Loan 6 Year Fixed
B67: 15 | C67: Credit Card
B68: 17 | C68: Home Loan
H69: =Prod_Home_Loan=Parm_HomeLoan -> TRUE
B73: 16 | C73: Deferred Repayment Loan
B74: 18 | C74: RediCredit
B75: 19 | C75: Secured New Car Loan
B76: 20 | C76: Travel loan
B77: 9 | C77: Car Loan 1 Year Fixed
B78: 10 | C78: Car Loan 2 Year Fixed
B79: 2 | C79: All Purpose Loan 1 Year Fixed
C81: Maximum Property Price | D81: =4*K25 -> 20000000
C83: Product Type
C84: Variable
C85: Fixed
C86: Split
G87: Date Changed
C89: Margin Lending Assessment Rate | E89: 0.0934 | G89: 2024-02-12 | I89: Borrower-Stated Interest Rate | J89: ='Net Monthly Surplus'!D127 -> 0
I90: Buffer | J90: 0.03
C91: Assessment Buffer | E91: 0.03 | G91: 2021-11-16 | I91: Total | J91: =J90+J89 -> 0.03
C92: Floor Rate | E92: 0.06 | G92: 2022-09-20
C94: 21Aug2019 Action: Update Assessemnt Rate for Exisiting HL Obligations to 6.50%
C95: HL Obligation Assessment Rate | E95: 0.0934 | G95: 2023-09-19
C98: Reconciliation
C99: =UNSECCR!C4 -> Product Name | D99: =C54 -> UI Data Validation Sorted
C100: All Purpose Loan | D100: All purpose loan | E100: =C100=D100 -> TRUE
C101: All Purpose Loan 1 Year Fixed | D101: All Purpose Loan 1 Year Fixed | E101: =C101=D101 -> TRUE
C102: All Purpose Loan 2 Year Fixed | D102: All Purpose Loan 2 Year Fixed | E102: TRUE
C103: All Purpose Loan 3 Year Fixed | D103: All Purpose Loan 3 Year Fixed | E103: TRUE
C104: All Purpose Loan 4 Year Fixed | D104: All Purpose Loan 4 Year Fixed | E104: TRUE
C105: All Purpose Loan 5 Year Fixed | D105: All Purpose Loan 5 Year Fixed | E105: TRUE
C106: All Purpose Loan 6 Year Fixed | D106: All Purpose Loan 6 Year Fixed | E106: TRUE
C107: Car Loan | D107: Car Loan | E107: TRUE
C108: Car Loan 1 Year Fixed | D108: Car Loan 1 Year Fixed | E108: TRUE
C109: Car Loan 2 Year Fixed | D109: Car Loan 2 Year Fixed | E109: TRUE
C110: Car Loan 3 Year Fixed | D110: Car Loan 3 Year Fixed | E110: TRUE
C111: Car Loan 4 Year Fixed | D111: Car Loan 4 Year Fixed | E111: TRUE
C112: Car Loan 5 Year Fixed | D112: Car Loan 5 Year Fixed | E112: TRUE
C113: Car Loan 6 Year Fixed | D113: Car Loan 6 Year Fixed | E113: TRUE
C114: Credit Card | D114: Credit Card | E114: TRUE
C115: Deferred Repayment Loan | D115: Deferred Repayment Loan | E115: TRUE
C116: RediCredit | D116: RediCredit | E116: TRUE
C117: Secured New Car Loan | D117: Secured New Car Loan | E117: TRUE
C118: Travel Loan | D118: Travel loan | E118: TRUE

Sheet Names (hidden)
A1: 2018-07-27 | B1: Use Formulas; Use in Formula; Paste Names ; Paste List; 06Sep2019 | E1: 2018-07-27 | F1: Use Macros | G1: Updated 31Oct2019 | J1: 2020-11-27 | K1: Use Formulas; Use in Formula; Paste Names ; Paste List; 27/11/2020 | O1: 2020-11-27 | P1: Use Macro | Q1: Note the External Links, will have to remove them | T1: 2021-02-26 | U1: Use Formulas; Use in Formula; Paste Names ; Paste List; 23/02/2021 | X1: 2021-02-26 | Y1: Use Macro in Module 4 Sub listDefinedName() OUtput will go to cell with NameCol of Active sheet !!!! Care | Z1: 15:03:00
A2: List | B2: Adult_Couples | C2: =Main!$B$41 | E2: List | F2: Names | G2: Cell Range | J2: List | K2: Names | L2: Cell Range | O2: List | P2: Names | Q2: Cell Range | T2: List | U2: Names | V2: Cell Range | X2: List | Y2: Names | Z2: Cell Range
A3: 1 | B3: AIPResult | C3: =AIP!$T$10 | E3: 1 | F3: _xlfn.IFERROR | G3: =#NAME? | J3: 1 | K3: Adult_Couples | L3: =Main!$B$41 | O3: 1 | P3: Requirements!_MailEndCompose | Q3: =Requirements!$C$579 | T3: 1 | U3: Adult_Couples | V3: =Main!$B$41 | X3: 1 | Y3: Requirements!_MailEndCompose | Z3: =Requirements!$C$579
A4: 2 | B4: AnnualMult | C4: =Parm!$K$23:$L$26 | E4: 2 | F4: Adult_Couples | G4: =Main!$B$41 | J4: 2 | K4: AIPResult | L4: =AIP!$T$10 | O4: 2 | P4: _xlfn.IFERROR | Q4: =#NAME? | T4: 2 | U4: AIPResult | V4: =AIP!$T$10 | X4: 2 | Y4: _xlfn.IFERROR | Z4: =#NAME?
A5: 3 | B5: Applicable_Living_Expenses | C5: =Main!$E$42 | E5: 3 | F5: Net Monthly Surplus'!AdvancedAppCodeArea | G5: ='Net Monthly Surplus'!$C$157:$C$160 | J5: 3 | K5: AnnualMult | L5: =Parm!$K$23:$L$26 | O5: 3 | P5: Adult_Couples | Q5: =Main!$B$41 | T5: 3 | U5: AnnualMult | V5: =Parm!$K$23:$L$26 | X5: 3 | Y5: Adult_Couples | Z5: =Main!$B$41
A6: 4 | B6: Applicant_Name | C6: =Main!$B$8 | E6: 4 | F6: AIPResult | G6: =AIP!$T$10 | J6: 4 | K6: Applicable_Living_Expenses | L6: =Main!$E$42 | O6: 4 | P6: Net Monthly Surplus'!AdvancedAppCodeArea | Q6: ='Net Monthly Surplus'!$C$157:$C$161 | T6: 4 | U6: Applicable_Living_Expenses | V6: =Main!$E$42 | X6: 4 | Y6: Net Monthly Surplus'!AdvancedAppCodeArea | Z6: ='Net Monthly Surplus'!$C$157:$C$161
A7: 5 | B7: Applicant_Type | C7: =CalculationsReference!$D$57:$M$57 | E7: 5 | F7: AnnualMult | G7: =Parm!$K$23:$L$26 | J7: 5 | K7: Applicant_Name | L7: =Main!$B$8 | O7: 5 | P7: AIPResult | Q7: =AIP!$T$10 | T7: 5 | U7: Applicant_Name | V7: =Main!$B$8 | X7: 5 | Y7: AIPResult | Z7: =AIP!$T$10
A8: 6 | B8: Applicant1_GAIncome | C8: =Main!$B$26 | E8: 6 | F8: Applicable_Living_Expenses | G8: =Main!$E$42 | J8: 6 | K8: Applicant_Type | L8: =CalculationsReference!$D$57:$M$57 | O8: 6 | P8: AnnualMult | Q8: =Parm!$K$23:$L$26 | T8: 6 | U8: Applicant_Type | V8: =CalculationsReference!$D$57:$M$57 | X8: 6 | Y8: AnnualMult | Z8: =Parm!$K$23:$L$26
A9: 7 | B9: Applicant1_GAINT | C9: =Main!$D$26 | E9: 7 | F9: Applicant_Name | G9: =Main!$B$8 | J9: 7 | K9: Applicant1_GAIncome | L9: =Main!$B$26 | O9: 7 | P9: Applicable_Living_Expenses | Q9: =Main!$E$42 | T9: 7 | U9: Applicant1_GAIncome | V9: =Main!$B$26 | X9: 7 | Y9: Applicable_Living_Expenses | Z9: =Main!$E$42
A10: 8 | B10: Applicant1_GARental | C10: =Main!$C$26 | E10: 8 | F10: Applicant_Type | G10: =CalculationsReference!$D$57:$M$57 | J10: 8 | K10: Applicant1_GAINT | L10: =Main!$D$26 | O10: 8 | P10: Applicant_Name | Q10: =Main!$B$8 | T10: 8 | U10: Applicant1_GAINT | V10: =Main!$D$26 | X10: 8 | Y10: Applicant_Name | Z10: =Main!$B$8
A11: 9 | B11: Applicant2_GAIncome | C11: =Main!$B$27 | E11: 9 | F11: Applicant1_GAIncome | G11: =Main!$B$26 | J11: 9 | K11: Applicant1_GARental | L11: =Main!$C$26 | O11: 9 | P11: Applicant_Type | Q11: =CalculationsReference!$D$57:$M$57 | T11: 9 | U11: Applicant1_GARental | V11: =Main!$C$26 | X11: 9 | Y11: Applicant_Type | Z11: =CalculationsReference!$D$57:$M$57
A12: 10 | B12: Applicant2_GAINT | C12: =Main!$D$27 | E12: 10 | F12: Applicant1_GAINT | G12: =Main!$D$26 | J12: 10 | K12: Applicant2_GAIncome | L12: =Main!$B$27 | O12: 10 | P12: Applicant1_GAIncome | Q12: =Main!$B$26 | T12: 10 | U12: Applicant2_GAIncome | V12: =Main!$B$27 | X12: 10 | Y12: Applicant1_GAIncome | Z12: =Main!$B$26
A13: 11 | B13: Applicant2_GARental | C13: =Main!$C$27 | E13: 11 | F13: Applicant1_GARental | G13: =Main!$C$26 | J13: 11 | K13: Applicant2_GAINT | L13: =Main!$D$27 | O13: 11 | P13: Applicant1_GAINT | Q13: =Main!$D$26 | T13: 11 | U13: Applicant2_GAINT | V13: =Main!$D$27 | X13: 11 | Y13: Applicant1_GAINT | Z13: =Main!$D$26
A14: 12 | B14: Applicant3_GAIncome | C14: =Main!$B$28 | E14: 12 | F14: Applicant2_GAIncome | G14: =Main!$B$27 | J14: 12 | K14: Applicant2_GARental | L14: =Main!$C$27 | O14: 12 | P14: Applicant1_GARental | Q14: =Main!$C$26 | T14: 12 | U14: Applicant2_GARental | V14: =Main!$C$27 | X14: 12 | Y14: Applicant1_GARental | Z14: =Main!$C$26
A15: 13 | B15: Applicant3_GAINT | C15: =Main!$D$28 | E15: 13 | F15: Applicant2_GAINT | G15: =Main!$D$27 | J15: 13 | K15: Applicant3_GAIncome | L15: =Main!$B$28 | O15: 13 | P15: Applicant2_GAIncome | Q15: =Main!$B$27 | T15: 13 | U15: Applicant3_GAIncome | V15: =Main!$B$28 | X15: 13 | Y15: Applicant2_GAIncome | Z15: =Main!$B$27
A16: 14 | B16: Applicant3_GARental | C16: =Main!$C$28 | E16: 14 | F16: Applicant2_GARental | G16: =Main!$C$27 | J16: 14 | K16: Applicant3_GAINT | L16: =Main!$D$28 | O16: 14 | P16: Applicant2_GAINT | Q16: =Main!$D$27 | T16: 14 | U16: Applicant3_GAINT | V16: =Main!$D$28 | X16: 14 | Y16: Applicant2_GAINT | Z16: =Main!$D$27
A17: 15 | B17: Applicant4_GAIncome | C17: =Main!$B$29 | E17: 15 | F17: Applicant3_GAIncome | G17: =Main!$B$28 | J17: 15 | K17: Applicant3_GARental | L17: =Main!$C$28 | O17: 15 | P17: Applicant2_GARental | Q17: =Main!$C$27 | T17: 15 | U17: Applicant3_GARental | V17: =Main!$C$28 | X17: 15 | Y17: Applicant2_GARental | Z17: =Main!$C$27
A18: 16 | B18: Applicant4_GAINT | C18: =Main!$D$29 | E18: 16 | F18: Applicant3_GAINT | G18: =Main!$D$28 | J18: 16 | K18: Applicant4_GAIncome | L18: =Main!$B$29 | O18: 16 | P18: Applicant3_GAIncome | Q18: =Main!$B$28 | T18: 16 | U18: Applicant4_GAIncome | V18: =Main!$B$29 | X18: 16 | Y18: Applicant3_GAIncome | Z18: =Main!$B$28
